Workbook

Sheet _TM_Uvod (hidden)
A1: Left | B1: Top | C1: Right | D1: Bottom | E1: Ref
A2: 1 | B2: 12 | C2: 2 | D2: 12 | E2: $A$12:$B$12

Sheet (Naslovna)
A1: v_2.11/2020
B2: Prilog 9.2.1 | I2: Srednjoročni financijski plan poslovanja
B3: Ministarstvo prostornoga uređenja, graditeljstva i državne imovine
B9: Srednjoročni financijski plan poslovanja
C13: ="za razdoblje "&Podloga!B7 -> za razdoblje 2026. - 2028.
C19: =HYPERLINK("#Uvod!A1","Uvod") -> Uvod
C21: =HYPERLINK("#Podloga!A1","Podloga za izradu plana") -> Podloga za izradu plana
C23: =HYPERLINK("#'Tijela društva'!A1","Tijela društva") -> Tijela društva
C25: =HYPERLINK("#'Vl. struktura'!A1","Vlasnička struktura") -> Vlasnička struktura
C27: =HYPERLINK("#Bilanca!A1","Izvještaj o financijskom položaju ") -> Izvještaj o financijskom položaju
C29: =HYPERLINK("#RDG!A1","Račun dobiti i gubitka") -> Račun dobiti i gubitka
C31: =HYPERLINK("#'NT dir.'!A1","Izvještaj o novčanom toku (direktna metoda)") -> Izvještaj o novčanom toku (direktna metoda)
C33: =HYPERLINK("#'NT indir.'!A1","Izvještaj o novčanom toku (indirektna metoda)") -> Izvještaj o novčanom toku (indirektna metoda)
C35: =HYPERLINK("#MFIN!A1","Podaci za Ministarstvo financija") -> Podaci za Ministarstvo financija
C37: =HYPERLINK("#'Sektorski pokazatelji'!A1","Ključni sektorski pokazatelji") -> Ključni sektorski pokazatelji

Sheet Naslovna (hidden)
B2: Prilog 9.2.1 | I2: Srednjoročni financijski plan poslovanja
B3: Ministarstvo državne imovine
B9: Srednjoročni financijski plan poslovanja
C13: ="za razdoblje "&Podloga!B7 -> za razdoblje 2026. - 2028.
C19: =HYPERLINK("#Uvod!A1","Uvod") -> Uvod
C21: =HYPERLINK("#Sadržaj!A1","Sadržaj") -> Sadržaj
C23: =HYPERLINK("#Podloga!A1","Podloga za izradu plana") -> Podloga za izradu plana
C25: =HYPERLINK("#Bilanca!A1","Izvještaj o financijskom položaju") -> Izvještaj o financijskom položaju
C27: =HYPERLINK("#RDG!A1","Račun dobiti i gubitka") -> Račun dobiti i gubitka
C29: =HYPERLINK("#'NT dir.'!A1","Izvještaj o novčanom toku (direktna metoda)") -> Izvještaj o novčanom toku (direktna metoda)
C31: =HYPERLINK("#'NT indir.'!A1","Izvještaj o novčanom toku (indirektna metoda)") -> Izvještaj o novčanom toku (indirektna metoda)
C33: =HYPERLINK("#MFIN!A1","Podaci za Ministarstvo financija") -> Podaci za Ministarstvo financija
C35: =HYPERLINK("#Dashboard!A1","Dashboard") -> Dashboard
C37: =HYPERLINK("#DuPont!A1","DuPont analiza") -> DuPont analiza
C39: =HYPERLINK("#'Altman Integral (Basic)'!A1","Altman Integral (Basic)") -> Altman Integral (Basic)
C41: =HYPERLINK("#'Altman Integral (A)'!A1","Altman Integral (A model)") -> Altman Integral (A model)
C43: =HYPERLINK("#'Altman Integral (B)'!A1","Altman Integral (B model)") -> Altman Integral (B model)
C45: =HYPERLINK("#'Zračne luke'!A1","Ključni sektorski pokazatelji") -> Ključni sektorski pokazatelji

Sheet Uvod
A1: Prilog: Podloga za izradu srednjoročnog financijskog plana poslovanja
A3: Sukladno važećim zakonskim i podzakonskim propisima sve pravne osobe na koje se odnosi Uputa za izradu i dostavu planova i izvještaja o poslovanju, dužne su dostavljati planove poslovanja Primateljima planova i izvještaja kako je definirano Uputom.
A5: Kao što je propisano u Uputi za izradu i dostavu planova i izvještaja o poslovanju, ovaj dokument sadrži propisanu formu većine potrebnih sastavnica plana poslovanja.
A7: Sve pravne osobe na koje se odnosi Uputa za izradu i dostavu planova i izvještaja o poslovanju obvezne su popuniti: Zelene Listove u Excel podlozi: Prvi List “Podloga” → Subjekti izvještavanja trebaju unijeti osnovne informacije o društvu, na primjer: ime društva, adresa, članovi Uprave, temeljni kapital, planirane investicije (kratki opis), vrijednost zaprimljenih subvencija i donacija itd. Također, Subjekti izvještavanja trebaju odabrati metodu pripreme Izvještaja o novčanom toku (direktna ili indirektna), popuniti informacije o broju izdanih dionica, njihovoj vrijednosti te o prosječnom broju zaposlenika u promatranom razdoblju. Podloge za planske financijske izvještaje (Listovi: “Bilanca”, “RDG”, “NT dir.” ili “NT. indir.”) → Subjekti izvještavanja trebaju unijeti stvarne podatke. Napomena: Podloge za planske izvještaje pripremljene su u skladu s standardnim formatima za financijsko izvještavanje u Republici Hrvatskoj (kako je utvrđeno Zakonom). Specijalni List za Ministarstvo financija → Subjekti izvještavanja trebaju unijeti specifične podatke koji su traženi od strane Ministarstva financija poput: iznosa državnih subvencija, investicija, iznosa isplaćenih dividendi itd. Specifične sektorske pokazatelje (narančasti Listovi) → navedeni Listovi uključuju operativne, financijske, tržišne i razvojne pokazatelje. Subjekti izvještavanja trebaju popuniti pokazatelje za industriju u kojoj posluju.
A12: Objašnjenje boja Listova:
B14: Listovi s osnovnim informacijama i uputama
B15: Listovi s financijskim izvještajima (potrebno unijeti podatke)
B16: Listovi s osnovnim pokazateljima o poslovanju (pokazatelji su dostupni nakon što su ispunjene Listovi s podacima iz financijskih izvještaja)
B17: Listovi s specifičnim sektorskim pokazateljima

Sheet Sadržaj (hidden)
A1: Sadržaj
A2: Podloga za izradu plana | B2: =HYPERLINK("#Podloga!A1","Podloga za izradu plana") -> Podloga za izradu plana
A3: Izvještaj o financijskom položaju | B3: =HYPERLINK("#Bilanca!A1","Bilanca") -> Bilanca
A4: Račun dobiti i gubitka | B4: =HYPERLINK("#RDG!A1","RDG") -> RDG
A5: Izvještaj o novčanom toku (direktna metoda) | B5: =HYPERLINK("#'NT dir.'!A1","NT dir.") -> NT dir.
A6: Izvještaj o novčanom toku (indirektna metoda) | B6: =HYPERLINK("#'NT indir.'!A1","NT indir.") -> NT indir.
A7: Podaci za Ministarstvo financija | B7: =HYPERLINK("#MFIN!A1","MFIN") -> MFIN
A8: Dashboard | B8: =HYPERLINK("#Dashboard!A1","Dashboard") -> Dashboard
A9: DuPont | B9: =HYPERLINK("#DuPont!A1","DuPont") -> DuPont
A10: Altman Integral
A11: • Za proizvodna trgovačka društva koja kotiraju na burzi (Basic model) | B11: =HYPERLINK("#'Altman Integral (Basic)'!A1","Altman - Basic") -> Altman - Basic
A12: • Za trgovačka društva koja ne kotiraju na burzi (A model) | B12: =HYPERLINK("#'Altman Integral (A)'!A1","Altman - A") -> Altman - A
A13: • Za neproizvodna trgovačka društva (B model) koja kotiraju na burzi | B13: =HYPERLINK("#'Altman Integral (B)'!A1","Altman - B") -> Altman - B
A14: Ključni sektorski pokazatelji poslovanja

Sheet _TM_Podloga (hidden)
A1: Left | B1: Top | C1: Right | D1: Bottom | E1: Ref
A2: 1 | B2: 19 | C2: 9 | D2: 22 | E2: $A$19:$I$22
A3: 1 | B3: 1 | C3: 9 | D3: 10 | E3: $A$1:$I$10
A4: 1 | B4: 11 | C4: 9 | D4: 17 | E4: $A$11:$I$17

Sheet Podloga
A1: Informacije o trgovačkom društvu
A2: Naziv društva: | B2: Zračna luka Osijek d.o.o.
A3: Adresa društva: | B3: Klisa, Vukovarska 67, Osijek
A4: Plan je konsolidiran: | B4: Ne
A5: Plan je odobren / nadležnog tijela / datum: | B5: Ne | C5: Skupština društva | E5: =IF(B5="DA", "< Upisati datum", "") -> 
A6: Primjena računovodstvenih standarda: | B6: MSFI
A7: Sastavlja se za razdoblje: | B7: 2026. - 2028.
A8: Veličina subjekta: | B8: Mali
A9: Osnovna djelatnost društva: | B9: Uslužne djelatnosti u svezi sa zračnim prijevozom.
A10: Pravni oblik: | B10: d.o.o.
A11: OIB: | B11: 48188420009
A12: Da li je društvo u procesu restrukturiranja: | B12: Ne | C12: =IF(B12="DA","Potrebno postupiti prema točki 6.3.1. Upute","") -> 
A13: Primjena Kodeksa korporativnog upravljanja trgovačkim društvima | B13: DA
A14: Temeljni akt (datum zadnje promjene): | B14: 2017-11-22
A15: Datum zadnje održane skupštine: | B15: 2025-10-31 | C15: =IF(SUM(B15)>0,"Molimo dostaviti zapisnike.","") -> Molimo dostaviti zapisnike.
A16: Opis strateških i financijskih ciljeva / planiranog poslovanja: | B16: Povećanje broja destinacija, razvoj robnog (cargo) prometa i investicije u aerodromsku infrastrukturu. Planiran je pozitivan financijski rezultat za sve tri godine razdoblja.
A17: Korištena metoda kod izvještaja o novčanom toku: | B17: Indirektna
A18: Datum ispunjavanja plana: | B18: 19.12.2025.
A19: Razrada planiranog poslovanja trgovačkog društva
A20: Planirane investicije za razdoblje: | B20: 2000000 eur | C20: Financiranje rekonstrukcije putničke zgrade, financiranje studije izvodljivosti, idejnog rješenja i projektno-tehničke dokumentacije za projekt Rekonstrukcije i proširenja Zračne luke Osijek.
A21: Izvor sredstava za investicije (iznos - izvor): | B21: MMPI - kapitalna ulaganja prema Planu nabave zaštitne i sigurnosne opreme i izgradnje infrastrukture
A22: Sudski sporovi sa značajnim utjecajem na poslovni rezultat:
A23: Planirana bespovratna sredstva iz EU (naziv projekta / izvor-fond / iznos u kn):
A24: Planirana državna jamstva: | B24: 2256288 | D24: =IF(B24>0, "Molimo opisati u opisnom dijelu.","") -> Molimo opisati u opisnom dijelu.
A25: Planirane subvencije (iznos / opis): | B25: 1440000 | D25: -
A26: Planirane donacije (iznos / opis): | B26: 0 | D26: -
A28: Tržišni pokazatelji dionica*
B29: =LEFT(B7,4)-3&". ostvareno" -> 2023. ostvareno | C29: =LEFT(B7,4)-2&". ostvareno" -> 2024. ostvareno | D29: =LEFT(B7,4)-1&". procijenjeno" -> 2025. procijenjeno
A30: Broj izdanih dionica:
A31: Tržišna vrijednost dionice:
A33: Dodatne informacije za izračun ključnih pokazatelja poslovanja
B34: =LEFT(B7,4)-3&". ostvareno" -> 2023. ostvareno | C34: =LEFT(B7,4)-2&". ostvareno" -> 2024. ostvareno | D34: =LEFT(B7,4)-1&". procijenjeno" -> 2025. procijenjeno | E34: =LEFT(B7,4)-1&". planirano" -> 2025. planirano | F34: =LEFT(B7,4)&". planirano" -> 2026. planirano | G34: =LEFT(B7,4)+1&". planirano" -> 2027. planirano | H34: =LEFT(B7,4)+2&". planirano" -> 2028. planirano
A35: Prosječan broj zaposlenih za izvještajno razdoblje: | B35: 50 | C35: 58 | D35: 58 | E35: 58 | F35: 59 | G35: 59 | H35: 59
A36: Investicije za razdoblje (HRK 000):
A37: Neto radni kapital (početno - završno stanje neto radnog kapitala)
A40: * Tržišni pokazatelji dionica ispunjavaju se za zadnji dan u razdoblju

Sheet _TM_Bilanca (hidden)
A1: Left | B1: Top | C1: Right | D1: Bottom | E1: Ref
A2: 3 | B2: 105 | C2: 5 | D2: 105 | E2: $C$105:$E$105

Sheet Vl. struktura
A1: Vlasnička struktura na dan: | D1: =IF(ISBLANK(Podloga!B18),"",Podloga!B18) -> 19.12.2025.
A3: Promjene u Vlasničkoj strukturi društva od posljednjeg izvještaja / plana:
A5: Društvo s ograničenom odgovornošću
A6: R.Br. | B6: Naziv društva | C6: Poštanski broj sjedišta | D6: Sjedište | E6: OIB društva | F6: Temeljni kapital (kn) | G6: Nominalna vrijednost imatelja RH (kn) | H6: % vlas. RH | I6: Nominalna vrijednost ost. drž. Imatelja (kn) | J6: % vlas. ostalih drž. Imatelja | K6: Teret | L6: Sudski spor
B7: =IF(ISBLANK(Podloga!B2),"",Podloga!B2) -> Zračna luka Osijek d.o.o. | C7: 31207 | D7: Klisa | E7: 48188420009 | F7: 3478000 | G7: 1912900 | H7: 55 | I7: 1565100 | J7: 45 | K7: nema | L7: nema
A11: Dioničko društvo
A12: R. Br. | B12: Naziv društva | C12: Poštanski broj sjedišta | D12: Sjedište | E12: Oznaka VP | F12: OIB društva | G12: Temeljni kapital (kn) | H12: Izdana količina dionica | I12: Nominalna vrijednost dionice (kn) | J12: broj dionica čiji je imatelj RH | K12: % vlas. RH | L12: broj dionica ost. drž. imatelja | M12: % vlas.ost. drž. Imatelja | N12: Teret | O12: Sudski spor
B13: =IF(ISBLANK(Podloga!B2),"",Podloga!B2) -> Zračna luka Osijek d.o.o.
A18: NAPOMENA
A19: * popunjava se tablica ovisno o pravnom obliku pravne osobe od posebnog interesa

Sheet Tijela društva
B1: Tijela društva
B3: Datum ispunjavanja plana: | G3: ='Vl. struktura'!D1 -> 19.12.2025.
B4: Promjene u Tijelima društva od posljednjeg plana / izvještaja:
B6: Uprava
B7: R.Br. | C7: Ime | D7: Prezime | E7: Funkcija | G7: Spol | H7: Početak mandata | I7: Kraj mandata | J7: Kontakt e-mail | K7: Broj telefona | L7: Broj mobitela
B8: 1. | C8: Tihomir | D8: Pejin | E8: Direktor | G8: M | H8: 01.11.2025. | I8: 30.04.2026. | J8: tihomir.pejin@osijek-airport.hr | K8: 031 514 405
B9: 2
B10: 3
B11: 4
B12: 5
B14: Nadzorni odbor*
B15: R.Br. | C15: Ime | D15: Prezime | E15: Funkcija | F15: Predstavnik | G15: Spol | H15: Početak mandata | I15: Kraj mandata | J15: Kontakt e-mail | K15: Broj telefona | L15: Broj mobitela
B16: 1 | C16: Krešimir | D16: Trtanj | E16: Član | F16: Grad Osijek | G16: M | H16: 06.07.2022. | I16: 06.07.2026.
B17: 2 | C17: Tunjica | D17: Petrašević | E17: Član | F17: Osječko - baranjska županija | G17: Ž | H17: 24.09.2025. | I17: 24.09.2029.
B18: 3 | C18: Jerko | D18: Glavaš | E18: Predsjednik | F18: RH | G18: M | H18: 13.12.2023. | I18: 13.12.2027.
B19: 4 | C19: Zlatko | D19: Franjić | E19: Predstavnik radnika | F19: predst. radnika | G19: M | H19: 07.08.2024. | I19: 7.8.2028.
B20: 5
B22: Revizijski odbor
B23: R.Br. | C23: Ime | D23: Prezime | E23: Funkcija | G23: Spol | H23: Početak mandata | I23: Kraj mandata | J23: Kontakt e-mail | K23: Broj telefona | L23: Broj mobitela
B24: 1 | C24: Domagoj | D24: Karačić | E24: Predsjednik | G24: M | H24: 2024-06-20 | I24: 20.06.2028. | K24: -
B25: 2 | C25: Milena | D25: Kordi | E25: Član | G25: Ž | H25: 11.11.2024. | I25: 11.11.2028. | J25: milena.kordi@osijek.hr | K25: 031 229 190 | L25: 098 486 379
B26: 3 | C26: Suzana | D26: Tretinjak | E26: Član | G26: Ž | H26: 11.11.2024. | I26: 11.11.2028. | J26: suzana.tretinjak@obz.hr | K26: 031 221 716 | L26: 099 659 8130
B27: 4
B28: 5
B31: Osobe ovlaštene za komunikaciju s Primateljima
B32: R.Br. | C32: Ime | D32: Prezime | E32: Funkcija | J32: Kontakt e-mail | K32: Broj telefona | L32: Broj mobitela
B33: 1 | C33: Tihomir | D33: Pejin | E33: Direktor | G33: M | H33: 01.11.2025. | I33: 30.04.2026. | J33: tihomir.pejin@osijek-airport.hr | K33: 031 514 405
B34: 2 | C34: Katarina | D34: Jelečević | E34: Rukovoditelj finacija i računovodstva | G34: Ž | H34: 01.06.2015. | I34: - | J34: katarina.jelecevic@osijek-airport.hr | K34: 031 514 440
B35: 3
B36: 4
B37: 5
B39: * Ako u društvu postoje pomoćna tijela nadzornog odbora (odbori. komisije, povjerenstva i sl.) potrebno ih je obrazložiti u opisnom dijelu (obavezno navesti članove).

Sheet Bilanca
A1: IZVJEŠTAJ O FINANCIJSKOM POLOŽAJU SA STANJEM NA 31.12. | C1: =IF(C68=C131,Podloga!B34&" bilancira",Podloga!B34&" ne bilancira") -> 2023. ostvareno ne bilancira | D1: =IF(D68=D131,Podloga!C34&" bilancira",Podloga!C34&" ne bilancira") -> 2024. ostvareno ne bilancira | E1: =IF(E68=E131,Podloga!D34&" bilancira",Podloga!D34&" ne bilancira") -> 2025. procijenjeno ne bilancira | F1: =IF(F68=F131,Podloga!E34&" bilancira",Podloga!E34&" ne bilancira") -> 2025. planirano ne bilancira | G1: =IF(G68=G131,Podloga!F34&" bilancira",Podloga!F34&" ne bilancira") -> 2026. planirano ne bilancira | H1: =IF(H68=H131,Podloga!G34&" bilancira",Podloga!G34&" ne bilancira") -> 2027. planirano ne bilancira | I1: =IF(I68=I131,Podloga!H34&" bilancira",Podloga!H34&" ne bilancira") -> 2028. planirano bilancira
A2: Obveznik: | B2: =IF(ISBLANK(Podloga!B2),"",Podloga!B2) -> Zračna luka Osijek d.o.o. | C2: I Z N O S (u 000 kn) | J2: ="Indeks "& RIGHT(LEFT(Podloga!C34,7),5) &" / "& RIGHT(LEFT(Podloga!B34,7),5) -> Indeks 24. o / 23. o | K2: ="Indeks "& RIGHT(LEFT(Podloga!D34,8),6) &" / "& RIGHT(LEFT(Podloga!C34,7),5) -> Indeks 25. pr / 24. o | L2: ="Indeks "& RIGHT(LEFT(Podloga!E34,8),6) &" / "& RIGHT(LEFT(Podloga!C34,7),5) -> Indeks 25. pl / 24. o | M2: ="Indeks "& RIGHT(LEFT(Podloga!F34,8),6) &" / "& RIGHT(LEFT(Podloga!E34,8),6) -> Indeks 26. pl / 25. pl | N2: ="Indeks "& RIGHT(LEFT(Podloga!G34,8),6) &" / "& RIGHT(LEFT(Podloga!F34,8),6) -> Indeks 27. pl / 26. pl | O2: ="Indeks "& RIGHT(LEFT(Podloga!H34,8),6) &" / "& RIGHT(LEFT(Podloga!G34,8),6) -> Indeks 28. pl / 27. pl
B3: A K T I V A | C3: =Podloga!B34 -> 2023. ostvareno | D3: =Podloga!C34 -> 2024. ostvareno | E3: =Podloga!D34 -> 2025. procijenjeno | F3: =Podloga!E34 -> 2025. planirano | G3: =Podloga!F34 -> 2026. planirano | H3: =Podloga!G34 -> 2027. planirano | I3: =Podloga!H34 -> 2028. planirano
A4: 1. | B4: POTRAŽIVANJA ZA UPISANI A NEUPLAĆENI KAPITAL | J4: =IFERROR(D4/C4*100,) -> 0 | K4: =IFERROR(E4/D4*100,) -> 0 | L4: =IFERROR(F4/D4*100,) -> 0 | M4: =IFERROR(G4/F4*100,) -> 0 | N4: =IFERROR(H4/G4*100,) -> 0 | O4: =IFERROR(I4/H4*100,) -> 0
A5: 2. | B5: DUGOTRAJNA IMOVINA | C5: =C6+C13+C23+C34+C39 -> 13185.73 | D5: =D6+D13+D23+D34+D39 -> 13933.87241 | E5: =E6+E13+E23+E34+E39 -> 15781.77266 | F5: 26432.344 | G5: 24023.217 | H5: =H6+H13+H23+H34+H39 -> 25221.65 | I5: 25404.8 | J5: 105.6738793 | K5: 113.2619289 | L5: 189.6984788 | M5: 90.88568536 | N5: 104.9886449 | O5: 100.7261618
A6: 2.1. | B6: Nematerijalna imovina | C6: =SUM(C7:C12) -> 213.753 | D6: =SUM(D7:D12) -> 161.966 | E6: =SUM(E7:E12) -> 117.6 | F6: 205.789 | G6: 159 | H6: 173 | I6: 178.8 | J6: 75.77250378 | K6: 72.60783127 | L6: 127.0569132 | M6: 77.26360495 | N6: 108.8050314 | O6: 103.3526012
A7: 2.1.1. | B7: Izdaci za razvoj | J7: =IFERROR(D7/C7*100,) -> 0 | K7: =IFERROR(E7/D7*100,) -> 0 | L7: =IFERROR(F7/D7*100,) -> 0 | M7: =IFERROR(G7/F7*100,) -> 0 | N7: =IFERROR(H7/G7*100,) -> 0 | O7: =IFERROR(I7/H7*100,) -> 0
A8: 2.1.2. | B8: Koncesije, patenti, licencencije, robne i uslužne marke, softver i ostala prava | C8: 213.753 | D8: 161.966 | E8: 117.6 | F8: 205.789 | G8: 159 | H8: 173 | I8: 178.8 | J8: 75.77250378 | K8: 72.60783127 | L8: 127.0569132 | M8: 77.26360495 | N8: 108.8050314 | O8: 103.3526012
A9: 2.1.3. | B9: Goodwill | J9: 0 | K9: 0 | L9: 0 | M9: 0 | N9: 0 | O9: 0
A10: 2.1.4. | B10: Predujmovi za nabavu nematerijalne imovine | J10: 0 | K10: 0 | L10: 0 | M10: 0 | N10: 0 | O10: 0
A11: 2.1.5. | B11: Nematerijalna imovina u pripremi | J11: 0 | K11: 0 | L11: 0 | M11: 0 | N11: 0 | O11: 0
A12: 2.1.6. | B12: Ostala nematerijalna imovina | J12: 0 | K12: 0 | L12: 0 | M12: 0 | N12: 0 | O12: 0
A13: 2.2. | B13: Materijalna imovina | C13: =SUM(C14:C22) -> 12957.886 | D13: =SUM(D14:D22) -> 13757.81541 | E13: =SUM(E14:E22) -> 15650.08266 | F13: 26212.465 | G13: 23856.762 | H13: 25041.2 | I13: 25151.5 | J13: 106.1733018 | K13: 113.7541259 | L13: 190.5278143 | M13: 91.01304284 | N13: 104.9647894 | O13: 100.4404741
A14: 2.2.1. | B14: Zemljište | C14: 2033.856 | D14: 2033.67541 | E14: 2033.67541 | F14: 2033.68 | G14: 2033.68 | H14: 2033.68 | I14: 2033.68 | J14: 99.99112081 | K14: 100 | L14: 100.0002257 | M14: 100 | N14: 100 | O14: 100
A15: 2.2.2. | B15: Građevinski objekti | C15: 8124.824 | D15: 8177.749 | E15: 8160.55 | F15: 22292.375 | G15: 16852.773 | H15: 18443.35 | I15: 18256.9 | J15: 100.6513987 | K15: 99.7896854 | L15: 272.5979362 | M15: 75.59882247 | N15: 109.4380729 | O15: 98.98906652
A16: 2.2.3. | B16: Postrojenja i oprema | C16: 671.411 | D16: 653.63 | E16: 596.093 | F16: 721.15 | G16: 2067.35 | H16: 2362.14 | I16: 2598.25 | J16: 97.35169665 | K16: 91.19731346 | L16: 110.3300032 | M16: 286.6740623 | N16: 114.2593175 | O16: 109.9955972
A17: 2.2.4. | B17: Alati, pogonski inventar i transportna imovina | C17: 419.9 | D17: 364.871 | E17: 364.87163 | F17: 498.52 | G17: 1539.451 | H17: 1574.27 | I17: 1668.22 | J17: 86.89473684 | K17: 100.0001727 | L17: 136.62911 | M17: 308.8042606 | N17: 102.2617803 | O17: 105.9678454
A18: 2.2.5. | B18: Biološka imovina | J18: 0 | K18: 0 | L18: 0 | M18: 0 | N18: 0 | O18: 0
A19: 2.2.6. | B19: Predujmovi za materijalnu imovinu | C19: 905.945 | D19: 796.417 | E19: 581.65 | J19: 87.91008284 | K19: 73.03334811 | L19: 0 | M19: 0 | N19: 0 | O19: 0
A20: 2.2.7. | B20: Materijalna imovina u pripremi | C20: 784.552 | D20: 1714.142 | E20: 3895.10962 | F20: 629.52 | G20: 1262 | H20: 589.21 | I20: 554.25 | J20: 218.4867287 | K20: 227.2337776 | L20: 36.72507879 | M20: 200.4701995 | N20: 46.68858954 | O20: 94.06663159
A21: 2.2.8. | B21: Ostala materijalna imovina | C21: 17.398 | D21: 17.331 | E21: 18.133 | F21: 37.22 | G21: 101.508 | H21: 38.55 | I21: 40.2 | J21: 99.61489826 | K21: 104.627546 | L21: 214.7596792 | M21: 272.7243418 | N21: 37.97730228 | O21: 104.2801556
A22: 2.2.9. | B22: Ulaganja u nekretnine | J22: 0 | K22: 0 | L22: 0 | M22: 0 | N22: 0 | O22: 0
A23: 2.3. | B23: Dugotrajna financijska imovina | C23: =SUM(C24:C33) -> 14.091 | D23: =SUM(D24:D33) -> 14.091 | E23: =SUM(E24:E33) -> 14.09 | F23: 14.09 | G23: 7.455 | H23: 7.45 | I23: 74.5 | J23: 100 | K23: 99.99290327 | L23: 99.99290327 | M23: 52.90986515 | N23: 99.93293092 | O23: 1000
A24: 2.3.1. | B24: Ulaganja u udjele (dionice) poduzetnika unutar grupe | J24: 0 | K24: 0 | L24: 0 | M24: 0 | N24: 0 | O24: 0
A25: 2.3.2. | B25: Ulaganja u ostale vrijednosne papire poduzetnika unutar grupe | J25: 0 | K25: 0 | L25: 0 | M25: 0 | N25: 0 | O25: 0
A26: 2.3.3. | B26: Dani zajmovi, depoziti i slično poduzetnicima unutar grupe | J26: 0 | K26: 0 | L26: 0 | M26: 0 | N26: 0 | O26: 0
A27: 2.3.4. | B27: Ulaganja u udjele (dionice) društava povezanih sudjelujućim interesom | J27: =IFERROR(D27/C28*100,) -> 0 | K27: 0 | L27: 0 | M27: 0 | N27: 0 | O27: 0
A28: 2.3.5. | B28: Ulaganja u ostale vrijednosne papire društava povezanih sudjelujućim interesom | C28: 9.211 | D28: 9.211 | E28: 9.21 | F28: 9.21 | G28: 2.575 | H28: 2.57 | I28: 2.57 | J28: =IFERROR(D28/#REF!*100,) -> 0 | K28: 99.98914342 | L28: 99.98914342 | M28: 27.9587405 | N28: 99.80582524 | O28: 100
A29: 2.3.6. | B29: Dani zajmovi, depoziti i slično društvima povezanim sudjelujućim interesom | J29: 0 | K29: 0 | L29: 0 | M29: 0 | N29: 0 | O29: 0
A30: 2.3.7. | B30: Ulaganja u vrijednosne papire | J30: 0 | K30: 0 | L30: 0 | M30: 0 | N30: 0 | O30: 0
A31: 2.3.8. | B31: Dani zajmovi, depoziti i slično | C31: 4.88 | D31: 4.88 | E31: 4.88 | F31: 4.88 | G31: 4.88 | H31: 4.88 | I31: 71.93 | J31: 100 | K31: 100 | L31: 100 | M31: 100 | N31: 100 | O31: 1473.97541
A32: 2.3.9. | B32: Ostala ulaganja koja se obračunavaju metodom udjela | J32: 0 | K32: 0 | L32: 0 | M32: 0 | N32: 0 | O32: 0
A33: 2.3.10. | B33: Ostala dugotrajna financijska imovina | J33: 0 | K33: 0 | L33: 0 | M33: 0 | N33: 0 | O33: 0
A34: 2.4. | B34: Potraživanja | C34: =SUM(C35:C38) -> 0 | D34: =SUM(D35:D38) -> 0 | E34: =SUM(E35:E38) -> 0 | F34: 0 | G34: 0 | H34: 0 | I34: 0 | J34: 0 | K34: 0 | L34: 0 | M34: 0 | N34: 0 | O34: 0
A35: 2.4.1. | B35: Potraživanja od poduzetnika unutar grupe | J35: 0 | K35: 0 | L35: 0 | M35: 0 | N35: 0 | O35: 0
A36: 2.4.2. | B36: Potraživanja od društava povezanih sudjelujućim interesom | J36: =IFERROR(D36/C36*100,) -> 0 | K36: =IFERROR(E36/D36*100,) -> 0 | L36: =IFERROR(F36/D36*100,) -> 0 | M36: =IFERROR(G36/F36*100,) -> 0 | N36: =IFERROR(H36/G36*100,) -> 0 | O36: =IFERROR(I36/H36*100,) -> 0
A37: 2.4.3. | B37: Potraživanja od kupaca | J37: 0 | K37: 0 | L37: 0 | M37: 0 | N37: 0 | O37: 0
A38: 2.4.4. | B38: Ostala potraživanja | J38: 0 | K38: 0 | L38: 0 | M38: 0 | N38: 0 | O38: 0
A39: 2.5. | B39: Odgođena porezna imovina | J39: 0 | K39: 0 | L39: 0 | M39: 0 | N39: 0 | O39: 0
A40: 3. | B40: KRATKOTRAJNA IMOVINA | C40: =C41+C49+C56+C66 -> 309.541 | D40: =D41+D49+D56+D66 -> 707.76 | E40: =E41+E49+E56+E66 -> 1029.736 | F40: 510.067 | G40: =G41+G49+G56+G66 -> 808.57 | H40: 869.785 | I40: 909.5 | J40: 228.6482243 | K40: 145.4922573 | L40: 72.06779134 | M40: 158.5223118 | N40: 107.5707731 | O40: 104.5660709
A41: 3.1. | B41: Zalihe | C41: =SUM(C42:C48) -> 25.756 | D41: 33.483 | E41: 27.756 | F41: 49.552 | G41: 95.3 | H41: 105.05 | I41: 116.8 | J41: 130.0007765 | K41: 82.89579787 | L41: 147.9915181 | M41: 192.323216 | N41: 110.2308499 | O41: 111.1851499
A42: 3.1.1. | B42: Sirovine i materijal | C42: 20.129 | D42: 22.377 | E42: 17.173 | F42: 41.231 | G42: 40.3 | H42: 45.3 | I42: 50.2 | J42: =IFERROR(D42/C42*100,) -> 111.1679666 | K42: =IFERROR(E42/D42*100,) -> 76.74397819 | L42: =IFERROR(F42/D42*100,) -> 184.2561559 | M42: =IFERROR(G42/F42*100,) -> 97.74199025 | N42: =IFERROR(H42/G42*100,) -> 112.4069479 | O42: =IFERROR(I42/H42*100,) -> 110.816777
A43: 3.1.2. | B43: Proizvodnja u tijeku | J43: 0 | K43: 0 | L43: 0 | M43: 0 | N43: 0 | O43: 0
A44: 3.1.3. | B44: Gotovi proizvodi | J44: 0 | K44: 0 | L44: 0 | M44: 0 | N44: 0 | O44: 0
A45: 3.1.4. | B45: Trgovačka roba | C45: 5.627 | D45: 11.106 | E45: 10.583 | F45: 8.321 | G45: 55 | H45: 59.75 | I45: 66.6 | J45: 197.3698241 | K45: 95.29083378 | L45: 74.92346479 | M45: 660.9782478 | N45: 108.6363636 | O45: 111.4644351
A46: 3.1.5. | B46: Predujmovi za zalihe | J46: 0 | K46: 0 | L46: 0 | M46: 0 | N46: 0 | O46: 0
A47: 3.1.6. | B47: Dugotrajna imovina namijenjena prodaji | J47: 0 | K47: 0 | L47: 0 | M47: 0 | N47: 0 | O47: 0
A48: 3.1.7. | B48: Biološka imovina | J48: 0 | K48: 0 | L48: 0 | M48: 0 | N48: 0 | O48: 0
A49: 3.2. | B49: Potraživanja | C49: =SUM(C50:C55) -> 232.881 | D49: =SUM(D50:D55) -> 314.734 | E49: =SUM(E50:E55) -> 379.011 | F49: 230.515 | G49: 138.27 | H49: 134.235 | I49: 142.2 | J49: 135.147994 | K49: 120.4226426 | L49: 73.24121321 | M49: 59.98308136 | N49: 97.08179649 | O49: 105.9336239
A50: 3.2.1. | B50: Potraživanja od poduzetnika unutar grupe | C50: 189.519 | J50: 0 | K50: 0 | L50: 0 | M50: 0 | N50: 0 | O50: 0
A51: 3.2.2. | B51: Potraživanja od društava povezanih sudjelujućim interesom | J51: 0 | K51: 0 | L51: 0 | M51: 0 | N51: 0 | O51: 0
A52: 3.2.3. | B52: Potraživanja od kupaca | C52: 37.092 | D52: 257.518 | E52: 358.311 | F52: 175.515 | G52: 110 | H52: 125.89 | I52: 133.1 | J52: 694.2683058 | K52: 139.1401766 | L52: 68.15640072 | M52: 62.67270604 | N52: 114.4454545 | O52: 105.7272222
A53: 3.2.4. | B53: Potraživanja od zaposlenika i članova poduzetnika | J53: 0 | K53: 0 | L53: 0 | M53: 0 | N53: 0 | O53: 0
A54: 3.2.5. | B54: Potraživanja od države i drugih institucija | C54: 6.27 | D54: 57.216 | E54: 20.7 | F54: 55 | G54: 28.27 | H54: 8.345 | I54: 9.1 | J54: 912.5358852 | K54: 36.17869128 | L54: 96.12695749 | M54: 51.4 | N54: 29.51892466 | O54: 109.0473337
A55: 3.2.6. | B55: Ostala potraživanja | J55: 0 | K55: 0 | L55: 0 | M55: 0 | N55: 0 | O55: 0
A56: 3.3. | B56: Kratkotrajna financijska imovina | C56: =SUM(C57:C65) -> 0 | D56: =SUM(D57:D65) -> 0 | E56: =SUM(E57:E65) -> 0 | F56: 0 | G56: =SUM(I56)/7.5345 -> 0 | H56: 0 | I56: 0 | J56: 0 | K56: 0 | L56: 0 | M56: 0 | N56: 0 | O56: 0
A57: 3.3.1. | B57: Ulaganja u udjele (dionice) poduzetnika unutar grupe | J57: 0 | K57: 0 | L57: 0 | M57: 0 | N57: 0 | O57: 0
A58: 3.3.2. | B58: Ulaganja u ostale vrijednosne papire poduzetnika unutar grupe | J58: 0 | K58: 0 | L58: 0 | M58: 0 | N58: 0 | O58: 0
A59: 3.3.3. | B59: Dani zajmovi, depoziti i slično poduzetnicima unutar grupe | J59: 0 | K59: 0 | L59: 0 | M59: 0 | N59: 0 | O59: 0
A60: 3.3.4. | B60: Ulaganja u udjele (dionice) društava povezanih sudjelujućim interesom | J60: 0 | K60: 0 | L60: 0 | M60: 0 | N60: 0 | O60: 0
A61: 3.3.5. | B61: Ulaganja u ostale vrijednosne papire društava povezanih sudjelujućim interesom | J61: 0 | K61: 0 | L61: 0 | M61: 0 | N61: 0 | O61: 0
A62: 3.3.6. | B62: Dani zajmovi, depoziti i slično društvima povezanim sudjelujućim interesom | J62: 0 | K62: 0 | L62: 0 | M62: 0 | N62: 0 | O62: 0
A63: 3.3.7. | B63: Ulaganja u vrijednosne papire | J63: 0 | K63: 0 | L63: 0 | M63: 0 | N63: 0 | O63: 0
A64: 3.3.8. | B64: Dani zajmovi, depoziti i slično | J64: 0 | K64: 0 | L64: 0 | M64: 0 | N64: 0 | O64: 0
A65: 3.3.9. | B65: Ostala financijska imovina | J65: 0 | K65: 0 | L65: 0 | M65: 0 | N65: 0 | O65: 0
A66: 3.4. | B66: Novac u banci i blagajni | C66: 50.904 | D66: 359.543 | E66: 622.969 | F66: 230 | G66: 575 | H66: 630.5 | I66: 650.5 | J66: 706.3158102 | K66: 173.2668971 | L66: 63.97009537 | M66: =IFERROR(G66/F66*100,) -> 250 | N66: =IFERROR(H66/G66*100,) -> 109.6521739 | O66: 103.1720856
A67: 4. | B67: PLAĆENI TROŠKOVI BUDUĆEG RAZDOBLJA I OBRAČUNATI PRIHODI | C67: 104.845 | D67: 26.109 | E67: 123.336 | F67: 106.75 | G67: 104.845 | H67: 138.8 | I67: 145 | J67: 24.90247508 | K67: 472.3888314 | L67: 408.8628442 | M67: =IFERROR(G67/F67*100,) -> 98.21545667 | N67: =IFERROR(H67/G67*100,) -> 132.385903 | O67: 104.4668588
A68: 5. | B68: UKUPNA AKTIVA | C68: =C4+C5+C40+C67 -> 13600.116 | D68: =D4+D5+D40+D67 -> 14667.74141 | E68: =E4+E5+E40+E67 -> 16934.84466 | F68: 27049.161 | G68: =G4+G5+G40+G67 -> 24936.632 | H68: 26230.235 | I68: 26459.3 | J68: 107.8501199 | K68: 115.4563895 | L68: 184.4125844 | M68: 92.19003872 | N68: 105.187561 | O68: 100.8732861
A69: 6. | B69: IZVANBILANČNI ZAPISI | J69: 0 | K69: 0 | L69: =IFERROR(G69/D69*100,) -> 0 | M69: =IFERROR(#REF!/G69*100,) -> 0 | N69: =IFERROR(H69/#REF!*100,) -> 0 | O69: 0
C73: I Z N O S (u 000 kn) | J73: ="Indeks "& RIGHT(LEFT(Podloga!C34,7),5) &" / "& RIGHT(LEFT(Podloga!B34,7),5) -> Indeks 24. o / 23. o | K73: ="Indeks "& RIGHT(LEFT(Podloga!D34,8),6) &" / "& RIGHT(LEFT(Podloga!C34,7),5) -> Indeks 25. pr / 24. o | L73: ="Indeks "& RIGHT(LEFT(Podloga!E34,8),6) &" / "& RIGHT(LEFT(Podloga!C34,7),5) -> Indeks 25. pl / 24. o | M73: ="Indeks "& RIGHT(LEFT(Podloga!F34,8),6) &" / "& RIGHT(LEFT(Podloga!E34,8),6) -> Indeks 26. pl / 25. pl | N73: ="Indeks "& RIGHT(LEFT(Podloga!G34,8),6) &" / "& RIGHT(LEFT(Podloga!F34,8),6) -> Indeks 27. pl / 26. pl | O73: ="Indeks "& RIGHT(LEFT(Podloga!H34,8),6) &" / "& RIGHT(LEFT(Podloga!G34,8),6) -> Indeks 28. pl / 27. pl
B74: P A S I V A | C74: =Podloga!B34 -> 2023. ostvareno | D74: =Podloga!C34 -> 2024. ostvareno | E74: =Podloga!D34 -> 2025. procijenjeno | F74: =Podloga!E34 -> 2025. planirano | G74: =Podloga!F34 -> 2026. planirano | H74: =Podloga!G34 -> 2027. planirano | I74: =Podloga!H34 -> 2028. planirano
A75: 1. | B75: KAPITAL I REZERVE | C75: =SUM(C76:C78,C84,C85,C89,C92,C95) -> 812.816 | D75: =SUM(D76:D78,D84,D85,D89,D92,D95) -> 1150.224 | E75: =SUM(E76:E78,E84,E85,E89,E92,E95) -> 1539.841 | F75: 871.261 | G75: 1587.75 | H75: 1640.915 | I75: 1715.887 | J75: =IFERROR(D75/C75*100,) -> 141.5109939 | K75: =IFERROR(E75/D75*100,) -> 133.8731412 | L75: =IFERROR(F75/D75*100,) -> 75.74707187 | M75: =IFERROR(G75/F75*100,) -> 182.2358627 | N75: =IFERROR(H75/G75*100,) -> 103.3484491 | O75: =IFERROR(I75/H75*100,) -> 104.5689143
A76: 1.1. | B76: Temeljni (upisani) kapital | C76: 3478 | D76: 3478 | E76: 3478 | F76: 3478 | G76: 3478 | H76: 3478 | I76: 3478 | J76: 100 | K76: 100 | L76: =IFERROR(F76/D76*100,) -> 100 | M76: 100 | N76: 100 | O76: 100
A77: 1.2. | B77: Kapitalne rezerve | J77: 0 | K77: 0 | L77: 0 | M77: 0 | N77: 0 | O77: 0
A78: 1.3. | B78: Rezerve iz dobiti | C78: =SUM(C79:C83) -> 0 | D78: =SUM(D79:D83) -> 0 | E78: =SUM(E79:E83) -> 0 | F78: 0 | G78: 0 | H78: 0 | I78: 0 | J78: 0 | K78: 0 | L78: 0 | M78: 0 | N78: 0 | O78: 0
A79: 1.3.1. | B79: Zakonske rezerve | J79: 0 | K79: 0 | L79: 0 | M79: 0 | N79: 0 | O79: 0
A80: 1.3.2. | B80: Rezerve za vlastite dionice | J80: 0 | K80: 0 | L80: 0 | M80: 0 | N80: 0 | O80: 0
A81: 1.3.3. | B81: Vlastite dionice i udjeli (odbitna stavka) | J81: 0 | K81: 0 | L81: 0 | M81: 0 | N81: 0 | O81: 0
A82: 1.3.4. | B82: Statutarne rezerve | J82: 0 | K82: 0 | L82: 0 | M82: 0 | N82: 0 | O82: 0
A83: 1.3.5. | B83: Ostale rezerve | J83: 0 | K83: 0 | L83: 0 | M83: 0 | N83: 0 | O83: 0
A84: 1.4. | B84: Revalorizacijske rezerve | J84: 0 | K84: 0 | L84: 0 | M84: 0 | N84: 0 | O84: 0
A85: 1.5. | B85: Rezerve fer vrijednosti | C85: =SUM(C86:C88) -> 0 | D85: =SUM(D86:D88) -> 0 | E85: =SUM(E86:E88) -> 0 | F85: 0 | G85: 0 | H85: 0 | I85: 0 | J85: 0 | K85: 0 | L85: 0 | M85: 0 | N85: 0 | O85: 0
A86: 1.5.1. | B86: Fer vrijednost financijske imovine raspoložive za prodaju | J86: 0 | K86: 0 | L86: 0 | M86: 0 | N86: 0 | O86: 0
A87: 1.5.2. | B87: Učinkoviti dio zaštite novčanih tokova | J87: 0 | K87: 0 | L87: 0 | M87: 0 | N87: 0 | O87: 0
A88: 1.5.3. | B88: Učinkoviti dio zaštite neto ulaganja u inozemstvu | J88: 0 | K88: 0 | L88: 0 | M88: 0 | N88: 0 | O88: 0
A89: 1.6. | B89: Zadržana dobit ili preneseni gubitak | C89: =C90-ABS(C91) -> -1945.845 | D89: =D90-ABS(D91) -> -2665.183 | E89: -2327.776 | F89: -2646.386 | G89: -1938.159 | H89: -1890.25 | I89: -1837.085 | J89: 136.9678983 | K89: 87.3401939 | L89: 99.2947201 | M89: 73.23795546 | N89: 97.52811818 | O89: 97.18740907
A90: 1.6.1. | B90: Zadržana dobit | J90: 0 | K90: 0 | L90: 0 | M90: 0 | N90: 0 | O90: 0
A91: 1.6.2. | B91: Preneseni gubitak | C91: 1945.845 | D91: 2665.183 | E91: 2327.776 | F91: 2646.386 | G91: 1938.159 | H91: -1890.25 | I91: -1837.085 | J91: 136.9678983 | K91: 87.3401939 | L91: 99.2947201 | M91: 73.23795546 | N91: -97.52811818 | O91: 97.18740907
A92: 1.7. | B92: Dobit ili gubitak poslovne godine | C92: =C93-ABS(C94) -> -719.339 | D92: =D93-ABS(D94) -> 337.407 | E92: 389.617 | F92: 39.647 | G92: 47.909 | H92: 53.165 | I92: 74.972 | J92: -46.90514486 | K92: 115.4738935 | L92: 11.75049717 | M92: 120.8389033 | N92: 110.9707988 | O92: 141.0175868
A93: 1.7.1. | B93: Dobit poslovne godine | D93: 337.407 | E93: 389.617 | F93: 39.647 | G93: 47.909 | H93: 53.165 | I93: 74.972 | J93: 0 | K93: 115.4738935 | L93: 11.75049717 | M93: 120.8389033 | N93: 110.9707988 | O93: 141.0175868
A94: 1.7.2. | B94: Gubitak poslovne godine | C94: 719.339 | J94: 0 | K94: 0 | L94: 0 | M94: 0 | N94: 0 | O94: 0
A95: 1.8. | B95: Manjinski (nekontrolirajući) interes | J95: 0 | K95: 0 | L95: 0 | M95: 0 | N95: 0 | O95: 0
A96: 2. | B96: REZERVIRANJA | C96: =SUM(C97:C102) -> 22.103 | D96: =SUM(D97:D102) -> 21.65 | E96: =SUM(E97:E102) -> 21.65 | F96: 0 | G96: 0 | H96: 0 | I96: 0 | J96: 97.95050446 | K96: 100 | L96: 0 | M96: 0 | N96: 0 | O96: 0
A97: 2.1. | B97: Rezerviranja za mirovine, otpremnine i slične obveze | J97: 0 | K97: 0 | L97: 0 | M97: 0 | N97: 0 | O97: 0
A98: 2.2. | B98: Rezerviranja za porezne obveze | J98: 0 | K98: 0 | L98: 0 | M98: 0 | N98: 0 | O98: 0
A99: 2.3. | B99: Rezerviranja za započete sudske sporove | D99: 21.65 | E99: 21.65 | J99: 0 | K99: 100 | L99: 0 | M99: 0 | N99: 0 | O99: 0
A100: 2.4. | B100: Rezerviranja za troškove obnavljanja prirodnih bogatstava | F100: =SUM(H100)/7.5345 -> 0 | G100: =SUM(I100)/7.5345 -> 0 | J100: 0 | K100: 0 | L100: 0 | M100: 0 | N100: 0 | O100: 0
A101: 2.5. | B101: Rezerviranja za troškove u jamstvenim rokovima | F101: 0 | G101: 0 | J101: 0 | K101: 0 | L101: 0 | M101: 0 | N101: 0 | O101: 0
A102: 2.6. | B102: Druga rezerviranja | C102: 22.103 | G102: 0 | H102: 0 | I102: 0 | J102: 0 | K102: 0 | L102: 0 | M102: 0 | N102: 0 | O102: 0
A103: 3. | B103: DUGOROČNE OBVEZE | C103: =SUM(C104:C114) -> 2959.654 | D103: =SUM(D104:D114) -> 2722.38581 | E103: =SUM(E104:E114) -> 2931.57 | F103: 2743.27 | G103: 2978.675 | H103: 3174.341 | I103: 3819.475 | J103: 91.98324568 | K103: 107.6838554 | L103: 100.7671282 | M103: 108.5811823 | N103: 106.5688939 | O103: 120.3233994
A104: 3.1. | B104: Obveze prema poduzetnicima unutar grupe | J104: 0 | K104: 0 | L104: 0 | M104: 0 | N104: 0 | O104: 0
A105: 3.2. | B105: Obveze za zajmove, depozite i slično poduzetnika unutar grupe | J105: 0 | K105: 0 | L105: 0 | M105: 0 | N105: 0 | O105: 0
A106: 3.3. | B106: Obveze prema društvima povezanim sudjelujućim interesom | J106: 0 | K106: 0 | L106: 0 | M106: 0 | N106: 0 | O106: 0
A107: 3.4. | B107: Obveze za zajmove, depozite i slično društava povezanih sudjelujućim interesom | J107: =IFERROR(D107/C107*100,) -> 0 | K107: =IFERROR(E107/D107*100,) -> 0 | L107: =IFERROR(F107/D107*100,) -> 0 | M107: =IFERROR(G107/F107*100,) -> 0 | N107: =IFERROR(H107/G107*100,) -> 0 | O107: =IFERROR(I107/H107*100,) -> 0
A108: 3.5. | B108: Obveze za zajmove, depozite i slično | J108: 0 | K108: 0 | L108: 0 | M108: 0 | N108: 0 | O108: 0
A109: 3.6. | B109: Obveze prema bankama i drugim financijskim institucijama | C109: 2936.318 | D109: 2710.718 | E109: 2919.902 | F109: 2743.27 | G109: 2919.902 | H109: 3124.228 | I109: 3770.775 | J109: 92.31690845 | K109: 107.7169222 | L109: 101.2008626 | M109: 106.4387392 | N109: 106.9977006 | O109: 120.6946164
A110: 3.7. | B110: Obveze za predujmove | J110: 0 | K110: 0 | L110: 0 | M110: 0 | N110: 0 | O110: 0
A111: 3.8. | B111: Obveze prema dobavljačima | J111: 0 | K111: 0 | L111: 0 | M111: 0 | N111: 0 | O111: 0
A112: 3.9. | B112: Obveze po vrijednosnim papirima | J112: =IFERROR(D112/C113*100,) -> 0 | K112: 0 | L112: 0 | M112: 0 | N112: 0 | O112: 0
A113: 3.10. | B113: Ostale dugoročne obveze | C113: 23.336 | D113: 11.66781 | E113: 11.668 | G113: 58.773 | H113: 50.113 | I113: 48.7 | J113: =IFERROR(D113/#REF!*100,) -> 0 | K113: 100.0016284 | L113: 0 | M113: 0 | N113: 85.26534293 | O113: 97.18037236
A114: 3.11. | B114: Odgođena porezna obveza | J114: 0 | K114: 0 | L114: 0 | M114: 0 | N114: 0 | O114: 0
A115: 4. | B115: KRATKOROČNE OBVEZE | C115: =SUM(C116:C129) -> 417.851 | D115: =SUM(D116:D129) -> 673.689 | E115: =SUM(E116:E129) -> 673.692 | F115: 767.357 | G115: 579.185 | H115: 838.373 | I115: 983.203 | J115: 161.2270881 | K115: 100.0004453 | L115: 113.9037449 | M115: 75.47790663 | N115: 144.7504683 | O115: 117.2751269
A116: 4.1. | B116: Obveze prema poduzetnicima unutar grupe | J116: 0 | K116: 0 | L116: 0 | M116: 0 | N116: 0 | O116: 0
A117: 4.2. | B117: Obveze za zajmove, depozite i slično poduzetnika unutar grupe | J117: 0 | K117: 0 | L117: 0 | M117: 0 | N117: 0 | O117: 0
A118: 4.3. | B118: Obveze prema društvima povezanim sudjelujućim interesom | J118: 0 | K118: 0 | L118: 0 | M118: 0 | N118: 0 | O118: 0
A119: 4.4. | B119: Obveze za zajmove, depozite i slično društava povezanih sudjelujućim interesom | J119: 0 | K119: 0 | L119: 0 | M119: 0 | N119: 0 | O119: 0
A120: 4.5. | B120: Obveze za zajmove, depozite i slično | J120: 0 | K120: 0 | L120: 0 | M120: 0 | N120: 0 | O120: 0
A121: 4.6. | B121: Obveze prema bankama i drugim financijskim institucijama | C121: 38.792 | D121: 244.296 | E121: 244.296 | F121: 214.491 | G121: 45.245 | H121: 235.673 | I121: 343.453 | J121: 629.7587131 | K121: 100 | L121: 87.79963651 | M121: 21.09412516 | N121: 520.8818654 | O121: 145.7328587
A122: 4.7. | B122: Obveze za predujmove | C122: 8.624 | D122: 11.748 | E122: 11.749 | F122: 18.5 | G122: 12.771 | H122: 12.5 | I122: 12.3 | J122: 136.2244898 | K122: 100.0085121 | L122: 157.4736125 | M122: 69.03243243 | N122: 97.87800485 | O122: 98.4
A123: 4.8. | B123: Obveze prema dobavljačima | C123: 129.119 | D123: 133.656 | E123: 133.656 | F123: 182.35 | G123: 129.432 | H123: 145.2 | I123: 148.5 | J123: 103.5138128 | K123: 100 | L123: 136.4323338 | M123: 70.97998355 | N123: 112.1824587 | O123: 102.2727273
A124: 4.9. | B124: Obveze po vrijednosnim papirima | J124: 0 | K124: 0 | L124: 0 | M124: 0 | N124: 0 | O124: 0
A125: 4.10. | B125: Obveze prema zaposlenicima | C125: 52.082 | D125: 76.82 | E125: 76.82 | F125: 115.174 | G125: 124.365 | H125: 145.2 | I125: 151.5 | J125: 147.498176 | K125: 100 | L125: 149.9271023 | M125: 107.9800997 | N125: 116.7531058 | O125: 104.338843
A126: 4.11. | B126: Obveze za poreze, doprinose i slična davanja | C126: 28.2 | D126: 36.733 | E126: 36.734 | F126: 51.542 | G126: 45.828 | H126: 49.8 | I126: 52.45 | J126: 130.2588652 | K126: 100.0027223 | L126: 140.3152479 | M126: 88.91389546 | N126: 108.6671904 | O126: 105.3212851
A127: 4.12. | B127: Obveze s osnove udjela u rezultatu | J127: 0 | K127: 0 | L127: 0 | M127: 0 | N127: 0 | O127: 0
A128: 4.13. | B128: Obveze po osnovi dugotrajne imovine namijenjene prodaji | J128: 0 | K128: 0 | L128: 0 | M128: 0 | N128: 0 | O128: 0
A129: 4.14. | B129: Ostale kratkoročne obveze | C129: 161.034 | D129: 170.436 | E129: 170.437 | F129: 185.3 | G129: 221.544 | H129: 250 | I129: 275 | J129: 105.8385186 | K129: 100.0005867 | L129: 108.7211622 | M129: 119.559633 | N129: 112.8444011 | O129: 110
A130: 5. | B130: ODGOĐENO PLAĆANJE TROŠKOVA I PRIHOD BUDUĆEG RAZDOBLJA | C130: 9387.697 | D130: 10099.795 | E130: 11768.088 | F130: 22667.272 | G130: 19791.017 | H130: 20576.611 | I130: 19940.735 | J130: 107.5854387 | K130: 116.5180877 | L130: 224.432991 | M130: 87.31097858 | N130: 103.9694474 | O130: 96.90971463
A131: 6. | B131: UKUPNA PASIVA | C131: =C75+C96+C103+C115+C130 -> 13600.121 | D131: =D75+D96+D103+D115+D130 -> 14667.74381 | E131: =E75+E96+E103+E115+E130 -> 16934.841 | F131: 27049.16 | G131: 24936.627 | H131: 26230.24 | I131: 26459.3 | J131: 107.8500979 | K131: 115.4563457 | L131: 184.4125474 | M131: 92.19002365 | N131: 105.1876022 | O131: 100.8732669
A132: 7. | B132: IZVANBILANČNI ZAPISI | J132: 0 | K132: 0 | L132: 0 | M132: 0 | N132: 0 | O132: 0
A133: * DODATAK IZVJEŠTAJU O FINANCIJSKOM POLOŽAJU (popunjava trgovačko društvo koji sastavlja konsolidirani godišnji financijski izvještaj)
A134: 8. | B134: KAPITAL I REZERVE | C134: =IF(C135+C136=C75,C75,"Neodgovarajuća raspodjela") -> Neodgovarajuća raspodjela | D134: Neodgovarajuća raspodjela | E134: =IF(E135+E136=E75,E75,"Neodgovarajuća raspodjela") -> Neodgovarajuća raspodjela | F134: =IF(F135+F136=F75,F75,"Neodgovarajuća raspodjela") -> Neodgovarajuća raspodjela | G134: =IF(G135+G136=G75,G75,"Neodgovarajuća raspodjela") -> Neodgovarajuća raspodjela | H134: Neodgovarajuća raspodjela | I134: Neodgovarajuća raspodjela
A135: 8.1. | B135: Pripisano imateljima kapitala matice | J135: =IFERROR(D135/C135*100,) -> 0 | K135: 0 | L135: =IFERROR(F135/D135*100,) -> 0 | M135: 0 | N135: 0 | O135: 0
A136: 8.2. | B136: Pripisano manjinskom interesu | J136: 0 | K136: 0 | L136: 0 | M136: 0 | N136: 0 | O136: 0
A138: * | B138: Napomena 1: Dodatak izvještaju o financijskom položaju popunjavaju trgovačka društva koja sastavljaju konsolidirane godišnje financijske izvještaje
B139: Napomena 2: Prilikom razvrstavanja trgovačkih društava, sukladno članku 3. Zakona o računovodstvu, ne uzima se u zbroju aktive iznos gubitka iznad kapitala
B140: Napomena 3: Ostvareni i planirani rezultati za tekuću godinu se uspoređuju s ostvarenim rezultatom poslovanja u prethodnoj godini

Sheet RDG
A1: RAČUN DOBITI I GUBITKA | C1: =IF(C83>0,"Sveobuhvatna dobit razdoblja",IF(C83=0,"Stagnacija u razdoblju","Sveobuhvatni gubitak razdoblja")) -> Sveobuhvatni gubitak razdoblja | D1: Sveobuhvatna dobit razdoblja | E1: Sveobuhvatna dobit razdoblja | F1: Sveobuhvatna dobit razdoblja | G1: Sveobuhvatna dobit razdoblja | H1: Sveobuhvatna dobit razdoblja | I1: Sveobuhvatna dobit razdoblja
A2: Obveznik: | B2: =IF(ISBLANK(Podloga!B2),"",Podloga!B2) -> Zračna luka Osijek d.o.o. | C2: za razdoblje od 1. siječnja do 31. prosinca
F3: I Z N O S (u 000 kn) | J3: ="Indeks "& RIGHT(LEFT(Podloga!C34,7),5) &" / "& RIGHT(LEFT(Podloga!B34,7),5) -> Indeks 24. o / 23. o | K3: ="Indeks "& RIGHT(LEFT(Podloga!D34,8),6) &" / "& RIGHT(LEFT(Podloga!C34,7),5) -> Indeks 25. pr / 24. o | L3: ="Indeks "& RIGHT(LEFT(Podloga!E34,8),6) &" / "& RIGHT(LEFT(Podloga!C34,7),5) -> Indeks 25. pl / 24. o | M3: ="Indeks "& RIGHT(LEFT(Podloga!F34,8),6) &" / "& RIGHT(LEFT(Podloga!E34,8),6) -> Indeks 26. pl / 25. pl | N3: ="Indeks "& RIGHT(LEFT(Podloga!G34,8),6) &" / "& RIGHT(LEFT(Podloga!F34,8),6) -> Indeks 27. pl / 26. pl | O3: ="Indeks "& RIGHT(LEFT(Podloga!H34,8),6) &" / "& RIGHT(LEFT(Podloga!G34,8),6) -> Indeks 28. pl / 27. pl
C4: =Podloga!B34 -> 2023. ostvareno | D4: =Podloga!C34 -> 2024. ostvareno | E4: =Podloga!D34 -> 2025. procijenjeno | F4: =Podloga!E34 -> 2025. planirano | G4: =Podloga!F34 -> 2026. planirano | H4: =Podloga!G34 -> 2027. planirano | I4: =Podloga!H34 -> 2028. planirano
A5: 1. | B5: POSLOVNI PRIHODI | C5: =SUM(C6:C10) -> 2963.898 | D5: =SUM(D6:D10) -> 3814.391 | E5: =SUM(E6:E10) -> 4012.427 | F5: 3991.6 | G5: 4802.805 | H5: 5003.49 | I5: 5215.547 | J5: =IFERROR(D5/C5*100,) -> 128.6950833 | K5: =IFERROR(E5/D5*100,) -> 105.1918117 | L5: =IFERROR(F5/D5*100,) -> 104.6458006 | M5: =IFERROR(G5/F5*100,) -> 120.3228029 | N5: =IFERROR(H5/G5*100,) -> 104.1784957 | O5: =IFERROR(I5/H5*100,) -> 104.2381817
A6: 1.1. | B6: Prihodi od prodaje s poduzetnicima unutar grupe | J6: 0 | K6: 0 | L6: =IFERROR(F6/D6*100,) -> 0 | M6: 0 | N6: 0 | O6: 0
A7: 1.2. | B7: Prihodi od prodaje | C7: 1087.06 | D7: 1297.798 | E7: 1584.227 | F7: 1726.43 | G7: 2082.805 | H7: 2523.49 | I7: 2745.547 | J7: 119.3860504 | K7: 122.0703838 | L7: 133.027636 | M7: 120.6423081 | N7: 121.1582457 | O7: 108.799599
A8: 1.3. | B8: Prihodi na temelju upotrebe vlastitih proizvoda, robe i usluga | J8: 0 | K8: 0 | L8: 0 | M8: 0 | N8: 0 | O8: 0
A9: 1.4. | B9: Ostali poslovni prihodi s poduzetnicima unutar grupe | J9: =IFERROR(D9/C10*100,) -> 0 | K9: 0 | L9: 0 | M9: 0 | N9: 0 | O9: 0
A10: 1.5. | B10: Ostali poslovni prihodi | C10: 1876.838 | D10: 2516.593 | E10: 2428.2 | F10: 2265.17 | G10: 2720 | H10: 2480 | I10: 2470 | J10: =IFERROR(D10/#REF!*100,) -> 0 | K10: 96.48759255 | L10: 90.00938968 | M10: 120.0792876 | N10: 91.17647059 | O10: 99.59677419
A11: 2. | B11: POSLOVNI RASHODI | C11: =C12+C13+C17+C21+C22+C23+C26+C33 -> 3590.895 | D11: =D12+D13+D17+D21+D22+D23+D26+D33 -> 3386.403 | E11: =E12+E13+E17+E21+E22+E23+E26+E33 -> 3502.902 | F11: 3862.16 | G11: 4634.843 | H11: 4833.325 | I11: 5031.635 | J11: 94.30526373 | K11: 103.4401989 | L11: 114.0490367 | M11: 120.006499 | N11: 104.2823889 | O11: 104.1029726
A12: 2.1. | B12: Promjene vrijednosti zaliha proizvodnje u tijeku i gotovih proizvoda | J12: 0 | K12: 0 | L12: 0 | M12: 0 | N12: 0 | O12: 0
A13: 2.2. | B13: Materijalni troškovi | C13: =SUM(C14:C16) -> 2032.807 | D13: 1512.563 | E13: 1390.637 | F13: 1697.98 | G13: 2105.259 | H13: 2237.45 | I13: =SUM(I14:I16) -> 2357 | J13: 74.40760485 | K13: 91.93911262 | L13: 112.2584646 | M13: 123.9860894 | N13: 106.2790849 | O13: 105.3431362
A14: 2.2.1. | B14: Troškovi sirovina i materijala | C14: 422.994 | D14: 259.191 | E14: 232.191 | F14: 436.24 | G14: 343.85 | H14: 382.1 | I14: 415.211 | J14: 61.27533724 | K14: 89.58297163 | L14: 168.3083132 | M14: 78.82129103 | N14: 111.1240366 | O14: 108.6655326
A15: 2.2.2. | B15: Troškovi prodane robe | C15: 52.899 | D15: 80.118 | E15: 95.978 | F15: 92.25 | G15: 103.505 | H15: 135.05 | I15: 146.8 | J15: 151.4546589 | K15: 119.7958012 | L15: 115.1426646 | M15: 112.200542 | N15: 130.4767886 | O15: 108.7004813
A16: 2.2.3. | B16: Ostali vanjski troškovi | C16: 1556.914 | D16: 1173.254 | E16: 1062.468 | F16: 1169.49 | G16: 1657.904 | H16: 1720.3 | I16: 1794.989 | J16: 75.35766266 | K16: 90.55737291 | L16: 99.67918285 | M16: 141.7629907 | N16: 103.7635472 | O16: 104.3416265
A17: 2.3. | B17: Troškovi osoblja | C17: =SUM(C18:C20) -> 838.818 | D17: =SUM(D18:D20) -> 1117.044 | E17: =SUM(E18:E20) -> 1400.892 | F17: 1509.68 | G17: 1649.73 | H17: 1698.764 | I17: 1768.391 | J17: 133.1688161 | K17: 125.4106374 | L17: 135.1495554 | M17: 109.2768004 | N17: 102.9722439 | O17: 104.0986859
A18: 2.3.1. | B18: Neto plaće i nadnice | C18: 533.627 | D18: 715.83 | E18: 888.164 | F18: 966.19 | G18: 1055.827 | H18: 1089.8 | I18: 1130.25 | J18: 134.1442618 | K18: 124.0747105 | L18: 134.9747845 | M18: 109.2773678 | N18: 103.2176673 | O18: 103.7116902
A19: 2.3.2. | B19: Troškovi poreza i doprinosa iz plaća | C19: 193.377 | D19: 256.871 | E19: 334.939 | F19: 347.23 | G19: 379.438 | H19: 387.423 | I19: 398.155 | J19: 132.8343081 | K19: 130.3919088 | L19: 135.1768008 | M19: 109.2756962 | N19: 102.1044281 | O19: 102.7700988
A20: 2.3.3. | B20: Doprinosi na plaće | C20: 111.814 | D20: 144.343 | E20: 177.789 | F20: 196.26 | G20: 214.465 | H20: 221.541 | I20: 239.986 | J20: 129.0920636 | K20: 123.1711964 | L20: 135.9677989 | M20: 109.2759605 | N20: 103.2993729 | O20: 108.3257727
A21: 2.4. | B21: Amortizacija | C21: 366.921 | D21: 372.131 | E21: 377.631 | F21: 372 | G21: 420 | H21: 425 | I21: 430 | J21: 101.4199242 | K21: 101.4779742 | L21: 99.96479734 | M21: 112.9032258 | N21: 101.1904762 | O21: 101.1764706
A22: 2.5. | B22: Ostali troškovi | C22: 249.909 | D22: 292.257 | E22: 266.287 | F22: 253.5 | G22: 378.644 | H22: 395.611 | I22: 398.644 | J22: 116.9453681 | K22: 91.11398529 | L22: 86.73872653 | M22: 149.3664694 | N22: 104.4809901 | O22: 100.7666622
A23: 2.6. | B23: Vrijednosna usklađenja | C23: =SUM(C24:C25) -> 0 | D23: 0 | E23: 0 | F23: 0 | G23: 0 | H23: 0 | I23: =SUM(I24:I25) -> 0 | J23: 0 | K23: 0 | L23: 0 | M23: 0 | N23: 0 | O23: 0
A24: 2.6.1. | B24: Dugotrajne imovine (osim financijske imovine) | J24: 0 | K24: 0 | L24: 0 | M24: 0 | N24: 0 | O24: 0
A25: 2.6.2. | B25: Kratkotrajne imovine (osim financijske imovine) | J25: 0 | K25: 0 | L25: 0 | M25: 0 | N25: 0 | O25: 0
A26: 2.7. | B26: Rezerviranja | C26: =SUM(C27:C32) -> 65.43 | D26: 85.14 | E26: 65.211 | F26: 0 | G26: 73.21 | H26: 68.7 | I26: =SUM(I27:I32) -> 69.1 | J26: 130.1237964 | K26: 76.59267089 | L26: 0 | M26: 0 | N26: 93.83963939 | O26: 100.5822416
A27: 2.7.1. | B27: Rezerviranja za mirovine, otpremnine i slične obveze | J27: 0 | K27: 0 | L27: 0 | M27: 0 | N27: 0 | O27: 0
A28: 2.7.2. | B28: Rezerviranja za porezne obveze | J28: 0 | K28: 0 | L28: 0 | M28: 0 | N28: 0 | O28: 0
A29: 2.7.3. | B29: Rezerviranja za započete sudske sporove | J29: 0 | K29: 0 | L29: 0 | M29: 0 | N29: 0 | O29: 0
A30: 2.7.4. | B30: Rezerviranja za troškove obnavljanja prirodnih bogatstava | J30: 0 | K30: 0 | L30: 0 | M30: 0 | N30: 0 | O30: 0
A31: 2.7.5. | B31: Rezerviranja za troškove u jamstvenim rokovima | J31: 0 | K31: 0 | L31: 0 | M31: 0 | N31: 0 | O31: 0
A32: 2.7.6. | B32: Druga rezerviranja | C32: 65.43 | D32: 85.14 | E32: 65.211 | G32: 73.21 | H32: 68.7 | I32: 69.1 | J32: 130.1237964 | K32: 76.59267089 | L32: 0 | M32: 0 | N32: 93.83963939 | O32: 100.5822416
A33: 2.8. | B33: Ostali poslovni rashodi | C33: 37.01 | D33: 7.268 | E33: 2.244 | F33: 29 | G33: 8 | H33: 7.8 | I33: 8.5 | J33: 19.63793569 | K33: 30.87506879 | L33: 399.0093561 | M33: 27.5862069 | N33: 97.5 | O33: 108.974359
A34: 3. | B34: FINANCIJSKI PRIHODI | C34: =SUM(C35:C44) -> 0.03557 | D34: =SUM(D35:D44) -> 0.137 | E34: =SUM(E35:E44) -> 0.109 | F34: 0.6 | G34: 0.15 | H34: 0.15 | I34: 0.16 | J34: 385.1560304 | K34: 79.5620438 | L34: 437.9562044 | M34: 25 | N34: 100 | O34: 106.6666667
A35: 3.1. | B35: Prihodi od ulaganja u udjele (dionice) poduzetnika unutar grupe | J35: 0 | K35: 0 | L35: 0 | M35: 0 | N35: 0 | O35: 0
A36: 3.2. | B36: Prihodi od ulaganja u udjele (dionice) društava povezanih sudjelujućim interesom | J36: 0 | K36: 0 | L36: 0 | M36: 0 | N36: 0 | O36: 0
A37: 3.3. | B37: Prihodi od ostalih dugotrajnih financijskih ulaganja i zajmova poduzetnicima unutar grupe | J37: =IFERROR(D37/C37*100,) -> 0 | K37: =IFERROR(E37/D37*100,) -> 0 | L37: =IFERROR(F37/D37*100,) -> 0 | M37: =IFERROR(G37/F37*100,) -> 0 | N37: =IFERROR(H37/G37*100,) -> 0 | O37: =IFERROR(I37/H37*100,) -> 0
A38: 3.4. | B38: Ostali prihodi s osnove kamata iz odnosa s poduzetnicima unutar grupe | J38: 0 | K38: 0 | L38: 0 | M38: 0 | N38: 0 | O38: 0
A39: 3.5. | B39: Tečajne razlike i ostali financijski prihodi iz odnosa s poduzetnicima unutar grupe | J39: 0 | K39: 0 | L39: 0 | M39: 0 | N39: 0 | O39: 0
A40: 3.6. | B40: Prihodi od ostalih dugotrajnih financijskih ulaganja i zajmova | J40: 0 | K40: 0 | L40: 0 | M40: 0 | N40: 0 | O40: 0
A41: 3.7. | B41: Ostali prihodi s osnove kamata | C41: 0.028 | D41: 0.066 | E41: 0.071 | F41: 0.6 | G41: 0.1 | H41: 0.1 | I41: 0.105 | J41: 235.7142857 | K41: 107.5757576 | L41: 909.0909091 | M41: 16.66666667 | N41: 100 | O41: 105
A42: 3.8. | B42: Tečajne razlike i ostali financijski prihodi | C42: 0.00757 | D42: 0.071 | E42: 0.038 | G42: 0.05 | H42: 0.05 | I42: 0.055 | J42: 937.9128137 | K42: 53.52112676 | L42: 0 | M42: 0 | N42: 100 | O42: 110
A43: 3.9. | B43: Nerealizirani dobici (prihodi) od financijske imovine | J43: 0 | K43: 0 | L43: 0 | M43: 0 | N43: 0 | O43: 0
A44: 3.10. | B44: Ostali financijski prihodi | J44: 0 | K44: 0 | L44: 0 | M44: 0 | N44: 0 | O44: 0
A45: 4. | B45: FINANCIJSKI RASHODI | C45: =SUM(C46:C52) -> 92.377 | D45: =SUM(D46:D52) -> 90.716 | E45: =SUM(E46:E52) -> 120.017 | F45: 90.39 | G45: 120.2 | H45: 117.15 | I45: 109.1 | J45: 98.20193338 | K45: 132.2997046 | L45: 99.64063671 | M45: 132.9793119 | N45: 97.4625624 | O45: 93.12846778
A46: 4.1. | B46: Rashodi s osnove kamata i slični rashodi s poduzetnicima unutar grupe | J46: 0 | K46: 0 | L46: 0 | M46: 0 | N46: 0 | O46: 0
A47: 4.2. | B47: Tečajne razlike i drugi rashodi s poduzetnicima unutar grupe | J47: 0 | K47: 0 | L47: 0 | M47: 0 | N47: 0 | O47: 0
A48: 4.3. | B48: Rashodi s osnove kamata i slični rashodi | C48: 92.11 | D48: 90.365 | E48: 119.796 | F48: 89.74 | G48: 120 | H48: 117 | I48: 109 | J48: 98.105526 | K48: 132.5690256 | L48: 99.30836054 | M48: 133.7196345 | N48: 97.5 | O48: 93.16239316
A49: 4.4. | B49: Tečajne razlike i drugi rashodi | C49: 0.267 | D49: 0.351 | E49: 0.221 | F49: 0.65 | G49: 0.2 | H49: 0.15 | I49: 0.1 | J49: 131.4606742 | K49: 62.96296296 | L49: 185.1851852 | M49: 30.76923077 | N49: 75 | O49: 66.66666667
A50: 4.5. | B50: Nerealizirani gubici (rashodi) od financijske imovine | J50: 0 | K50: 0 | L50: 0 | M50: 0 | N50: 0 | O50: 0
A51: 4.6. | B51: Vrijednosna usklađenja financijske imovine (neto) | J51: 0 | K51: 0 | L51: 0 | M51: 0 | N51: 0 | O51: 0
A52: 4.7. | B52: Ostali financijski rashodi | J52: 0 | K52: 0 | L52: 0 | M52: 0 | N52: 0 | O52: 0
A53: 5. | B53: UDIO U DOBITI OD DRUŠTAVA POVEZANIH SUDJELUJUĆIM INTERESOM | J53: 0 | K53: 0 | L53: 0 | M53: 0 | N53: 0 | O53: 0
A54: 6. | B54: UDIO U DOBITI OD ZAJEDNIČKIH POTHVATA | J54: 0 | K54: 0 | L54: 0 | M54: 0 | N54: 0 | O54: 0
A55: 7. | B55: UDIO U GUBITKU OD DRUŠTAVA POVEZANIH SUDJELUJUĆIM INTERESOM | J55: 0 | K55: 0 | L55: 0 | M55: 0 | N55: 0 | O55: 0
A56: 8. | B56: UDIO U GUBITKU OD ZAJEDNIČKIH POTHVATA | J56: 0 | K56: 0 | L56: 0 | M56: 0 | N56: 0 | O56: 0
A57: 9. | B57: UKUPNI PRIHODI | C57: =C5+C34+C53+C54 -> 2963.93357 | D57: 3814.528 | E57: =E5+E34+E53+E54 -> 4012.536 | F57: 3992.2 | G57: 4802.955 | H57: 5003.64 | I57: 5215.707 | J57: 128.6981611 | K57: 105.1908912 | L57: 104.6577716 | M57: 120.3084765 | N57: 104.1783652 | O57: 104.2382546
A58: 10. | B58: UKUPNI RASHODI | C58: =C11+C45+C55+C56 -> 3683.272 | D58: 3477.119 | E58: =E11+E45+E55+E56 -> 3622.919 | F58: 3952.55 | G58: 4755.043 | H58: 4950.475 | I58: 5140.735 | J58: 94.40299277 | K58: 104.1931266 | L58: 113.67313 | M58: 120.3031714 | N58: 104.1099944 | O58: 103.8432676
A59: 11. | B59: DOBIT ILI GUBITAK PRIJE OPOREZIVANJA | C59: =C57-C58 -> -719.33843 | D59: =D57-D58 -> 337.409 | E59: =E57-E58 -> 389.617 | F59: 39.65 | G59: 47.912 | H59: 53.165 | I59: 74.972 | J59: -46.90546006 | K59: 115.4732091 | L59: 11.75131665 | M59: 120.8373266 | N59: 110.9638504 | O59: 141.0175868
A60: 11.1. | B60: Dobit prije oporezivanja | C60: =IF(C59>0,C59,) -> 0 | D60: 337.409 | E60: 389.617 | F60: 39.65 | G60: 47.912 | H60: 53.165 | I60: 74.972 | J60: 0 | K60: 115.4732091 | L60: 11.75131665 | M60: 120.8373266 | N60: 110.9638504 | O60: 141.0175868
A61: 11.2. | B61: Gubitak prije oporezivanja | C61: =IF(C59<0,C59,) -> -719.33843 | D61: 0 | E61: 0 | F61: 0 | G61: 0 | H61: 0 | I61: 0 | J61: 0 | K61: 0 | L61: 0 | M61: 0 | N61: 0 | O61: 0
A62: 12. | B62: POREZ NA DOBIT | J62: 0 | K62: 0 | L62: 0 | M62: 0 | N62: 0 | O62: 0
A63: 13. | B63: DOBIT ILI GUBITAK RAZDOBLJA | C63: =C59-C62 -> -719.33843 | D63: =D59-D62 -> 337.409 | E63: =E59-E62 -> 389.617 | F63: 39.65 | G63: 47.912 | H63: 53.165 | I63: 74.972 | J63: =IFERROR(D63/C63*100,) -> -46.90546006 | K63: =IFERROR(E63/D63*100,) -> 115.4732091 | L63: =IFERROR(F63/D63*100,) -> 11.75131665 | M63: =IFERROR(G63/F63*100,) -> 120.8373266 | N63: =IFERROR(H63/G63*100,) -> 110.9638504 | O63: =IFERROR(I63/H63*100,) -> 141.0175868
A64: 13.1. | B64: Dobit razdoblja | C64: =IF(C63>0,C63,) -> 0 | D64: 337.409 | E64: 389.617 | F64: 39.65 | G64: 47.912 | H64: 53.165 | I64: 74.972 | J64: =IFERROR(D64/C64*100,) -> 0 | K64: 115.4732091 | L64: =IFERROR(F64/D64*100,) -> 11.75131665 | M64: 120.8373266 | N64: 110.9638504 | O64: 141.0175868
A65: 13.2. | B65: Gubitak razdoblja | C65: =IF(C63<0,C63,) -> -719.33843 | D65: 0 | E65: 0 | F65: 0 | G65: 0 | H65: 0 | I65: 0 | J65: 0 | K65: 0 | L65: 0 | M65: 0 | N65: 0 | O65: 0
A66: * DODATAK RDG -u (popunjava trgovačko društvo koje sastavlja konsolidirani godišnji financijski izvještaj)
A67: 14. | B67: DOBIT ILI GUBITAK RAZDOBLJA | C67: =IF((C68+C69)=C63,C63,"Neodgovarajuća raspodjela") -> Neodgovarajuća raspodjela | D67: Neodgovarajuća raspodjela | E67: Neodgovarajuća raspodjela | F67: Neodgovarajuća raspodjela | G67: Neodgovarajuća raspodjela | H67: Neodgovarajuća raspodjela | I67: Neodgovarajuća raspodjela
A68: 14.1. | B68: Pripisana imateljima kapitala matice | J68: =IFERROR(D68/C68*100,) -> 0 | K68: 0 | L68: =IFERROR(F68/D68*100,) -> 0 | M68: 0 | N68: 0 | O68: 0
A69: 14.2. | B69: Pripisana manjinskom (nekontrolirajućem) interesu | J69: 0 | K69: 0 | L69: 0 | M69: 0 | N69: 0 | O69: 0
A70: IZVJEŠTAJ O OSTALOJ SVEOBUHVATNOJ DOBITI (popunjava trgovačko društvo obveznik primjene MSFI-a)
A71: 1. | B71: DOBIT ILI GUBITAK RAZDOBLJA | C71: =C63 -> -719.33843 | D71: 337.409 | E71: =E63 -> 389.617 | F71: =F63 -> 39.65 | G71: =G63 -> 47.912 | H71: 53.165 | I71: =I63 -> 74.972 | J71: =IFERROR(D71/C71*100,) -> -46.90546006 | K71: =IFERROR(E71/D71*100,) -> 115.4732091 | L71: =IFERROR(F71/D71*100,) -> 11.75131665 | M71: =IFERROR(G71/F71*100,) -> 120.8373266 | N71: =IFERROR(H71/G71*100,) -> 110.9638504 | O71: =IFERROR(I71/H71*100,) -> 141.0175868
A72: 2. | B72: OSTALA SVEOBUHVATNA DOBIT/GUBITAK PRIJE POREZA | C72: =SUM(C73:C80) -> 0 | D72: 0 | E72: 0 | F72: 0 | G72: 0 | H72: 0 | I72: 0 | J72: =IFERROR(D72/C72*100,) -> 0 | K72: =IFERROR(E72/D72*100,) -> 0 | L72: =IFERROR(F72/D72*100,) -> 0 | M72: =IFERROR(G72/F72*100,) -> 0 | N72: =IFERROR(H72/G72*100,) -> 0 | O72: =IFERROR(I72/H72*100,) -> 0
A73: 2.1. | B73: Tečajne razlike iz preračuna inozemnog poslovanja | J73: 0 | K73: 0 | L73: 0 | M73: 0 | N73: 0 | O73: 0
A74: 2.2. | B74: Promjene revalorizacijskih rezervi dugotrajne materijalne i nematerijalne imovine | J74: 0 | K74: 0 | L74: 0 | M74: 0 | N74: 0 | O74: 0
A75: 2.3. | B75: Dobit ili gubitak s osnove naknadnog vrednovanja financijske imovine raspoložive za prodaju | J75: 0 | K75: 0 | L75: 0 | M75: 0 | N75: 0 | O75: 0
A76: 2.4. | B76: Dobit ili gubitak s osnove učinkovite zaštite novčanih tokova | J76: 0 | K76: 0 | L76: 0 | M76: 0 | N76: 0 | O76: 0
A77: 2.5. | B77: Dobit ili gubitak s osnove učinkovite zaštite neto ulaganja u inozemstvu | J77: 0 | K77: 0 | L77: 0 | M77: 0 | N77: 0 | O77: 0
A78: 2.6. | B78: Udio u ostaloj sveobuhvatnoj dobiti/gubitku društava povezanih sudjelujućim interesom | J78: 0 | K78: 0 | L78: 0 | M78: 0 | N78: 0 | O78: 0
A79: 2.7. | B79: Aktuarski dobici/gubici po planovima definiranih primanja | J79: 0 | K79: 0 | L79: 0 | M79: 0 | N79: 0 | O79: 0
A80: 2.8. | B80: Ostale nevlasničke promjene kapitala | J80: 0 | K80: 0 | L80: 0 | M80: 0 | N80: 0 | O80: 0
A81: 3. | B81: POREZ NA OSTALU SVEOBUHVATNU DOBIT RAZDOBLJA | J81: 0 | K81: 0 | L81: 0 | M81: 0 | N81: 0 | O81: 0
A82: 4. | B82: NETO OSTALA SVEOBUHVATNA DOBIT ILI GUBITAK | C82: =C72-C81 -> 0 | D82: 0 | E82: 0 | F82: 0 | G82: 0 | H82: 0 | I82: 0 | J82: 0 | K82: 0 | L82: 0 | M82: 0 | N82: 0 | O82: 0
A83: 5. | B83: SVEOBUHVATNA DOBIT ILI GUBITAK RAZDOBLJA | C83: =C71+C82 -> -719.33843 | D83: 337.409 | E83: 389.617 | F83: 39.65 | G83: 47.912 | H83: 53.165 | I83: 74.972 | J83: -46.90546006 | K83: 115.4732091 | L83: 11.75131665 | M83: 120.8373266 | N83: 110.9638504 | O83: 141.0175868
A84: * DODATAK IZVJEŠTAJU O OSTALOJ SVEOBUHVATNOJ DOBITI (popunjava trgovačko društvo koje sastavlja konsolidirani godišnji financijski izvještaj)
A85: 6. | B85: SVEOBUHVATNA DOBIT ILI GUBITAK RAZDOBLJA | C85: =IF((C86+C87)=C83,C83,"Neodgovarajuća raspodjela") -> Neodgovarajuća raspodjela | D85: Neodgovarajuća raspodjela | E85: =IF((E86+E87)=E83,E83,"Neodgovarajuća raspodjela") -> Neodgovarajuća raspodjela | F85: =IF((F86+F87)=F83,F83,"Neodgovarajuća raspodjela") -> Neodgovarajuća raspodjela | G85: =IF((G86+G87)=G83,G83,"Neodgovarajuća raspodjela") -> Neodgovarajuća raspodjela | H85: Neodgovarajuća raspodjela | I85: =IF((I86+I87)=I83,I83,"Neodgovarajuća raspodjela") -> Neodgovarajuća raspodjela
A86: 6.1. | B86: Pripisana imateljima kapitala matice | J86: =IFERROR(D86/C86*100,) -> 0 | K86: 0 | L86: =IFERROR(F86/D86*100,) -> 0 | M86: 0 | N86: 0 | O86: 0
A87: 6.2. | B87: Pripisana manjinskom interesu | J87: 0 | K87: 0 | L87: 0 | M87: 0 | N87: 0 | O87: 0
A89: * Ostvareni i planirani rezultati za tekuću godinu se uspoređuju s ostvarenim rezultatom poslovanja u prethodnoj godini

Sheet _TM_Ključni poslovni pokazatelj (hidden)
A1: Left | B1: Top | C1: Right | D1: Bottom | E1: Ref
A2: 1 | B2: 1 | C2: 3 | D2: 14 | E2: $A$1:$C$14

Sheet NT dir.
A1: IZVJEŠTAJ O NOVČANOM TOKU - DIREKTNA METODA
A2: Obveznik: | B2: =IF(ISBLANK(Podloga!B2),"",Podloga!B2) -> Zračna luka Osijek d.o.o. | C2: =IF(C50>C49,"Povećanje novca i novčanih ekvivalenata u razdoblju",IF(C50=C49,"Stagnacija novca i novčanih ekvivalenata u razdoblju","Smanjenje novca i novčanih ekvivalenata u razdoblju")) -> Stagnacija novca i novčanih ekvivalenata u razdoblju | D2: Stagnacija novca i novčanih ekvivalenata u razdoblju | E2: Stagnacija novca i novčanih ekvivalenata u razdoblju | F2: Stagnacija novca i novčanih ekvivalenata u razdoblju | G2: Stagnacija novca i novčanih ekvivalenata u razdoblju | H2: Stagnacija novca i novčanih ekvivalenata u razdoblju | I2: Stagnacija novca i novčanih ekvivalenata u razdoblju
C3: Za razdoblje od 1. siječnja do 31. prosinca
C4: I Z N O S (u 000 kn) | J4: ="Indeks "& RIGHT(LEFT(Podloga!C34,7),5) &" / "& RIGHT(LEFT(Podloga!B34,7),5) -> Indeks 24. o / 23. o | K4: ="Indeks "& RIGHT(LEFT(Podloga!D34,8),6) &" / "& RIGHT(LEFT(Podloga!C34,7),5) -> Indeks 25. pr / 24. o | L4: ="Indeks "& RIGHT(LEFT(Podloga!E34,8),6) &" / "& RIGHT(LEFT(Podloga!C34,7),5) -> Indeks 25. pl / 24. o | M4: ="Indeks "& RIGHT(LEFT(Podloga!F34,8),6) &" / "& RIGHT(LEFT(Podloga!E34,8),6) -> Indeks 26. pl / 25. pl | N4: ="Indeks "& RIGHT(LEFT(Podloga!G34,8),6) &" / "& RIGHT(LEFT(Podloga!F34,8),6) -> Indeks 27. pl / 26. pl | O4: ="Indeks "& RIGHT(LEFT(Podloga!H34,8),6) &" / "& RIGHT(LEFT(Podloga!G34,8),6) -> Indeks 28. pl / 27. pl
C5: =Podloga!B34 -> 2023. ostvareno | D5: =Podloga!C34 -> 2024. ostvareno | E5: =Podloga!D34 -> 2025. procijenjeno | F5: =Podloga!E34 -> 2025. planirano | G5: =Podloga!F34 -> 2026. planirano | H5: =Podloga!G34 -> 2027. planirano | I5: =Podloga!H34 -> 2028. planirano
A6: NOVČANI TOKOVI OD POSLOVNIH AKTIVNOSTI
A7: 1. | B7: Novčani primici od kupaca | J7: =IFERROR(D7/C7*100,) -> 0 | K7: 0 | L7: =IFERROR(F7/D7*100,) -> 0 | M7: =IFERROR(G7/F7*100,) -> 0 | N7: =IFERROR(H7/G7*100,) -> 0 | O7: =IFERROR(I7/H7*100,) -> 0
A8: 2. | B8: Novčani primici od tantijema, naknada, provizija i slično | J8: 0 | K8: 0 | L8: =IFERROR(F8/D8*100,) -> 0 | M8: 0 | N8: 0 | O8: 0
A9: 3. | B9: Novčani primici od osiguranja za naknadu šteta | J9: 0 | K9: 0 | L9: 0 | M9: 0 | N9: 0 | O9: 0
A10: 4. | B10: Novčani primici s osnove povrata poreza | J10: 0 | K10: 0 | L10: 0 | M10: 0 | N10: 0 | O10: 0
A11: 5. | B11: Novčani izdaci dobavljačima | J11: 0 | K11: 0 | L11: 0 | M11: 0 | N11: 0 | O11: 0
A12: 6. | B12: Novčani izdaci za zaposlene | J12: 0 | K12: 0 | L12: 0 | M12: 0 | N12: 0 | O12: 0
A13: 7. | B13: Novčani izdaci za osiguranje za naknadu štete | J13: 0 | K13: 0 | L13: 0 | M13: 0 | N13: 0 | O13: 0
A14: 8. | B14: Ostali novčani primici i izdaci | J14: 0 | K14: 0 | L14: 0 | M14: 0 | N14: 0 | O14: 0
A15: I. | B15: Novac iz poslovanja | C15: =SUM(C7:C14) -> 0 | D15: =SUM(D7:D14) -> 0 | E15: 0 | F15: 0 | G15: 0 | H15: 0 | I15: 0 | J15: 0 | K15: 0 | L15: 0 | M15: 0 | N15: 0 | O15: 0
A16: 9. | B16: Novčani izdaci za kamate | J16: 0 | K16: 0 | L16: 0 | M16: 0 | N16: 0 | O16: 0
A17: 10. | B17: Plaćeni porez na dobit | J17: 0 | K17: 0 | L17: 0 | M17: 0 | N17: 0 | O17: 0
A18: A. NETO NOVČANI TOKOVI OD POSLOVNIH AKTIVNOSTI | C18: =SUM(C15:C17) -> 0 | D18: =SUM(D15:D17) -> 0 | E18: 0 | F18: 0 | G18: 0 | H18: 0 | I18: 0 | J18: 0 | K18: 0 | L18: 0 | M18: 0 | N18: 0 | O18: 0
A19: NOVČANI TOKOVI OD INVESTICIJSKIH AKTIVNOSTI
A20: 1. | B20: Novčani primici od prodaje dugotrajne materijalne i nematerijalne imovine | J20: =IFERROR(D20/C20*100,) -> 0 | K20: 0 | L20: =IFERROR(F20/D20*100,) -> 0 | M20: =IFERROR(G20/F20*100,) -> 0 | N20: =IFERROR(H20/G20*100,) -> 0 | O20: =IFERROR(I20/H20*100,) -> 0
A21: 2. | B21: Novčani primici od prodaje financijskih instrumenata | J21: 0 | K21: 0 | L21: 0 | M21: 0 | N21: 0 | O21: 0
A22: 3. | B22: Novčani primici od kamata | J22: 0 | K22: 0 | L22: 0 | M22: 0 | N22: 0 | O22: 0
A23: 4. | B23: Novčani primici od dividendi | J23: 0 | K23: 0 | L23: 0 | M23: 0 | N23: 0 | O23: 0
A24: 5. | B24: Novčani primici s osnove povrata danih zajmova i štednih uloga | J24: 0 | K24: 0 | L24: 0 | M24: 0 | N24: 0 | O24: 0
A25: 6. | B25: Ostali novčani primici od investicijskih aktivnosti | J25: 0 | K25: 0 | L25: 0 | M25: 0 | N25: 0 | O25: 0
A26: II. | B26: Ukupno novčani primici od investicijskih aktivnosti | C26: =SUM(C20:C25) -> 0 | D26: =SUM(D20:D25) -> 0 | E26: 0 | F26: 0 | G26: 0 | H26: 0 | I26: 0 | J26: 0 | K26: 0 | L26: 0 | M26: 0 | N26: 0 | O26: 0
A27: 1. | B27: Novčani izdaci za kupnju dugotrajne materijalne i nematerijalne imovine | J27: 0 | K27: 0 | L27: 0 | M27: 0 | N27: 0 | O27: 0
A28: 2. | B28: Novčani izdaci za stjecanje financijskih instrumenata | J28: 0 | K28: 0 | L28: 0 | M28: 0 | N28: 0 | O28: 0
A29: 3. | B29: Novčani izdaci s osnove danih zajmova i štednih uloga | J29: 0 | K29: 0 | L29: 0 | M29: 0 | N29: 0 | O29: 0
A30: 4. | B30: Stjecanje ovisnog društva, umanjeno za stečeni novac | J30: 0 | K30: 0 | L30: 0 | M30: 0 | N30: 0 | O30: 0
A31: 5. | B31: Ostali novčani izdaci od investicijskih aktivnosti | J31: 0 | K31: 0 | L31: 0 | M31: 0 | N31: 0 | O31: 0
A32: III. | B32: Ukupno novčani izdaci od investicijskih aktivnosti | C32: =SUM(C27:C31) -> 0 | D32: =SUM(D27:D31) -> 0 | E32: 0 | F32: 0 | G32: 0 | H32: 0 | I32: 0 | J32: 0 | K32: 0 | L32: 0 | M32: 0 | N32: 0 | O32: 0
A33: B. NETO NOVČANI TOKOVI OD INVESTICIJSKIH AKTIVNOSTI | C33: =C26+C32 -> 0 | D33: =D26+D32 -> 0 | E33: 0 | F33: 0 | G33: 0 | H33: 0 | I33: 0 | J33: 0 | K33: 0 | L33: 0 | M33: 0 | N33: 0 | O33: 0
A34: NOVČANI TOKOVI OD FINANCIJSKIH AKTIVNOSTI
A35: 1. | B35: Novčani primici od povećanja temeljnog (upisanog) kapitala | J35: =IFERROR(D35/C35*100,) -> 0 | K35: 0 | L35: =IFERROR(F35/D35*100,) -> 0 | M35: =IFERROR(G35/F35*100,) -> 0 | N35: =IFERROR(H35/G35*100,) -> 0 | O35: =IFERROR(I35/H35*100,) -> 0
A36: 2. | B36: Novčani primici od izdavanja vlasničkih i dužničkih financijskih instrumenata | J36: 0 | K36: 0 | L36: 0 | M36: 0 | N36: 0 | O36: 0
A37: 3. | B37: Novčani primici od glavnice kredita, pozajmica i drugih posudbi | J37: 0 | K37: 0 | L37: 0 | M37: 0 | N37: 0 | O37: 0
A38: 4. | B38: Ostali novčani primici od financijskih aktivnosti | J38: 0 | K38: 0 | L38: 0 | M38: 0 | N38: 0 | O38: 0
A39: IV. | B39: Ukupno novčani primici od financijskih aktivnosti | C39: =SUM(C35:C38) -> 0 | D39: =SUM(D35:D38) -> 0 | E39: 0 | F39: 0 | G39: 0 | H39: 0 | I39: 0 | J39: 0 | K39: 0 | L39: 0 | M39: 0 | N39: 0 | O39: 0
A40: 1. | B40: Novčani izdaci za otplatu glavnice kredita, pozajmica i drugih posudbi i dužničkih financijskih instrumenata | J40: 0 | K40: 0 | L40: 0 | M40: 0 | N40: 0 | O40: 0
A41: 2. | B41: Novčani izdaci za isplatu dividendi | J41: 0 | K41: 0 | L41: 0 | M41: 0 | N41: 0 | O41: 0
A42: 3. | B42: Novčani izdaci za financijski najam | J42: 0 | K42: 0 | L42: 0 | M42: 0 | N42: 0 | O42: 0
A43: 4. | B43: Novčani izdaci za otkup vlastitih dionica i smanjenje temeljnog (upisanog) kapitala | J43: 0 | K43: 0 | L43: 0 | M43: 0 | N43: 0 | O43: 0
A44: 5. | B44: Ostali novčani izdaci od financijskih aktivnosti | J44: 0 | K44: 0 | L44: 0 | M44: 0 | N44: 0 | O44: 0
A45: V. | B45: Ukupno novčani izdaci od financijskih aktivnosti | C45: =SUM(C40:C44) -> 0 | D45: =SUM(D40:D44) -> 0 | E45: 0 | F45: 0 | G45: 0 | H45: 0 | I45: 0 | J45: 0 | K45: 0 | L45: 0 | M45: 0 | N45: 0 | O45: 0
A46: C. NETO NOVČANI TOKOVI OD FINANCIJSKIH AKTIVNOSTI | C46: =C39+C45 -> 0 | D46: =D39+D45 -> 0 | E46: 0 | F46: 0 | G46: 0 | H46: 0 | I46: 0 | J46: 0 | K46: 0 | L46: 0 | M46: 0 | N46: 0 | O46: 0
A47: 1. | B47: Nerealizirane tečajne razlike po novcu i novčanim ekvivalentima | J47: =IFERROR(D47/C47*100,) -> 0 | K47: =IFERROR(E47/D47*100,) -> 0 | L47: =IFERROR(F47/D47*100,) -> 0 | M47: =IFERROR(G47/F47*100,) -> 0 | N47: =IFERROR(H47/G47*100,) -> 0 | O47: =IFERROR(I47/H47*100,) -> 0
A48: D. NETO POVEĆANJE ILI SMANJENE NOVČANIH TOKOVA | C48: =C18+C33+C46+C47 -> 0 | D48: =D18+D33+D46+D47 -> 0 | E48: 0 | F48: 0 | G48: 0 | H48: 0 | I48: 0 | J48: 0 | K48: 0 | L48: 0 | M48: 0 | N48: 0 | O48: 0
A49: E. NOVAC I NOVČANI EKVIVALENTI NA POČETKU RAZDOBLJA | J49: 0 | K49: 0 | L49: =IFERROR(F49/D49*100,) -> 0 | M49: 0 | N49: 0 | O49: 0
A50: F. NOVAC I NOVČANI EKVIVALENTI NA KRAJU RAZDOBLJA | C50: =C49+C48 -> 0 | D50: =D49+D48 -> 0 | E50: 0 | F50: 0 | G50: 0 | H50: 0 | I50: 0 | J50: 0 | K50: 0 | L50: 0 | M50: 0 | N50: 0 | O50: 0
A52: * Ostvareni i planirani rezultati za tekuću godinu se uspoređuju s ostvarenim rezultatom poslovanja u prethodnoj godini

Sheet _TM_NT- indirektna metoda (2) (hidden)
A1: Left | B1: Top | C1: Right | D1: Bottom | E1: Ref
A2: 11 | B2: 2 | C2: 11 | D2: 3 | E2: $K$2:$K$3

Sheet _TM_Dug (hidden)
A1: Left | B1: Top | C1: Right | D1: Bottom | E1: Ref
A2: 1 | B2: 41 | C2: 13 | D2: 41 | E2: $A$41:$M$41
A3: 15 | B3: 2 | C3: 17 | D3: 41 | E3: $O$2:$Q$41

Sheet _TM_Sponzorstva i donacije (hidden)
A1: Left | B1: Top | C1: Right | D1: Bottom | E1: Ref
A2: 2 | B2: 2 | C2: 5 | D2: 31 | E2: $B$2:$E$31

Sheet _TM_ULaganja (hidden)
A1: Left | B1: Top | C1: Right | D1: Bottom | E1: Ref
A2: 2 | B2: 2 | C2: 8 | D2: 44 | E2: $B$2:$H$44
A3: 2 | B3: 45 | C3: 8 | D3: 45 | E3: $B$45:$H$45

Sheet _TM_Građ. objekti i zemljišta (hidden)
A1: Left | B1: Top | C1: Right | D1: Bottom | E1: Ref
A2: 2 | B2: 2 | C2: 9 | D2: 70 | E2: $B$2:$I$70

Sheet NT indir.
A1: IZVJEŠTAJ O NOVČANOM TOKU - INDIREKTNA METODA
A2: Obveznik: | B2: =IF(ISBLANK(Podloga!B2),"",Podloga!B2) -> Zračna luka Osijek d.o.o. | C2: =IF(C58>C57,"Povećanje novca i novčanih ekvivalenata u razdoblju",IF(C58=C57,"Stagnacija novca i novčanih ekvivalenata u razdoblju","Smanjenje novca i novčanih ekvivalenata u razdoblju")) -> Smanjenje novca i novčanih ekvivalenata u razdoblju | D2: Povećanje novca i novčanih ekvivalenata u razdoblju | E2: Povećanje novca i novčanih ekvivalenata u razdoblju | F2: Povećanje novca i novčanih ekvivalenata u razdoblju | G2: Smanjenje novca i novčanih ekvivalenata u razdoblju | H2: Povećanje novca i novčanih ekvivalenata u razdoblju | I2: Povećanje novca i novčanih ekvivalenata u razdoblju
C3: Za razdoblje od 1. siječnja do 31. prosinca
C4: I Z N O S (u 000 kn) | J4: ="Indeks "& RIGHT(LEFT(Podloga!C34,7),5) &" / "& RIGHT(LEFT(Podloga!B34,7),5) -> Indeks 24. o / 23. o | K4: ="Indeks "& RIGHT(LEFT(Podloga!D34,8),6) &" / "& RIGHT(LEFT(Podloga!C34,7),5) -> Indeks 25. pr / 24. o | L4: ="Indeks "& RIGHT(LEFT(Podloga!E34,8),6) &" / "& RIGHT(LEFT(Podloga!C34,7),5) -> Indeks 25. pl / 24. o | M4: ="Indeks "& RIGHT(LEFT(Podloga!F34,8),6) &" / "& RIGHT(LEFT(Podloga!E34,8),6) -> Indeks 26. pl / 25. pl | N4: ="Indeks "& RIGHT(LEFT(Podloga!G34,8),6) &" / "& RIGHT(LEFT(Podloga!F34,8),6) -> Indeks 27. pl / 26. pl | O4: ="Indeks "& RIGHT(LEFT(Podloga!H34,8),6) &" / "& RIGHT(LEFT(Podloga!G34,8),6) -> Indeks 28. pl / 27. pl
C5: =Podloga!B34 -> 2023. ostvareno | D5: =Podloga!C34 -> 2024. ostvareno | E5: =Podloga!D34 -> 2025. procijenjeno | F5: =Podloga!E34 -> 2025. planirano | G5: =Podloga!F34 -> 2026. planirano | H5: =Podloga!G34 -> 2027. planirano | I5: =Podloga!H34 -> 2028. planirano
A6: NOVČANI TOKOVI OD POSLOVNIH AKTIVNOSTI
A7: 1. | B7: Dobit prije poreza | C7: -719.339 | D7: 337.407 | E7: 389.617 | F7: 39.647 | G7: 47.909 | H7: 53.165 | I7: 74.972 | J7: =IFERROR(D7/C7*100,) -> -46.90514486 | K7: 115.4738935 | L7: =IFERROR(F7/D7*100,) -> 11.75049717 | M7: =IFERROR(G7/F7*100,) -> 120.8389033 | N7: 110.9707988 | O7: 141.0175868
A8: 2. | B8: Usklađenja | C8: =SUM(C9:C16) -> 474.667 | D8: =SUM(D9:D16) -> 461.979 | E8: 494.562 | F8: 452.034 | G8: 553.11 | H8: 547.54 | I8: 550.215 | J8: =IFERROR(D8/C8*100,) -> 97.32696817 | K8: =IFERROR(E8/D8*100,) -> 107.052918 | L8: =IFERROR(F8/D8*100,) -> 97.84730475 | M8: =IFERROR(G8/F8*100,) -> 122.3602649 | N8: =IFERROR(H8/G8*100,) -> 98.99296704 | O8: =IFERROR(I8/H8*100,) -> 100.4885488
A9: a) | B9: Amortizacija | C9: 366.921 | D9: 372.13 | E9: 377.631 | F9: 372 | G9: 420 | H9: 425 | I9: 430 | J9: 101.4196516 | K9: 101.4782468 | L9: 99.96506597 | M9: 112.9032258 | N9: 101.1904762 | O9: 101.1764706
A10: b) | B10: Dobici i gubici od prodaje i vrijednosna usklađenja dugotrajne materijalne i nematerijalne imovine | J10: =IFERROR(D10/C10*100,) -> 0 | K10: =IFERROR(E10/D10*100,) -> 0 | L10: 0 | M10: =IFERROR(G10/F10*100,) -> 0 | N10: =IFERROR(H10/G10*100,) -> 0 | O10: =IFERROR(I10/H10*100,) -> 0
A11: c) | B11: Dobici i gubici od prodaje i nerealizirani dobici i gubici i vrijednosno usklađenje financijske imovine | J11: 0 | K11: 0 | L11: 0 | M11: 0 | N11: 0 | O11: 0
A12: d) | B12: Prihodi od kamata i dividendi | C12: -0.029 | D12: -0.066 | E12: -0.071 | F12: -0.6 | G12: -0.1 | H12: -0.1 | I12: -0.105 | J12: 227.5862069 | K12: 107.5757576 | L12: 909.0909091 | M12: 16.66666667 | N12: 100 | O12: 105
A13: e) | B13: Rashodi od kamata | C13: 92.11 | D13: 90.365 | E13: 120.017 | F13: 89.744 | G13: 120 | H13: 117 | I13: 109 | J13: 98.105526 | K13: 132.8135893 | L13: 99.31278703 | M13: 133.7136745 | N13: 97.5 | O13: 93.16239316
A14: f) | B14: Rezerviranja | C14: 15.665 | D14: -0.45 | E14: -3.015 | G14: 13.213 | H14: 5.64 | I14: 11.32 | J14: -2.872646026 | K14: 670 | L14: 0 | M14: 0 | N14: 42.68523424 | O14: 200.7092199
A15: g) | B15: Tečajne razlike (nerealizirane) | C15: 0 | J15: 0 | K15: 0 | L15: 0 | M15: 0 | N15: 0 | O15: 0
A16: h) | B16: Ostala usklađenja za nenovčane transakcije i nerealizirane dobitke i gubitke | J16: 0 | K16: 0 | L16: 0 | M16: 0 | N16: 0 | O16: 0
A17: I. | B17: Povećanje ili smanjenje novčanih tokova prije promjena u radnom kapitalu | C17: =C7+C8 -> -244.672 | D17: =D7+D8 -> 799.386 | E17: 884.179 | F17: 500.791 | G17: =G7+G8 -> 601.019 | H17: =H7+H8 -> 600.705 | I17: =I7+I8 -> 625.187 | J17: -326.7174013 | K17: 110.6072661 | L17: 62.64695654 | M17: 120.013938 | N17: 99.9477554 | O17: 104.0755446
A18: 3. | B18: Promjene u radnom kapitalu | C18: =SUM(C19:C22) -> 831.049 | D18: =SUM(D19:D22) -> 655.036 | E18: 1542.56 | F18: 12448.55 | G18: 12325.619 | H18: 2473.736 | I18: 2796.84 | J18: 78.82038243 | K18: 235.4924004 | L18: 1900.437533 | M18: 99.0124874 | N18: 20.06987235 | O18: 113.0613776
A19: a) | B19: Povećanje ili smanjenje kratkoročnih obveza | C19: 880.035 | D19: 750.768 | E19: 752.144 | F19: 12592.188 | G19: 677.198 | H19: 900.12 | I19: 1050.767 | J19: =IFERROR(D19/C19*100,) -> 85.3111524 | K19: =IFERROR(E19/D19*100,) -> 100.183279 | L19: 1677.240905 | M19: =IFERROR(G19/F19*100,) -> 5.377921613 | N19: =IFERROR(H19/G19*100,) -> 132.9182898 | O19: =IFERROR(I19/H19*100,) -> 116.736324
A20: b) | B20: Povećanje ili smanjenje kratkotrajnih potraživanja | C20: -56.482 | D20: 3.118 | E20: 120.458 | F20: -39.621 | G20: 10.524 | H20: 95.6 | I20: 55.3 | J20: -5.520342764 | K20: 3863.309814 | L20: -1270.718409 | M20: -26.56167184 | N20: 908.399848 | O20: 57.84518828
A21: c) | B21: Povećanje ili smanjenje zaliha | C21: 7.496 | D21: 2.249 | E21: 6.731 | F21: 8.134 | G21: 45.1 | H21: 9.08 | I21: 11 | J21: 30.00266809 | K21: 299.2885727 | L21: 361.6718542 | M21: 554.462749 | N21: 20.13303769 | O21: 121.1453744
A22: d) | B22: Ostala povećanja ili smanjenja radnog kapitala | C22: 0 | D22: -101.099 | E22: 663.227 | F22: -112.151 | G22: 11592.797 | H22: 1468.936 | I22: 1699.773 | J22: 0 | K22: -656.0173691 | L22: 110.9318589 | M22: -10336.77542 | N22: 12.67110948 | O22: 115.7145716
A23: II. | B23: Novac iz poslovanja | C23: =SUM(C17+C18) -> 586.377 | D23: =SUM(D17+D18) -> 1454.422 | E23: 2426.739 | F23: =SUM(F17+F18) -> 12949.341 | G23: =SUM(G17+G18) -> 12926.638 | H23: =SUM(H17+H18) -> 3074.441 | I23: =SUM(I17+I18) -> 3422.027 | J23: 248.0353083 | K23: 166.8524679 | L23: 890.3427616 | M23: 99.82467834 | N23: 23.78376342 | O23: 111.305665
A24: 4. | B24: Novčani izdaci za kamate | C24: -67.029 | D24: -65.28 | E24: -119.796 | F24: -85.701 | G24: -120.2 | H24: -117 | I24: -109 | J24: 97.39068165 | K24: 183.5110294 | L24: 131.2821691 | M24: 140.2550729 | N24: 97.33777038 | O24: 93.16239316
A25: 5. | B25: Plaćeni porez na dobit | J25: 0 | K25: 0 | L25: 0 | M25: 0 | N25: 0 | O25: 0
A26: A. NETO NOVČANI TOKOVI OD POSLOVNIH AKTIVNOSTI | C26: =SUM(C23:C25) -> 519.348 | D26: =SUM(D23:D25) -> 1389.142 | E26: 2306.943 | F26: -55.85 | G26: 12806.438 | H26: =SUM(H23:H25) -> 2957.441 | I26: =SUM(I23:I25)-0.01 -> 3313.017 | J26: 267.4780687 | K26: 166.0696315 | L26: -4.02046731 | M26: -22930.05909 | N26: 23.09339256 | O26: 112.023097
A27: NOVČANI TOKOVI OD INVESTICIJSKIH AKTIVNOSTI
A28: 1. | B28: Novčani primici od prodaje dugotrajne materijalne i nematerijalne imovine | C28: 51.856 | D28: 0.147 | E28: 0.147 | G28: 11.918 | H28: 5.3 | I28: 2 | J28: =IFERROR(D28/C28*100,) -> 0.2834773218 | K28: 100 | L28: =IFERROR(F28/D28*100,) -> 0 | M28: =IFERROR(G28/F28*100,) -> 0 | N28: 44.47054875 | O28: 37.73584906
A29: 2. | B29: Novčani primici od prodaje financijskih instrumenata | J29: 0 | K29: 0 | L29: 0 | M29: 0 | N29: 0 | O29: 0
A30: 3. | B30: Novčani primici od kamata | C30: 0.029 | D30: 0.066 | E30: 0.066 | F30: 0.6 | G30: 0.05 | H30: 0.1 | I30: 0.105 | J30: 227.5862069 | K30: 100 | L30: 909.0909091 | M30: 8.333333333 | N30: 200 | O30: 105
A31: 4. | B31: Novčani primici od dividendi | J31: 0 | K31: 0 | L31: 0 | M31: 0 | N31: 0 | O31: 0
A32: 5. | B32: Novčani primici s osnove povrata danih zajmova i štednih uloga | J32: 0 | K32: 0 | L32: 0 | M32: 0 | N32: 0 | O32: 0
A33: 6. | B33: Ostali novčani primici od investicijskih aktivnosti | J33: 0 | K33: 0 | L33: 0 | M33: 0 | N33: 0 | O33: 0
A34: II. | B34: Ukupno novčani primici od investicijskih aktivnosti | C34: =SUM(C28:C33) -> 51.885 | D34: =SUM(D28:D33) -> 0.213 | E34: 0.213 | F34: 0.6 | G34: 11.968 | H34: 5.4 | I34: 2.105 | J34: 0.4105232726 | K34: 100 | L34: 281.6901408 | M34: 1994.666667 | N34: 45.12032086 | O34: 38.98148148
A35: 1. | B35: Novčani izdaci za kupnju dugotrajne materijalne i nematerijalne imovine | C35: -1203.858 | D35: -1104.14 | E35: -2000 | F35: -12467.653 | G35: -12729.389 | H35: -2700 | I35: -3000 | J35: =IFERROR(#REF!/C35*100,) -> 0 | K35: =IFERROR(E35/#REF!*100,) -> 0 | L35: =IFERROR(F35/#REF!*100,) -> 0 | M35: 102.0993205 | N35: 21.21075882 | O35: 111.1111111
A36: 2. | B36: Novčani izdaci za stjecanje financijskih instrumenata | J36: 0 | K36: 0 | L36: 0 | M36: 0 | N36: 0 | O36: 0
A37: 3. | B37: Novčani izdaci s osnove danih zajmova i štednih uloga | C37: -4.88 | E37: -4.88 | J37: 0 | K37: 0 | L37: 0 | M37: 0 | N37: 0 | O37: 0
A38: 4. | B38: Stjecanje ovisnog društva, umanjeno za stečeni novac | J38: 0 | K38: 0 | L38: 0 | M38: 0 | N38: 0 | O38: 0
A39: 5. | B39: Ostali novčani izdaci od investicijskih aktivnosti | J39: =IFERROR(D35/C39*100,) -> 0 | K39: =IFERROR(E39/D35*100,) -> 0 | L39: =IFERROR(F39/D35*100,) -> 0 | M39: 0 | N39: 0 | O39: 0
A40: III. | B40: Ukupno novčani izdaci od investicijskih aktivnosti | C40: =SUM(C35:C39) -> -1208.738 | D40: =SUM(D35:D38) -> -1104.14 | E40: =SUM(E35:E39) -> -2004.88 | F40: -12467.653 | G40: -12729.389 | H40: -2700 | I40: -3000 | J40: 91.34651182 | K40: 181.578423 | L40: 1129.173203 | M40: 102.0993205 | N40: 21.21075882 | O40: 111.1111111
A41: B. NETO NOVČANI TOKOVI OD INVESTICIJSKIH AKTIVNOSTI | C41: =C34+C40 -> -1156.853 | D41: =D34+D40 -> -1103.927 | E41: -2004.667 | F41: -12467.053 | G41: -12717.421 | H41: -2694.6 | I41: -2997.895 | J41: 95.42500214 | K41: 181.5941634 | L41: 1129.336722 | M41: 102.0082372 | N41: 21.18825822 | O41: 111.2556595
A42: NOVČANI TOKOVI OD FINANCIJSKIH AKTIVNOSTI
A43: 1. | B43: Novčani primici od povećanja temeljnog (upisanog) kapitala | J43: =IFERROR(D43/C43*100,) -> 0 | K43: 0 | L43: =IFERROR(F43/D43*100,) -> 0 | M43: =IFERROR(H44/F43*100,) -> 0 | N43: =IFERROR(H43/H44*100,) -> 0 | O43: =IFERROR(I43/H43*100,) -> 0
A44: 2. | B44: Novčani primici od izdavanja vlasničkih i dužničkih financijskih instrumenata | J44: 0 | K44: 0 | L44: 0 | M44: 0 | N44: =IFERROR(#REF!/G44*100,) -> 0 | O44: =IFERROR(I44/#REF!*100,) -> 0
A45: 3. | B45: Novčani primici od glavnice kredita, pozajmica i drugih posudbi | C45: 153.235 | D45: 454.897 | E45: 217.491 | J45: 296.8623356 | K45: 47.81104294 | L45: 0 | M45: 0 | N45: 0 | O45: 0
A46: 4. | B46: Ostali novčani primici od financijskih aktivnosti | J46: 0 | K46: 0 | L46: 0 | M46: 0 | N46: 0 | O46: 0
A47: IV. | B47: Ukupno novčani primici od financijskih aktivnosti | C47: =SUM(C43:C46) -> 153.235 | D47: =SUM(D43:D46) -> 454.897 | E47: 217.491 | F47: 0 | G47: 0 | H47: 0 | I47: 0 | J47: 296.8623356 | K47: 47.81104294 | L47: 0 | M47: 0 | N47: 0 | O47: 0
A48: 1. | B48: Novčani izdaci za otplatu glavnice kredita, pozajmica i drugih posudbi i dužničkih financijskih instrumenata | C48: -122.349 | D48: -405.5 | E48: -238.39 | F48: -217.491 | G48: -123.02 | H48: -195.673 | I48: -303.453 | J48: 331.4289451 | K48: 58.7891492 | L48: 53.6352651 | M48: 56.56326009 | N48: 159.0578768 | O48: 155.0816924
A49: 2. | B49: Novčani izdaci za isplatu dividendi | J49: 0 | K49: 0 | L49: 0 | M49: 0 | N49: 0 | O49: 0
A50: 3. | B50: Novčani izdaci za financijski najam | C50: -101.738 | D50: -14.96 | E50: -6.955 | F50: 0 | G50: -2.972 | J50: 14.70443689 | K50: 46.49064171 | L50: 0 | M50: 0 | N50: 0 | O50: 0
A51: 4. | B51: Novčani izdaci za otkup vlastitih dionica i smanjenje temeljnog (upisanog) kapitala | J51: 0 | K51: 0 | L51: 0 | M51: 0 | N51: 0 | O51: 0
A52: 5. | B52: Ostali novčani izdaci od financijskih aktivnosti | C52: -11.667 | D52: -11 | E52: -11 | G52: -11 | H52: -11.668 | I52: -11.679 | J52: 94.28302049 | K52: 100 | L52: 0 | M52: 0 | N52: 106.0727273 | O52: 100.0942749
A53: V. | B53: Ukupno novčani izdaci od financijskih aktivnosti | C53: =SUM(C48:C52) -> -235.754 | D53: =SUM(D48:D52) -> -431.46 | E53: -256.345 | F53: -217.491 | G53: -136.992 | H53: -207.341 | I53: -315.132 | J53: 183.0128015 | K53: 59.4133871 | L53: 50.40814908 | M53: 62.98743396 | N53: 151.3526337 | O53: 151.9873059
A54: C. NETO NOVČANI TOKOVI OD FINANCIJSKIH AKTIVNOSTI | C54: =C47+C53 -> -82.519 | D54: =D47+D53 -> 23.437 | E54: -38.854 | F54: -217.491 | G54: -136.992 | H54: -207.341 | I54: -315.132 | J54: -28.40194379 | K54: -165.7806033 | L54: -927.9813969 | M54: 62.98743396 | N54: 151.3526337 | O54: 151.9873059
A55: 1. | B55: Nerealizirane tečajne razlike po novcu i novčanim ekvivalentima | J55: =IFERROR(D55/C55*100,) -> 0 | K55: =IFERROR(E55/D55*100,) -> 0 | L55: =IFERROR(F55/D55*100,) -> 0 | M55: =IFERROR(G55/F55*100,) -> 0 | N55: =IFERROR(H55/G55*100,) -> 0 | O55: =IFERROR(I55/H55*100,) -> 0
A56: D. NETO POVEĆANJE ILI SMANJENE NOVČANIH TOKOVA | C56: =C26+C41+C54+C55 -> -720.024 | D56: =D26+D41+D54+D55 -> 308.652 | E56: 263.422 | F56: 179.096 | G56: -47.97 | H56: 55.5 | I56: 20 | J56: -42.86690444 | K56: 85.34595596 | L56: 58.02521934 | M56: -26.7845178 | N56: -115.6973108 | O56: 36.03603604
A57: E. NOVAC I NOVČANI EKVIVALENTI NA POČETKU RAZDOBLJA | C57: 770.928 | D57: 50.9 | E57: 359.544 | F57: 50.904 | G57: 622.97 | H57: 575 | I57: 630.5 | J57: 6.602432393 | K57: 706.3732809 | L57: 100.0078585 | M57: 1223.813453 | N57: 92.29978972 | O57: 109.6521739
A58: F. NOVAC I NOVČANI EKVIVALENTI NA KRAJU RAZDOBLJA | C58: =C57+C56 -> 50.904 | D58: =D57+D56 -> 359.552 | E58: 622.966 | F58: 230 | G58: 575 | H58: 630.5 | I58: 650.5 | J58: 706.3334905 | K58: 173.2617257 | L58: 63.96849413 | M58: 250 | N58: 109.6521739 | O58: 103.1720856
A60: * Ostvareni i planirani rezultati za tekuću godinu se uspoređuju s ostvarenim rezultatom poslovanja u prethodnoj godini

Sheet MFIN
B2: DODATNE STAVKE
B4: Obveznik: | C4: =IF(ISBLANK(Podloga!B2),"",Podloga!B2) -> Zračna luka Osijek d.o.o.
C7: =Podloga!B34 -> 2023. ostvareno | D7: =Podloga!C34 -> 2024. ostvareno | E7: =Podloga!D34 -> 2025. procijenjeno | F7: =Podloga!E34 -> 2025. planirano | G7: =Podloga!F34 -> 2026. planirano | H7: =Podloga!G34 -> 2027. planirano | I7: =Podloga!H34 -> 2028. planirano
A8: R.Br. | B8: RAČUN DOBITI I GUBITKA - dodatna razrada
A9: 1. | B9: Operativni prihodi (od 1.1. do 1.n.) - prihodi iz redovnog poslovanja | C9: =SUM(C10:C15) -> 1087.06 | D9: =SUM(D10:D15) -> 1297.798 | E9: 1584.227 | F9: 1726.43 | G9: 2082.805 | H9: 2523.49 | I9: 2745.547
A10: 1.1. | B10: Prihodi od prodaje | C10: 1087.06 | D10: 1297.798 | E10: 1584.227 | F10: 1726.43 | G10: 2082.805 | H10: 2523.49 | I10: 2745.547
A11: 1.2.
A12: 1.3.
A13: 1.4.
A14: 1.5.
A15: 1.n.
A16: 2. | B16: Neoperativni prihodi (od 2.1 do 2.n.) - jednokratni | C16: =SUM(C17:C22) -> 0 | D16: 0 | E16: 0 | F16: 0 | G16: 0 | H16: 0 | I16: 0
A17: 2.1.
A18: 2.2.
A19: 2.3.
A20: 2.4.
A21: 2.5.
A22: 2.n.
A23: 3. | B23: Državne potpore | C23: 1876.838 | D23: 2516.593 | E23: 2428.2 | F23: 2265.17 | G23: 2720 | H23: 2480 | I23: 2470
A24: I. | B24: Ukupni poslovni prihodi (1.+2.+3.) | C24: =C9+C16+C23 -> 2963.898 | D24: =D9+D16+D23 -> 3814.391 | E24: 4012.427 | F24: 3991.6 | G24: 4802.805 | H24: 5003.49 | I24: 5215.547
B25: PROVJERA | C25: =(C9+C16+C23)-RDG!C5 -> 0 | D25: =(D9+D16+D23)-RDG!D5 -> 0 | E25: =(E9+E16+E23)-RDG!E5 -> 0 | F25: =(F9+F16+F23)-RDG!F5 -> 0 | G25: =(G9+G16+G23)-RDG!G5 -> 0 | H25: =(H9+H16+H23)-RDG!H5 -> 0 | I25: =(I9+I16+I23)-RDG!I5 -> 0
A26: 1. | B26: Operativni poslovni rashodi (od 1.1. do 1.n.) | C26: =SUM(C27:C32) -> 2319.726 | D26: 1812.088 | E26: 1659.168 | F26: 1980.48 | G26: 2491.903 | H26: 2640.861 | I26: 2764.144
A27: 1.1. | B27: Materijalni troškovi | C27: 2032.807 | D27: 1512.563 | E27: 1390.637 | F27: 1697.98 | G27: 2105.259 | H27: 2237.45 | I27: 2357
A28: 1.2. | B28: Ostali troškovi | C28: 249.909 | D28: 292.257 | E28: 266.287 | F28: 253.5 | G28: 378.644 | H28: 395.611 | I28: 398.644
A29: 1.3. | B29: Ostali poslovni rashodi | C29: 37.01 | D29: 7.268 | E29: 2.244 | F29: 29 | G29: 8 | H29: 7.8 | I29: 8.5
A30: 1.4.
A31: 1.5.
A32: 1.n.
A33: 2. | B33: Neoperativni poslovni rashodi (od 2.1 do 2.n.) | C33: =SUM(C34:C39) -> 0 | D33: 0 | E33: 0 | F33: 0 | G33: 0 | H33: 0 | I33: 0
A34: 2.1.
A35: 2.2.
A36: 2.3.
A37: 2.4.
A38: 2.5.
A39: 2.n.
A40: 3. | B40: Troškovi osoblja | C40: =RDG!C17 -> 838.818 | D40: =RDG!D17 -> 1117.044 | E40: =RDG!E17 -> 1400.892 | F40: =RDG!F17 -> 1509.68 | G40: =RDG!G17 -> 1649.73 | H40: =RDG!H17 -> 1698.764 | I40: =RDG!I17 -> 1768.391
A41: 4. | B41: Amortizacija | C41: =RDG!C21 -> 366.921 | D41: =RDG!D21 -> 372.131 | E41: =RDG!E21 -> 377.631 | F41: =RDG!F21 -> 372 | G41: =RDG!G21 -> 420 | H41: =RDG!H21 -> 425 | I41: =RDG!I21 -> 430
A42: 5. | B42: Promjena vrijednosti i rezerviranja | C42: =RDG!C12+RDG!C23+RDG!C26 -> 65.43 | D42: =RDG!D12+RDG!D23+RDG!D26 -> 85.14 | E42: =RDG!E12+RDG!E23+RDG!E26 -> 65.211 | F42: =RDG!F12+RDG!F23+RDG!F26 -> 0 | G42: =RDG!G12+RDG!G23+RDG!G26 -> 73.21 | H42: =RDG!H12+RDG!H23+RDG!H26 -> 68.7 | I42: =RDG!I12+RDG!I23+RDG!I26 -> 69.1
A43: II. | B43: Ukupni poslovni rashodi | C43: =C26+C33+C40+C41+C42 -> 3590.895 | D43: =D26+D33+D40+D41+D42 -> 3386.403 | E43: 3502.902 | F43: 3862.16 | G43: 4634.843 | H43: 4833.325 | I43: 5031.635
B44: PROVJERA | C44: =(C26+C33+C40+C41+C42)-RDG!C11 -> 0 | D44: =(D26+D33+D40+D41+D42)-RDG!D11 -> 0 | E44: =(E26+E33+E40+E41+E42)-RDG!E11 -> 0 | F44: =(F26+F33+F40+F41+F42)-RDG!F11 -> 0 | G44: =(G26+G33+G40+G41+G42)-RDG!G11 -> 0 | H44: =(H26+H33+H40+H41+H42)-RDG!H11 -> 0 | I44: =(I26+I33+I40+I41+I42)-RDG!I11 -> 0
A45: III. | B45: UKUPNI FINANCIJSKI PRIHODI (od 1. do 4.) | C45: =C46+C51+C52+C53 -> 0.03557 | D45: 0.137 | E45: 0.109 | F45: 0.6 | G45: 0.15 | H45: 0.15 | I45: 0.16
A46: 1. | B46: Prihodi od kamata (po investiciji) (od 1.1. do 1. n.) | C46: =SUM(C47:C50) -> 0.03557 | D46: 0.137 | E46: 0.109 | F46: 0.6 | G46: 0.15 | H46: 0.15 | I46: 0.16
A47: 1.1. | B47: Ostali prihodi s osnove kamata, tečajne razlike i ostali financijski prihodi | C47: 0.03557 | D47: 0.137 | E47: 0.109 | F47: 0.6 | G47: 0.15 | H47: 0.15 | I47: 0.16
A48: 1.2.
A49: 1.3.
A50: 1.n.
A51: 2. | B51: Pozitivne tečajne razlike
A52: 3. | B52: Ostali financijski prihodi (core) - iz redovnog poslovanja
A53: 4. | B53: Ostali financijski prihodi (non-core) - jednokratni
A54: IV. | B54: UKUPNI FINANCIJSKI RASHODI (od 1. do 4.) | C54: =C55+C60+C61+C62 -> 92.377 | D54: 90.716 | E54: 120.017 | F54: 90.39 | G54: 120.2 | H54: 117.15 | I54: 109.1
A55: 1. | B55: Rashodi od kamata (po obvezi) (od 1.1. do 1. n.) | C55: =SUM(C56:C59) -> 92.377 | D55: 90.716 | E55: 120.017 | F55: 90.39 | G55: 120.2 | H55: 117.15 | I55: 109.1
A56: 1.1. | B56: Rashodi s osnove kamata i slični rashodi | C56: 92.377 | D56: 90.716 | E56: 120.017 | F56: 90.39 | G56: 120.2 | H56: 117.15 | I56: 109.1
A57: 1.2.
A58: 1.3.
A59: 1.n.
A60: 2. | B60: Negativne tečajne razlike
A61: 3. | B61: Ostali financijski rashodi (core) - iz redovnog poslovanja
A62: 4. | B62: Ostali financijski rashodi (non-core) - jednokratni
A63: V. | B63: NETO FINANCIJSKI PRIHODI/RASHODI (III.-IV.) | C63: =C45-C54 -> -92.34143 | D63: -90.579 | E63: -119.908 | F63: -89.79 | G63: -120.05 | H63: -117 | I63: -108.94
B64: PROVJERA | C64: =(C45+C54)-(RDG!C34+RDG!C45) -> 0 | D64: =(D45+D54)-(RDG!D34+RDG!D45) -> 0 | E64: =(E45+E54)-(RDG!E34+RDG!E45) -> 0 | F64: =(F45+F54)-(RDG!F34+RDG!F45) -> 0 | G64: =(G45+G54)-(RDG!G34+RDG!G45) -> 0 | H64: =(H45+H54)-(RDG!H34+RDG!H45) -> 0 | I64: =(I45+I54)-(RDG!I34+RDG!I45) -> 0
B66: INVESTICIJSKA ULAGANJA
B67: Isplata za ukupna investicijska ulaganja (od 1.1. do 1.n) | C67: =SUM(C68:C72) -> 0 | D67: =SUM(D68:D72) -> 0 | E67: 0 | F67: 0 | G67: 0 | H67: =SUM(H68:H72) -> 0 | I67: 0
A68: 1.1. | B68: otklanjanje nalaza Agencije za civilno zrakoplovstvo
A69: 1.2. | B69: Segment / naziv investicije
A70: 1.3. | B70: Segment / naziv investicije
A71: 1.4. | B71: Segment / naziv investicije
A72: 1.n. | B72: Segment / naziv investicije
B73: Izvori financiranja investicija (od 1.1. do 1.6.) | C73: =SUM(C74:C79) -> 0 | D73: =SUM(D74:D79) -> 0 | E73: 0 | F73: 0 | G73: 0 | H73: =SUM(H74:H79) -> 0 | I73: 0
A74: 1.1. | B74: Vlastita sredstva
A75: 1.2. | B75: Sredstva iz Državnog proračuna
A76: 1.3. | B76: Banke i ostale financijske institucije
A77: 1.4. | B77: Međunarodne financijske institucije
A78: 1.5. | B78: Nefinancijske institucije
A79: 1.6 | B79: EU fondovi
B81: OSTALE STAVKE
B82: Prosjek broja zaposlenih tijekom razdoblja | C82: =Podloga!B35 -> 50 | D82: =Podloga!C35 -> 58 | E82: =Podloga!D35 -> 58 | F82: =Podloga!E35 -> 58 | G82: =Podloga!F35 -> 59 | H82: =Podloga!G35 -> 59 | I82: =Podloga!H35 -> 59
B83: Broj zaposlenih prema satima rada
B84: Dugotrajna financijska imovina
B85: Od čega: Dani dugoročni depoziti
B86: Od čega: Likvidne dionice / ostalo
B87: Od čega: Ostalo
B88: Kratkotrajna financijska imovina
B89: Od čega: Dani kratkorični depoziti
B90: Od čega: Likvidne dionice / ostalo
B91: Od čega: Ostalo
B92: Dokapitalizacija
B93: Promjene temeljnog kapitala
B94: (+) Dokapitalizacija
B95: (-) Smanjenje / otpis
B96: Isplaćena dividenda
B98: * Ukoliko kod određenih kategorija postoji veći broj stavaka, moguće je ubacivati dodatne redove
B101: =HYPERLINK("#Sadržaj!A1","Povratak na sadržaj") -> Povratak na sadržaj

Sheet Dashboard (hidden)
A1: Dashboard:
A2: Prikaz ključnih pokazatelja poslovanja | B2: =HYPERLINK("#'Ključni poslovni pokazatelji'!A1","Ključni poslovni pokazatelji") -> Ključni poslovni pokazatelji
A3: Analiza izvještaja o financijskom položaju | B3: =HYPERLINK("#'Financijski položaj'!A1","Financijski položaj") -> Financijski položaj
A4: Analiza računa dobiti i gubitka | B4: =HYPERLINK("#'RDG 1'!A1","RDG 1") -> RDG 1
B5: =HYPERLINK("#'RDG 2'!A1","RDG 2") -> RDG 2
A6: Analiza izvještaja o novčanom toku | B6: =HYPERLINK("#'Novčani tok'!A1","Izvještaj o novčanom toku") -> Izvještaj o novčanom toku
A7: Analiza profitabilnosti | B7: =HYPERLINK("#Profitabilnost!A1","Profitabilnost") -> Profitabilnost
A8: Analiza likvidnosti | B8: =HYPERLINK("#Likvidnost!A1","Likvidnost") -> Likvidnost
A9: Analiza aktivnosti | B9: =HYPERLINK("#Aktivnost!A1","Aktivnost") -> Aktivnost
A10: Analiza zaduženosti | B10: =HYPERLINK("#Zaduženost!A1","Zaduženost") -> Zaduženost

Sheet _TM_Profit and loss (hidden)
A1: Left | B1: Top | C1: Right | D1: Bottom | E1: Ref
A2: 2 | B2: 17 | C2: 13 | D2: 17 | E2: $B$17:$M$17
A3: 2 | B3: 17 | C3: 13 | D3: 17 | E3: $B$17:$M$17

Sheet Ključni poslovni pokazatelji (hidden)
B1: =Naslovna!B3&" - "&Naslovna!I2 -> Ministarstvo državne imovine - Srednjoročni financijski plan poslovanja
B2: SAŽETI PRIKAZ KLJUČNIH FINANCIJSKIH POKAZATELJA
B3: Društvo: | C3: =Podloga!B2 -> Zračna luka Osijek d.o.o.
B4: Tip dokumenta: | C4: =Naslovna!B9 -> Srednjoročni financijski plan poslovanja
B5: Jedinstveni ključni pokazatelji poslovanja
C6: =LEFT(Podloga!B34,10)&"." -> 2023. ostv. | D6: =LEFT(Podloga!C34,10)&"." -> 2024. ostv. | E6: =LEFT(Podloga!D34,10)&"." -> 2025. proc. | F6: =LEFT(Podloga!E34,10)&"." -> 2025. plan. | G6: =LEFT(Podloga!F34,10)&"." -> 2026. plan. | H6: =LEFT(Podloga!G34,10)&"." -> 2027. plan. | I6: =LEFT(Podloga!H34,10)&"." -> 2028. plan.
B7: Glavni financijski pokazatelji (u tisućama kuna) | C7: OSTVARENO | F7: PLANIRANO
B8: Prihodi | C8: =IFERROR(RDG!C57,) -> 2963.93357 | D8: =IFERROR(RDG!D57,) -> 3814.528 | E8: =IFERROR(RDG!E57,) -> 4012.536 | F8: =IFERROR(RDG!F57,) -> 3992.2 | G8: =IFERROR(RDG!G57,) -> 4802.955 | H8: =IFERROR(RDG!H57,) -> 5003.64 | I8: =IFERROR(RDG!I57,) -> 5215.707
B9: Imovina | C9: =IFERROR(Bilanca!C68,) -> 13600.116 | D9: =IFERROR(Bilanca!D68,) -> 14667.74141 | E9: =IFERROR(Bilanca!E68,) -> 16934.84466 | F9: =IFERROR(Bilanca!F68,) -> 27049.161 | G9: =IFERROR(Bilanca!G68,) -> 24936.632 | H9: =IFERROR(Bilanca!H68,) -> 26230.235 | I9: =IFERROR(Bilanca!I68,) -> 26459.3
B10: EBITDA | C10: =IFERROR((RDG!C59+RDG!C46+RDG!C48+RDG!C21),) -> -260.30743 | D10: =IFERROR((RDG!D59+RDG!D46+RDG!D48+RDG!D21),) -> 799.905 | E10: =IFERROR((RDG!E59+RDG!E46+RDG!E48+RDG!E21),) -> 887.044 | F10: =IFERROR((RDG!F59+RDG!F46+RDG!F48+RDG!F21),) -> 501.39 | G10: =IFERROR((RDG!G59+RDG!G46+RDG!G48+RDG!G21),) -> 587.912 | H10: =IFERROR((RDG!H59+RDG!H46+RDG!H48+RDG!H21),) -> 595.165 | I10: =IFERROR((RDG!I59+RDG!I46+RDG!I48+RDG!I21),) -> 613.972
B11: Dobit | C11: =IFERROR(RDG!C59,) -> -719.33843 | D11: =IFERROR(RDG!D59,) -> 337.409 | E11: =IFERROR(RDG!E59,) -> 389.617 | F11: =IFERROR(RDG!F59,) -> 39.65 | G11: =IFERROR(RDG!G59,) -> 47.912 | H11: =IFERROR(RDG!H59,) -> 53.165 | I11: =IFERROR(RDG!I59,) -> 74.972
B12: Prihod od osnovne djelatnosti po zaposlenom | C12: =IFERROR(RDG!C5/Podloga!B35,) -> 59.27796 | D12: =IFERROR(RDG!D5/Podloga!C35,) -> 65.76536207 | E12: =IFERROR(RDG!E5/Podloga!D35,) -> 69.17977586 | F12: =IFERROR(RDG!F5/Podloga!E35,) -> 68.82068966 | G12: =IFERROR(RDG!G5/Podloga!F35,) -> 81.40347458 | H12: =IFERROR(RDG!H5/Podloga!G35,) -> 84.80491525 | I12: =IFERROR(RDG!I5/Podloga!H35,) -> 88.39910169
B13: Pokazatelji profitabilnosti | C13: OSTVARENO | F13: PLANIRANO
B14: ROA | C14: =IFERROR(RDG!C63/Bilanca!C68,) -> -0.05289208048 | D14: =IFERROR(RDG!D63/Bilanca!D68,) -> 0.02300347344 | E14: =IFERROR(RDG!E63/Bilanca!E68,) -> 0.02300682456 | F14: =IFERROR(RDG!F63/Bilanca!F68,) -> 0.001465849532 | G14: =IFERROR(RDG!G63/Bilanca!G68,) -> 0.001921350084 | H14: =IFERROR(RDG!H63/Bilanca!H68,) -> 0.002026859462 | I14: =IFERROR(RDG!I63/Bilanca!I68,) -> 0.002833483879
B15: ROE | C15: =IFERROR((RDG!C83/Bilanca!C$75),) -> -0.884995411 | D15: =IFERROR((RDG!D83/Bilanca!D$75),) -> 0.2933419925 | E15: =IFERROR((RDG!E83/Bilanca!E$75),) -> 0.2530241759 | F15: =IFERROR((RDG!F83/Bilanca!F$75),) -> 0.04550875111 | G15: =IFERROR((RDG!G83/Bilanca!G$75),) -> 0.03017603527 | H15: =IFERROR((RDG!H83/Bilanca!H$75),) -> 0.03239960632 | I15: =IFERROR((RDG!I83/Bilanca!I$75),) -> 0.0436928539
B16: EBITDA Marža | C16: =IFERROR((RDG!C59+RDG!C46+RDG!C48+RDG!C21)/RDG!C57,) -> -0.08782498793 | D16: =IFERROR((RDG!D59+RDG!D46+RDG!D48+RDG!D21)/RDG!D57,) -> 0.2096996011 | E16: =IFERROR((RDG!E59+RDG!E46+RDG!E48+RDG!E21)/RDG!E57,) -> 0.2210681723 | F16: =IFERROR((RDG!F59+RDG!F46+RDG!F48+RDG!F21)/RDG!F57,) -> 0.1255924052 | G16: =IFERROR((RDG!G59+RDG!G46+RDG!G48+RDG!G21)/RDG!G57,) -> 0.1224063103 | H16: =IFERROR((RDG!H59+RDG!H46+RDG!H48+RDG!H21)/RDG!H57,) -> 0.118946407 | I16: =IFERROR((RDG!I59+RDG!I46+RDG!I48+RDG!I21)/RDG!I57,) -> 0.1177159683
B17: EBIT Marža | C17: =IFERROR((RDG!C59+RDG!C46+RDG!C48)/RDG!C57,) -> -0.2116202726 | D17: =IFERROR((RDG!D59+RDG!D46+RDG!D48)/RDG!D57,) -> 0.1121433635 | E17: =IFERROR((RDG!E59+RDG!E46+RDG!E48)/RDG!E57,) -> 0.1269553719 | F17: =IFERROR((RDG!F59+RDG!F46+RDG!F48)/RDG!F57,) -> 0.03241070087 | G17: =IFERROR((RDG!G59+RDG!G46+RDG!G48)/RDG!G57,) -> 0.03496014433 | H17: =IFERROR((RDG!H59+RDG!H46+RDG!H48)/RDG!H57,) -> 0.034008242 | I17: =IFERROR((RDG!I59+RDG!I46+RDG!I48)/RDG!I57,) -> 0.03527268691
B18: Neto profitna marža | C18: =IFERROR(RDG!C63/RDG!C57,) -> -0.2426972174 | D18: =IFERROR(RDG!D63/RDG!D57,) -> 0.08845366976 | E18: =IFERROR(RDG!E63/RDG!E57,) -> 0.09709993879 | F18: =IFERROR(RDG!F63/RDG!F57,) -> 0.009931867141 | G18: =IFERROR(RDG!G63/RDG!G57,) -> 0.009975525484 | H18: =IFERROR(RDG!H63/RDG!H57,) -> 0.01062526481 | I18: =IFERROR(RDG!I63/RDG!I57,) -> 0.01437427371
B19: Pokazatelji likvidnosti | C19: OSTVARENO | F19: PLANIRANO
B20: Tekuća likvidnost | C20: =IFERROR(Bilanca!C40/Bilanca!C115,) -> 0.7407927706 | D20: =IFERROR(Bilanca!D40/Bilanca!D115,) -> 1.050573781 | E20: =IFERROR(Bilanca!E40/Bilanca!E115,) -> 1.528496702 | F20: =IFERROR(Bilanca!F40/Bilanca!F115,) -> 0.664706258 | G20: =IFERROR(Bilanca!G40/Bilanca!G115,) -> 1.396047895 | H20: =IFERROR(Bilanca!H40/Bilanca!H115,) -> 1.03746781 | I20: =IFERROR(Bilanca!I40/Bilanca!I115,) -> 0.925037861
B21: Trenutna likvidnost | C21: =IFERROR(Bilanca!C66/Bilanca!C115,) -> 0.1218233294 | D21: =IFERROR(Bilanca!D66/Bilanca!D115,) -> 0.5336928464 | E21: =IFERROR(Bilanca!E66/Bilanca!E115,) -> 0.9247089174 | F21: =IFERROR(Bilanca!F66/Bilanca!F115,) -> 0.2997301126 | G21: =IFERROR(Bilanca!G66/Bilanca!G115,) -> 0.9927743294 | H21: =IFERROR(Bilanca!H66/Bilanca!H115,) -> 0.752051891 | I21: =IFERROR(Bilanca!I66/Bilanca!I115,) -> 0.6616131155
B22: Financijska stabilnost | C22: =IFERROR(Bilanca!C5/(Bilanca!C75+Bilanca!C103),) -> 3.495251122 | D22: =IFERROR(Bilanca!D5/(Bilanca!D75+Bilanca!D103),) -> 3.598057407 | E22: =IFERROR(Bilanca!E5/(Bilanca!E75+Bilanca!E103),) -> 3.529483794 | F22: =IFERROR(Bilanca!F5/(Bilanca!F75+Bilanca!F103),) -> 7.312800471 | G22: =IFERROR(Bilanca!G5/(Bilanca!G75+Bilanca!G103),) -> 5.260836869 | H22: =IFERROR(Bilanca!H5/(Bilanca!H75+Bilanca!H103),) -> 5.237862743 | I22: =IFERROR(Bilanca!I5/(Bilanca!I75+Bilanca!I103),) -> 4.589546266
B23: Pokazatelji aktivnosti | C23: OSTVARENO | F23: PLANIRANO
B24: Obrtaj imovine | C24: =IFERROR(RDG!C57/Bilanca!C68,) -> 0.2179344331 | D24: =IFERROR(RDG!D57/Bilanca!D68,) -> 0.2600623977 | E24: =IFERROR(RDG!E57/Bilanca!E68,) -> 0.2369396402 | F24: =IFERROR(RDG!F57/Bilanca!F68,) -> 0.1475905297 | G24: =IFERROR(RDG!G57/Bilanca!G68,) -> 0.1926064033 | H24: =IFERROR(RDG!H57/Bilanca!H68,) -> 0.1907584892 | I24: =IFERROR(RDG!I57/Bilanca!I68,) -> 0.1971218815
B25: Obrtaj potraživanja | C25: =IFERROR(((RDG!C6+RDG!C7)/(Bilanca!C52)),) -> 29.30712822 | D25: =IFERROR(((RDG!D6+RDG!D7)/(Bilanca!D52)),) -> 5.039639947 | E25: =IFERROR(((RDG!E6+RDG!E7)/(Bilanca!E52)),) -> 4.421374169 | F25: =IFERROR(((RDG!F6+RDG!F7)/(Bilanca!F52)),) -> 9.836367262 | G25: =IFERROR(((RDG!G6+RDG!G7)/(Bilanca!G52)),) -> 18.93459091 | H25: =IFERROR(((RDG!H6+RDG!H7)/(Bilanca!H52)),) -> 20.04519819 | I25: =IFERROR(((RDG!I6+RDG!I7)/(Bilanca!I52)),) -> 20.62770098
B26: Dani potraživanja | C26: =IFERROR(365/C25,) -> 12.45430795 | D26: 72.42580895 | E26: 82.55351979 | F26: 37.10719519 | G26: 19.27688862 | H26: 18.20884965 | I26: 17.69465247
B27: Pokazatelji zaduženosti | C27: OSTVARENO | F27: PLANIRANO
B28: Koeficijent zaduženosti | C28: =IFERROR(((Bilanca!C96+Bilanca!C103+Bilanca!C115+Bilanca!C130)/Bilanca!C68),) -> 0.9402349951 | D28: =IFERROR(((Bilanca!D96+Bilanca!D103+Bilanca!D115+Bilanca!D130)/Bilanca!D68),) -> 0.9215815463 | E28: =IFERROR(((Bilanca!E96+Bilanca!E103+Bilanca!E115+Bilanca!E130)/Bilanca!E68),) -> 0.9090724072 | F28: =IFERROR(((Bilanca!F96+Bilanca!F103+Bilanca!F115+Bilanca!F130)/Bilanca!F68),) -> 0.9677896849 | G28: =IFERROR(((Bilanca!G96+Bilanca!G103+Bilanca!G115+Bilanca!G130)/Bilanca!G68),) -> 0.9363284103 | H28: =IFERROR(((Bilanca!H96+Bilanca!H103+Bilanca!H115+Bilanca!H130)/Bilanca!H68),) -> 0.9374420397 | I28: =IFERROR(((Bilanca!I96+Bilanca!I103+Bilanca!I115+Bilanca!I130)/Bilanca!I68),) -> 0.9351499473
B29: Koeficijent vlastitog financiranja | C29: =IFERROR((Bilanca!C75/Bilanca!C68),) -> 0.05976537259 | D29: =IFERROR((Bilanca!D75/Bilanca!D68),) -> 0.07841861728 | E29: =IFERROR((Bilanca!E75/Bilanca!E68),) -> 0.09092737671 | F29: =IFERROR((Bilanca!F75/Bilanca!F68),) -> 0.03221027817 | G29: =IFERROR((Bilanca!G75/Bilanca!G68),) -> 0.06367138914 | H29: =IFERROR((Bilanca!H75/Bilanca!H68),) -> 0.06255815093 | I29: =IFERROR((Bilanca!I75/Bilanca!I68),) -> 0.06485005272
B30: Koeficijent financiranja | C30: =IFERROR(((Bilanca!C96+Bilanca!C103+Bilanca!C115+Bilanca!C130)/Bilanca!C75),) -> 15.73210296 | D30: =IFERROR(((Bilanca!D96+Bilanca!D103+Bilanca!D115+Bilanca!D130)/Bilanca!D75),) -> 11.75207595 | E30: =IFERROR(((Bilanca!E96+Bilanca!E103+Bilanca!E115+Bilanca!E130)/Bilanca!E75),) -> 9.997785486 | F30: =IFERROR(((Bilanca!F96+Bilanca!F103+Bilanca!F115+Bilanca!F130)/Bilanca!F75),) -> 30.04598966 | G30: =IFERROR(((Bilanca!G96+Bilanca!G103+Bilanca!G115+Bilanca!G130)/Bilanca!G75),) -> 14.70563817 | H30: =IFERROR(((Bilanca!H96+Bilanca!H103+Bilanca!H115+Bilanca!H130)/Bilanca!H75),) -> 14.98513025 | I30: =IFERROR(((Bilanca!I96+Bilanca!I103+Bilanca!I115+Bilanca!I130)/Bilanca!I75),) -> 14.42018793
B31: Odnos ukupne imovine i kapitala | C31: =IFERROR(Bilanca!C68/Bilanca!C75,) -> 16.73209681 | D31: =IFERROR(Bilanca!D68/Bilanca!D75,) -> 12.75207387 | E31: =IFERROR(Bilanca!E68/Bilanca!E75,) -> 10.99778786 | F31: =IFERROR(Bilanca!F68/Bilanca!F75,) -> 31.04599081 | G31: =IFERROR(Bilanca!G68/Bilanca!G75,) -> 15.70564132 | H31: =IFERROR(Bilanca!H68/Bilanca!H75,) -> 15.9851272 | I31: =IFERROR(Bilanca!I68/Bilanca!I75,) -> 15.42018793
B32: * Plavo osjenčana pozadina označava planirane vrijednosti
B67: =HYPERLINK("#Sadržaj!A1","Povratak na sadržaj") -> Povratak na sadržaj

Sheet Financijski položaj (hidden)
B1: =Naslovna!B3&" - "&Naslovna!I2 -> Ministarstvo državne imovine - Srednjoročni financijski plan poslovanja
B2: SAŽETI PRIKAZ IZVJEŠTAJA O FINANCIJSKOM POLOŽAJU
B4: Društvo: | D4: =Podloga!B2 -> Zračna luka Osijek d.o.o.
B5: Tip dokumenta: | D5: =Naslovna!B9 -> Srednjoročni financijski plan poslovanja
B6: Sastavlja se za razdoblje: | D6: =Podloga!B7 -> 2026. - 2028.
B8: Bilanca (u 000 kn)
C9: =Podloga!B34 -> 2023. ostvareno | D9: =Podloga!C34 -> 2024. ostvareno | F9: =Podloga!D34 -> 2025. procijenjeno | H9: =Podloga!E34 -> 2025. planirano | J9: =Podloga!F34 -> 2026. planirano | L9: =Podloga!G34 -> 2027. planirano | N9: =Podloga!H34 -> 2028. planirano
B10: Dugotrajna imovina | C10: =Bilanca!C5 -> 13185.73 | D10: =Bilanca!D5 -> 13933.87241 | E10: =D10-C10 -> 748.14241 | F10: =Bilanca!E5 -> 15781.77266 | G10: =F10-D10 -> 1847.90025 | H10: =Bilanca!F5 -> 26432.344 | I10: =H10-D10 -> 12498.47159 | J10: =Bilanca!G5 -> 24023.217 | K10: =J10-H10 -> -2409.127 | L10: =Bilanca!H5 -> 25221.65 | M10: =L10-J10 -> 1198.433 | N10: =Bilanca!I5 -> 25404.8 | O10: =N10-L10 -> 183.15
B11: Kratkotrajna imovina | C11: =Bilanca!C40 -> 309.541 | D11: =Bilanca!D40 -> 707.76 | E11: =D11-C11 -> 398.219 | F11: =Bilanca!E40 -> 1029.736 | G11: =F11-D11 -> 321.976 | H11: =Bilanca!F40 -> 510.067 | I11: =H11-D11 -> -197.693 | J11: =Bilanca!G40 -> 808.57 | K11: =J11-H11 -> 298.503 | L11: =Bilanca!H40 -> 869.785 | M11: =L11-J11 -> 61.215 | N11: =Bilanca!I40 -> 909.5 | O11: =N11-L11 -> 39.715
B12: Ostalo | C12: =Bilanca!C67+Bilanca!C4 -> 104.845 | D12: =Bilanca!D67+Bilanca!D4 -> 26.109 | E12: -78.736 | F12: =Bilanca!E67+Bilanca!E4 -> 123.336 | G12: 97.227 | H12: =Bilanca!F67+Bilanca!F4 -> 106.75 | I12: 80.641 | J12: =Bilanca!G67+Bilanca!G4 -> 104.845 | K12: -1.905 | L12: =Bilanca!H67+Bilanca!H4 -> 138.8 | M12: =L12-J12 -> 33.955 | N12: =Bilanca!I67+Bilanca!I4 -> 145 | O12: =N12-L12 -> 6.2
B13: Ukupno aktiva | C13: =SUM(C10:C12) -> 13600.116 | D13: =SUM(D10:D12) -> 14667.74141 | E13: 1067.62541 | F13: =SUM(F10:F12) -> 16934.84466 | G13: 2267.10325 | H13: =SUM(H10:H12) -> 27049.161 | I13: 12381.41959 | J13: =SUM(J10:J12) -> 24936.632 | K13: -2112.529 | L13: =SUM(L10:L12) -> 26230.235 | M13: =L13-J13 -> 1293.603 | N13: =SUM(N10:N12) -> 26459.3 | O13: =N13-L13 -> 229.065
B15: Kapital i rezerve | C15: =Bilanca!C75 -> 812.816 | D15: =Bilanca!D75 -> 1150.224 | E15: 337.408 | F15: =Bilanca!E75 -> 1539.841 | G15: 389.617 | H15: =Bilanca!F75 -> 871.261 | I15: =H15-D15 -> -278.963 | J15: =Bilanca!G75 -> 1587.75 | K15: 716.489 | L15: =Bilanca!H75 -> 1640.915 | M15: =L15-J15 -> 53.165 | N15: =Bilanca!I75 -> 1715.887 | O15: =N15-L15 -> 74.972
B16: Rezerviranja | C16: =Bilanca!C96 -> 22.103 | D16: =Bilanca!D96 -> 21.65 | E16: -0.453 | F16: =Bilanca!E96 -> 21.65 | G16: 0 | H16: =Bilanca!F96 -> 0 | I16: =H16-D16 -> -21.65 | J16: =Bilanca!G96 -> 0 | K16: 0 | L16: =Bilanca!H96 -> 0 | M16: 0 | N16: =Bilanca!I96 -> 0 | O16: 0
B17: Dugoročne obveze | C17: =Bilanca!C103 -> 2959.654 | D17: =Bilanca!D103 -> 2722.38581 | E17: -237.26819 | F17: =Bilanca!E103 -> 2931.57 | G17: 209.18419 | H17: =Bilanca!F103 -> 2743.27 | I17: 20.88419 | J17: =Bilanca!G103 -> 2978.675 | K17: 235.405 | L17: =Bilanca!H103 -> 3174.341 | M17: 195.666 | N17: =Bilanca!I103 -> 3819.475 | O17: 645.134
B18: Kratkoročne obveze | C18: =Bilanca!C115 -> 417.851 | D18: =Bilanca!D115 -> 673.689 | E18: 255.838 | F18: =Bilanca!E115 -> 673.692 | G18: 0.003 | H18: =Bilanca!F115 -> 767.357 | I18: 93.668 | J18: =Bilanca!G115 -> 579.185 | K18: -188.172 | L18: =Bilanca!H115 -> 838.373 | M18: 259.188 | N18: =Bilanca!I115 -> 983.203 | O18: 144.83
B19: Ostalo | C19: =Bilanca!C130 -> 9387.697 | D19: =Bilanca!D130 -> 10099.795 | E19: 712.098 | F19: =Bilanca!E130 -> 11768.088 | G19: 1668.293 | H19: =Bilanca!F130 -> 22667.272 | I19: 12567.477 | J19: =Bilanca!G130 -> 19791.017 | K19: -2876.255 | L19: =Bilanca!H130 -> 20576.611 | M19: 785.594 | N19: =Bilanca!I130 -> 19940.735 | O19: -635.876
B20: Ukupna pasiva | C20: =SUM(C15:C19) -> 13600.121 | D20: =SUM(D15:D19) -> 14667.74381 | E20: 1067.62281 | F20: =SUM(F15:F19) -> 16934.841 | G20: 2267.09719 | H20: =SUM(H15:H19) -> 27049.16 | I20: =H20-D20 -> 12381.41619 | J20: =SUM(J15:J19) -> 24936.627 | K20: -2112.533 | L20: =SUM(L15:L19) -> 26230.24 | M20: 1293.613 | N20: =SUM(N15:N19) -> 26459.3 | O20: 229.06
B22: * Procijenjeni i planirani rezultati za tekuću godinu se uspoređuju s ostvarenim rezultatom poslovanja u prethodnoj godini
B23: ** Plavo osjenčana pozadina označava planirane vrijednosti
B57: Dodatni komentari i pojašnjenja na rezultate
B69: =HYPERLINK("#Sadržaj!A1","Povratak na sadržaj") -> Povratak na sadržaj

Sheet RDG 1 (hidden)
B1: =Naslovna!B3&" - "&Naslovna!I2 -> Ministarstvo državne imovine - Srednjoročni financijski plan poslovanja
B2: SAŽETI PRIKAZ RAČUNA DOBITI I GUBITKA (1/2)
B4: Društvo: | C4: =Podloga!B2 -> Zračna luka Osijek d.o.o.
B5: Tip dokumenta: | C5: =Naslovna!B9 -> Srednjoročni financijski plan poslovanja
B6: Sastavlja se za razdoblje: | C6: =Podloga!B7 -> 2026. - 2028.
B8: Račun dobiti i gubitka (u 000 kn)
C9: =Podloga!B34 -> 2023. ostvareno | D9: =Podloga!C34 -> 2024. ostvareno | F9: =Podloga!D34 -> 2025. procijenjeno | H9: =Podloga!E34 -> 2025. planirano | J9: =Podloga!F34 -> 2026. planirano | L9: =Podloga!G34 -> 2027. planirano | N9: =Podloga!H34 -> 2028. planirano
B10: Poslovni prihodi | C10: =RDG!C5 -> 2963.898 | D10: =RDG!D5 -> 3814.391 | E10: =D10-C10 -> 850.493 | F10: =RDG!E5 -> 4012.427 | G10: =F10-D10 -> 198.036 | H10: =RDG!F5 -> 3991.6 | I10: =H10-D10 -> 177.209 | J10: =RDG!G5 -> 4802.805 | K10: =J10-H10 -> 811.205 | L10: =RDG!H5 -> 5003.49 | M10: =L10-J10 -> 200.685 | N10: =RDG!I5 -> 5215.547 | O10: =N10-L10 -> 212.057
B11: Poslovni rashodi | C11: =RDG!C11 -> 3590.895 | D11: =RDG!D11 -> 3386.403 | E11: =D11-C11 -> -204.492 | F11: =RDG!E11 -> 3502.902 | G11: =F11-D11 -> 116.499 | H11: =RDG!F11 -> 3862.16 | I11: =H11-D11 -> 475.757 | J11: =RDG!G11 -> 4634.843 | K11: =J11-H11 -> 772.683 | L11: =RDG!H11 -> 4833.325 | M11: 198.482 | N11: =RDG!I11 -> 5031.635 | O11: 198.31
B12: Financijski i investicijski prihodi | C12: =RDG!C34+RDG!C53+RDG!C54 -> 0.03557 | D12: =RDG!D34+RDG!D53+RDG!D54 -> 0.137 | E12: 0.10143 | F12: =RDG!E34+RDG!E53+RDG!E54 -> 0.109 | G12: -0.028 | H12: =RDG!F34+RDG!F53+RDG!F54 -> 0.6 | I12: 0.463 | J12: =RDG!G34+RDG!G53+RDG!G54 -> 0.15 | K12: -0.45 | L12: =RDG!H34+RDG!H53+RDG!H54 -> 0.15 | M12: 0 | N12: =RDG!I34+RDG!I53+RDG!I54 -> 0.16 | O12: 0.01
B13: Financijski i investicijski rashodi | C13: =RDG!C45+RDG!C55+RDG!C56 -> 92.377 | D13: =RDG!D45+RDG!D55+RDG!D56 -> 90.716 | E13: -1.661 | F13: =RDG!E45+RDG!E55+RDG!E56 -> 120.017 | G13: 29.301 | H13: =RDG!F45+RDG!F55+RDG!F56 -> 90.39 | I13: -0.326 | J13: =RDG!G45+RDG!G55+RDG!G56 -> 120.2 | K13: 29.81 | L13: =RDG!H45+RDG!H55+RDG!H56 -> 117.15 | M13: -3.05 | N13: =RDG!I45+RDG!I55+RDG!I56 -> 109.1 | O13: -8.05
B14: Dobit/Gubitak prije oporezivanja | C14: =RDG!C59 -> -719.33843 | D14: =RDG!D59 -> 337.409 | E14: 1056.74743 | F14: =RDG!E59 -> 389.617 | G14: 52.208 | H14: =RDG!F59 -> 39.65 | I14: -297.759 | J14: =RDG!G59 -> 47.912 | K14: 8.262 | L14: =RDG!H59 -> 53.165 | M14: 5.253 | N14: =RDG!I59 -> 74.972 | O14: 21.807
B15: Porez na dobit | C15: =RDG!C62 -> 0 | D15: =RDG!D62 -> 0 | E15: 0 | F15: =RDG!E62 -> 0 | G15: 0 | H15: =RDG!F62 -> 0 | I15: 0 | J15: =RDG!G62 -> 0 | K15: 0 | L15: =RDG!H62 -> 0 | M15: 0 | N15: =RDG!I62 -> 0 | O15: 0
B16: Neto dobit | C16: =C10-C11+C12-C13-C15 -> -719.33843 | D16: =D10-D11+D12-D13-D15 -> 337.409 | E16: 1056.74743 | F16: =F10-F11+F12-F13-F15 -> 389.617 | G16: 52.208 | H16: =H10-H11+H12-H13-H15 -> 39.65 | I16: =H16-D16 -> -297.759 | J16: =J10-J11+J12-J13-J15 -> 47.912 | K16: 8.262 | L16: =L10-L11+L12-L13-L15 -> 53.165 | M16: 5.253 | N16: =N10-N11+N12-N13-N15 -> 74.972 | O16: 21.807
B18: * Procijenjeni i planirani rezultati za tekuću godinu se uspoređuju s ostvarenim rezultatom poslovanja u prethodnoj godini
B19: ** Plavo osjenčana pozadina označava planirane vrijednosti
B63: Dodatni komentari i pojašnjenja na rezultate
B75: =HYPERLINK("#Sadržaj!A1","Povratak na sadržaj") -> Povratak na sadržaj

Sheet RDG 2 (hidden)
B1: =Naslovna!B3&" - "&Naslovna!I2 -> Ministarstvo državne imovine - Srednjoročni financijski plan poslovanja
B2: SAŽETI PRIKAZ RAČUNA DOBITI I GUBITKA (2/2)
B4: Društvo: | C4: =Podloga!B2 -> Zračna luka Osijek d.o.o.
B5: Tip dokumenta: | C5: =Naslovna!B9 -> Srednjoročni financijski plan poslovanja
B6: Sastavlja se za razdoblje: | C6: =Podloga!B7 -> 2026. - 2028.
B63: Dodatni komentari i pojašnjenja na rezultate
B75: =HYPERLINK("#Sadržaj!A1","Povratak na sadržaj") -> Povratak na sadržaj

Sheet Novčani tok (hidden)
B1: =Naslovna!B3&" - "&Naslovna!I2 -> Ministarstvo državne imovine - Srednjoročni financijski plan poslovanja
B2: ="SAŽETI PRIKAZ NOVČANOG TOKA PO "&(IF(Podloga!B17="Direktna","DIREKTNOJ","INDIREKTNOJ"))&" METODI" -> SAŽETI PRIKAZ NOVČANOG TOKA PO INDIREKTNOJ METODI
B4: Društvo: | C4: =Podloga!B2 -> Zračna luka Osijek d.o.o.
B5: Tip dokumenta: | C5: =Naslovna!B9 -> Srednjoročni financijski plan poslovanja
B6: Sastavlja se za razdoblje: | C6: =Podloga!B7 -> 2026. - 2028.
B8: Izvještaj o novčanom toku (u 000 kn)
C9: =Podloga!B34 -> 2023. ostvareno | D9: =Podloga!C34 -> 2024. ostvareno | F9: =Podloga!D34 -> 2025. procijenjeno | H9: =Podloga!E34 -> 2025. planirano | J9: =Podloga!F34 -> 2026. planirano | L9: =Podloga!G34 -> 2027. planirano | N9: =Podloga!H34 -> 2028. planirano
B10: Novac i novčani ekvivalenti na početku razdoblja | C10: =IF(Podloga!$B$17="Direktna",'NT dir.'!C49,'NT indir.'!C57) -> 770.928 | D10: =IF(Podloga!$B$17="Direktna",'NT dir.'!D49,'NT indir.'!D57) -> 50.9 | E10: =D10-C10 -> -720.028 | F10: =IF(Podloga!$B$17="Direktna",'NT dir.'!E49,'NT indir.'!E57) -> 359.544 | G10: =F10-D10 -> 308.644 | H10: =IF(Podloga!$B$17="Direktna",'NT dir.'!F49,'NT indir.'!F57) -> 50.904 | I10: =H10-D10 -> 0.004 | J10: =IF(Podloga!$B$17="Direktna",'NT dir.'!G49,'NT indir.'!G57) -> 622.97 | K10: =J10-H10 -> 572.066 | L10: =IF(Podloga!$B$17="Direktna",'NT dir.'!H49,'NT indir.'!H57) -> 575 | M10: =L10-J10 -> -47.97 | N10: =IF(Podloga!$B$17="Direktna",'NT dir.'!I49,'NT indir.'!I57) -> 630.5 | O10: =N10-L10 -> 55.5
B11: Neto novčani tok od poslovnih aktivnosti | C11: =IF(Podloga!$B$17="Direktna",'NT dir.'!C18,'NT indir.'!C26) -> 519.348 | D11: =IF(Podloga!$B$17="Direktna",'NT dir.'!D18,'NT indir.'!D26) -> 1389.142 | E11: 869.794 | F11: =IF(Podloga!$B$17="Direktna",'NT dir.'!E18,'NT indir.'!E26) -> 2306.943 | G11: =F11-D11 -> 917.801 | H11: =IF(Podloga!$B$17="Direktna",'NT dir.'!F18,'NT indir.'!F26) -> -55.85 | I11: =H11-D11 -> -1444.992 | J11: =IF(Podloga!$B$17="Direktna",'NT dir.'!G18,'NT indir.'!G26) -> 12806.438 | K11: =J11-H11 -> 12862.288 | L11: =IF(Podloga!$B$17="Direktna",'NT dir.'!H18,'NT indir.'!H26) -> 2957.441 | M11: =L11-J11 -> -9848.997 | N11: =IF(Podloga!$B$17="Direktna",'NT dir.'!I18,'NT indir.'!I26) -> 3313.017 | O11: =N11-L11 -> 355.576
B12: Neto novčani tok od investicijskih aktivnosti | C12: =IF(Podloga!$B$17="Direktna",'NT dir.'!C33,'NT indir.'!C41) -> -1156.853 | D12: =IF(Podloga!$B$17="Direktna",'NT dir.'!D33,'NT indir.'!D41) -> -1103.927 | E12: 52.926 | F12: =IF(Podloga!$B$17="Direktna",'NT dir.'!E33,'NT indir.'!E41) -> -2004.667 | G12: =F12-D12 -> -900.74 | H12: =IF(Podloga!$B$17="Direktna",'NT dir.'!F33,'NT indir.'!F41) -> -12467.053 | I12: =H12-D12 -> -11363.126 | J12: =IF(Podloga!$B$17="Direktna",'NT dir.'!G33,'NT indir.'!G41) -> -12717.421 | K12: -250.368 | L12: =IF(Podloga!$B$17="Direktna",'NT dir.'!H33,'NT indir.'!H41) -> -2694.6 | M12: =L12-J12 -> 10022.821 | N12: =IF(Podloga!$B$17="Direktna",'NT dir.'!I33,'NT indir.'!I41) -> -2997.895 | O12: =N12-L12 -> -303.295
B13: Neto novčani tok od financijskih aktivnosti | C13: =IF(Podloga!$B$17="Direktna",'NT dir.'!C46+'NT dir.'!C47,'NT indir.'!C54+'NT indir.'!C55) -> -82.519 | D13: =IF(Podloga!$B$17="Direktna",'NT dir.'!D46+'NT dir.'!D47,'NT indir.'!D54+'NT indir.'!D55) -> 23.437 | E13: 105.956 | F13: =IF(Podloga!$B$17="Direktna",'NT dir.'!E46+'NT dir.'!E47,'NT indir.'!E54+'NT indir.'!E55) -> -38.854 | G13: =F13-D13 -> -62.291 | H13: =IF(Podloga!$B$17="Direktna",'NT dir.'!F46+'NT dir.'!F47,'NT indir.'!F54+'NT indir.'!F55) -> -217.491 | I13: =H13-D13 -> -240.928 | J13: =IF(Podloga!$B$17="Direktna",'NT dir.'!G46+'NT dir.'!G47,'NT indir.'!G54+'NT indir.'!G55) -> -136.992 | K13: 80.499 | L13: =IF(Podloga!$B$17="Direktna",'NT dir.'!H46+'NT dir.'!H47,'NT indir.'!H54+'NT indir.'!H55) -> -207.341 | M13: =L13-J13 -> -70.349 | N13: =IF(Podloga!$B$17="Direktna",'NT dir.'!I46+'NT dir.'!I47,'NT indir.'!I54+'NT indir.'!I55) -> -315.132 | O13: =N13-L13 -> -107.791
B14: Novac i novčani ekvivalenti na kraju razdoblja | C14: =IF(Podloga!$B$17="Direktna",'NT dir.'!C50,'NT indir.'!C58) -> 50.904 | D14: =IF(Podloga!$B$17="Direktna",'NT dir.'!D50,'NT indir.'!D58) -> 359.552 | E14: 308.648 | F14: =IF(Podloga!$B$17="Direktna",'NT dir.'!E50,'NT indir.'!E58) -> 622.966 | G14: =F14-D14 -> 263.414 | H14: =IF(Podloga!$B$17="Direktna",'NT dir.'!F50,'NT indir.'!F58) -> 230 | I14: =H14-D14 -> -129.552 | J14: =IF(Podloga!$B$17="Direktna",'NT dir.'!G50,'NT indir.'!G58) -> 575 | K14: 345 | L14: =IF(Podloga!$B$17="Direktna",'NT dir.'!H50,'NT indir.'!H58) -> 630.5 | M14: =L14-J14 -> 55.5 | N14: =IF(Podloga!$B$17="Direktna",'NT dir.'!I50,'NT indir.'!I58) -> 650.5 | O14: =N14-L14 -> 20
B15: * Procijenjeni i i planirani rezultati za tekuću godinu se uspoređuju s ostvarenim rezultatom poslovanja u prethodnoj godini
B16: ** Plavo osjenčana pozadina označava planirane vrijednosti
C38: =IF(Podloga!B17="Direktna"," "," Nije primjenjivo kod indirektne metode") -> Nije primjenjivo kod indirektne metode
C47: =IF(Podloga!B17="Direktna"," "," Nije primjenjivo kod indirektne metode") -> Nije primjenjivo kod indirektne metode
B57: Dodatni komentari i pojašnjenja na rezultate
B68: =HYPERLINK("#Sadržaj!A1","Povratak na sadržaj") -> Povratak na sadržaj

Sheet Profitabilnost (hidden)
B1: =Naslovna!B3&" - "&Naslovna!I2 -> Ministarstvo državne imovine - Srednjoročni financijski plan poslovanja
B2: SAŽETI PRIKAZ POKAZATELJA PROFITABILNOSTI
B4: Društvo: | C4: =Podloga!B2 -> Zračna luka Osijek d.o.o.
B5: Tip dokumenta: | C5: =Naslovna!B9 -> Srednjoročni financijski plan poslovanja
B6: Sastavlja se za razdoblje: | C6: =Podloga!B7 -> 2026. - 2028.
B8: Pokazatelji profitabilnosti
C9: =Podloga!B34 -> 2023. ostvareno | D9: =Podloga!C34 -> 2024. ostvareno | F9: =Podloga!D34 -> 2025. procijenjeno | H9: =Podloga!E34 -> 2025. planirano | J9: =Podloga!F34 -> 2026. planirano | L9: =Podloga!G34 -> 2027. planirano | N9: =Podloga!H34 -> 2028. planirano
B10: ROA | C10: =IFERROR(RDG!C63/Bilanca!C68,) -> -0.05289208048 | D10: =IFERROR(RDG!D63/Bilanca!D68,) -> 0.02300347344 | E10: =D10-C10 -> 0.07589555392 | F10: =IFERROR(RDG!E63/Bilanca!E68,) -> 0.02300682456 | G10: =F10-D10 -> 3.351114005e-06 | H10: =IFERROR(RDG!F63/Bilanca!F68,) -> 0.001465849532 | I10: =H10-D10 -> -0.02153762391 | J10: =IFERROR(RDG!G63/Bilanca!G68,) -> 0.001921350084 | K10: =J10-H10 -> 0.0004555005522 | L10: =IFERROR(RDG!H63/Bilanca!H68,) -> 0.002026859462 | M10: =L10-J10 -> 0.0001055093775 | N10: =IFERROR(RDG!I63/Bilanca!I68,) -> 0.002833483879 | O10: =N10-L10 -> 0.000806624417
B11: ROE | C11: =IFERROR((RDG!C83/Bilanca!C$75),) -> -0.884995411 | D11: =IFERROR((RDG!D83/Bilanca!D$75),) -> 0.2933419925 | E11: =D11-C11 -> 1.178337404 | F11: =IFERROR((RDG!E83/Bilanca!E$75),) -> 0.2530241759 | G11: =F11-D11 -> -0.04031781664 | H11: =IFERROR((RDG!F83/Bilanca!F$75),) -> 0.04550875111 | I11: =H11-D11 -> -0.2478332414 | J11: =IFERROR((RDG!G83/Bilanca!G$75),) -> 0.03017603527 | K11: =J11-H11 -> -0.01533271584 | L11: =IFERROR((RDG!H83/Bilanca!H$75),) -> 0.03239960632 | M11: =L11-J11 -> 0.002223571047 | N11: =IFERROR((RDG!I83/Bilanca!I$75),) -> 0.0436928539 | O11: =N11-L11 -> 0.01129324758
B12: EBITDA Marža | C12: =IFERROR((RDG!C59+RDG!C46+RDG!C48+RDG!C21)/RDG!C57,) -> -0.08782498793 | D12: =IFERROR((RDG!D59+RDG!D46+RDG!D48+RDG!D21)/RDG!D57,) -> 0.2096996011 | E12: =D12-C12 -> 0.297524589 | F12: =IFERROR((RDG!E59+RDG!E46+RDG!E48+RDG!E21)/RDG!E57,) -> 0.2210681723 | G12: =F12-D12 -> 0.01136857124 | H12: =IFERROR((RDG!F59+RDG!F46+RDG!F48+RDG!F21)/RDG!F57,) -> 0.1255924052 | I12: =H12-D12 -> -0.08410719591 | J12: =IFERROR((RDG!G59+RDG!G46+RDG!G48+RDG!G21)/RDG!G57,) -> 0.1224063103 | K12: =J12-H12 -> -0.003186094908 | L12: =IFERROR((RDG!H59+RDG!H46+RDG!H48+RDG!H21)/RDG!H57,) -> 0.118946407 | M12: =L12-J12 -> -0.003459903266 | N12: =IFERROR((RDG!I59+RDG!I46+RDG!I48+RDG!I21)/RDG!I57,) -> 0.1177159683 | O12: =N12-L12 -> -0.001230438692
B13: EBIT Marža | C13: =IFERROR((RDG!C59+RDG!C46+RDG!C48)/RDG!C57,) -> -0.2116202726 | D13: =IFERROR((RDG!D59+RDG!D46+RDG!D48)/RDG!D57,) -> 0.1121433635 | E13: =D13-C13 -> 0.3237636361 | F13: =IFERROR((RDG!E59+RDG!E46+RDG!E48)/RDG!E57,) -> 0.1269553719 | G13: =F13-D13 -> 0.01481200839 | H13: =IFERROR((RDG!F59+RDG!F46+RDG!F48)/RDG!F57,) -> 0.03241070087 | I13: =H13-D13 -> -0.07973266261 | J13: =IFERROR((RDG!G59+RDG!G46+RDG!G48)/RDG!G57,) -> 0.03496014433 | K13: =J13-H13 -> 0.002549443461 | L13: =IFERROR((RDG!H59+RDG!H46+RDG!H48)/RDG!H57,) -> 0.034008242 | M13: =L13-J13 -> -0.000951902328 | N13: =IFERROR((RDG!I59+RDG!I46+RDG!I48)/RDG!I57,) -> 0.03527268691 | O13: =N13-L13 -> 0.001264444905
B14: Neto profitna marža (neto dobit / ukupni prihod) | C14: =IFERROR(RDG!C63/RDG!C57,) -> -0.2426972174 | D14: =IFERROR(RDG!D63/RDG!D57,) -> 0.08845366976 | E14: 0.3311508872 | F14: =IFERROR(RDG!E63/RDG!E57,) -> 0.09709993879 | G14: 0.008646269032 | H14: =IFERROR(RDG!F63/RDG!F57,) -> 0.009931867141 | I14: =H14-D14 -> -0.07852180262 | J14: =IFERROR(RDG!G63/RDG!G57,) -> 0.009975525484 | K14: 4.365834287e-05 | L14: =IFERROR(RDG!H63/RDG!H57,) -> 0.01062526481 | M14: 0.0006497393234 | N14: =IFERROR(RDG!I63/RDG!I57,) -> 0.01437427371 | O14: 0.003749008901
B16: * Procijenjeni i planirani rezultati za tekuću godinu se uspoređuju s ostvarenim rezultatom poslovanja u prethodnoj godini
B17: ** Plavo osjenčana pozadina označava planirane vrijednosti
B58: Dodatni komentari i pojašnjenja na rezultate
B71: =HYPERLINK("#Sadržaj!A1","Povratak na sadržaj") -> Povratak na sadržaj

Sheet Likvidnost (hidden)
B1: =Naslovna!B3&" - "&Naslovna!I2 -> Ministarstvo državne imovine - Srednjoročni financijski plan poslovanja
B2: SAŽETI PRIKAZ POKAZATELJA LIKVIDNOSTI
B4: Društvo: | C4: =Podloga!B2 -> Zračna luka Osijek d.o.o.
B5: Tip dokumenta: | C5: =Naslovna!B9 -> Srednjoročni financijski plan poslovanja
B6: Sastavlja se za razdoblje: | C6: =Podloga!B7 -> 2026. - 2028.
B8: Pokazatelji likvidnosti
C9: =Podloga!B34 -> 2023. ostvareno | D9: =Podloga!C34 -> 2024. ostvareno | F9: =Podloga!D34 -> 2025. procijenjeno | H9: =Podloga!E34 -> 2025. planirano | J9: =Podloga!F34 -> 2026. planirano | L9: =Podloga!G34 -> 2027. planirano | N9: =Podloga!H34 -> 2028. planirano
B10: Neto radni kapital (u 000 kn) | C10: =Bilanca!C40-Bilanca!C115 -> -108.31 | D10: =Bilanca!D40-Bilanca!D115 -> 34.071 | E10: =D10-C10 -> 142.381 | F10: =Bilanca!E40-Bilanca!E115 -> 356.044 | G10: =F10-D10 -> 321.973 | H10: =Bilanca!F40-Bilanca!F115 -> -257.29 | I10: =H10-D10 -> -291.361 | J10: =Bilanca!G40-Bilanca!G115 -> 229.385 | K10: =J10-H10 -> 486.675 | L10: =Bilanca!H40-Bilanca!H115 -> 31.412 | M10: =L10-J10 -> -197.973 | N10: =Bilanca!I40-Bilanca!I115 -> -73.703 | O10: =N10-L10 -> -105.115
B11: Koeficijent tekuće likvidnosti | C11: =IFERROR(Bilanca!C40/Bilanca!C115,) -> 0.7407927706 | D11: =IFERROR(Bilanca!D40/Bilanca!D115,) -> 1.050573781 | E11: =D11-C11 -> 0.3097810104 | F11: =IFERROR(Bilanca!E40/Bilanca!E115,) -> 1.528496702 | G11: =F11-D11 -> 0.4779229207 | H11: =IFERROR(Bilanca!F40/Bilanca!F115,) -> 0.664706258 | I11: =H11-D11 -> -0.3858675231 | J11: =IFERROR(Bilanca!G40/Bilanca!G115,) -> 1.396047895 | K11: =J11-H11 -> 0.7313416369 | L11: =IFERROR(Bilanca!H40/Bilanca!H115,) -> 1.03746781 | M11: =L11-J11 -> -0.3585800852 | N11: =IFERROR(Bilanca!I40/Bilanca!I115,) -> 0.925037861 | O11: =N11-L11 -> -0.1124299487
B12: Koeficijent trenutne likvidnosti | C12: =IFERROR(Bilanca!C66/Bilanca!C115,) -> 0.1218233294 | D12: =IFERROR(Bilanca!D66/Bilanca!D115,) -> 0.5336928464 | E12: 0.411869517 | F12: =IFERROR(Bilanca!E66/Bilanca!E115,) -> 0.9247089174 | G12: 0.391016071 | H12: =IFERROR(Bilanca!F66/Bilanca!F115,) -> 0.2997301126 | I12: -0.2339627338 | J12: =IFERROR(Bilanca!G66/Bilanca!G115,) -> 0.9927743294 | K12: 0.6930442169 | L12: =IFERROR(Bilanca!H66/Bilanca!H115,) -> 0.752051891 | M12: =L12-J12 -> -0.2407224385 | N12: =IFERROR(Bilanca!I66/Bilanca!I115,) -> 0.6616131155 | O12: =N12-L12 -> -0.09043877548
B13: Koeficijent financijske stabilnosti | C13: =IFERROR(Bilanca!C5/(Bilanca!C75+Bilanca!C103),) -> 3.495251122 | D13: =IFERROR(Bilanca!D5/(Bilanca!D75+Bilanca!D103),) -> 3.598057407 | E13: 0.1028062847 | F13: =IFERROR(Bilanca!E5/(Bilanca!E75+Bilanca!E103),) -> 3.529483794 | G13: -0.06857361285 | H13: =IFERROR(Bilanca!F5/(Bilanca!F75+Bilanca!F103),) -> 7.312800471 | I13: 3.714743065 | J13: =IFERROR(Bilanca!G5/(Bilanca!G75+Bilanca!G103),) -> 5.260836869 | K13: -2.051963602 | L13: =IFERROR(Bilanca!H5/(Bilanca!H75+Bilanca!H103),) -> 5.237862743 | M13: =L13-J13 -> -0.02297412619 | N13: =IFERROR(Bilanca!I5/(Bilanca!I75+Bilanca!I103),) -> 4.589546266 | O13: =N13-L13 -> -0.6483164766
B15: * Procijenjeni i planirani rezultati za tekuću godinu se uspoređuju s ostvarenim rezultatom poslovanja u prethodnoj godini
B16: ** Plavo osjenčana pozadina označava planirane vrijednosti
B57: Dodatni komentari i pojašnjenja na rezultate
B69: =HYPERLINK("#Sadržaj!A1","Povratak na sadržaj") -> Povratak na sadržaj

Sheet Aktivnost (hidden)
B1: =Naslovna!B3&" - "&Naslovna!I2 -> Ministarstvo državne imovine - Srednjoročni financijski plan poslovanja
B2: SAŽETI PRIKAZ POKAZATELJA AKTIVNOSTI
B4: Društvo: | C4: =Podloga!B2 -> Zračna luka Osijek d.o.o.
B5: Tip dokumenta: | C5: =Naslovna!B9 -> Srednjoročni financijski plan poslovanja
B6: Sastavlja se za razdoblje: | C6: =Podloga!B7 -> 2026. - 2028.
B8: Pokazatelji aktivnosti i ekonomičnosti
C9: =Podloga!B34 -> 2023. ostvareno | D9: =Podloga!C34 -> 2024. ostvareno | F9: =Podloga!D34 -> 2025. procijenjeno | H9: =Podloga!E34 -> 2025. planirano | J9: =Podloga!F34 -> 2026. planirano | L9: =Podloga!G34 -> 2027. planirano | N9: =Podloga!H34 -> 2028. planirano
B10: Koeficijent obrtaja imovine | C10: =IFERROR(RDG!C57/Bilanca!C68,) -> 0.2179344331 | D10: =IFERROR(RDG!D57/Bilanca!D68,) -> 0.2600623977 | E10: =D10-C10 -> 0.04212796465 | F10: =IFERROR(RDG!E57/Bilanca!E68,) -> 0.2369396402 | G10: =F10-D10 -> -0.02312275754 | H10: =IFERROR(RDG!F57/Bilanca!F68,) -> 0.1475905297 | I10: =H10-D10 -> -0.112471868 | J10: =IFERROR(RDG!G57/Bilanca!G68,) -> 0.1926064033 | K10: =J10-H10 -> 0.0450158736 | L10: =IFERROR(RDG!H57/Bilanca!H68,) -> 0.1907584892 | M10: =L10-J10 -> -0.001847914101 | N10: =IFERROR(RDG!I57/Bilanca!I68,) -> 0.1971218815 | O10: =N10-L10 -> 0.00636339233
B11: Koeficijent obrtaja potraživanja | C11: =IFERROR(((RDG!C6+RDG!C7)/(Bilanca!C52)),) -> 29.30712822 | D11: =IFERROR(((RDG!D6+RDG!D7)/(Bilanca!D52)),) -> 5.039639947 | E11: -24.26748827 | F11: =IFERROR(((RDG!E6+RDG!E7)/(Bilanca!E52)),) -> 4.421374169 | G11: -0.6182657781 | H11: =IFERROR(((RDG!F6+RDG!F7)/(Bilanca!F52)),) -> 9.836367262 | I11: =H11-D11 -> 4.796727315 | J11: =IFERROR(((RDG!G6+RDG!G7)/(Bilanca!G52)),) -> 18.93459091 | K11: 9.098223647 | L11: =IFERROR(((RDG!H6+RDG!H7)/(Bilanca!H52)),) -> 20.04519819 | M11: =L11-J11 -> 1.11060728 | N11: =IFERROR(((RDG!I6+RDG!I7)/(Bilanca!I52)),) -> 20.62770098 | O11: =N11-L11 -> 0.5825027878
B12: Koeficijent obrtaja neto radnog kapitala | C12: =IFERROR(RDG!C57/(Bilanca!C40-Bilanca!C115),) -> -27.36528086 | D12: =IFERROR(RDG!D57/(Bilanca!D40-Bilanca!D115),) -> 111.9582049 | E12: 139.3234858 | F12: =IFERROR(RDG!E57/(Bilanca!E40-Bilanca!E115),) -> 11.26977565 | G12: -100.6884293 | H12: =IFERROR(RDG!F57/(Bilanca!F40-Bilanca!F115),) -> -15.51634343 | I12: -127.4745484 | J12: =IFERROR(RDG!G57/(Bilanca!G40-Bilanca!G115),) -> 20.93840051 | K12: 36.45474393 | L12: =IFERROR(RDG!H57/(Bilanca!H40-Bilanca!H115),) -> 159.2907169 | M12: =L12-J12 -> 138.3523164 | N12: =IFERROR(RDG!I57/(Bilanca!I40-Bilanca!I115),) -> -70.76654953 | O12: =N12-L12 -> -230.0572665
B13: Dani naplate potraživanja | C13: =IFERROR(365/C11,) -> 12.45430795 | D13: 72.42580895 | E13: 59.971501 | F13: =IFERROR(365/F11,) -> 82.55351979 | G13: 10.12771085 | H13: =IFERROR(365/H11,) -> 37.10719519 | I13: -35.31861375 | J13: =IFERROR(365/J11,) -> 19.27688862 | K13: -17.83030658 | L13: =IFERROR(365/L11,) -> 18.20884965 | M13: -1.06803897 | N13: =IFERROR(365/N11,) -> 17.69465247 | O13: -0.5141971805
B14: Dani vezivanja zaliha | C14: =IFERROR(365/((RDG!C6+RDG!C7)/Bilanca!C41),) -> 8.648041506 | D14: =IFERROR(365/((RDG!D6+RDG!D7)/Bilanca!D41),) -> 9.416947013 | E14: 0.7689055069 | F14: =IFERROR(365/((RDG!E6+RDG!E7)/Bilanca!E41),) -> 6.394879017 | G14: -3.022067997 | H14: =IFERROR(365/((RDG!F6+RDG!F7)/Bilanca!F41),) -> 10.4762313 | I14: 1.059284285 | J14: =IFERROR(365/((RDG!G6+RDG!G7)/Bilanca!G41),) -> 16.70079532 | K14: 6.224564024 | L14: =IFERROR(365/((RDG!H6+RDG!H7)/Bilanca!H41),) -> 15.19453218 | M14: -1.506263146 | N14: =IFERROR(365/((RDG!I6+RDG!I7)/Bilanca!I41),) -> 15.52768902 | O14: 0.3331568422
B15: Dani plaćanja dobavljačima | C15: =IFERROR(365/(RDG!C13/(Bilanca!C123)),) -> 23.18392007 | D15: =IFERROR(365/(RDG!D13/(Bilanca!D123)),) -> 32.25283178 | E15: 9.068911716 | F15: =IFERROR(365/(RDG!E13/(Bilanca!E123)),) -> 35.0806429 | G15: 2.827811117 | H15: =IFERROR(365/(RDG!F13/(Bilanca!F123)),) -> 39.19819433 | I15: 6.945362542 | J15: =IFERROR(365/(RDG!G13/(Bilanca!G123)),) -> 22.44031732 | K15: -16.75787701 | L15: =IFERROR(365/(RDG!H13/(Bilanca!H123)),) -> 23.6867863 | M15: 1.246468977 | N15: =IFERROR(365/(RDG!I13/(Bilanca!I123)),) -> 22.99639372 | O15: -0.6903925761
B16: Ekonomičnost ukupnog poslovanja | C16: =IFERROR(RDG!C57/RDG!C58,) -> 0.8047012466 | D16: =IFERROR(RDG!D57/RDG!D58,) -> 1.097036944 | E16: 0.2923356969 | F16: =IFERROR(RDG!E57/RDG!E58,) -> 1.107542288 | G16: 0.0105053449 | H16: =IFERROR(RDG!F57/RDG!F58,) -> 1.010031499 | I16: -0.08700544486 | J16: =IFERROR(RDG!G57/RDG!G58,) -> 1.010076039 | K16: 4.454061754e-05 | L16: =IFERROR(RDG!H57/RDG!H58,) -> 1.010739373 | M16: 0.0006633342242 | N16: =IFERROR(RDG!I57/RDG!I58,) -> 1.014583907 | O16: 0.003844533282
B18: * Procijenjeni i planirani rezultati za tekuću godinu se uspoređuju s ostvarenim rezultatom poslovanja u prethodnoj godini
B19: ** Plavo osjenčana pozadina označava planirane vrijednosti
B58: Dodatni komentari i pojašnjenja na rezultate
B70: =HYPERLINK("#Sadržaj!A1","Povratak na sadržaj") -> Povratak na sadržaj

Sheet Zaduženost (hidden)
B1: =Naslovna!B3&" - "&Naslovna!I2 -> Ministarstvo državne imovine - Srednjoročni financijski plan poslovanja
B2: SAŽETI PRIKAZ POKAZATELJA ZADUŽENOSTI
B4: Društvo: | C4: =Podloga!B2 -> Zračna luka Osijek d.o.o.
B5: Tip dokumenta: | C5: =Naslovna!B9 -> Srednjoročni financijski plan poslovanja
B6: Sastavlja se za razdoblje: | C6: =Podloga!B7 -> 2026. - 2028.
B8: Pokazatelji zaduženosti
C9: =Podloga!B34 -> 2023. ostvareno | D9: =Podloga!C34 -> 2024. ostvareno | F9: =Podloga!D34 -> 2025. procijenjeno | H9: =Podloga!E34 -> 2025. planirano | J9: =Podloga!F34 -> 2026. planirano | L9: =Podloga!G34 -> 2027. planirano | N9: =Podloga!H34 -> 2028. planirano
B10: Koeficijent zaduženosti | C10: =IFERROR(((Bilanca!C96+Bilanca!C103+Bilanca!C115+Bilanca!C130)/Bilanca!C68),) -> 0.9402349951 | D10: =IFERROR(((Bilanca!D96+Bilanca!D103+Bilanca!D115+Bilanca!D130)/Bilanca!D68),) -> 0.9215815463 | E10: =D10-C10 -> -0.01865344871 | F10: =IFERROR(((Bilanca!E96+Bilanca!E103+Bilanca!E115+Bilanca!E130)/Bilanca!E68),) -> 0.9090724072 | G10: =F10-D10 -> -0.01250913918 | H10: =IFERROR(((Bilanca!F96+Bilanca!F103+Bilanca!F115+Bilanca!F130)/Bilanca!F68),) -> 0.9677896849 | I10: =H10-D10 -> 0.04620813852 | J10: =IFERROR(((Bilanca!G96+Bilanca!G103+Bilanca!G115+Bilanca!G130)/Bilanca!G68),) -> 0.9363284103 | K10: =J10-H10 -> -0.03146127451 | L10: =IFERROR(((Bilanca!H103+Bilanca!H115)/Bilanca!H68),) -> 0.1529804823 | M10: =L10-J10 -> -0.7833479281 | N10: =IFERROR(((Bilanca!I103+Bilanca!I115)/Bilanca!I68),) -> 0.181511907 | O10: =N10-L10 -> 0.02853142471
B11: Koeficijent vlastitog financiranja (kapital/ukupna imovina) | C11: =IFERROR((Bilanca!C75/Bilanca!C68),) -> 0.05976537259 | D11: =IFERROR((Bilanca!D75/Bilanca!D68),) -> 0.07841861728 | E11: =D11-C11 -> 0.01865324469 | F11: =IFERROR((Bilanca!E75/Bilanca!E68),) -> 0.09092737671 | G11: =F11-D11 -> 0.01250875943 | H11: =IFERROR((Bilanca!F75/Bilanca!F68),) -> 0.03221027817 | I11: =H11-D11 -> -0.04620833911 | J11: =IFERROR((Bilanca!G75/Bilanca!G68),) -> 0.06367138914 | K11: =J11-H11 -> 0.03146111098 | L11: =IFERROR((Bilanca!H75/Bilanca!H68),) -> 0.06255815093 | M11: =L11-J11 -> -0.001113238216 | N11: =IFERROR((Bilanca!I75/Bilanca!I68),) -> 0.06485005272 | O11: =N11-L11 -> 0.002291901795
B12: Koeficijent financiranja (ukupne obveze/kapital) | C12: =IFERROR(((Bilanca!C96+Bilanca!C103+Bilanca!C115+Bilanca!C130)/Bilanca!C75),) -> 15.73210296 | D12: =IFERROR(((Bilanca!D96+Bilanca!D103+Bilanca!D115+Bilanca!D130)/Bilanca!D75),) -> 11.75207595 | E12: =D12-C12 -> -3.980027008 | F12: =IFERROR(((Bilanca!E96+Bilanca!E103+Bilanca!E115+Bilanca!E130)/Bilanca!E75),) -> 9.997785486 | G12: =F12-D12 -> -1.754290467 | H12: =IFERROR(((Bilanca!F96+Bilanca!F103+Bilanca!F115+Bilanca!F130)/Bilanca!F75),) -> 30.04598966 | I12: 18.29391371 | J12: =IFERROR(((Bilanca!G96+Bilanca!G103+Bilanca!G115+Bilanca!G130)/Bilanca!G75),) -> 14.70563817 | K12: =J12-H12 -> -15.3403515 | L12: =IFERROR(((Bilanca!H96+Bilanca!H103+Bilanca!H115+Bilanca!H130)/Bilanca!H75),) -> 14.98513025 | M12: =L12-J12 -> 0.2794920802 | N12: =IFERROR(((Bilanca!I96+Bilanca!I103+Bilanca!I115+Bilanca!I130)/Bilanca!I75),) -> 14.42018793 | O12: =N12-L12 -> -0.5649423213
B13: Odnos ukupne imovine i kapitala | C13: =IFERROR(Bilanca!C68/Bilanca!C75,) -> 16.73209681 | D13: =IFERROR(Bilanca!D68/Bilanca!D75,) -> 12.75207387 | E13: =D13-C13 -> -3.980022944 | F13: =IFERROR(Bilanca!E68/Bilanca!E75,) -> 10.99778786 | G13: =F13-D13 -> -1.754286003 | H13: =IFERROR(Bilanca!F68/Bilanca!F75,) -> 31.04599081 | I13: 18.29391695 | J13: =IFERROR(Bilanca!G68/Bilanca!G75,) -> 15.70564132 | K13: =J13-H13 -> -15.34034949 | L13: =IFERROR(Bilanca!H68/Bilanca!H75,) -> 15.9851272 | M13: =L13-J13 -> 0.279485884 | N13: =IFERROR(Bilanca!I68/Bilanca!I75,) -> 15.42018793 | O13: =N13-L13 -> -0.5649392742
B15: * Procijenjeni i planirani rezultati za tekuću godinu se uspoređuju s ostvarenim rezultatom poslovanja u prethodnoj godini
B16: ** Plavo osjenčana pozadina označava planirane vrijednosti
B57: Dodatni komentari i pojašnjenja na rezultate
B68: =HYPERLINK("#Sadržaj!A1","Povratak na sadržaj") -> Povratak na sadržaj

Sheet DuPont (hidden)
B1: =Naslovna!B3&" - "&Naslovna!I2 -> Ministarstvo državne imovine - Srednjoročni financijski plan poslovanja
B2: DuPont analiza | R2: ROE
T3: Index
B4: Društvo: | G4: =Podloga!B2 -> Zračna luka Osijek d.o.o. | R4: =LEFT(Podloga!B34,7) -> 2023. o | S4: =O14*W14 -> -0.884995411
B5: Tip dokumenta: | G5: =Naslovna!B9 -> Srednjoročni financijski plan poslovanja | R5: =LEFT(Podloga!C34,7) -> 2024. o | S5: 0.2933419925 | T5: =IFERROR((S5/S4)*100,) -> -33.14615973
B6: Sastavlja se za razdoblje: | G6: =Podloga!B7 -> 2026. - 2028. | R6: =LEFT(Podloga!D34,8) -> 2025. pr | S6: 0.2530241759 | T6: 86.25569551
R7: =LEFT(Podloga!E34,8) -> 2025. pl | S7: 0.04550875111 | T7: =IFERROR((S7/S5)*100,) -> 15.513889
R8: =LEFT(Podloga!F34,8) -> 2026. pl | S8: 0.03017603527 | T8: 66.30820344
R9: =LEFT(Podloga!G34,8) -> 2027. pl | S9: 0.03239960632 | T9: 107.3686653
R10: =LEFT(Podloga!H34,8) -> 2028. pl | S10: 0.0436928539 | T10: 134.8561259
N12: ROA | V12: Odnos imovine i kapitala
P13: Index | X13: Index
J14: Neto profitna marža | N14: =LEFT(Podloga!B34,7) -> 2023. o | O14: =S16*K16 -> -0.05289208048 | R14: Koeficijent obrtaja imovine | V14: =LEFT(Podloga!B34,7) -> 2023. o | W14: =IFERROR(Bilanca!C68/Bilanca!C75,) -> 16.73209681
L15: Index | N15: =LEFT(Podloga!C34,7) -> 2024. o | O15: 0.02300347344 | P15: =IFERROR((O15/O14)*100,) -> -43.4913379 | T15: Index | V15: =LEFT(Podloga!C34,7) -> 2024. o | W15: =IFERROR(Bilanca!D68/Bilanca!D75,) -> 12.75207387 | X15: =IFERROR((W15/W14)*100,) -> 76.21324459
J16: =LEFT(Podloga!B34,7) -> 2023. o | K16: =IFERROR(G26/C36,) -> -0.2426972174 | N16: =LEFT(Podloga!D34,8) -> 2025. pr | O16: 0.02300682456 | P16: 100.0145679 | R16: =LEFT(Podloga!B34,7) -> 2023. o | S16: =IFERROR(O26/W26,) -> 0.2179344331 | V16: =LEFT(Podloga!D34,8) -> 2025. pr | W16: =IFERROR(Bilanca!E68/Bilanca!E75,) -> 10.99778786 | X16: 86.24313173
J17: =LEFT(Podloga!C34,7) -> 2024. o | K17: 0.08845366976 | L17: =IFERROR(K17/K16*100,) -> -36.44609967 | N17: =LEFT(Podloga!E34,8) -> 2025. pl | O17: 0.001465849532 | P17: =IFERROR((O17/O15)*100,) -> 6.372296496 | R17: =LEFT(Podloga!C34,7) -> 2024. o | S17: 0.2600623977 | T17: =IFERROR((S17/S16)*100,) -> 119.3305684 | V17: =LEFT(Podloga!E34,8) -> 2025. pl | W17: =IFERROR(Bilanca!F68/Bilanca!F75,) -> 31.04599081 | X17: =IFERROR((W17/W15)*100,) -> 243.4583672
J18: =LEFT(Podloga!D34,8) -> 2025. pr | K18: 0.09709993879 | L18: 109.7749127 | N18: =LEFT(Podloga!F34,8) -> 2026. pl | O18: 0.001921350084 | P18: 131.0741684 | R18: =LEFT(Podloga!D34,8) -> 2025. pr | S18: 0.2369396402 | T18: 91.10876553 | V18: =LEFT(Podloga!F34,8) -> 2026. pl | W18: =IFERROR(Bilanca!G68/Bilanca!G75,) -> 15.70564132 | X18: 50.58830756
J19: =LEFT(Podloga!E34,8) -> 2025. pl | K19: 0.009931867141 | L19: =IFERROR(K19/K17*100,) -> 11.22832684 | N19: =LEFT(Podloga!G34,8) -> 2027. pl | O19: 0.002026859462 | P19: 105.4914187 | R19: =LEFT(Podloga!E34,8) -> 2025. pl | S19: 0.1475905297 | T19: =IFERROR((S19/S17)*100,) -> 56.75196838 | V19: =LEFT(Podloga!G34,8) -> 2027. pl | W19: =IFERROR(Bilanca!H68/Bilanca!H75,) -> 15.9851272 | X19: 101.7795254
J20: =LEFT(Podloga!F34,8) -> 2026. pl | K20: 0.009975525484 | L20: 100.4395784 | N20: =LEFT(Podloga!H34,8) -> 2028. pl | O20: 0.002833483879 | P20: 139.7967611 | R20: =LEFT(Podloga!F34,8) -> 2026. pl | S20: 0.1926064033 | T20: 130.5005163 | V20: =LEFT(Podloga!H34,8) -> 2028. pl | W20: =IFERROR(Bilanca!I68/Bilanca!I75,) -> 15.42018793 | X20: 96.46584436
J21: =LEFT(Podloga!G34,8) -> 2027. pl | K21: 0.01062526481 | L21: 106.5133343 | R21: =LEFT(Podloga!G34,8) -> 2027. pl | S21: 0.1907584892 | T21: 99.04057494
J22: =LEFT(Podloga!H34,8) -> 2028. pl | K22: 0.01437427371 | L22: 135.2839103 | R22: =LEFT(Podloga!H34,8) -> 2028. pl | S22: 0.1971218815 | T22: 103.335837
F24: Neto dobit ili gubitak razdoblja (u mil. HRK) | N24: Ukupni prihodi (u mil. HRK) | V24: Ukupna imovina (u mil. HRK)
H25: Index | P25: Index | X25: Index
F26: =LEFT(Podloga!B34,7) -> 2023. o | G26: =RDG!C63 -> -719.33843 | N26: =LEFT(Podloga!B34,7) -> 2023. o | O26: =RDG!C57 -> 2963.93357 | V26: =LEFT(Podloga!B34,7) -> 2023. o | W26: =Bilanca!C68 -> 13600.116
F27: =LEFT(Podloga!C34,7) -> 2024. o | G27: =RDG!D63 -> 337.409 | H27: =IFERROR(G27/G26*100,) -> -46.90546006 | N27: =LEFT(Podloga!C34,7) -> 2024. o | O27: =RDG!D57 -> 3814.528 | P27: =IFERROR(O27/O26*100,) -> 128.6981611 | V27: =LEFT(Podloga!C34,7) -> 2024. o | W27: =Bilanca!D68 -> 14667.74141 | X27: =IFERROR(W27/W26*100,) -> 107.8501199
F28: =LEFT(Podloga!D34,8) -> 2025. pr | G28: =RDG!E63 -> 389.617 | H28: =IFERROR(G28/G27*100,) -> 115.4732091 | N28: =LEFT(Podloga!D34,8) -> 2025. pr | O28: =RDG!E57 -> 4012.536 | P28: =IFERROR(O28/O27*100,) -> 105.1908912 | V28: =LEFT(Podloga!D34,8) -> 2025. pr | W28: =Bilanca!E68 -> 16934.84466 | X28: =IFERROR(W28/W27*100,) -> 115.4563895
F29: =LEFT(Podloga!E34,8) -> 2025. pl | G29: =RDG!F63 -> 39.65 | H29: =IFERROR(G29/G27*100,) -> 11.75131665 | N29: =LEFT(Podloga!E34,8) -> 2025. pl | O29: =RDG!F57 -> 3992.2 | P29: =IFERROR(O29/O27*100,) -> 104.6577716 | V29: =LEFT(Podloga!E34,8) -> 2025. pl | W29: =Bilanca!F68 -> 27049.161 | X29: =IFERROR(W29/W27*100,) -> 184.4125844
F30: =LEFT(Podloga!F34,8) -> 2026. pl | G30: =RDG!G63 -> 47.912 | H30: =IFERROR(G30/G29*100,) -> 120.8373266 | N30: =LEFT(Podloga!F34,8) -> 2026. pl | O30: =RDG!G57 -> 4802.955 | P30: =IFERROR(O30/O29*100,) -> 120.3084765 | V30: =LEFT(Podloga!F34,8) -> 2026. pl | W30: =Bilanca!G68 -> 24936.632 | X30: =IFERROR(W30/W29*100,) -> 92.19003872
F31: =LEFT(Podloga!G34,8) -> 2027. pl | G31: =RDG!H63 -> 53.165 | H31: =IFERROR(G31/G30*100,) -> 110.9638504 | N31: =LEFT(Podloga!G34,8) -> 2027. pl | O31: =RDG!H57 -> 5003.64 | P31: =IFERROR(O31/O30*100,) -> 104.1783652 | V31: =LEFT(Podloga!G34,8) -> 2027. pl | W31: =Bilanca!H68 -> 26230.235 | X31: =IFERROR(W31/W30*100,) -> 105.187561
F32: =LEFT(Podloga!H34,8) -> 2028. pl | G32: =RDG!I63 -> 74.972 | H32: =IFERROR(G32/G31*100,) -> 141.0175868 | N32: =LEFT(Podloga!H34,8) -> 2028. pl | O32: =RDG!I57 -> 5215.707 | P32: =IFERROR(O32/O31*100,) -> 104.2382546 | V32: =LEFT(Podloga!H34,8) -> 2028. pl | W32: =Bilanca!I68 -> 26459.3 | X32: =IFERROR(W32/W31*100,) -> 100.8732861
B34: Ukupni prihodi (u mil. HRK) | J34: Ukupni rashodi + porez na dobit (u mil. HRK) | R34: Kratkotrajna imovina (u mil.HRK) | Z34: Dugotrajna imovina (u mil. HRK)
D35: Index | L35: Index | T35: Index | AB35: Index
B36: =LEFT(Podloga!B34,7) -> 2023. o | C36: =RDG!C57 -> 2963.93357 | J36: =LEFT(Podloga!B34,7) -> 2023. o | K36: =RDG!C58+RDG!C62 -> 3683.272 | R36: =LEFT(Podloga!B34,7) -> 2023. o | S36: =Bilanca!C40+Bilanca!C67 -> 414.386 | Z36: =LEFT(Podloga!B34,7) -> 2023. o | AA36: =Bilanca!C5 -> 13185.73
B37: =LEFT(Podloga!C34,7) -> 2024. o | C37: =RDG!D57 -> 3814.528 | D37: =IFERROR(C37/C36*100,) -> 128.6981611 | J37: =LEFT(Podloga!C34,7) -> 2024. o | K37: =RDG!D58+RDG!D62 -> 3477.119 | L37: =IFERROR(K37/K36*100,) -> 94.40299277 | R37: =LEFT(Podloga!C34,7) -> 2024. o | S37: =Bilanca!D40+Bilanca!D67 -> 733.869 | T37: =IFERROR(S37/S36*100,) -> 177.0979232 | Z37: =LEFT(Podloga!C34,7) -> 2024. o | AA37: =Bilanca!D5 -> 13933.87241 | AB37: =IFERROR(AA37/AA36*100,) -> 105.6738793
B38: =LEFT(Podloga!D34,8) -> 2025. pr | C38: =RDG!E57 -> 4012.536 | D38: =IFERROR(C38/C37*100,) -> 105.1908912 | J38: =LEFT(Podloga!D34,8) -> 2025. pr | K38: =RDG!E58+RDG!E62 -> 3622.919 | L38: =IFERROR(K38/K37*100,) -> 104.1931266 | R38: =LEFT(Podloga!D34,8) -> 2025. pr | S38: =Bilanca!E40+Bilanca!E67 -> 1153.072 | T38: =IFERROR(S38/S37*100,) -> 157.1223202 | Z38: =LEFT(Podloga!D34,8) -> 2025. pr | AA38: =Bilanca!E5 -> 15781.77266 | AB38: =IFERROR(AA38/AA37*100,) -> 113.2619289
B39: =LEFT(Podloga!E34,8) -> 2025. pl | C39: =RDG!F57 -> 3992.2 | D39: =IFERROR(C39/C37*100,) -> 104.6577716 | J39: =LEFT(Podloga!E34,8) -> 2025. pl | K39: =RDG!F58+RDG!F62 -> 3952.55 | L39: =IFERROR(K39/K37*100,) -> 113.67313 | R39: =LEFT(Podloga!E34,8) -> 2025. pl | S39: =Bilanca!F40+Bilanca!F67 -> 616.817 | T39: =IFERROR(S39/S37*100,) -> 84.05001438 | Z39: =LEFT(Podloga!E34,8) -> 2025. pl | AA39: =Bilanca!F5 -> 26432.344 | AB39: =IFERROR(AA39/AA37*100,) -> 189.6984788
B40: =LEFT(Podloga!F34,8) -> 2026. pl | C40: =RDG!G57 -> 4802.955 | D40: =IFERROR(C40/C39*100,) -> 120.3084765 | J40: =LEFT(Podloga!F34,8) -> 2026. pl | K40: =RDG!G58+RDG!G62 -> 4755.043 | L40: =IFERROR(K40/K39*100,) -> 120.3031714 | R40: =LEFT(Podloga!F34,8) -> 2026. pl | S40: =Bilanca!G40+Bilanca!G67 -> 913.415 | T40: =IFERROR(S40/S39*100,) -> 148.0852506 | Z40: =LEFT(Podloga!F34,8) -> 2026. pl | AA40: =Bilanca!G5 -> 24023.217 | AB40: =IFERROR(AA40/AA39*100,) -> 90.88568536
B41: =LEFT(Podloga!G34,8) -> 2027. pl | C41: =RDG!H57 -> 5003.64 | D41: =IFERROR(C41/C40*100,) -> 104.1783652 | J41: =LEFT(Podloga!G34,8) -> 2027. pl | K41: =RDG!H58+RDG!H62 -> 4950.475 | L41: =IFERROR(K41/K40*100,) -> 104.1099944 | R41: =LEFT(Podloga!G34,8) -> 2027. pl | S41: =Bilanca!H40+Bilanca!H67 -> 1008.585 | T41: =IFERROR(S41/S40*100,) -> 110.4191414 | Z41: =LEFT(Podloga!G34,8) -> 2027. pl | AA41: =Bilanca!H5 -> 25221.65 | AB41: =IFERROR(AA41/AA40*100,) -> 104.9886449
B42: =LEFT(Podloga!H34,8) -> 2028. pl | C42: =RDG!I57 -> 5215.707 | D42: =IFERROR(C42/C41*100,) -> 104.2382546 | J42: =LEFT(Podloga!H34,8) -> 2028. pl | K42: =RDG!I58+RDG!I62 -> 5140.735 | L42: =IFERROR(K42/K41*100,) -> 103.8432676 | R42: =LEFT(Podloga!H34,8) -> 2028. pl | S42: =Bilanca!I40+Bilanca!I67 -> 1054.5 | T42: =IFERROR(S42/S41*100,) -> 104.5524175 | Z42: =LEFT(Podloga!H34,8) -> 2028. pl | AA42: =Bilanca!I5 -> 25404.8 | AB42: =IFERROR(AA42/AA41*100,) -> 100.7261618
A44: Procijenjeni i planirani rezultati za tekuću godinu se uspoređuju s ostvarenim rezultatom poslovanja u prethodnoj godini
B51: =HYPERLINK("#Sadržaj!A1","Povratak na sadržaj") -> Povratak na sadržaj

Sheet _TM_Altman Integral (Basic) (hidden)
A1: Left | B1: Top | C1: Right | D1: Bottom | E1: Ref
A2: 2 | B2: 1 | C2: 10 | D2: 1 | E2: $B$1:$J$1

Sheet Altman Integral (Basic) (hidden)
B1: =Naslovna!B3&" - "&Naslovna!I2 -> Ministarstvo državne imovine - Srednjoročni financijski plan poslovanja
A2: Altman Integral (Basic)
B4: Društvo: | C4: =Podloga!B2 -> Zračna luka Osijek d.o.o.
B5: Tip dokumenta: | C5: =Naslovna!B9 -> Srednjoročni financijski plan poslovanja
B6: Sastavlja se za razdoblje: | C6: =Podloga!B7 -> 2026. - 2028.
B8: Basic model se koristi za proizvodna trgovačka društva koja kotiraju na burzi
C30: =LEFT(Podloga!B34,7) -> 2023. o | D30: =LEFT(Podloga!C34,7) -> 2024. o | E30: =LEFT(Podloga!D34,8) -> 2025. pr | F30: =LEFT(Podloga!E34,8) -> 2025. pl | G30: =LEFT(Podloga!F34,8) -> 2026. pl | H30: =LEFT(Podloga!G34,8) -> 2027. pl | I30: =LEFT(Podloga!H34,8) -> 2028. pl
B31: Z-score | C31: =IFERROR('Dashboard (data)'!$BT$2*'Dashboard (data)'!BM2+'Dashboard (data)'!$BT$3*'Dashboard (data)'!BM3+'Dashboard (data)'!$BT$4*'Dashboard (data)'!BM4+'Dashboard (data)'!$BT$5*'Dashboard (data)'!BM5+'Dashboard (data)'!$BT$6*'Dashboard (data)'!BM6,) -> -0.1072530594 | D31: =IFERROR('Dashboard (data)'!$BT$2*'Dashboard (data)'!BN2+'Dashboard (data)'!$BT$3*'Dashboard (data)'!BN3+'Dashboard (data)'!$BT$4*'Dashboard (data)'!BN4+'Dashboard (data)'!$BT$5*'Dashboard (data)'!BN5+'Dashboard (data)'!$BT$6*'Dashboard (data)'!BN6,) -> 0.1598226976 | E31: =IFERROR('Dashboard (data)'!$BT$2*'Dashboard (data)'!BO2+'Dashboard (data)'!$BT$3*'Dashboard (data)'!BO3+'Dashboard (data)'!$BT$4*'Dashboard (data)'!BO4+'Dashboard (data)'!$BT$5*'Dashboard (data)'!BO5+'Dashboard (data)'!$BT$6*'Dashboard (data)'!BO6,) -> 0.2167363075 | F31: =IFERROR('Dashboard (data)'!$BT$2*'Dashboard (data)'!BP2+'Dashboard (data)'!$BT$3*'Dashboard (data)'!BP3+'Dashboard (data)'!$BT$4*'Dashboard (data)'!BP4+'Dashboard (data)'!$BT$5*'Dashboard (data)'!BP5+'Dashboard (data)'!$BT$6*'Dashboard (data)'!BP6,) -> 0.04903394231 | G31: =IFERROR('Dashboard (data)'!$BT$2*'Dashboard (data)'!BQ2+'Dashboard (data)'!$BT$3*'Dashboard (data)'!BQ3+'Dashboard (data)'!$BT$4*'Dashboard (data)'!BQ4+'Dashboard (data)'!$BT$5*'Dashboard (data)'!BQ5+'Dashboard (data)'!$BT$6*'Dashboard (data)'!BQ6,) -> 0.1449243827 | H31: =IFERROR('Dashboard (data)'!$BT$2*'Dashboard (data)'!BR2+'Dashboard (data)'!$BT$3*'Dashboard (data)'!BR3+'Dashboard (data)'!$BT$4*'Dashboard (data)'!BR4+'Dashboard (data)'!$BT$5*'Dashboard (data)'!BR5+'Dashboard (data)'!$BT$6*'Dashboard (data)'!BR6,) -> 0.151069043 | I31: =IFERROR('Dashboard (data)'!$BT$2*'Dashboard (data)'!BS2+'Dashboard (data)'!$BT$3*'Dashboard (data)'!BS3+'Dashboard (data)'!$BT$4*'Dashboard (data)'!BS4+'Dashboard (data)'!$BT$5*'Dashboard (data)'!BS5+'Dashboard (data)'!$BT$6*'Dashboard (data)'!BS6,) -> 0.164112263
I33: 3
B34: Objašnjenje | C34: Raspon vrijednosti vezan uz rizik bankrota (od -4,00 do +8,00)
C35: Vrlo niski rizik | D35: Zona nesigurnosti | F35: Visoki rizik
B36: Z-score model (Basic) | C36: ≥ 3,00 | D36: 2,99 – 1,81 | F36: ≤ 1,80
C39: =LEFT(Podloga!B34,7) -> 2023. o | D39: =LEFT(Podloga!C34,7) -> 2024. o | E39: =LEFT(Podloga!D34,8) -> 2025. pr | F39: =LEFT(Podloga!E34,8) -> 2025. pl | G39: =LEFT(Podloga!F34,8) -> 2026. pl | H39: =LEFT(Podloga!G34,8) -> 2027. pl | I39: =LEFT(Podloga!H34,8) -> 2028. pl
B40: Kratkotrajna imovina | C40: =Bilanca!C40 -> 309.541 | D40: =Bilanca!D40 -> 707.76 | E40: =Bilanca!E40 -> 1029.736 | F40: =Bilanca!F40 -> 510.067 | G40: =Bilanca!G40 -> 808.57 | H40: =Bilanca!H40 -> 869.785 | I40: =Bilanca!I40 -> 909.5
B41: Ukupna imovina | C41: =Bilanca!C68 -> 13600.116 | D41: =Bilanca!D68 -> 14667.74141 | E41: =Bilanca!E68 -> 16934.84466 | F41: =Bilanca!F68 -> 27049.161 | G41: =Bilanca!G68 -> 24936.632 | H41: =Bilanca!H68 -> 26230.235 | I41: =Bilanca!I68 -> 26459.3
B42: Zadržana dobit | C42: =Bilanca!C89 -> -1945.845 | D42: =Bilanca!D89 -> -2665.183 | E42: =Bilanca!E89 -> -2327.776 | F42: =Bilanca!F89 -> -2646.386 | G42: =Bilanca!G89 -> -1938.159 | H42: =Bilanca!H89 -> -1890.25 | I42: =Bilanca!I89 -> -1837.085
B43: Operativna dobit (EBIT) | C43: =RDG!C59+RDG!C46+RDG!C48 -> -627.22843 | D43: =RDG!D59+RDG!D46+RDG!D48 -> 427.774 | E43: =RDG!E59+RDG!E46+RDG!E48 -> 509.413 | F43: =RDG!F59+RDG!F46+RDG!F48 -> 129.39 | G43: =RDG!G59+RDG!G46+RDG!G48 -> 167.912 | H43: =RDG!H59+RDG!H46+RDG!H48 -> 170.165 | I43: =RDG!I59+RDG!I46+RDG!I48 -> 183.972
B44: Knjigovodstvena vrijednost ukupnih obveza | C44: =Bilanca!C103+Bilanca!C115 -> 3377.505 | D44: =Bilanca!D103+Bilanca!D115 -> 3396.07481 | E44: =Bilanca!E103+Bilanca!E115 -> 3605.262 | F44: =Bilanca!F103+Bilanca!F115 -> 3510.627 | G44: =Bilanca!G103+Bilanca!G115 -> 3557.86 | H44: =Bilanca!H103+Bilanca!H115 -> 4012.714 | I44: =Bilanca!I103+Bilanca!I115 -> 4802.678
B45: Ukupni prihodi | C45: =RDG!C57 -> 2963.93357 | D45: =RDG!D57 -> 3814.528 | E45: =RDG!E57 -> 4012.536 | F45: =RDG!F57 -> 3992.2 | G45: =RDG!G57 -> 4802.955 | H45: =RDG!H57 -> 5003.64 | I45: =RDG!I57 -> 5215.707
B46: Tržišna vrijednost vlasničkog kapitala | C46: =Podloga!B30*Podloga!B31 -> 0 | D46: =Podloga!C30*Podloga!C31 -> 0 | E46: =Podloga!D30*Podloga!D31 -> 0 | F46: =Podloga!D30*Podloga!D31 -> 0 | G46: =Podloga!D30*Podloga!D31 -> 0 | H46: =Podloga!D30*Podloga!D31 -> 0 | I46: =Podloga!D30*Podloga!D31 -> 0
B48: * Plavo osjenčana pozadina označava planirane vrijednosti
B50: Dodatni komentari i pojašnjenja na rezultate
A62: =HYPERLINK("#Sadržaj!A1","Povratak na sadržaj") -> Povratak na sadržaj

Sheet _TM_Altman Integral (A) (hidden)
A1: Left | B1: Top | C1: Right | D1: Bottom | E1: Ref
A2: 2 | B2: 1 | C2: 2 | D2: 1 | E2: $B$1

Sheet Altman Integral (A) (hidden)
B1: =Naslovna!B3&" - "&Naslovna!I2 -> Ministarstvo državne imovine - Srednjoročni financijski plan poslovanja
A2: Altman Integral (A)
B4: Društvo: | C4: =Podloga!B2 -> Zračna luka Osijek d.o.o.
B5: Tip dokumenta: | C5: =Naslovna!B9 -> Srednjoročni financijski plan poslovanja
B6: Sastavlja se za razdoblje: | C6: =Podloga!B7 -> 2026. - 2028.
B9: A model se koristi za trgovačka društva koja ne kotiraju na burzi
C26: =LEFT(Podloga!B34,7) -> 2023. o | D26: =LEFT(Podloga!C34,7) -> 2024. o | E26: =LEFT(Podloga!D34,8) -> 2025. pr | F26: =LEFT(Podloga!E34,8) -> 2025. pl | G26: =LEFT(Podloga!F34,8) -> 2026. pl | H26: =LEFT(Podloga!G34,8) -> 2027. pl | I26: =LEFT(Podloga!H34,8) -> 2028. pl
B27: Z-score | C27: =IFERROR('Dashboard (data)'!$BT$13*'Dashboard (data)'!BM13+'Dashboard (data)'!$BT$14*'Dashboard (data)'!BM14+'Dashboard (data)'!$BT$15*'Dashboard (data)'!BM15+'Dashboard (data)'!$BT$16*'Dashboard (data)'!BM16+'Dashboard (data)'!$BT$17*'Dashboard (data)'!BM17,) -> 0.4018365271 | D27: =IFERROR('Dashboard (data)'!$BT$13*'Dashboard (data)'!BN13+'Dashboard (data)'!$BT$14*'Dashboard (data)'!BN14+'Dashboard (data)'!$BT$15*'Dashboard (data)'!BN15+'Dashboard (data)'!$BT$16*'Dashboard (data)'!BN16+'Dashboard (data)'!$BT$17*'Dashboard (data)'!BN17,) -> 0.6609817704 | E27: =IFERROR('Dashboard (data)'!$BT$13*'Dashboard (data)'!BO13+'Dashboard (data)'!$BT$14*'Dashboard (data)'!BO14+'Dashboard (data)'!$BT$15*'Dashboard (data)'!BO15+'Dashboard (data)'!$BT$16*'Dashboard (data)'!BO16+'Dashboard (data)'!$BT$17*'Dashboard (data)'!BO17,) -> 0.6622746137 | F27: =IFERROR('Dashboard (data)'!$BT$13*'Dashboard (data)'!BP13+'Dashboard (data)'!$BT$14*'Dashboard (data)'!BP14+'Dashboard (data)'!$BT$15*'Dashboard (data)'!BP15+'Dashboard (data)'!$BT$16*'Dashboard (data)'!BP16+'Dashboard (data)'!$BT$17*'Dashboard (data)'!BP17,) -> 0.5089076024 | G27: =IFERROR('Dashboard (data)'!$BT$13*'Dashboard (data)'!BQ13+'Dashboard (data)'!$BT$14*'Dashboard (data)'!BQ14+'Dashboard (data)'!$BT$15*'Dashboard (data)'!BQ15+'Dashboard (data)'!$BT$16*'Dashboard (data)'!BQ16+'Dashboard (data)'!$BT$17*'Dashboard (data)'!BQ17,) -> 0.5811319954 | H27: =IFERROR('Dashboard (data)'!$BT$13*'Dashboard (data)'!BR13+'Dashboard (data)'!$BT$14*'Dashboard (data)'!BR14+'Dashboard (data)'!$BT$15*'Dashboard (data)'!BR15+'Dashboard (data)'!$BT$16*'Dashboard (data)'!BR16+'Dashboard (data)'!$BT$17*'Dashboard (data)'!BR17,) -> 0.5373035562 | I27: =IFERROR('Dashboard (data)'!$BT$13*'Dashboard (data)'!BS13+'Dashboard (data)'!$BT$14*'Dashboard (data)'!BS14+'Dashboard (data)'!$BT$15*'Dashboard (data)'!BS15+'Dashboard (data)'!$BT$16*'Dashboard (data)'!BS16+'Dashboard (data)'!$BT$17*'Dashboard (data)'!BS17,) -> 0.4883240903
I29: 2.9
B30: Objašnjenje | C30: Raspon vrijednosti vezan uz rizik bankrota (od -4,00 do +8,00)
C31: Vrlo niski rizik | D31: Zona nesigurnosti | F31: Visoki rizik
B32: Z-score model (A model) | C32: ≥ 2,90 | D32: 2,89 – 1,24 | F32: ≤ 1,23
C34: =LEFT(Podloga!B34,7) -> 2023. o | D34: =LEFT(Podloga!C34,7) -> 2024. o | E34: =LEFT(Podloga!D34,8) -> 2025. pr | F34: =LEFT(Podloga!E34,8) -> 2025. pl | G34: =LEFT(Podloga!F34,8) -> 2026. pl | H34: =LEFT(Podloga!G34,8) -> 2027. pl | I34: =LEFT(Podloga!H34,8) -> 2028. pl
B35: Kratkotrajna imovina | C35: =Bilanca!C40 -> 309.541 | D35: =Bilanca!D40 -> 707.76 | E35: =Bilanca!E40 -> 1029.736 | F35: =Bilanca!F40 -> 510.067 | G35: =Bilanca!G40 -> 808.57 | H35: =Bilanca!H40 -> 869.785 | I35: =Bilanca!I40 -> 909.5
B36: Ukupna imovina | C36: =Bilanca!C68 -> 13600.116 | D36: =Bilanca!D68 -> 14667.74141 | E36: =Bilanca!E68 -> 16934.84466 | F36: =Bilanca!F68 -> 27049.161 | G36: =Bilanca!G68 -> 24936.632 | H36: =Bilanca!H68 -> 26230.235 | I36: =Bilanca!I68 -> 26459.3
B37: Zadržana dobit | C37: =Bilanca!C89 -> -1945.845 | D37: =Bilanca!D89 -> -2665.183 | E37: =Bilanca!E89 -> -2327.776 | F37: =Bilanca!F89 -> -2646.386 | G37: =Bilanca!G89 -> -1938.159 | H37: =Bilanca!H89 -> -1890.25 | I37: =Bilanca!I89 -> -1837.085
B38: Operativna dobit (EBIT) | C38: =RDG!C59+RDG!C46+RDG!C48 -> -627.22843 | D38: =RDG!D59+RDG!D46+RDG!D48 -> 427.774 | E38: =RDG!E59+RDG!E46+RDG!E48 -> 509.413 | F38: =RDG!F59+RDG!F46+RDG!F48 -> 129.39 | G38: =RDG!G59+RDG!G46+RDG!G48 -> 167.912 | H38: =RDG!H59+RDG!H46+RDG!H48 -> 170.165 | I38: =RDG!I59+RDG!I46+RDG!I48 -> 183.972
B39: Knjigovodstvena vrijednost ukupnih obveza | C39: =Bilanca!C103+Bilanca!C115 -> 3377.505 | D39: =Bilanca!D103+Bilanca!D115 -> 3396.07481 | E39: =Bilanca!E103+Bilanca!E115 -> 3605.262 | F39: =Bilanca!F103+Bilanca!F115 -> 3510.627 | G39: =Bilanca!G103+Bilanca!G115 -> 3557.86 | H39: =Bilanca!H103+Bilanca!H115 -> 4012.714 | I39: =Bilanca!I103+Bilanca!I115 -> 4802.678
B40: Ukupni prihodi | C40: =RDG!C57 -> 2963.93357 | D40: =RDG!D57 -> 3814.528 | E40: =RDG!E57 -> 4012.536 | F40: =RDG!F57 -> 3992.2 | G40: =RDG!G57 -> 4802.955 | H40: =RDG!H57 -> 5003.64 | I40: =RDG!I57 -> 5215.707
B41: Knjigovodstvena vrijednost vlasn. kapitala | C41: =Bilanca!C76+Bilanca!C77 -> 3478 | D41: =Bilanca!D76+Bilanca!D77 -> 3478 | E41: =Bilanca!E76+Bilanca!E77 -> 3478 | F41: =Bilanca!F76+Bilanca!F77 -> 3478 | G41: =Bilanca!G76+Bilanca!G77 -> 3478 | H41: =Bilanca!H76+Bilanca!H77 -> 3478 | I41: =Bilanca!I76+Bilanca!I77 -> 3478
B43: * Plavo osjenčana pozadina označava planirane vrijednosti
B46: Dodatni komentari i pojašnjenja na rezultate
A58: =HYPERLINK("#Sadržaj!A1","Povratak na sadržaj") -> Povratak na sadržaj

Sheet _TM_Altman Integral (B) (hidden)
A1: Left | B1: Top | C1: Right | D1: Bottom | E1: Ref
A2: 2 | B2: 1 | C2: 7 | D2: 1 | E2: $B$1:$G$1

Sheet Altman Integral (B) (hidden)
B1: =Naslovna!B3&" - "&Naslovna!I2 -> Ministarstvo državne imovine - Srednjoročni financijski plan poslovanja
A2: Altman Integral (B)
B4: Društvo: | C4: =Podloga!B2 -> Zračna luka Osijek d.o.o.
B5: Tip dokumenta: | C5: =Naslovna!B9 -> Srednjoročni financijski plan poslovanja
B6: Sastavlja se za razdoblje: | C6: =Podloga!B7 -> 2026. - 2028.
B9: B model se koristi za neproizvodna trgovačka društva koja kotiraju na burzi
C26: =LEFT(Podloga!B34,7) -> 2023. o | D26: =LEFT(Podloga!C34,7) -> 2024. o | E26: =LEFT(Podloga!D34,8) -> 2025. pr | F26: =LEFT(Podloga!E34,8) -> 2025. pl | G26: =LEFT(Podloga!F34,8) -> 2026. pl | H26: =LEFT(Podloga!G34,8) -> 2027. pl | I26: =LEFT(Podloga!H34,8) -> 2028. pl
B27: Z-score | C27: =IFERROR('Dashboard (data)'!$BT$23*'Dashboard (data)'!BM23+'Dashboard (data)'!$BT$24*'Dashboard (data)'!BM24+'Dashboard (data)'!$BT$25*'Dashboard (data)'!BM25+'Dashboard (data)'!$BT$26*'Dashboard (data)'!BM26,) -> -0.6270417686 | D27: =IFERROR('Dashboard (data)'!$BT$23*'Dashboard (data)'!BN23+'Dashboard (data)'!$BT$24*'Dashboard (data)'!BN24+'Dashboard (data)'!$BT$25*'Dashboard (data)'!BN25+'Dashboard (data)'!$BT$26*'Dashboard (data)'!BN26,) -> -0.07983162965 | E27: =IFERROR('Dashboard (data)'!$BT$23*'Dashboard (data)'!BO23+'Dashboard (data)'!$BT$24*'Dashboard (data)'!BO24+'Dashboard (data)'!$BT$25*'Dashboard (data)'!BO25+'Dashboard (data)'!$BT$26*'Dashboard (data)'!BO26,) -> 0.1529257464 | F27: =IFERROR('Dashboard (data)'!$BT$23*'Dashboard (data)'!BP23+'Dashboard (data)'!$BT$24*'Dashboard (data)'!BP24+'Dashboard (data)'!$BT$25*'Dashboard (data)'!BP25+'Dashboard (data)'!$BT$26*'Dashboard (data)'!BP26,) -> -0.1630985168 | G27: =IFERROR('Dashboard (data)'!$BT$23*'Dashboard (data)'!BQ23+'Dashboard (data)'!$BT$24*'Dashboard (data)'!BQ24+'Dashboard (data)'!$BT$25*'Dashboard (data)'!BQ25+'Dashboard (data)'!$BT$26*'Dashboard (data)'!BQ26,) -> 0.004579186957 | H27: =IFERROR('Dashboard (data)'!$BT$23*'Dashboard (data)'!BR23+'Dashboard (data)'!$BT$24*'Dashboard (data)'!BR24+'Dashboard (data)'!$BT$25*'Dashboard (data)'!BR25+'Dashboard (data)'!$BT$26*'Dashboard (data)'!BR26,) -> 0.0261943288 | I27: =IFERROR('Dashboard (data)'!$BT$23*'Dashboard (data)'!BS23+'Dashboard (data)'!$BT$24*'Dashboard (data)'!BS24+'Dashboard (data)'!$BT$25*'Dashboard (data)'!BS25+'Dashboard (data)'!$BT$26*'Dashboard (data)'!BS26,) -> 0.04587100717
I29: 2.6
B30: Objašnjenje | C30: Raspon vrijednosti vezan uz rizik bankrota (od -4,00 do +8,00)
C31: Vrlo niski rizik | D31: Zona nesigurnosti | F31: Visoki rizik
B32: Z-score model (B model) | C32: ≥ 2,60 | D32: 2,59 – 1,11 | F32: ≤ 1,1
C34: =LEFT(Podloga!B34,7) -> 2023. o | D34: =LEFT(Podloga!C34,7) -> 2024. o | E34: =LEFT(Podloga!D34,8) -> 2025. pr | F34: =LEFT(Podloga!E34,8) -> 2025. pl | G34: =LEFT(Podloga!F34,8) -> 2026. pl | H34: =LEFT(Podloga!G34,8) -> 2027. pl | I34: =LEFT(Podloga!H34,8) -> 2028. pl
B35: Kratkotrajna imovina | C35: =Bilanca!C40 -> 309.541 | D35: =Bilanca!D40 -> 707.76 | E35: =Bilanca!E40 -> 1029.736 | F35: =Bilanca!F40 -> 510.067 | G35: =Bilanca!G40 -> 808.57 | H35: =Bilanca!H40 -> 869.785 | I35: =Bilanca!I40 -> 909.5
B36: Ukupna imovina | C36: =Bilanca!C68 -> 13600.116 | D36: =Bilanca!D68 -> 14667.74141 | E36: =Bilanca!E68 -> 16934.84466 | F36: =Bilanca!F68 -> 27049.161 | G36: =Bilanca!G68 -> 24936.632 | H36: =Bilanca!H68 -> 26230.235 | I36: =Bilanca!I68 -> 26459.3
B37: Zadržana dobit | C37: =Bilanca!C89 -> -1945.845 | D37: =Bilanca!D89 -> -2665.183 | E37: =Bilanca!E89 -> -2327.776 | F37: =Bilanca!F89 -> -2646.386 | G37: =Bilanca!G89 -> -1938.159 | H37: =Bilanca!H89 -> -1890.25 | I37: =Bilanca!I89 -> -1837.085
B38: Operativna dobit (EBIT) | C38: =RDG!C59+RDG!C46+RDG!C48 -> -627.22843 | D38: =RDG!D59+RDG!D46+RDG!D48 -> 427.774 | E38: =RDG!E59+RDG!E46+RDG!E48 -> 509.413 | F38: =RDG!F59+RDG!F46+RDG!F48 -> 129.39 | G38: =RDG!G59+RDG!G46+RDG!G48 -> 167.912 | H38: =RDG!H59+RDG!H46+RDG!H48 -> 170.165 | I38: =RDG!I59+RDG!I46+RDG!I48 -> 183.972
B39: Knjigovodstvena vrijednost ukupnih obveza | C39: =Bilanca!C103+Bilanca!C115 -> 3377.505 | D39: =Bilanca!D103+Bilanca!D115 -> 3396.07481 | E39: =Bilanca!E103+Bilanca!E115 -> 3605.262 | F39: =Bilanca!F103+Bilanca!F115 -> 3510.627 | G39: =Bilanca!G103+Bilanca!G115 -> 3557.86 | H39: =Bilanca!H103+Bilanca!H115 -> 4012.714 | I39: =Bilanca!I103+Bilanca!I115 -> 4802.678
B40: Ukupni prihodi | C40: =RDG!C57 -> 2963.93357 | D40: =RDG!D57 -> 3814.528 | E40: =RDG!E57 -> 4012.536 | F40: =RDG!F57 -> 3992.2 | G40: =RDG!G57 -> 4802.955 | H40: =RDG!H57 -> 5003.64 | I40: =RDG!I57 -> 5215.707
B41: Tržišna vrijednost vlasničkog kapitala | C41: =Podloga!B30*Podloga!B31 -> 0 | D41: =Podloga!C30*Podloga!C31 -> 0 | E41: =Podloga!D30*Podloga!D31 -> 0 | F41: =Podloga!D30*Podloga!D31 -> 0 | G41: =Podloga!D30*Podloga!D31 -> 0 | H41: =Podloga!D30*Podloga!D31 -> 0 | I41: =Podloga!D30*Podloga!D31 -> 0
B43: * Plavo osjenčana pozadina označava planirane vrijednosti
B46: Dodatni komentari i pojašnjenja na rezultate
A58: =HYPERLINK("#Sadržaj!A1","Povratak na sadržaj") -> Povratak na sadržaj

Sheet _TM_Dashboard (hidden)
A1: Left | B1: Top | C1: Right | D1: Bottom | E1: Ref
A2: 1 | B2: 33 | C2: 7 | D2: 33 | E2: $A$33:$G$33
A3: 1 | B3: 6 | C3: 16 | D3: 6 | E3: $A$6:$P$6
A4: 2 | B4: 23 | C4: 8 | D4: 27 | E4: $B$23:$H$27
A5: 1 | B5: 28 | C5: 16 | D5: 28 | E5: $A$28:$P$28
A6: 1 | B6: 30 | C6: 16 | D6: 30 | E6: $A$30:$P$30
A7: 1 | B7: 34 | C7: 7 | D7: 34 | E7: $A$34:$G$34

Sheet _TM_Dashboard (data) (hidden)
A1: Left | B1: Top | C1: Right | D1: Bottom | E1: Ref
A2: 53 | B2: 59 | C2: 60 | D2: 65 | E2: $BA$59:$BH$65
A3: 53 | B3: 1 | C3: 60 | D3: 5 | E3: $BA$1:$BH$5
A4: 53 | B4: 6 | C4: 60 | D4: 9 | E4: $BA$6:$BH$9
A5: 53 | B5: 11 | C5: 60 | D5: 13 | E5: $BA$11:$BH$13
A6: 53 | B6: 14 | C6: 60 | D6: 16 | E6: $BA$14:$BH$16
A7: 53 | B7: 17 | C7: 60 | D7: 26 | E7: $BA$17:$BH$26
A8: 53 | B8: 27 | C8: 60 | D8: 30 | E8: $BA$27:$BH$30
A9: 53 | B9: 31 | C9: 60 | D9: 34 | E9: $BA$31:$BH$34
A10: 53 | B10: 35 | C10: 60 | D10: 37 | E10: $BA$35:$BH$37
A11: 53 | B11: 39 | C11: 60 | D11: 41 | E11: $BA$39:$BH$41
A12: 53 | B12: 52 | C12: 59 | D12: 56 | E12: $BA$52:$BG$56
A13: 53 | B13: 68 | C13: 60 | D13: 75 | E13: $BA$68:$BH$75
A14: 53 | B14: 79 | C14: 60 | D14: 94 | E14: $BA$79:$BH$94
A15: 53 | B15: 95 | C15: 55 | D15: 107 | E15: $BA$95:$BC$107
A16: 64 | B16: 1 | C16: 72 | D16: 8 | E16: $BL$1:$BT$8
A17: 64 | B17: 12 | C17: 72 | D17: 19 | E17: $BL$12:$BT$19
A18: 64 | B18: 22 | C18: 72 | D18: 28 | E18: $BL$22:$BT$28
A19: 66 | B19: 120 | C19: 72 | D19: 127 | E19: $BN$120:$BT$127
A20: 86 | B20: 1 | C20: 90 | D20: 35 | E20: $CH$1:$CL$35
A21: 84 | B21: 1 | C21: 84 | D21: 35 | E21: $CF$1:$CF$35
A22: 85 | B22: 1 | C22: 85 | D22: 18 | E22: $CG$1:$CG$18
A23: 85 | B23: 19 | C23: 85 | D23: 35 | E23: $CG$19:$CG$35
A24: 94 | B24: 1 | C24: 98 | D24: 29 | E24: $CP$1:$CT$29
A25: 92 | B25: 1 | C25: 92 | D25: 29 | E25: $CN$1:$CN$29
A26: 93 | B26: 1 | C26: 93 | D26: 15 | E26: $CO$1:$CO$15
A27: 93 | B27: 16 | C27: 93 | D27: 29 | E27: $CO$16:$CO$29
A28: 100 | B28: 17 | C28: 110 | D28: 29 | E28: $CV$17:$DF$29
A29: 101 | B29: 1 | C29: 108 | D29: 8 | E29: $CW$1:$DD$8
A30: 110 | B30: 1 | C30: 116 | D30: 4 | E30: $DF$1:$DL$4
A31: 110 | B31: 7 | C31: 116 | D31: 12 | E31: $DF$7:$DL$12
A32: 118 | B32: 1 | C32: 125 | D32: 4 | E32: $DN$1:$DU$4
A33: 118 | B33: 6 | C33: 125 | D33: 12 | E33: $DN$6:$DU$12
A34: 118 | B34: 14 | C34: 125 | D34: 19 | E34: $DN$14:$DU$19
A35: 128 | B35: 1 | C35: 135 | D35: 3 | E35: $DX$1:$EE$3
A36: 76 | B36: 2 | C36: 76 | D36: 3 | E36: $BX$2:$BX$3

Sheet Dashboard (data) (hidden)
AO1: Računovodstveni standard | AP1: Pravni oblik | AR1: Funkcija revizorski | AS1: FUNKCIJA NO | AT1: PREDSTAVNIK | AU1: SPOL | AV1: Funkcija Uprava | AZ1: Veličina društva | BB1: =Podloga!B34 -> 2023. ostvareno | BC1: =Podloga!C34 -> 2024. ostvareno | BD1: =Podloga!D34 -> 2025. procijenjeno | BE1: =Podloga!E34 -> 2025. planirano | BF1: =Podloga!F34 -> 2026. planirano | BG1: =Podloga!G34 -> 2027. planirano | BH1: =Podloga!H34 -> 2028. planirano | BL1: Altman basic | CF1: Analiza bruto dobiti | CG1: U tisućama kuna | CH1: Bruto dobit prethodne godine | CI1: =RDG!D59 -> 337.409 | CJ1: =CI1 -> 337.409 | CN1: =CH1 -> Bruto dobit prethodne godine | CO1: =CJ1 -> 337.409 | CW1: Analiza EBITDA (plan 2015 / ostvareno 2015) | CX1: U tisućama kuna | CY1: Planirana EBITDA tekuće godine | CZ1: =BE3 -> 501.39 | DA1: =CZ1 -> 501.39 | DE1: =CY1 -> Planirana EBITDA tekuće godine | DF1: =DA1 -> 501.39 | DP1: =Podloga!B34 -> 2023. ostvareno | DQ1: =Podloga!C34 -> 2024. ostvareno | DR1: =Podloga!D34 -> 2025. procijenjeno | DS1: =Podloga!E34 -> 2025. planirano | DT1: =Podloga!F34 -> 2026. planirano | DU1: =Podloga!G34 -> 2027. planirano | DV1: =Podloga!H34 -> 2028. planirano | DY1: =Podloga!B34 -> 2023. ostvareno | DZ1: =Podloga!C34 -> 2024. ostvareno | EA1: =Podloga!D34 -> 2025. procijenjeno | EB1: =Podloga!E34 -> 2025. planirano | EC1: =Podloga!F34 -> 2026. planirano | ED1: =Podloga!G34 -> 2027. planirano | EE1: =Podloga!H34 -> 2028. planirano | EH1: =Podloga!B34 -> 2023. ostvareno | EI1: =Podloga!C34 -> 2024. ostvareno | EJ1: =Podloga!D34 -> 2025. procijenjeno | EK1: =Podloga!E34 -> 2025. planirano | EL1: =Podloga!F34 -> 2026. planirano | EM1: =Podloga!G34 -> 2027. planirano | EN1: =Podloga!H34 -> 2028. planirano | EQ1: =Podloga!B34 -> 2023. ostvareno | ER1: =Podloga!C34 -> 2024. ostvareno | ES1: =Podloga!D34 -> 2025. procijenjeno | ET1: =Podloga!E34 -> 2025. planirano | EU1: =Podloga!F34 -> 2026. planirano | EV1: =Podloga!G34 -> 2027. planirano | EW1: =Podloga!H34 -> 2028. planirano
AO2: HSFI | AP2: d.o.o. | AR2: Predsjednik | AS2: Predsjednik | AT2: RH | AU2: M | AV2: Predsjednik | AX2: DA | AY2: Donacija | AZ2: Mikro | BA2: Ukupni prihod | BB2: =RDG!C57 -> 2963.93357 | BC2: =RDG!D57 -> 3814.528 | BD2: =RDG!E57 -> 4012.536 | BE2: =RDG!F57 -> 3992.2 | BF2: =RDG!G57 -> 4802.955 | BG2: =RDG!H57 -> 5003.64 | BH2: =RDG!I57 -> 5215.707 | BL2: X1 | BM2: =IFERROR('Altman Integral (Basic)'!C40/'Altman Integral (Basic)'!C41,) -> 0.02276017352 | BN2: =IFERROR('Altman Integral (Basic)'!D40/'Altman Integral (Basic)'!D41,) -> 0.04825282777 | BO2: =IFERROR('Altman Integral (Basic)'!E40/'Altman Integral (Basic)'!E41,) -> 0.06080575409 | BP2: =IFERROR('Altman Integral (Basic)'!F40/'Altman Integral (Basic)'!F41,) -> 0.0188570359 | BQ2: =IFERROR('Altman Integral (Basic)'!G40/'Altman Integral (Basic)'!G41,) -> 0.03242498827 | BR2: =IFERROR('Altman Integral (Basic)'!H40/'Altman Integral (Basic)'!H41,) -> 0.03315963429 | BS2: =IFERROR('Altman Integral (Basic)'!I40/'Altman Integral (Basic)'!I41,) -> 0.0343735473 | BT2: 1.2 | BX2: Direktna | CH2: Poslovni prihodi Δ | CI2: =RDG!E5-RDG!D5 -> 198.036 | CK2: =IF(SUM(CI1)>=0,(IF(CI2>=0,SUM(CI1),(IF(ABS(SUM(CI1))>ABS(CI2),SUM(CI1:CI2),0)))),(IF(CI2<0,SUM(CI1),(IF(ABS(SUM(CI1))>ABS(CI2),SUM(CI1:CI2),0))))) -> 337.409 | CL2: =IF(SUM(CI1)>=0,(IF(CI2<0,(IF(ABS(CI2)>ABS(SUM(CI1)),SUM(CI1),ABS(CI2))),CI2)),(IF(CI2>0,(IF(ABS(CI2)>ABS(SUM(CI1)),SUM(CI1:CI2),0)),0))) -> 198.036 | CM2: =IF(SUM(CI1)<0,(IF(CI2<0,CI2,(IF(ABS(CI2)>ABS(SUM(CI1)),SUM(CI1),0-CI2)))),(IF(CI2<0,(IF(ABS(CI2)>ABS(SUM(CI1)),SUM(CI1:CI2),0)),0))) -> 0 | CN2: =CH2 -> Poslovni prihodi Δ | CO2: =CJ2 -> 0 | CP2: =CK2 -> 337.409 | CQ2: =IF(CI2>=0,CL2,0) -> 198.036 | CR2: =IF(CI2<0,CL2,0) -> 0 | CS2: =IF(CI2>=0,CM2,0) -> 0 | CT2: =IF(CI2<0,CM2,0) -> 0 | CU2: 0 | CY2: Prihodi od prodaje Δ | CZ2: =(RDG!E6+RDG!E7)-(RDG!F6+RDG!F7) -> -142.203 | DB2: =IF(SUM(CZ1)>=0,(IF(CZ2>=0,SUM(CZ1),(IF(ABS(SUM(CZ1))>ABS(CZ2),SUM(CZ1:CZ2),0)))),(IF(CZ2<0,SUM(CZ1),(IF(ABS(SUM(CZ1))>ABS(CZ2),SUM(CZ1:CZ2),0))))) -> 359.187 | DC2: =IF(SUM(CZ1)>=0,(IF(CZ2<0,(IF(ABS(CZ2)>ABS(SUM(CZ1)),SUM(CZ1),ABS(CZ2))),CZ2)),(IF(CZ2>0,(IF(ABS(CZ2)>ABS(SUM(CZ1)),SUM(CZ1:CZ2),0)),0))) -> 142.203 | DD2: =IF(SUM(CZ1)<0,(IF(CZ2<0,CZ2,(IF(ABS(CZ2)>ABS(SUM(CZ1)),SUM(CZ1),0-CZ2)))),(IF(CZ2<0,(IF(ABS(CZ2)>ABS(SUM(CZ1)),SUM(CZ1:CZ2),0)),0))) -> 0 | DE2: =CY2 -> Prihodi od prodaje Δ | DF2: =DA2 -> 0 | DG2: =DB2 -> 359.187 | DH2: =IF(CZ2>=0,DC2,0) -> 0 | DI2: =IF(CZ2<0,DC2,0) -> 142.203 | DJ2: =IF(CZ2>=0,DD2,0) -> 0 | DK2: =IF(CZ2<0,DD2,0) -> 0 | DL2: 0 | DO2: Kapital i rezerve | DP2: =Bilanca!C75 -> 812.816 | DQ2: =Bilanca!D75 -> 1150.224 | DR2: =Bilanca!E75 -> 1539.841 | DS2: =Bilanca!F75 -> 871.261 | DT2: =Bilanca!G75 -> 1587.75 | DU2: =Bilanca!H75 -> 1640.915 | DV2: =Bilanca!I75 -> 1715.887 | DX2: Priljev od poslovnih aktivnosti | DY2: =IFERROR(IF(Podloga!$B$17="Direktna",'NT dir.'!C7+'NT dir.'!C8+'NT dir.'!C9+'NT dir.'!C10+'NT dir.'!#REF!,'NT indir.'!C17),) -> -244.672 | DZ2: =IFERROR(IF(Podloga!$B$17="Direktna",'NT dir.'!D7+'NT dir.'!D8+'NT dir.'!D9+'NT dir.'!D10+'NT dir.'!#REF!,'NT indir.'!C17),) -> -244.672 | EA2: =IFERROR(IF(Podloga!$B$17="Direktna",'NT dir.'!E7+'NT dir.'!E8+'NT dir.'!E9+'NT dir.'!E10+'NT dir.'!#REF!,'NT indir.'!C17),) -> -244.672 | EB2: =IFERROR(IF(Podloga!$B$17="Direktna",'NT dir.'!F7+'NT dir.'!F8+'NT dir.'!F9+'NT dir.'!F10+'NT dir.'!#REF!,'NT indir.'!C17),) -> -244.672 | EC2: =IFERROR(IF(Podloga!$B$17="Direktna",'NT dir.'!G7+'NT dir.'!G8+'NT dir.'!G9+'NT dir.'!G10+'NT dir.'!#REF!,'NT indir.'!C17),) -> -244.672 | ED2: =IFERROR(IF(Podloga!$B$17="Direktna",'NT dir.'!H7+'NT dir.'!H8+'NT dir.'!H9+'NT dir.'!H10+'NT dir.'!#REF!,'NT indir.'!C17),) -> -244.672 | EE2: =IFERROR(IF(Podloga!$B$17="Direktna",'NT dir.'!I7+'NT dir.'!I8+'NT dir.'!I9+'NT dir.'!I10+'NT dir.'!#REF!,'NT indir.'!C17),) -> -244.672 | EG2: Ukupni prihodi | EH2: =RDG!C57 -> 2963.93357 | EI2: =RDG!D57 -> 3814.528 | EJ2: =RDG!E57 -> 4012.536 | EK2: =RDG!F57 -> 3992.2 | EL2: =RDG!G57 -> 4802.955 | EM2: =RDG!H57 -> 5003.64 | EN2: =RDG!I57 -> 5215.707 | EP2: Dug / Pasiva | EQ2: =BB10/BB91 -> 0.9386094433 | ER2: 0.9201053676 | ES2: 0.9077941742 | ET2: 0.9677897206 | EU2: 0.9363285981 | EV2: 0.937441861 | EW2: 0.9351499473
AO3: MSFI | AP3: d.d. | AR3: Član | AS3: Član | AT3: CERP | AU3: Ž | AV3: Član | AX3: NE | AY3: Sponzorstvo | AZ3: Mali | BA3: EBITDA | BB3: =RDG!C59+RDG!C46+RDG!C48+RDG!C21 -> -260.30743 | BC3: =RDG!D59+RDG!D46+RDG!D48+RDG!D21 -> 799.905 | BD3: =RDG!E59+RDG!E46+RDG!E48+RDG!E21 -> 887.044 | BE3: =RDG!F59+RDG!F46+RDG!F48+RDG!F21 -> 501.39 | BF3: =RDG!G59+RDG!G46+RDG!G48+RDG!G21 -> 587.912 | BG3: =RDG!H59+RDG!H46+RDG!H48+RDG!H21 -> 595.165 | BH3: =RDG!I59+RDG!I46+RDG!I48+RDG!I21 -> 613.972 | BL3: X2 | BM3: =IFERROR('Altman Integral (Basic)'!C42/'Altman Integral (Basic)'!C41,) -> -0.1430756179 | BN3: =IFERROR('Altman Integral (Basic)'!D42/'Altman Integral (Basic)'!D41,) -> -0.1817037079 | BO3: =IFERROR('Altman Integral (Basic)'!E42/'Altman Integral (Basic)'!E41,) -> -0.1374548186 | BP3: =IFERROR('Altman Integral (Basic)'!F42/'Altman Integral (Basic)'!F41,) -> -0.09783615839 | BQ3: =IFERROR('Altman Integral (Basic)'!G42/'Altman Integral (Basic)'!G41,) -> -0.07772336697 | BR3: =IFERROR('Altman Integral (Basic)'!H42/'Altman Integral (Basic)'!H41,) -> -0.07206378441 | BS3: =IFERROR('Altman Integral (Basic)'!I42/'Altman Integral (Basic)'!I41,) -> -0.06943059718 | BT3: 1.4 | BX3: Indirektna | CH3: Materijalni troškovi Δ | CI3: =RDG!D13-RDG!E13 -> 121.926 | CK3: =IF(SUM(CI1:CI2)>=0,(IF(CI3>=0,SUM(CI1:CI2),(IF(ABS(SUM(CI1:CI2))>ABS(CI3),SUM(CI1:CI3),0)))),(IF(CI3<0,SUM(CI1:CI2),(IF(ABS(SUM(CI1:CI2))>ABS(CI3),SUM(CI1:CI3),0))))) -> 535.445 | CL3: =IF(SUM(CI1:CI2)>=0,(IF(CI3<0,(IF(ABS(CI3)>ABS(SUM(CI1:CI2)),SUM(CI1:CI2),ABS(CI3))),CI3)),(IF(CI3>0,(IF(ABS(CI3)>ABS(SUM(CI1:CI2)),SUM(CI1:CI3),0)),0))) -> 121.926 | CM3: =IF(SUM(CI1:CI2)<0,(IF(CI3<0,CI3,(IF(ABS(CI3)>ABS(SUM(CI1:CI2)),SUM(CI1:CI2),0-CI3)))),(IF(CI3<0,(IF(ABS(CI3)>ABS(SUM(CI1:CI2)),SUM(CI1:CI3),0)),0))) -> 0 | CN3: Materijalni troškovi Δ | CO3: 0 | CP3: 535.445 | CQ3: 121.926 | CR3: 0 | CS3: 0 | CT3: 0 | CU3: 0 | CY3: Ostali prihodi Δ | CZ3: =(RDG!E57-RDG!E6-RDG!E7)-(RDG!F57-RDG!F6-RDG!F7) -> 162.539 | DB3: =IF(SUM(CZ1:CZ2)>=0,(IF(CZ3>=0,SUM(CZ1:CZ2),(IF(ABS(SUM(CZ1:CZ2))>ABS(CZ3),SUM(CZ1:CZ3),0)))),(IF(CZ3<0,SUM(CZ1:CZ2),(IF(ABS(SUM(CZ1:CZ2))>ABS(CZ3),SUM(CZ1:CZ3),0))))) -> 359.187 | DC3: =IF(SUM(CZ1:CZ2)>=0,(IF(CZ3<0,(IF(ABS(CZ3)>ABS(SUM(CZ1:CZ2)),SUM(CZ1:CZ2),ABS(CZ3))),CZ3)),(IF(CZ3>0,(IF(ABS(CZ3)>ABS(SUM(CZ1:CZ2)),SUM(CZ1:CZ3),0)),0))) -> 162.539 | DD3: =IF(SUM(CZ1:CZ2)<0,(IF(CZ3<0,CZ3,(IF(ABS(CZ3)>ABS(SUM(CZ1:CZ2)),SUM(CZ1:CZ2),0-CZ3)))),(IF(CZ3<0,(IF(ABS(CZ3)>ABS(SUM(CZ1:CZ2)),SUM(CZ1:CZ3),0)),0))) -> 0 | DE3: Ostali prihodi Δ | DF3: 0 | DG3: 359.187 | DH3: 162.539 | DI3: 0 | DJ3: 0 | DK3: 0 | DL3: 0 | DO3: Rezerviranja | DP3: =Bilanca!C96 -> 22.103 | DQ3: =Bilanca!D96 -> 21.65 | DR3: =Bilanca!E96 -> 21.65 | DS3: =Bilanca!F96 -> 0 | DT3: =Bilanca!G96 -> 0 | DU3: =Bilanca!H96 -> 0 | DV3: =Bilanca!I96 -> 0 | DX3: Poslovni prihodi | DY3: =IFERROR(RDG!C5,) -> 2963.898 | DZ3: =IFERROR(RDG!D5,) -> 3814.391 | EA3: =IFERROR(RDG!E5,) -> 4012.427 | EB3: =IFERROR(RDG!F5,) -> 3991.6 | EC3: =IFERROR(RDG!G5,) -> 4802.805 | ED3: =IFERROR(RDG!H5,) -> 5003.49 | EE3: =IFERROR(RDG!I5,) -> 5215.547 | EG3: Ukupna imovina | EH3: =Bilanca!C68 -> 13600.116 | EI3: =Bilanca!D68 -> 14667.74141 | EJ3: =Bilanca!E68 -> 16934.84466 | EK3: =Bilanca!F68 -> 27049.161 | EL3: =Bilanca!G68 -> 24936.632 | EM3: =Bilanca!H68 -> 26230.235 | EN3: =Bilanca!I68 -> 26459.3 | EP3: Dug / EBITDA | EQ3: =BB10/BB3 -> -49.03894599 | ER3: 16.87184079 | ES3: 17.33098922 | ET3: 52.21065239 | EU3: 39.71491822 | EV3: 41.3151395 | EW3: 40.30055605
AP4: Ustanova | AR4: Zamjenik predsj. | AS4: Zamjenik predsj. | AT4: MIDIM (RH) funkcija | AV4: Zamjenik predsj. | AZ4: Srednji | BA4: EBITDA marža | BB4: =IFERROR((RDG!C59+RDG!C46+RDG!C48+RDG!C21)/RDG!C57,) -> -0.08782498793 | BC4: =IFERROR((RDG!D59+RDG!D46+RDG!D48+RDG!D21)/RDG!D57,) -> 0.2096996011 | BD4: =IFERROR((RDG!E59+RDG!E46+RDG!E48+RDG!E21)/RDG!E57,) -> 0.2210681723 | BE4: =IFERROR((RDG!F59+RDG!F46+RDG!F48+RDG!F21)/RDG!F57,) -> 0.1255924052 | BF4: =IFERROR((RDG!G59+RDG!G46+RDG!G48+RDG!G21)/RDG!G57,) -> 0.1224063103 | BG4: =IFERROR((RDG!H59+RDG!H46+RDG!H48+RDG!H21)/RDG!H57,) -> 0.118946407 | BH4: =IFERROR((RDG!I59+RDG!I46+RDG!I48+RDG!I21)/RDG!I57,) -> 0.1177159683 | BL4: X3 | BM4: =IFERROR('Altman Integral (Basic)'!C43/'Altman Integral (Basic)'!C41,) -> -0.04611934413 | BN4: =IFERROR('Altman Integral (Basic)'!D43/'Altman Integral (Basic)'!D41,) -> 0.02916427199 | BO4: =IFERROR('Altman Integral (Basic)'!E43/'Altman Integral (Basic)'!E41,) -> 0.03008076013 | BP4: =IFERROR('Altman Integral (Basic)'!F43/'Altman Integral (Basic)'!F41,) -> 0.004783512509 | BQ4: =IFERROR('Altman Integral (Basic)'!G43/'Altman Integral (Basic)'!G41,) -> 0.006733547658 | BR4: =IFERROR('Altman Integral (Basic)'!H43/'Altman Integral (Basic)'!H41,) -> 0.006487360864 | BS4: =IFERROR('Altman Integral (Basic)'!I43/'Altman Integral (Basic)'!I41,) -> 0.006953018409 | BT4: 3.3 | CH4: Troškovi osoblja Δ | CI4: =RDG!D17-RDG!E17 -> -283.848 | CK4: =IF(SUM(CI1:CI3)>=0,(IF(CI4>=0,SUM(CI1:CI3),(IF(ABS(SUM(CI1:CI3))>ABS(CI4),SUM(CI1:CI4),0)))),(IF(CI4<0,SUM(CI1:CI3),(IF(ABS(SUM(CI1:CI3))>ABS(CI4),SUM(CI1:CI4),0))))) -> 373.523 | CL4: =IF(SUM(CI1:CI3)>=0,(IF(CI4<0,(IF(ABS(CI4)>ABS(SUM(CI1:CI3)),SUM(CI1:CI3),ABS(CI4))),CI4)),(IF(CI4>0,(IF(ABS(CI4)>ABS(SUM(CI1:CI3)),SUM(CI1:CI4),0)),0))) -> 283.848 | CM4: =IF(SUM(CI1:CI3)<0,(IF(CI4<0,CI4,(IF(ABS(CI4)>ABS(SUM(CI1:CI3)),SUM(CI1:CI3),0-CI4)))),(IF(CI4<0,(IF(ABS(CI4)>ABS(SUM(CI1:CI3)),SUM(CI1:CI4),0)),0))) -> 0 | CN4: Troškovi osoblja Δ | CO4: 0 | CP4: 373.523 | CQ4: 0 | CR4: 283.848 | CS4: 0 | CT4: 0 | CU4: 0 | CY4: Promjena vrijednosti zaliha Δ | CZ4: =RDG!F12-RDG!E12 -> 0 | DB4: =IF(SUM(CZ1:CZ3)>=0,(IF(CZ4>=0,SUM(CZ1:CZ3),(IF(ABS(SUM(CZ1:CZ3))>ABS(CZ4),SUM(CZ1:CZ4),0)))),(IF(CZ4<0,SUM(CZ1:CZ3),(IF(ABS(SUM(CZ1:CZ3))>ABS(CZ4),SUM(CZ1:CZ4),0))))) -> 521.726 | DC4: =IF(SUM(CZ1:CZ3)>=0,(IF(CZ4<0,(IF(ABS(CZ4)>ABS(SUM(CZ1:CZ3)),SUM(CZ1:CZ3),ABS(CZ4))),CZ4)),(IF(CZ4>0,(IF(ABS(CZ4)>ABS(SUM(CZ2:CZ3)),SUM(CZ1:CZ4),0)),0))) -> 0 | DD4: =IF(SUM(CZ1:CZ3)<0,(IF(CZ4<0,CZ4,(IF(ABS(CZ4)>ABS(SUM(CZ1:CZ3)),SUM(CZ1:CZ3),0-CZ4)))),(IF(CZ4<0,(IF(ABS(CZ4)>ABS(SUM(CZ1:CZ3)),SUM(CZ1:CZ4),0)),0))) -> 0 | DE4: Promjena vrijednosti zaliha Δ | DF4: 0 | DG4: 521.726 | DH4: 0 | DI4: 0 | DJ4: 0 | DK4: 0 | DL4: 0 | DO4: Dugoročne obveze | DP4: =Bilanca!C103 -> 2959.654 | DQ4: =Bilanca!D103 -> 2722.38581 | DR4: =Bilanca!E103 -> 2931.57 | DS4: =Bilanca!F103 -> 2743.27 | DT4: =Bilanca!G103 -> 2978.675 | DU4: =Bilanca!H103 -> 3174.341 | DV4: =Bilanca!I103 -> 3819.475 | DX4: Omjer primitaka od poslovnih aktivnosti i poslovnih prihoda | DY4: =DY2/DY3 -> -0.08255074905 | DZ4: =DZ2/DZ3 -> -0.06414444665 | EA4: =EA2/EA3 -> -0.06097855487 | EB4: -0.06129672312 | EC4: -0.05094356319 | ED4: -0.04890026761 | EE4: -0.04691204969 | EG4: Koeficijent obrtaja imovine | EH4: =EH2/EH3 -> 0.2179344331 | EI4: =EI2/EI3 -> 0.2600623977 | EJ4: 0.2369396402 | EK4: 0.1475905297 | EL4: 0.1926064033 | EM4: 0.1907584892 | EN4: 0.1971218815
AP5: Druga osoba za koje je upis propisan zakonom | AS5: Predstavnik radnika | AT5: RH - funkcija | AV5: Direktor | AZ5: Veliki | BL5: X4 | BM5: =IFERROR('Altman Integral (Basic)'!C46/'Altman Integral (Basic)'!C44,) -> 0 | BN5: =IFERROR('Altman Integral (Basic)'!D46/'Altman Integral (Basic)'!D44,) -> 0 | BO5: =IFERROR('Altman Integral (Basic)'!E46/'Altman Integral (Basic)'!E44,) -> 0 | BP5: =IFERROR('Altman Integral (Basic)'!F46/'Altman Integral (Basic)'!F44,) -> 0 | BQ5: =IFERROR('Altman Integral (Basic)'!G46/'Altman Integral (Basic)'!G44,) -> 0 | BR5: =IFERROR('Altman Integral (Basic)'!H46/'Altman Integral (Basic)'!H44,) -> 0 | BS5: =IFERROR('Altman Integral (Basic)'!I46/'Altman Integral (Basic)'!I44,) -> 0 | BT5: 0.6 | CH5: Ostali poslovni rashodi Δ | CI5: =(RDG!D11-RDG!D13-RDG!D17)-(RDG!E11-RDG!E13-RDG!E17) -> 45.423 | CK5: =IF(SUM(CI1:CI4)>=0,(IF(CI5>=0,SUM(CI1:CI4),(IF(ABS(SUM(CI1:CI4))>ABS(CI5),SUM(CI1:CI5),0)))),(IF(CI5<0,SUM(CI1:CI4),(IF(ABS(SUM(CI1:CI4))>ABS(CI5),SUM(CI1:CI5),0))))) -> 373.523 | CL5: =IF(SUM(CI1:CI4)>=0,(IF(CI5<0,(IF(ABS(CI5)>ABS(SUM(CI1:CI4)),SUM(CI1:CI4),ABS(CI5))),CI5)),(IF(CI5>0,(IF(ABS(CI5)>ABS(SUM(CI1:CI4)),SUM(CI1:CI5),0)),0))) -> 45.423 | CM5: =IF(SUM(CI1:CI4)<0,(IF(CI5<0,CI5,(IF(ABS(CI5)>ABS(SUM(CI1:CI4)),SUM(CI1:CI4),0-CI5)))),(IF(CI5<0,(IF(ABS(CI5)>ABS(SUM(CI1:CI4)),SUM(CI1:CI5),0)),0))) -> 0 | CN5: Ostali poslovni rashodi Δ | CO5: 0 | CP5: 373.523 | CQ5: 45.423 | CR5: 0 | CS5: 0 | CT5: 0 | CU5: 0 | CY5: Materijalni troškovi Δ | CZ5: =RDG!F13-RDG!E13 -> 307.343 | DB5: =IF(SUM(CZ1:CZ4)>=0,(IF(CZ5>=0,SUM(CZ1:CZ4),(IF(ABS(SUM(CZ1:CZ4))>ABS(CZ5),SUM(CZ1:CZ5),0)))),(IF(CZ5<0,SUM(CZ1:CZ4),(IF(ABS(SUM(CZ1:CZ4))>ABS(CZ5),SUM(CZ1:CZ5),0))))) -> 521.726 | DC5: =IF(SUM(CZ1:CZ4)>=0,(IF(CZ5<0,(IF(ABS(CZ5)>ABS(SUM(CZ1:CZ4)),SUM(CZ1:CZ4),ABS(CZ5))),CZ5)),(IF(CZ5>0,(IF(ABS(CZ5)>ABS(SUM(CZ1:CZ4)),SUM(CZ1:CZ5),0)),0))) -> 307.343 | DD5: =IF(SUM(CZ1:CZ4)<0,(IF(CZ5<0,CZ5,(IF(ABS(CZ5)>ABS(SUM(CZ1:CZ4)),SUM(CZ1:CZ4),0-CZ5)))),(IF(CZ5<0,(IF(ABS(CZ5)>ABS(SUM(CZ1:CZ4)),SUM(CZ1:CZ5),0)),0))) -> 0 | DE5: Materijalni troškovi Δ | DF5: 0 | DG5: 521.726 | DH5: 307.343 | DI5: 0 | DJ5: 0 | DK5: 0 | DL5: 0 | DO5: Kratkoročne obveze | DP5: =Bilanca!C115 -> 417.851 | DQ5: =Bilanca!D115 -> 673.689 | DR5: =Bilanca!E115 -> 673.692 | DS5: =Bilanca!F115 -> 767.357 | DT5: =Bilanca!G115 -> 579.185 | DU5: =Bilanca!H115 -> 838.373 | DV5: =Bilanca!I115 -> 983.203
AT6: predst. radnika | BB6: =Podloga!B34 -> 2023. ostvareno | BC6: =Podloga!C34 -> 2024. ostvareno | BD6: =Podloga!D34 -> 2025. procijenjeno | BE6: =Podloga!E34 -> 2025. planirano | BF6: =Podloga!F34 -> 2026. planirano | BG6: =Podloga!G34 -> 2027. planirano | BH6: =Podloga!H34 -> 2028. planirano | BL6: X5 | BM6: =IFERROR('Altman Integral (Basic)'!C45/'Altman Integral (Basic)'!C41,) -> 0.2179344331 | BN6: =IFERROR('Altman Integral (Basic)'!D45/'Altman Integral (Basic)'!D41,) -> 0.2600623977 | BO6: =IFERROR('Altman Integral (Basic)'!E45/'Altman Integral (Basic)'!E41,) -> 0.2369396402 | BP6: =IFERROR('Altman Integral (Basic)'!F45/'Altman Integral (Basic)'!F41,) -> 0.1475905297 | BQ6: =IFERROR('Altman Integral (Basic)'!G45/'Altman Integral (Basic)'!G41,) -> 0.1926064033 | BR6: =IFERROR('Altman Integral (Basic)'!H45/'Altman Integral (Basic)'!H41,) -> 0.1907584892 | BS6: =IFERROR('Altman Integral (Basic)'!I45/'Altman Integral (Basic)'!I41,) -> 0.1971218815 | BT6: 1 | CH6: Financijski i investicijski prihodi Δ | CI6: =(RDG!E34+RDG!E53+RDG!E54)-(RDG!D34+RDG!D53+RDG!D54) -> -0.028 | CK6: =IF(SUM(CI1:CI5)>=0,(IF(CI6>=0,SUM(CI1:CI5),(IF(ABS(SUM(CI1:CI5))>ABS(CI6),SUM(CI1:CI6),0)))),(IF(CI6<0,SUM(CI1:CI5),(IF(ABS(SUM(CI1:CI5))>ABS(CI6),SUM(CI1:CI6),0))))) -> 418.918 | CL6: =IF(SUM(CI1:CI5)>=0,(IF(CI6<0,(IF(ABS(CI6)>ABS(SUM(CI1:CI5)),SUM(CI1:CI5),ABS(CI6))),CI6)),(IF(CI6>0,(IF(ABS(CI6)>ABS(SUM(CI1:CI5)),SUM(CI1:CI6),0)),0))) -> 0.028 | CM6: =IF(SUM(CI1:CI5)<0,(IF(CI6<0,CI6,(IF(ABS(CI6)>ABS(SUM(CI1:CI5)),SUM(CI1:CI5),0-CI6)))),(IF(CI6<0,(IF(ABS(CI6)>ABS(SUM(CI1:CI5)),SUM(CI1:CI6),0)),0))) -> 0 | CN6: Financijski i investicijski prihodi Δ | CO6: 0 | CP6: 418.918 | CQ6: 0 | CR6: 0.028 | CS6: 0 | CT6: 0 | CU6: 0 | CY6: Troškovi osoblja Δ | CZ6: =RDG!F17-RDG!E17 -> 108.788 | DB6: =IF(SUM(CZ1:CZ5)>=0,(IF(CZ6>=0,SUM(CZ1:CZ5),(IF(ABS(SUM(CZ1:CZ5))>ABS(CZ6),SUM(CZ1:CZ6),0)))),(IF(CZ6<0,SUM(CZ1:CZ5),(IF(ABS(SUM(CZ1:CZ5))>ABS(CZ6),SUM(CZ1:CZ6),0))))) -> 829.069 | DC6: =IF(SUM(CZ1:CZ5)>=0,(IF(CZ6<0,(IF(ABS(CZ6)>ABS(SUM(CZ1:CZ5)),SUM(CZ1:CZ5),ABS(CZ6))),CZ6)),(IF(CZ6>0,(IF(ABS(CZ6)>ABS(SUM(CZ1:CZ5)),SUM(CZ1:CZ6),0)),0))) -> 108.788 | DD6: =IF(SUM(CZ1:CZ5)<0,(IF(CZ6<0,CZ6,(IF(ABS(CZ6)>ABS(SUM(CZ1:CZ5)),SUM(CZ1:CZ5),0-CZ6)))),(IF(CZ6<0,(IF(ABS(CZ6)>ABS(SUM(CZ1:CZ5)),SUM(CZ1:CZ6),0)),0))) -> 0 | DE6: Troškovi osoblja Δ | DF6: 0 | DG6: 829.069 | DH6: 108.788 | DI6: 0 | DJ6: 0 | DK6: 0 | DL6: 0 | DO6: Ostalo | DP6: =Bilanca!C130 -> 9387.697 | DQ6: =Bilanca!D130 -> 10099.795 | DR6: =Bilanca!E130 -> 11768.088 | DS6: =Bilanca!F130 -> 22667.272 | DT6: =Bilanca!G130 -> 19791.017 | DU6: =Bilanca!H130 -> 20576.611 | DV6: =Bilanca!I130 -> 19940.735 | EH6: =Podloga!B34 -> 2023. ostvareno | EI6: =Podloga!C34 -> 2024. ostvareno | EJ6: =Podloga!D34 -> 2025. procijenjeno | EK6: =Podloga!E34 -> 2025. planirano | EL6: =Podloga!F34 -> 2026. planirano | EM6: =Podloga!G34 -> 2027. planirano | EN6: =Podloga!H34 -> 2028. planirano
AT7: predst. poslodavaca (bez prava glasa) | BA7: Dobit razdoblja | BB7: =RDG!C63 -> -719.33843 | BC7: =RDG!D63 -> 337.409 | BD7: =RDG!E63 -> 389.617 | BE7: =RDG!F63 -> 39.65 | BF7: =RDG!G63 -> 47.912 | BG7: =RDG!H63 -> 53.165 | BH7: =RDG!I63 -> 74.972 | BL7: Gornja granica | BM7: 3 | BN7: 3 | BO7: 3 | BP7: 3 | BQ7: 3 | BR7: 3 | BS7: 3 | CH7: Financijski i investicijski rashodi Δ | CI7: =(RDG!D45+RDG!D55+RDG!D56)-(RDG!E45+RDG!E55+RDG!E56) -> -29.301 | CK7: =IF(SUM(CI1:CI6)>=0,(IF(CI7>=0,SUM(CI1:CI6),(IF(ABS(SUM(CI1:CI6))>ABS(CI7),SUM(CI1:CI7),0)))),(IF(CI7<0,SUM(CI1:CI6),(IF(ABS(SUM(CI1:CI6))>ABS(CI7),SUM(CI1:CI7),0))))) -> 389.617 | CL7: =IF(SUM(CI1:CI6)>=0,(IF(CI7<0,(IF(ABS(CI7)>ABS(SUM(CI1:CI6)),SUM(CI1:CI6),ABS(CI7))),CI7)),(IF(CI7>0,(IF(ABS(CI7)>ABS(SUM(CI1:CI6)),SUM(CI1:CI7),0)),0))) -> 29.301 | CM7: =IF(SUM(CI1:CI6)<0,(IF(CI7<0,CI7,(IF(ABS(CI7)>ABS(SUM(CI1:CI6)),SUM(CI1:CI6),0-CI7)))),(IF(CI7<0,(IF(ABS(CI7)>ABS(SUM(CI1:CI6)),SUM(CI1:CI7),0)),0))) -> 0 | CN7: Financijski i investicijski rashodi Δ | CO7: 0 | CP7: 389.617 | CQ7: 0 | CR7: 29.301 | CS7: 0 | CT7: 0 | CU7: 0 | CY7: Vrijednosna usklađenja Δ | CZ7: =RDG!F23-RDG!E23 -> 0 | DB7: =IF(SUM(CZ1:CZ6)>=0,(IF(CZ7>=0,SUM(CZ1:CZ6),(IF(ABS(SUM(CZ1:CZ6))>ABS(CZ7),SUM(CZ1:CZ7),0)))),(IF(CZ7<0,SUM(CZ1:CZ6),(IF(ABS(SUM(CZ1:CZ6))>ABS(CZ7),SUM(CZ1:CZ7),0))))) -> 937.857 | DC7: =IF(SUM(CZ1:CZ6)>=0,(IF(CZ7<0,(IF(ABS(CZ7)>ABS(SUM(CZ1:CZ6)),SUM(CZ1:CZ6),ABS(CZ7))),CZ7)),(IF(CZ7>0,(IF(ABS(CZ7)>ABS(SUM(CZ1:CZ6)),SUM(CZ1:CZ7),0)),0))) -> 0 | DD7: =IF(SUM(CZ1:CZ6)<0,(IF(CZ7<0,CZ7,(IF(ABS(CZ7)>ABS(SUM(CZ1:CZ6)),SUM(CZ1:CZ6),0-CZ7)))),(IF(CZ7<0,(IF(ABS(CZ7)>ABS(SUM(CZ1:CZ6)),SUM(CZ1:CZ7),0)),0))) -> 0 | DE7: Vrijednosna usklađenja Δ | DF7: 0 | DG7: 937.857 | DH7: 0 | DI7: 0 | DJ7: 0 | DK7: 0 | DL7: 0 | DO7: Ukupno pasiva | DP7: =SUM(DP2:DP6) -> 13600.121 | DQ7: =SUM(DQ2:DQ6) -> 14667.74381 | DR7: 16934.841 | DS7: 27049.16 | DT7: 24936.627 | DU7: 26230.24 | DV7: 26459.3 | DY7: =Podloga!B34 -> 2023. ostvareno | DZ7: =Podloga!C34 -> 2024. ostvareno | EA7: =Podloga!D34 -> 2025. procijenjeno | EB7: =Podloga!E34 -> 2025. planirano | EC7: =Podloga!F34 -> 2026. planirano | ED7: =Podloga!G34 -> 2027. planirano | EE7: =Podloga!H34 -> 2028. planirano | EG7: Ukupni prihodi | EH7: =RDG!C57 -> 2963.93357 | EI7: =RDG!D57 -> 3814.528 | EJ7: =RDG!E57 -> 4012.536 | EK7: =RDG!F57 -> 3992.2 | EL7: =RDG!G57 -> 4802.955 | EM7: =RDG!H57 -> 5003.64 | EN7: =RDG!I57 -> 5215.707
AT8: Grad Crikvenica | BA8: Neto profitna marža | BB8: =IFERROR(RDG!C63/RDG!C57,) -> -0.2426972174 | BC8: =IFERROR(RDG!D63/RDG!D57,) -> 0.08845366976 | BD8: =IFERROR(RDG!E63/RDG!E57,) -> 0.09709993879 | BE8: =IFERROR(RDG!F63/RDG!F57,) -> 0.009931867141 | BF8: =IFERROR(RDG!G63/RDG!G57,) -> 0.009975525484 | BG8: =IFERROR(RDG!H63/RDG!H57,) -> 0.01062526481 | BH8: =IFERROR(RDG!I63/RDG!I57,) -> 0.01437427371 | BL8: Donja granica | BM8: 1.8 | BN8: 1.8 | BO8: 1.8 | BP8: 1.8 | BQ8: 1.8 | BR8: 1.8 | BS8: 1.8 | CH8: Procijenjena bruto dobit tekuće godine | CI8: =RDG!E59 -> 389.617 | CJ8: =CI8 -> 389.617 | CN8: Procijenjena bruto dobit tekuće godine | CO8: 389.617 | CY8: Rezerviranja Δ | CZ8: =RDG!F26-RDG!E26 -> -65.211 | DB8: =IF(SUM(CZ1:CZ7)>=0,(IF(CZ8>=0,SUM(CZ1:CZ7),(IF(ABS(SUM(CZ1:CZ7))>ABS(CZ8),SUM(CZ1:CZ8),0)))),(IF(CZ8<0,SUM(CZ1:CZ7),(IF(ABS(SUM(CZ1:CZ7))>ABS(CZ8),SUM(CZ1:CZ8),0))))) -> 872.646 | DC8: =IF(SUM(CZ1:CZ7)>=0,(IF(CZ8<0,(IF(ABS(CZ8)>ABS(SUM(CZ1:CZ7)),SUM(CZ1:CZ7),ABS(CZ8))),CZ8)),(IF(CZ8>0,(IF(ABS(CZ8)>ABS(SUM(CZ1:CZ7)),SUM(CZ1:CZ8),0)),0))) -> 65.211 | DD8: =IF(SUM(CZ1:CZ7)<0,(IF(CZ8<0,CZ8,(IF(ABS(CZ8)>ABS(SUM(CZ1:CZ7)),SUM(CZ1:CZ7),0-CZ8)))),(IF(CZ8<0,(IF(ABS(CZ8)>ABS(SUM(CZ1:CZ7)),SUM(CZ1:CZ8),0)),0))) -> 0 | DE8: Rezerviranja Δ | DF8: 0 | DG8: 872.646 | DH8: 0 | DI8: 65.211 | DJ8: 0 | DK8: 0 | DL8: 0 | DO8: Udio kapitala u pasivi | DP8: =Bilanca!C75/Bilanca!C131 -> 0.05976535062 | DQ8: =Bilanca!D75/Bilanca!D131 -> 0.07841860445 | DR8: =Bilanca!E75/Bilanca!E131 -> 0.09092739637 | DS8: =Bilanca!F75/Bilanca!F131 -> 0.03221027936 | DT8: =Bilanca!G75/Bilanca!G131 -> 0.06367140191 | DU8: =Bilanca!H75/Bilanca!H131 -> 0.062558139 | DV8: =Bilanca!I75/Bilanca!I131 -> 0.06485005272 | DX8: Novčani primici od kupaca | DY8: =IFERROR(IF(Podloga!$B$17="Direktna",'NT dir.'!C7,),) -> 0 | DZ8: =IFERROR(IF(Podloga!$B$17="Direktna",'NT dir.'!D7,),) -> 0 | EA8: =IFERROR(IF(Podloga!$B$17="Direktna",'NT dir.'!E7,),) -> 0 | EB8: =IFERROR(IF(Podloga!$B$17="Direktna",'NT dir.'!F7,),) -> 0 | EC8: =IFERROR(IF(Podloga!$B$17="Direktna",'NT dir.'!G7,),) -> 0 | ED8: =IFERROR(IF(Podloga!$B$17="Direktna",'NT dir.'!H7,),) -> 0 | EE8: =IFERROR(IF(Podloga!$B$17="Direktna",'NT dir.'!I7,),) -> 0 | EG8: Ukupni rashodi | EH8: =RDG!C58 -> 3683.272 | EI8: =RDG!D58 -> 3477.119 | EJ8: =RDG!E58 -> 3622.919 | EK8: =RDG!F58 -> 3952.55 | EL8: =RDG!G58 -> 4755.043 | EM8: =RDG!H58 -> 4950.475 | EN8: =RDG!I58 -> 5140.735
AT9: Grad Dubrovnik | BA9: Operativna profitna marža | BB9: =(RDG!C5-RDG!C11)/(RDG!C6+RDG!C7) -> -0.5767823303 | BC9: =(RDG!D5-RDG!D11)/(RDG!D6+RDG!D7) -> 0.3297801353 | BD9: =(RDG!E5-RDG!E11)/(RDG!E6+RDG!E7) -> 0.321623732 | BE9: =(RDG!F5-RDG!F11)/(RDG!F6+RDG!F7) -> 0.07497552753 | BF9: =(RDG!G5-RDG!G11)/(RDG!G6+RDG!G7) -> 0.08064221086 | BG9: =(RDG!H5-RDG!H11)/(RDG!H6+RDG!H7) -> 0.06743240512 | BH9: =(RDG!I5-RDG!I11)/(RDG!I6+RDG!I7) -> 0.0669855588 | CY9: Ostali poslovni rashodi Δ | CZ9: =(RDG!F22+RDG!F33+RDG!F55+RDG!F56)-(RDG!E22+RDG!E33+RDG!E55+RDG!E56) -> 13.969 | DB9: =IF(SUM(CZ1:CZ8)>=0,(IF(CZ9>=0,SUM(CZ1:CZ8),(IF(ABS(SUM(CZ1:CZ8))>ABS(CZ9),SUM(CZ1:CZ9),0)))),(IF(CZ9<0,SUM(CZ1:CZ8),(IF(ABS(SUM(CZ1:CZ8))>ABS(CZ9),SUM(CZ1:CZ9),0))))) -> 872.646 | DC9: =IF(SUM(CZ1:CZ8)>=0,(IF(CZ9<0,(IF(ABS(CZ9)>ABS(SUM(CZ1:CZ8)),SUM(CZ1:CZ8),ABS(CZ9))),CZ9)),(IF(CZ9>0,(IF(ABS(CZ9)>ABS(SUM(CZ1:CZ8)),SUM(CZ1:CZ9),0)),0))) -> 13.969 | DD9: =IF(SUM(CZ1:CZ8)<0,(IF(CZ9<0,CZ9,(IF(ABS(CZ9)>ABS(SUM(CZ1:CZ8)),SUM(CZ1:CZ8),0-CZ9)))),(IF(CZ9<0,(IF(ABS(CZ9)>ABS(SUM(CZ1:CZ8)),SUM(CZ1:CZ9),0)),0))) -> 0 | DE9: Ostali poslovni rashodi Δ | DF9: 0 | DG9: 872.646 | DH9: 13.969 | DI9: 0 | DJ9: 0 | DK9: 0 | DL9: 0 | DX9: Novčani primici od tantijema, naknada, provizija i slično | DY9: =IFERROR(IF(Podloga!$B$17="Direktna",'NT dir.'!C8,),) -> 0 | DZ9: =IFERROR(IF(Podloga!$B$17="Direktna",'NT dir.'!D8,),) -> 0 | EA9: =IFERROR(IF(Podloga!$B$17="Direktna",'NT dir.'!E8,),) -> 0 | EB9: =IFERROR(IF(Podloga!$B$17="Direktna",'NT dir.'!F8,),) -> 0 | EC9: =IFERROR(IF(Podloga!$B$17="Direktna",'NT dir.'!G8,),) -> 0 | ED9: =IFERROR(IF(Podloga!$B$17="Direktna",'NT dir.'!H8,),) -> 0 | EE9: =IFERROR(IF(Podloga!$B$17="Direktna",'NT dir.'!I8,),) -> 0 | EG9: Prihodi od poslovnih aktivnosti | EH9: =RDG!C5 -> 2963.898 | EI9: =RDG!D5 -> 3814.391 | EJ9: =RDG!E5 -> 4012.427 | EK9: =RDG!F5 -> 3991.6 | EL9: =RDG!G5 -> 4802.805 | EM9: =RDG!H5 -> 5003.49 | EN9: =RDG!I5 -> 5215.547
AT10: Grad Kaštela | BA10: Dug | BB10: =Bilanca!C103+Bilanca!C115+Bilanca!C130 -> 12765.202 | BC10: =Bilanca!D103+Bilanca!D115+Bilanca!D130 -> 13495.86981 | BD10: =Bilanca!E103+Bilanca!E115+Bilanca!E130 -> 15373.35 | BE10: =Bilanca!F103+Bilanca!F115+Bilanca!F130 -> 26177.899 | BF10: =Bilanca!G103+Bilanca!G115+Bilanca!G130 -> 23348.877 | BG10: =Bilanca!H103+Bilanca!H115+Bilanca!H130 -> 24589.325 | BH10: =Bilanca!I103+Bilanca!I115+Bilanca!I130 -> 24743.413 | CH10: Planirana bruto dobit tekuće godine | CI10: =RDG!F59 -> 39.65 | CJ10: =CI10 -> 39.65 | CN10: =CH10 -> Planirana bruto dobit tekuće godine | CO10: =CJ10 -> 39.65 | CP10: =CK10 -> 0 | CQ10: 0 | CR10: 0 | CS10: 0 | CT10: 0 | CU10: 0 | CY10: Financijski rashodi (bez kamata) Δ | CZ10: =(RDG!F45-RDG!F46-RDG!F48)-(RDG!E45-RDG!E46-RDG!E48) -> 0.429 | DB10: =IF(SUM(CZ1:CZ9)>=0,(IF(CZ10>=0,SUM(CZ1:CZ9),(IF(ABS(SUM(CZ1:CZ9))>ABS(CZ10),SUM(CZ1:CZ10),0)))),(IF(CZ10<0,SUM(CZ1:CZ9),(IF(ABS(SUM(CZ1:CZ9))>ABS(CZ10),SUM(CZ1:CZ10),0))))) -> 886.615 | DC10: =IF(SUM(CZ1:CZ9)>=0,(IF(CZ10<0,(IF(ABS(CZ10)>ABS(SUM(CZ1:CZ9)),SUM(CZ1:CZ9),ABS(CZ10))),CZ10)),(IF(CZ10>0,(IF(ABS(CZ10)>ABS(SUM(CZ1:CZ9)),SUM(CZ1:CZ10),0)),0))) -> 0.429 | DD10: =IF(SUM(CZ1:CZ9)<0,(IF(CZ10<0,CZ10,(IF(ABS(CZ10)>ABS(SUM(CZ1:CZ9)),SUM(CZ1:CZ9),0-CZ10)))),(IF(CZ10<0,(IF(ABS(CZ10)>ABS(SUM(CZ1:CZ9)),SUM(CZ1:CZ10),0)),0))) -> 0 | DE10: Financijski rashodi (bez kamata) Δ | DF10: 0 | DG10: 886.615 | DH10: 0.429 | DI10: 0 | DJ10: 0 | DK10: 0 | DL10: 0 | DX10: Novčani primici od osiguranja za naknadu šteta | DY10: =IFERROR(IF(Podloga!$B$17="Direktna",'NT dir.'!C9,),) -> 0 | DZ10: =IFERROR(IF(Podloga!$B$17="Direktna",'NT dir.'!D9,),) -> 0 | EA10: =IFERROR(IF(Podloga!$B$17="Direktna",'NT dir.'!E9,),) -> 0 | EB10: =IFERROR(IF(Podloga!$B$17="Direktna",'NT dir.'!F9,),) -> 0 | EC10: =IFERROR(IF(Podloga!$B$17="Direktna",'NT dir.'!G9,),) -> 0 | ED10: =IFERROR(IF(Podloga!$B$17="Direktna",'NT dir.'!H9,),) -> 0 | EE10: =IFERROR(IF(Podloga!$B$17="Direktna",'NT dir.'!I9,),) -> 0 | EG10: Rashodi od poslovnih aktivnosti | EH10: =RDG!C11 -> 3590.895 | EI10: =RDG!D11 -> 3386.403 | EJ10: =RDG!E11 -> 3502.902 | EK10: =RDG!F11 -> 3862.16 | EL10: =RDG!G11 -> 4634.843 | EM10: =RDG!H11 -> 4833.325 | EN10: =RDG!I11 -> 5031.635
AT11: Grad Krk i općina Omišalj | BB11: =Podloga!B34 -> 2023. ostvareno | BC11: =Podloga!C34 -> 2024. ostvareno | BD11: =Podloga!D34 -> 2025. procijenjeno | BE11: =Podloga!E34 -> 2025. planirano | BF11: =Podloga!F34 -> 2026. planirano | BG11: =Podloga!G34 -> 2027. planirano | BH11: =Podloga!H34 -> 2028. planirano | CH11: Poslovni prihodi Δ | CI11: =RDG!E5-RDG!F5 -> 20.827 | CK11: =IF(SUM(CI10)>=0,(IF(CI11>=0,SUM(CI10),(IF(ABS(SUM(CI10))>ABS(CI11),SUM(CI10:CI11),0)))),(IF(CI11<0,SUM(CI10),(IF(ABS(SUM(CI10))>ABS(CI11),SUM(CI10:CI11),0))))) -> 39.65 | CL11: =IF(SUM(CI10)>=0,(IF(CI11<0,(IF(ABS(CI11)>ABS(SUM(CI10)),SUM(CI10),ABS(CI11))),CI11)),(IF(CI11>0,(IF(ABS(CI11)>ABS(SUM(CI10)),SUM(CI10:CI11),0)),0))) -> 20.827 | CM11: =IF(SUM(CI10)<0,(IF(CI11<0,CI11,(IF(ABS(CI11)>ABS(SUM(CI10)),SUM(CI10),0-CI11)))),(IF(CI11<0,(IF(ABS(CI11)>ABS(SUM(CI10)),SUM(CI10:CI11),0)),0))) -> 0 | CN11: =CH11 -> Poslovni prihodi Δ | CO11: =CJ11 -> 0 | CP11: =CK11 -> 39.65 | CQ11: 20.827 | CR11: 0 | CS11: 0 | CT11: 0 | CU11: 0 | CY11: Procijenjena EBITDA tekuće godine | CZ11: =BD3 -> 887.044 | DA11: =CZ11 -> 887.044 | DE11: Procijenjena EBITDA tekuće godine | DF11: 887.044 | DX11: Novčani primici s osnove povrata poreza | DY11: =IFERROR(IF(Podloga!$B$17="Direktna",'NT dir.'!C10,),) -> 0 | DZ11: =IFERROR(IF(Podloga!$B$17="Direktna",'NT dir.'!D10,),) -> 0 | EA11: =IFERROR(IF(Podloga!$B$17="Direktna",'NT dir.'!E10,),) -> 0 | EB11: =IFERROR(IF(Podloga!$B$17="Direktna",'NT dir.'!F10,),) -> 0 | EC11: =IFERROR(IF(Podloga!$B$17="Direktna",'NT dir.'!G10,),) -> 0 | ED11: =IFERROR(IF(Podloga!$B$17="Direktna",'NT dir.'!H10,),) -> 0 | EE11: =IFERROR(IF(Podloga!$B$17="Direktna",'NT dir.'!I10,),) -> 0 | EG11: Ekonomičnost ukupnog poslovanja | EH11: =EH7/EH8 -> 0.8047012466 | EI11: =EI7/EI8 -> 1.097036944 | EJ11: 1.107542288 | EK11: 1.010031499 | EL11: 1.010076039 | EM11: 1.010739373 | EN11: 1.014583907
AT12: Grad Opatija | BA12: ROE | BB12: =IFERROR((RDG!C83/Bilanca!C$75),) -> -0.884995411 | BC12: =IFERROR((RDG!D83/Bilanca!D$75),) -> 0.2933419925 | BD12: =IFERROR((RDG!E83/Bilanca!E$75),) -> 0.2530241759 | BE12: =IFERROR((RDG!F83/Bilanca!F$75),) -> 0.04550875111 | BF12: =IFERROR((RDG!G83/Bilanca!G$75),) -> 0.03017603527 | BG12: =IFERROR((RDG!H83/Bilanca!H$75),) -> 0.03239960632 | BH12: =IFERROR((RDG!I83/Bilanca!I$75),) -> 0.0436928539 | BL12: Altman a | CH12: Materijalni troškovi Δ | CI12: =RDG!F13-RDG!E13 -> 307.343 | CK12: =IF(SUM(CI10:CI11)>=0,(IF(CI12>=0,SUM(CI10:CI11),(IF(ABS(SUM(CI10:CI11))>ABS(CI12),SUM(CI10:CI12),0)))),(IF(CI12<0,SUM(CI10:CI11),(IF(ABS(SUM(CI10:CI11))>ABS(CI12),SUM(CI10:CI12),0))))) -> 60.477 | CL12: =IF(SUM(CI10:CI11)>=0,(IF(CI12<0,(IF(ABS(CI12)>ABS(SUM(CI10:CI11)),SUM(CI10:CI11),ABS(CI12))),CI12)),(IF(CI12>0,(IF(ABS(CI12)>ABS(SUM(CI10:CI11)),SUM(CI10:CI12),0)),0))) -> 307.343 | CM12: =IF(SUM(CI10:CI11)<0,(IF(CI12<0,CI12,(IF(ABS(CI12)>ABS(SUM(CI10:CI11)),SUM(CI10:CI11),0-CI12)))),(IF(CI12<0,(IF(ABS(CI12)>ABS(SUM(CI10:CI11)),SUM(CI10:CI12),0)),0))) -> 0 | CN12: Materijalni troškovi Δ | CO12: 0 | CP12: 60.477 | CQ12: 307.343 | CR12: 0 | CS12: 0 | CT12: 0 | CU12: 0 | DX12: Ostali novčani primici iz poslovanja | DY12: =IFERROR(IF(Podloga!$B$17="Direktna",'NT dir.'!#REF!,),) -> 0 | DZ12: =IFERROR(IF(Podloga!$B$17="Direktna",'NT dir.'!#REF!,),) -> 0 | EA12: =IFERROR(IF(Podloga!$B$17="Direktna",'NT dir.'!#REF!,),) -> 0 | EB12: =IFERROR(IF(Podloga!$B$17="Direktna",'NT dir.'!#REF!,),) -> 0 | EC12: =IFERROR(IF(Podloga!$B$17="Direktna",'NT dir.'!#REF!,),) -> 0 | ED12: =IFERROR(IF(Podloga!$B$17="Direktna",'NT dir.'!#REF!,),) -> 0 | EE12: =IFERROR(IF(Podloga!$B$17="Direktna",'NT dir.'!#REF!,),) -> 0 | EG12: Ekonomičnost poslovnih aktivnosti | EH12: =EH9/EH10 -> 0.8253925553 | EI12: =EI9/EI10 -> 1.126384249 | EJ12: 1.145457966 | EK12: 1.033514924 | EL12: 1.036238984 | EM12: 1.035206612 | EN12: 1.036551141
AT13: Grad Osijek | BA13: ROA | BB13: =IFERROR(RDG!C63/Bilanca!C68,) -> -0.05289208048 | BC13: =IFERROR(RDG!D63/Bilanca!D68,) -> 0.02300347344 | BD13: =IFERROR(RDG!E63/Bilanca!E68,) -> 0.02300682456 | BE13: =IFERROR(RDG!F63/Bilanca!F68,) -> 0.001465849532 | BF13: =IFERROR(RDG!G63/Bilanca!G68,) -> 0.001921350084 | BG13: =IFERROR(RDG!H63/Bilanca!H68,) -> 0.002026859462 | BH13: =IFERROR(RDG!I63/Bilanca!I68,) -> 0.002833483879 | BL13: X1 | BM13: =IFERROR('Altman Integral (A)'!C35/'Altman Integral (A)'!C36,) -> 0.02276017352 | BN13: =IFERROR('Altman Integral (A)'!D35/'Altman Integral (A)'!D36,) -> 0.04825282777 | BO13: =IFERROR('Altman Integral (A)'!E35/'Altman Integral (A)'!E36,) -> 0.06080575409 | BP13: =IFERROR('Altman Integral (A)'!F35/'Altman Integral (A)'!F36,) -> 0.0188570359 | BQ13: =IFERROR('Altman Integral (A)'!G35/'Altman Integral (A)'!G36,) -> 0.03242498827 | BR13: =IFERROR('Altman Integral (A)'!H35/'Altman Integral (A)'!H36,) -> 0.03315963429 | BS13: =IFERROR('Altman Integral (A)'!I35/'Altman Integral (A)'!I36,) -> 0.0343735473 | BT13: 0.717 | CH13: Troškovi osoblja Δ | CI13: =RDG!F17-RDG!E17 -> 108.788 | CK13: =IF(SUM(CI10:CI12)>=0,(IF(CI13>=0,SUM(CI10:CI12),(IF(ABS(SUM(CI10:CI12))>ABS(CI13),SUM(CI10:CI13),0)))),(IF(CI13<0,SUM(CI10:CI12),(IF(ABS(SUM(CI10:CI12))>ABS(CI13),SUM(CI10:CI13),0))))) -> 367.82 | CL13: =IF(SUM(CI10:CI12)>=0,(IF(CI13<0,(IF(ABS(CI13)>ABS(SUM(CI10:CI12)),SUM(CI10:CI12),ABS(CI13))),CI13)),(IF(CI13>0,(IF(ABS(CI13)>ABS(SUM(CI10:CI12)),SUM(CI10:CI13),0)),0))) -> 108.788 | CM13: =IF(SUM(CI10:CI12)<0,(IF(CI13<0,CI13,(IF(ABS(CI13)>ABS(SUM(CI10:CI12)),SUM(CI10:CI12),0-CI13)))),(IF(CI13<0,(IF(ABS(CI13)>ABS(SUM(CI10:CI12)),SUM(CI10:CI13),0)),0))) -> 0 | CN13: Troškovi osoblja Δ | CO13: 0 | CP13: 367.82 | CQ13: 108.788 | CR13: 0 | CS13: 0 | CT13: 0 | CU13: 0
AT14: Grad Poreč | BB14: =Podloga!B34 -> 2023. ostvareno | BC14: =Podloga!C34 -> 2024. ostvareno | BD14: =Podloga!D34 -> 2025. procijenjeno | BE14: =Podloga!E34 -> 2025. planirano | BF14: =Podloga!F34 -> 2026. planirano | BG14: =Podloga!G34 -> 2027. planirano | BH14: =Podloga!H34 -> 2028. planirano | BL14: X2 | BM14: =IFERROR('Altman Integral (A)'!C37/'Altman Integral (A)'!C36,) -> -0.1430756179 | BN14: =IFERROR('Altman Integral (A)'!D37/'Altman Integral (A)'!D36,) -> -0.1817037079 | BO14: =IFERROR('Altman Integral (A)'!E37/'Altman Integral (A)'!E36,) -> -0.1374548186 | BP14: =IFERROR('Altman Integral (A)'!F37/'Altman Integral (A)'!F36,) -> -0.09783615839 | BQ14: =IFERROR('Altman Integral (A)'!G37/'Altman Integral (A)'!G36,) -> -0.07772336697 | BR14: =IFERROR('Altman Integral (A)'!H37/'Altman Integral (A)'!H36,) -> -0.07206378441 | BS14: =IFERROR('Altman Integral (A)'!I37/'Altman Integral (A)'!I36,) -> -0.06943059718 | BT14: 0.847 | CH14: Ostali poslovni rashodi Δ | CI14: =(RDG!F11-RDG!F13-RDG!F17)-(RDG!E11-RDG!E13-RDG!E17) -> -56.873 | CK14: =IF(SUM(CI10:CI13)>=0,(IF(CI14>=0,SUM(CI10:CI13),(IF(ABS(SUM(CI10:CI13))>ABS(CI14),SUM(CI10:CI14),0)))),(IF(CI14<0,SUM(CI10:CI13),(IF(ABS(SUM(CI10:CI13))>ABS(CI14),SUM(CI10:CI14),0))))) -> 419.735 | CL14: =IF(SUM(CI10:CI13)>=0,(IF(CI14<0,(IF(ABS(CI14)>ABS(SUM(CI10:CI13)),SUM(CI10:CI13),ABS(CI14))),CI14)),(IF(CI14>0,(IF(ABS(CI14)>ABS(SUM(CI10:CI13)),SUM(CI10:CI14),0)),0))) -> 56.873 | CM14: =IF(SUM(CI10:CI13)<0,(IF(CI14<0,CI14,(IF(ABS(CI14)>ABS(SUM(CI10:CI13)),SUM(CI10:CI13),0-CI14)))),(IF(CI14<0,(IF(ABS(CI14)>ABS(SUM(CI10:CI13)),SUM(CI10:CI14),0)),0))) -> 0 | CN14: Ostali poslovni rashodi Δ | CO14: 0 | CP14: 419.735 | CQ14: 0 | CR14: 56.873 | CS14: 0 | CT14: 0 | CU14: 0 | EH14: =Podloga!B34 -> 2023. ostvareno | EI14: =Podloga!C34 -> 2024. ostvareno | EJ14: =Podloga!D34 -> 2025. procijenjeno | EK14: =Podloga!E34 -> 2025. planirano | EL14: =Podloga!F34 -> 2026. planirano | EM14: =Podloga!G34 -> 2027. planirano | EN14: =Podloga!H34 -> 2028. planirano
AT15: Grad Pula | BA15: EBIT/trošak kamata | BB15: =(RDG!C59+RDG!C46+RDG!C48)/(RDG!C46+RDG!C48) -> -6.809558463 | BC15: =(RDG!D59+RDG!D46+RDG!D48)/(RDG!D46+RDG!D48) -> 4.733846069 | BD15: =(RDG!E59+RDG!E46+RDG!E48)/(RDG!E46+RDG!E48) -> 4.252337307 | BE15: =(RDG!F59+RDG!F46+RDG!F48)/(RDG!F46+RDG!F48) -> 1.441831959 | BF15: =(RDG!G59+RDG!G46+RDG!G48)/(RDG!G46+RDG!G48) -> 1.399266667 | BG15: =(RDG!H59+RDG!H46+RDG!H48)/(RDG!H46+RDG!H48) -> 1.454401709 | BH15: =(RDG!I59+RDG!I46+RDG!I48)/(RDG!I46+RDG!I48) -> 1.687816514 | BL15: X3 | BM15: =IFERROR('Altman Integral (A)'!C38/'Altman Integral (A)'!C36,) -> -0.04611934413 | BN15: =IFERROR('Altman Integral (A)'!D38/'Altman Integral (A)'!D36,) -> 0.02916427199 | BO15: =IFERROR('Altman Integral (A)'!E38/'Altman Integral (A)'!E36,) -> 0.03008076013 | BP15: =IFERROR('Altman Integral (A)'!F38/'Altman Integral (A)'!F36,) -> 0.004783512509 | BQ15: =IFERROR('Altman Integral (A)'!G38/'Altman Integral (A)'!G36,) -> 0.006733547658 | BR15: =IFERROR('Altman Integral (A)'!H38/'Altman Integral (A)'!H36,) -> 0.006487360864 | BS15: =IFERROR('Altman Integral (A)'!I38/'Altman Integral (A)'!I36,) -> 0.006953018409 | BT15: 3.107 | CH15: Financijski i investicijski prihodi Δ | CI15: =(RDG!E34+RDG!E53+RDG!E54)-(RDG!F34+RDG!F53+RDG!F54) -> -0.491 | CK15: =IF(SUM(CI10:CI14)>=0,(IF(CI15>=0,SUM(CI10:CI14),(IF(ABS(SUM(CI10:CI14))>ABS(CI15),SUM(CI10:CI15),0)))),(IF(CI15<0,SUM(CI10:CI14),(IF(ABS(SUM(CI10:CI14))>ABS(CI15),SUM(CI10:CI15),0))))) -> 419.244 | CL15: =IF(SUM(CI10:CI14)>=0,(IF(CI15<0,(IF(ABS(CI15)>ABS(SUM(CI10:CI14)),SUM(CI10:CI14),ABS(CI15))),CI15)),(IF(CI15>0,(IF(ABS(CI15)>ABS(SUM(CI10:CI14)),SUM(CI10:CI15),0)),0))) -> 0.491 | CM15: =IF(SUM(CI10:CI14)<0,(IF(CI15<0,CI15,(IF(ABS(CI15)>ABS(SUM(CI10:CI14)),SUM(CI10:CI14),0-CI15)))),(IF(CI15<0,(IF(ABS(CI15)>ABS(SUM(CI10:CI14)),SUM(CI10:CI15),0)),0))) -> 0 | CN15: Financijski i investicijski prihodi Δ | CO15: 0 | CP15: 419.244 | CQ15: 0 | CR15: 0.491 | CS15: 0 | CT15: 0 | CU15: 0 | EG15: Glavnica | EH15: =Bilanca!C75 -> 812.816 | EI15: =Bilanca!D75 -> 1150.224 | EJ15: =Bilanca!E75 -> 1539.841 | EK15: =Bilanca!F75 -> 871.261 | EL15: =Bilanca!G75 -> 1587.75 | EM15: =Bilanca!H75 -> 1640.915 | EN15: =Bilanca!I75 -> 1715.887
AT16: Grad Rijeka | BA16: Trošak kamata | BB16: =RDG!C46+RDG!C48 -> 92.11 | BC16: =RDG!D46+RDG!D48 -> 90.365 | BD16: =RDG!E46+RDG!E48 -> 119.796 | BE16: =RDG!F46+RDG!F48 -> 89.74 | BF16: =RDG!G46+RDG!G48 -> 120 | BG16: =RDG!H46+RDG!H48 -> 117 | BH16: =RDG!I46+RDG!I48 -> 109 | BL16: X4 | BM16: =IFERROR('Altman Integral (A)'!C41/'Altman Integral (A)'!C39,) -> 1.029754212 | BN16: =IFERROR('Altman Integral (A)'!D41/'Altman Integral (A)'!D39,) -> 1.024123494 | BO16: =IFERROR('Altman Integral (A)'!E41/'Altman Integral (A)'!E39,) -> 0.9647010398 | BP16: =IFERROR('Altman Integral (A)'!F41/'Altman Integral (A)'!F39,) -> 0.9907062186 | BQ16: =IFERROR('Altman Integral (A)'!G41/'Altman Integral (A)'!G39,) -> 0.9775539229 | BR16: =IFERROR('Altman Integral (A)'!H41/'Altman Integral (A)'!H39,) -> 0.8667450509 | BS16: =IFERROR('Altman Integral (A)'!I41/'Altman Integral (A)'!I39,) -> 0.7241793016 | BT16: 0.42 | CH16: Financijski i investicijski rashodi Δ | CI16: =(RDG!F45+RDG!F55+RDG!F56)-(RDG!E45+RDG!E55+RDG!E56) -> -29.627 | CK16: =IF(SUM(CI10:CI15)>=0,(IF(CI16>=0,SUM(CI10:CI15),(IF(ABS(SUM(CI10:CI15))>ABS(CI16),SUM(CI10:CI16),0)))),(IF(CI16<0,SUM(CI10:CI15),(IF(ABS(SUM(CI10:CI15))>ABS(CI16),SUM(CI10:CI16),0))))) -> 389.617 | CL16: =IF(SUM(CI10:CI15)>=0,(IF(CI16<0,(IF(ABS(CI16)>ABS(SUM(CI10:CI15)),SUM(CI10:CI15),ABS(CI16))),CI16)),(IF(CI16>0,(IF(ABS(CI16)>ABS(SUM(CI10:CI15)),SUM(CI10:CI16),0)),0))) -> 29.627 | CM16: =IF(SUM(CI10:CI15)<0,(IF(CI16<0,CI16,(IF(ABS(CI16)>ABS(SUM(CI10:CI15)),SUM(CI10:CI15),0-CI16)))),(IF(CI16<0,(IF(ABS(CI16)>ABS(SUM(CI10:CI15)),SUM(CI10:CI16),0)),0))) -> 0 | CN16: Financijski i investicijski rashodi Δ | CO16: 0 | CP16: 389.617 | CQ16: 0 | CR16: 29.627 | CS16: 0 | CT16: 0 | CU16: 0 | CX16: U milijunima kuna | EG16: Glavnica + dug. Obv | EH16: =Bilanca!C75+Bilanca!C103 -> 3772.47 | EI16: =Bilanca!D75+Bilanca!D103 -> 3872.60981 | EJ16: =Bilanca!E75+Bilanca!E103 -> 4471.411 | EK16: =Bilanca!F75+Bilanca!F103 -> 3614.531 | EL16: =Bilanca!G75+Bilanca!G103 -> 4566.425 | EM16: =Bilanca!H75+Bilanca!H103 -> 4815.256 | EN16: =Bilanca!I75+Bilanca!I103 -> 5535.362
AT17: Grad Split | BB17: =Podloga!B34 -> 2023. ostvareno | BC17: =Podloga!C34 -> 2024. ostvareno | BD17: =Podloga!D34 -> 2025. procijenjeno | BE17: =Podloga!E34 -> 2025. planirano | BF17: =Podloga!F34 -> 2026. planirano | BG17: =Podloga!G34 -> 2027. planirano | BH17: =Podloga!H34 -> 2028. planirano | BL17: X5 | BM17: =IFERROR('Altman Integral (A)'!C40/'Altman Integral (A)'!C36,) -> 0.2179344331 | BN17: =IFERROR('Altman Integral (A)'!D40/'Altman Integral (A)'!D36,) -> 0.2600623977 | BO17: =IFERROR('Altman Integral (A)'!E40/'Altman Integral (A)'!E36,) -> 0.2369396402 | BP17: =IFERROR('Altman Integral (A)'!F40/'Altman Integral (A)'!F36,) -> 0.1475905297 | BQ17: =IFERROR('Altman Integral (A)'!G40/'Altman Integral (A)'!G36,) -> 0.1926064033 | BR17: =IFERROR('Altman Integral (A)'!H40/'Altman Integral (A)'!H36,) -> 0.1907584892 | BS17: =IFERROR('Altman Integral (A)'!I40/'Altman Integral (A)'!I36,) -> 0.1971218815 | BT17: 0.998 | CH17: Procijenjena bruto dobit tekuće godine | CI17: =RDG!E59 -> 389.617 | CJ17: =CI17 -> 389.617 | CN17: Procijenjena bruto dobit tekuće godine | CO17: 389.617 | DN17: Analiza EBITDA (prethodne i tekuće godine) | EG17: Dug. Imov | EH17: =Bilanca!C5 -> 13185.73 | EI17: =Bilanca!D5 -> 13933.87241 | EJ17: =Bilanca!E5 -> 15781.77266 | EK17: =Bilanca!F5 -> 26432.344 | EL17: =Bilanca!G5 -> 24023.217 | EM17: =Bilanca!H5 -> 25221.65 | EN17: =Bilanca!I5 -> 25404.8
AT18: Grad Trogir | BA18: Dug. materijalna | BB18: =Bilanca!C13 -> 12957.886 | BC18: =Bilanca!D13 -> 13757.81541 | BD18: =Bilanca!E13 -> 15650.08266 | BE18: =Bilanca!F13 -> 26212.465 | BF18: =Bilanca!G13 -> 23856.762 | BG18: =Bilanca!H13 -> 25041.2 | BH18: =Bilanca!I13 -> 25151.5 | BL18: Gornja granica | BM18: 2.9 | BN18: 2.9 | BO18: 2.9 | BP18: 2.9 | BQ18: 2.9 | BR18: 2.9 | BS18: 2.9 | DN18: U tisućama kuna | DT18: U milijunima kuna | EG18: Stupanj pokrića I | EH18: =EH15/EH17 -> 0.06164361018 | EI18: =EI15/EI17 -> 0.08254876793 | EJ18: 0.09757085171 | EK18: 0.03296192725 | EL18: 0.06609231395 | EM18: 0.06505977999 | EN18: 0.06754184249
AT19: Grad Zadar | BA19: Dug. nematerijalna | BB19: =Bilanca!C6 -> 213.753 | BC19: =Bilanca!D6 -> 161.966 | BD19: =Bilanca!E6 -> 117.6 | BE19: =Bilanca!F6 -> 205.789 | BF19: =Bilanca!G6 -> 159 | BG19: =Bilanca!H6 -> 173 | BH19: =Bilanca!I6 -> 178.8 | BL19: Donja granica | BM19: 1.23 | BN19: 1.23 | BO19: 1.23 | BP19: 1.23 | BQ19: 1.23 | BR19: 1.23 | BS19: 1.23 | CG19: U milijunima kuna | CH19: Bruto dobit prethodne godine | CI19: =CI1/1000 -> 0.337409 | CJ19: =CJ1/1000 -> 0.337409 | CN19: =CN1 -> Bruto dobit prethodne godine | CO19: =CO1/1000 -> 0.337409 | CU19: 0 | CY19: Planirana EBITDA tekuće godine | CZ19: =CZ1/1000 -> 0.50139 | DA19: =DA1/1000 -> 0.50139 | DE19: =DE1 -> Planirana EBITDA tekuće godine | DF19: =DF1/1000 -> 0.50139 | DL19: 0 | DN19: Ostvarena EBITDA prethodne godine | DO19: =BC3 -> 799.905 | DP19: =DO19 -> 799.905 | DT19: Ostvarena EBITDA prethodne godine | DU19: =DO19/1000 -> 0.799905 | DV19: =DP19/1000 -> 0.799905 | EG19: Stupanj pokrića II | EH19: =EH16/EH17 -> 0.2861024759 | EI19: =EI16/EI17 -> 0.2779277502 | EJ19: 0.2833275511 | EK19: 0.1367465178 | EL19: 0.190083826 | EM19: 0.1909175649 | EN19: 0.2178864624
AT20: Grad Zagreb | BA20: Potraživanja | BB20: =Bilanca!C34+Bilanca!C49 -> 232.881 | BC20: =Bilanca!D34+Bilanca!D49 -> 314.734 | BD20: =Bilanca!E34+Bilanca!E49 -> 379.011 | BE20: =Bilanca!F34+Bilanca!F49 -> 230.515 | BF20: =Bilanca!G34+Bilanca!G49 -> 138.27 | BG20: =Bilanca!H34+Bilanca!H49 -> 134.235 | BH20: =Bilanca!I34+Bilanca!I49 -> 142.2 | CH20: Poslovni prihodi Δ | CI20: =CI2/1000 -> 0.198036 | CK20: =CK2/1000 -> 0.337409 | CL20: =CL2/1000 -> 0.198036 | CM20: =CM2/1000 -> 0 | CN20: =CN2 -> Poslovni prihodi Δ | CO20: =CO2/1000 -> 0 | CP20: 0.337409 | CQ20: 0.198036 | CR20: 0 | CS20: 0 | CT20: 0 | CU20: 0 | CY20: Prihodi od prodaje Δ | CZ20: =CZ2/1000 -> -0.142203 | DB20: =DB2/1000 -> 0.359187 | DC20: =DC2/1000 -> 0.142203 | DD20: =DD2/1000 -> 0 | DE20: =DE2 -> Prihodi od prodaje Δ | DF20: =DF2/1000 -> 0 | DG20: 0.359187 | DH20: 0 | DI20: 0.142203 | DJ20: 0 | DK20: 0 | DL20: 0 | DN20: Prihodi od prodaje Δ | DO20: =(RDG!E6+RDG!E7)-(RDG!D6+RDG!D7) -> 286.429 | DQ20: =IF(SUM(DO19)>=0,(IF(DO20>=0,SUM(DO19),(IF(ABS(SUM(DO19))>ABS(DO20),SUM(DO19:DO20),0)))),(IF(DO20<0,SUM(DO19),(IF(ABS(SUM(DO19))>ABS(DO20),SUM(DO19:DO20),0))))) -> 799.905 | DR20: =IF(SUM(DO19)>=0,(IF(DO20<0,(IF(ABS(DO20)>ABS(SUM(DO19)),SUM(DO19),ABS(DO20))),DO20)),(IF(DO20>0,(IF(ABS(DO20)>ABS(SUM(DO19)),SUM(DO19:DO20),0)),0))) -> 286.429 | DS20: =IF(SUM(DO19)<0,(IF(DO20<0,DO20,(IF(ABS(DO20)>ABS(SUM(DO19)),SUM(DO19),0-DO20)))),(IF(DO20<0,(IF(ABS(DO20)>ABS(SUM(DO19)),SUM(DO19:DO20),0)),0))) -> 0 | DT20: Prihodi od prodaje Δ | DU20: =DO20/1000 -> 0.286429 | DW20: =DQ20/1000 -> 0.799905 | DX20: =DR20/1000 -> 0.286429 | DY20: =DS20/1000 -> 0
AT21: Dubrovačko - neretvanska županija | BA21: Financijska imovina | BB21: =Bilanca!C23+Bilanca!C56+Bilanca!C39 -> 14.091 | BC21: =Bilanca!D23+Bilanca!D56+Bilanca!D39 -> 14.091 | BD21: =Bilanca!E23+Bilanca!E56+Bilanca!E39 -> 14.09 | BE21: =Bilanca!F23+Bilanca!F56+Bilanca!F39 -> 14.09 | BF21: =Bilanca!G23+Bilanca!G56+Bilanca!G39 -> 7.455 | BG21: =Bilanca!H23+Bilanca!H56+Bilanca!H39 -> 7.45 | BH21: =Bilanca!I23+Bilanca!I56+Bilanca!I39 -> 74.5 | CH21: Materijalni troškovi Δ | CI21: 0.121926 | CK21: =CK3/1000 -> 0.535445 | CL21: 0.121926 | CM21: =CM3/1000 -> 0 | CN21: Materijalni troškovi Δ | CO21: 0 | CP21: 0.535445 | CQ21: 0.121926 | CR21: 0 | CS21: 0 | CT21: 0 | CU21: 0 | CY21: Ostali prihodi Δ | CZ21: 0.162539 | DB21: 0.359187 | DC21: 0.162539 | DD21: =DD3/1000 -> 0 | DE21: Ostali prihodi Δ | DF21: 0 | DG21: 0.359187 | DH21: 0.162539 | DI21: 0 | DJ21: 0 | DK21: 0 | DL21: 0 | DN21: Ostali prihodi Δ | DO21: =(RDG!E57-RDG!E6-RDG!E7)-(RDG!D57-RDG!D6-RDG!D7) -> -88.421 | DQ21: =IF(SUM(DO19:DO20)>=0,(IF(DO21>=0,SUM(DO19:DO20),(IF(ABS(SUM(DO19:DO20))>ABS(DO21),SUM(DO19:DO21),0)))),(IF(DO21<0,SUM(DO19:DO20),(IF(ABS(SUM(DO19:DO20))>ABS(DO21),SUM(DO19:DO21),0))))) -> 997.913 | DR21: =IF(SUM(DO19:DO20)>=0,(IF(DO21<0,(IF(ABS(DO21)>ABS(SUM(DO19:DO20)),SUM(DO19:DO20),ABS(DO21))),DO21)),(IF(DO21>0,(IF(ABS(DO21)>ABS(SUM(DO19:DO20)),SUM(DO19:DO21),0)),0))) -> 88.421 | DS21: =IF(SUM(DO19:DO20)<0,(IF(DO21<0,DO21,(IF(ABS(DO21)>ABS(SUM(DO19:DO20)),SUM(DO19:DO20),0-DO21)))),(IF(DO21<0,(IF(ABS(DO21)>ABS(SUM(DO19:DO20)),SUM(DO19:DO21),0)),0))) -> 0 | DT21: Ostali prihodi Δ | DU21: -0.088421 | DW21: =DQ21/1000 -> 0.997913 | DX21: =DR21/1000 -> 0.088421 | DY21: 0
AT22: Istarska županija | BA22: Zalihe | BB22: =Bilanca!C41 -> 25.756 | BC22: =Bilanca!D41 -> 33.483 | BD22: =Bilanca!E41 -> 27.756 | BE22: =Bilanca!F41 -> 49.552 | BF22: =Bilanca!G41 -> 95.3 | BG22: =Bilanca!H41 -> 105.05 | BH22: =Bilanca!I41 -> 116.8 | BL22: Altman b | CH22: Troškovi osoblja Δ | CI22: -0.283848 | CK22: 0.373523 | CL22: 0.283848 | CM22: =CM4/1000 -> 0 | CN22: Troškovi osoblja Δ | CO22: 0 | CP22: 0.373523 | CQ22: 0 | CR22: 0.283848 | CS22: 0 | CT22: 0 | CU22: 0 | CY22: Promjena vrijednosti zaliha Δ | CZ22: 0 | DB22: 0.521726 | DC22: 0 | DD22: =DD4/1000 -> 0 | DE22: Promjena vrijednosti zaliha Δ | DF22: 0 | DG22: 0.521726 | DH22: 0 | DI22: 0 | DJ22: 0 | DK22: 0 | DL22: 0 | DN22: Promjena vrijednosti zaliha Δ | DO22: =RDG!D12-RDG!E12 -> 0 | DQ22: =IF(SUM(DO19:DO21)>=0,(IF(DO22>=0,SUM(DO19:DO21),(IF(ABS(SUM(DO19:DO21))>ABS(DO22),SUM(DO19:DO22),0)))),(IF(DO22<0,SUM(DO19:DO21),(IF(ABS(SUM(DO19:DO21))>ABS(DO22),SUM(DO19:DO22),0))))) -> 997.913 | DR22: =IF(SUM(DO19:DO21)>=0,(IF(DO22<0,(IF(ABS(DO22)>ABS(SUM(DO19:DO21)),SUM(DO19:DO21),ABS(DO22))),DO22)),(IF(DO22>0,(IF(ABS(DO22)>ABS(SUM(DO20:DO21)),SUM(DO19:DO22),0)),0))) -> 0 | DS22: =IF(SUM(DO19:DO21)<0,(IF(DO22<0,DO22,(IF(ABS(DO22)>ABS(SUM(DO19:DO21)),SUM(DO19:DO21),0-DO22)))),(IF(DO22<0,(IF(ABS(DO22)>ABS(SUM(DO19:DO21)),SUM(DO19:DO22),0)),0))) -> 0 | DT22: Promjena vrijednosti zaliha Δ | DU22: 0 | DW22: 0.997913 | DX22: 0 | DY22: 0
AT23: Osječko - baranjska županija | BA23: Novac u banci i blagajni | BB23: =Bilanca!C66 -> 50.904 | BC23: =Bilanca!D66 -> 359.543 | BD23: =Bilanca!E66 -> 622.969 | BE23: =Bilanca!F66 -> 230 | BF23: =Bilanca!G66 -> 575 | BG23: =Bilanca!H66 -> 630.5 | BH23: =Bilanca!I66 -> 650.5 | BL23: X1 | BM23: ='Altman Integral (B)'!C35/'Altman Integral (B)'!C36 -> 0.02276017352 | BN23: ='Altman Integral (B)'!D35/'Altman Integral (B)'!D36 -> 0.04825282777 | BO23: ='Altman Integral (B)'!E35/'Altman Integral (B)'!E36 -> 0.06080575409 | BP23: ='Altman Integral (B)'!F35/'Altman Integral (B)'!F36 -> 0.0188570359 | BQ23: ='Altman Integral (B)'!G35/'Altman Integral (B)'!G36 -> 0.03242498827 | BR23: ='Altman Integral (B)'!H35/'Altman Integral (B)'!H36 -> 0.03315963429 | BS23: ='Altman Integral (B)'!I35/'Altman Integral (B)'!I36 -> 0.0343735473 | BT23: 6.56 | CH23: Ostali poslovni rashodi Δ | CI23: 0.045423 | CK23: 0.373523 | CL23: 0.045423 | CM23: =CM5/1000 -> 0 | CN23: Ostali poslovni rashodi Δ | CO23: 0 | CP23: 0.373523 | CQ23: 0.045423 | CR23: 0 | CS23: 0 | CT23: 0 | CU23: 0 | CY23: Materijalni troškovi Δ | CZ23: 0.307343 | DB23: 0.521726 | DC23: 0.307343 | DD23: =DD5/1000 -> 0 | DE23: Materijalni troškovi Δ | DF23: 0 | DG23: 0.521726 | DH23: 0.307343 | DI23: 0 | DJ23: 0 | DK23: 0 | DL23: 0 | DN23: Materijalni troškovi Δ | DO23: =RDG!D13-RDG!E13 -> 121.926 | DQ23: =IF(SUM(DO19:DO22)>=0,(IF(DO23>=0,SUM(DO19:DO22),(IF(ABS(SUM(DO19:DO22))>ABS(DO23),SUM(DO19:DO23),0)))),(IF(DO23<0,SUM(DO19:DO22),(IF(ABS(SUM(DO19:DO22))>ABS(DO23),SUM(DO19:DO23),0))))) -> 997.913 | DR23: =IF(SUM(DO19:DO22)>=0,(IF(DO23<0,(IF(ABS(DO23)>ABS(SUM(DO19:DO22)),SUM(DO19:DO22),ABS(DO23))),DO23)),(IF(DO23>0,(IF(ABS(DO23)>ABS(SUM(DO19:DO22)),SUM(DO19:DO23),0)),0))) -> 121.926 | DS23: =IF(SUM(DO19:DO22)<0,(IF(DO23<0,DO23,(IF(ABS(DO23)>ABS(SUM(DO19:DO22)),SUM(DO19:DO22),0-DO23)))),(IF(DO23<0,(IF(ABS(DO23)>ABS(SUM(DO19:DO22)),SUM(DO19:DO23),0)),0))) -> 0 | DT23: Materijalni troškovi Δ | DU23: 0.121926 | DW23: 0.997913 | DX23: 0.121926 | DY23: 0
AT24: Primorsko-goranska županija | BA24: Ostalo | BB24: =Bilanca!C4+Bilanca!C67 -> 104.845 | BC24: =Bilanca!D4+Bilanca!D67 -> 26.109 | BD24: =Bilanca!E4+Bilanca!E67 -> 123.336 | BE24: =Bilanca!F4+Bilanca!F67 -> 106.75 | BF24: =Bilanca!G4+Bilanca!G67 -> 104.845 | BG24: =Bilanca!H4+Bilanca!H67 -> 138.8 | BH24: =Bilanca!I4+Bilanca!I67 -> 145 | BL24: X2 | BM24: ='Altman Integral (B)'!C37/'Altman Integral (B)'!C36 -> -0.1430756179 | BN24: ='Altman Integral (B)'!D37/'Altman Integral (B)'!D36 -> -0.1817037079 | BO24: ='Altman Integral (B)'!E37/'Altman Integral (B)'!E36 -> -0.1374548186 | BP24: ='Altman Integral (B)'!F37/'Altman Integral (B)'!F36 -> -0.09783615839 | BQ24: ='Altman Integral (B)'!G37/'Altman Integral (B)'!G36 -> -0.07772336697 | BR24: ='Altman Integral (B)'!H37/'Altman Integral (B)'!H36 -> -0.07206378441 | BS24: ='Altman Integral (B)'!I37/'Altman Integral (B)'!I36 -> -0.06943059718 | BT24: 3.26 | CH24: Financijski i investicijski prihodi Δ | CI24: -2.8e-05 | CK24: 0.418918 | CL24: 2.8e-05 | CM24: =CM6/1000 -> 0 | CN24: Financijski i investicijski prihodi Δ | CO24: 0 | CP24: 0.418918 | CQ24: 0 | CR24: 2.8e-05 | CS24: 0 | CT24: 0 | CU24: 0 | CY24: Troškovi osoblja Δ | CZ24: 0.108788 | DB24: 0.829069 | DC24: 0.108788 | DD24: =DD6/1000 -> 0 | DE24: Troškovi osoblja Δ | DF24: 0 | DG24: 0.829069 | DH24: 0.108788 | DI24: 0 | DJ24: 0 | DK24: 0 | DL24: 0 | DN24: Troškovi osoblja Δ | DO24: =RDG!D17-RDG!E17 -> -283.848 | DQ24: =IF(SUM(DO19:DO23)>=0,(IF(DO24>=0,SUM(DO19:DO23),(IF(ABS(SUM(DO19:DO23))>ABS(DO24),SUM(DO19:DO24),0)))),(IF(DO24<0,SUM(DO19:DO23),(IF(ABS(SUM(DO19:DO23))>ABS(DO24),SUM(DO19:DO24),0))))) -> 835.991 | DR24: =IF(SUM(DO19:DO23)>=0,(IF(DO24<0,(IF(ABS(DO24)>ABS(SUM(DO19:DO23)),SUM(DO19:DO23),ABS(DO24))),DO24)),(IF(DO24>0,(IF(ABS(DO24)>ABS(SUM(DO19:DO23)),SUM(DO19:DO24),0)),0))) -> 283.848 | DS24: =IF(SUM(DO19:DO23)<0,(IF(DO24<0,DO24,(IF(ABS(DO24)>ABS(SUM(DO19:DO23)),SUM(DO19:DO23),0-DO24)))),(IF(DO24<0,(IF(ABS(DO24)>ABS(SUM(DO19:DO23)),SUM(DO19:DO24),0)),0))) -> 0 | DT24: Troškovi osoblja Δ | DU24: -0.283848 | DW24: 0.835991 | DX24: 0.283848 | DY24: 0
AT25: Splitsko-dalmatinska županija | BA25: Dug. materijalna / dug. izvori financiranja | BB25: =Bilanca!C13/(Bilanca!C75+Bilanca!C103) -> 3.434854618 | BC25: =Bilanca!D13/(Bilanca!D75+Bilanca!D103) -> 3.5525953 | BD25: =Bilanca!E13/(Bilanca!E75+Bilanca!E103) -> 3.50003224 | BE25: =Bilanca!F13/(Bilanca!F75+Bilanca!F103) -> 7.251968513 | BF25: =Bilanca!G13/(Bilanca!G75+Bilanca!G103) -> 5.22438494 | BG25: =Bilanca!H13/(Bilanca!H75+Bilanca!H103) -> 5.2003881 | BH25: =Bilanca!I13/(Bilanca!I75+Bilanca!I103) -> 4.543785935 | BL25: X3 | BM25: ='Altman Integral (B)'!C38/'Altman Integral (B)'!C36 -> -0.04611934413 | BN25: ='Altman Integral (B)'!D38/'Altman Integral (B)'!D36 -> 0.02916427199 | BO25: ='Altman Integral (B)'!E38/'Altman Integral (B)'!E36 -> 0.03008076013 | BP25: ='Altman Integral (B)'!F38/'Altman Integral (B)'!F36 -> 0.004783512509 | BQ25: ='Altman Integral (B)'!G38/'Altman Integral (B)'!G36 -> 0.006733547658 | BR25: ='Altman Integral (B)'!H38/'Altman Integral (B)'!H36 -> 0.006487360864 | BS25: ='Altman Integral (B)'!I38/'Altman Integral (B)'!I36 -> 0.006953018409 | BT25: 6.72 | CH25: Financijski i investicijski rashodi Δ | CI25: -0.029301 | CK25: 0.389617 | CL25: 0.029301 | CM25: =CM7/1000 -> 0 | CN25: Financijski i investicijski rashodi Δ | CO25: 0 | CP25: 0.389617 | CQ25: 0 | CR25: 0.029301 | CS25: 0 | CT25: 0 | CU25: 0 | CY25: Vrijednosna usklađenja Δ | CZ25: 0 | DB25: 0.937857 | DC25: 0 | DD25: =DD7/1000 -> 0 | DE25: Vrijednosna usklađenja Δ | DF25: 0 | DG25: 0.937857 | DH25: 0 | DI25: 0 | DJ25: 0 | DK25: 0 | DL25: 0 | DN25: Vrijednosna usklađenja Δ | DO25: =RDG!D23-RDG!E23 -> 0 | DQ25: =IF(SUM(DO19:DO24)>=0,(IF(DO25>=0,SUM(DO19:DO24),(IF(ABS(SUM(DO19:DO24))>ABS(DO25),SUM(DO19:DO25),0)))),(IF(DO25<0,SUM(DO19:DO24),(IF(ABS(SUM(DO19:DO24))>ABS(DO25),SUM(DO19:DO25),0))))) -> 835.991 | DR25: =IF(SUM(DO19:DO24)>=0,(IF(DO25<0,(IF(ABS(DO25)>ABS(SUM(DO19:DO24)),SUM(DO19:DO24),ABS(DO25))),DO25)),(IF(DO25>0,(IF(ABS(DO25)>ABS(SUM(DO19:DO24)),SUM(DO19:DO25),0)),0))) -> 0 | DS25: =IF(SUM(DO19:DO24)<0,(IF(DO25<0,DO25,(IF(ABS(DO25)>ABS(SUM(DO19:DO24)),SUM(DO19:DO24),0-DO25)))),(IF(DO25<0,(IF(ABS(DO25)>ABS(SUM(DO19:DO24)),SUM(DO19:DO25),0)),0))) -> 0 | DT25: Vrijednosna usklađenja Δ | DU25: 0 | DW25: 0.835991 | DX25: 0 | DY25: 0
AT26: Zadarska županija | BA26: Ukupno: | BB26: =SUM(BB18:BB24) -> 13600.116 | BC26: =SUM(BC18:BC24) -> 14667.74141 | BD26: 16934.84466 | BE26: 27049.161 | BF26: 24936.632 | BG26: 26230.235 | BH26: 26459.3 | BL26: X4 | BM26: ='Altman Integral (B)'!C41/'Altman Integral (B)'!C39 -> 0 | BN26: ='Altman Integral (B)'!D41/'Altman Integral (B)'!D39 -> 0 | BO26: ='Altman Integral (B)'!E41/'Altman Integral (B)'!E39 -> 0 | BP26: ='Altman Integral (B)'!F41/'Altman Integral (B)'!F39 -> 0 | BQ26: ='Altman Integral (B)'!G41/'Altman Integral (B)'!G39 -> 0 | BR26: ='Altman Integral (B)'!H41/'Altman Integral (B)'!H39 -> 0 | BS26: ='Altman Integral (B)'!I41/'Altman Integral (B)'!I39 -> 0 | BT26: 1.05 | CH26: Procijenjena bruto dobit tekuće godine | CI26: 0.389617 | CJ26: =CJ8/1000 -> 0.389617 | CN26: Procijenjena bruto dobit tekuće godine | CO26: 0.389617 | CU26: 0 | CY26: Rezerviranja Δ | CZ26: -0.065211 | DB26: 0.872646 | DC26: 0.065211 | DD26: =DD8/1000 -> 0 | DE26: Rezerviranja Δ | DF26: 0 | DG26: 0.872646 | DH26: 0 | DI26: 0.065211 | DJ26: 0 | DK26: 0 | DL26: 0 | DN26: Rezerviranja Δ | DO26: =RDG!D26-RDG!E26 -> 19.929 | DQ26: =IF(SUM(DO19:DO25)>=0,(IF(DO26>=0,SUM(DO19:DO25),(IF(ABS(SUM(DO19:DO25))>ABS(DO26),SUM(DO19:DO26),0)))),(IF(DO26<0,SUM(DO19:DO25),(IF(ABS(SUM(DO19:DO25))>ABS(DO26),SUM(DO19:DO26),0))))) -> 835.991 | DR26: =IF(SUM(DO19:DO25)>=0,(IF(DO26<0,(IF(ABS(DO26)>ABS(SUM(DO19:DO25)),SUM(DO19:DO25),ABS(DO26))),DO26)),(IF(DO26>0,(IF(ABS(DO26)>ABS(SUM(DO19:DO25)),SUM(DO19:DO26),0)),0))) -> 19.929 | DS26: =IF(SUM(DO19:DO25)<0,(IF(DO26<0,DO26,(IF(ABS(DO26)>ABS(SUM(DO19:DO25)),SUM(DO19:DO25),0-DO26)))),(IF(DO26<0,(IF(ABS(DO26)>ABS(SUM(DO19:DO25)),SUM(DO19:DO26),0)),0))) -> 0 | DT26: Rezerviranja Δ | DU26: 0.019929 | DW26: 0.835991 | DX26: 0.019929 | DY26: 0
AT27: općina Zemunik Donji | BB27: =Podloga!B34 -> 2023. ostvareno | BC27: =Podloga!C34 -> 2024. ostvareno | BD27: =Podloga!D34 -> 2025. procijenjeno | BE27: =Podloga!E34 -> 2025. planirano | BF27: =Podloga!F34 -> 2026. planirano | BG27: =Podloga!G34 -> 2027. planirano | BH27: =Podloga!H34 -> 2028. planirano | BL27: Gornja granica | BM27: 2.6 | BN27: 2.6 | BO27: 2.6 | BP27: 2.6 | BQ27: 2.6 | BR27: 2.6 | BS27: 2.6 | CY27: Ostali poslovni rashodi Δ | CZ27: =CZ9/1000 -> 0.013969 | DB27: 0.872646 | DC27: 0.013969 | DD27: =DD9/1000 -> 0 | DE27: Ostali poslovni rashodi Δ | DF27: 0 | DG27: 0.872646 | DH27: 0.013969 | DI27: 0 | DJ27: 0 | DK27: 0 | DL27: 0 | DN27: Ostali poslovni rashodi Δ | DO27: =(RDG!D22+RDG!D33+RDG!D55+RDG!D56)-(RDG!E22+RDG!E33+RDG!E55+RDG!E56) -> 30.994 | DQ27: =IF(SUM(DO19:DO26)>=0,(IF(DO27>=0,SUM(DO19:DO26),(IF(ABS(SUM(DO19:DO26))>ABS(DO27),SUM(DO19:DO27),0)))),(IF(DO27<0,SUM(DO19:DO26),(IF(ABS(SUM(DO19:DO26))>ABS(DO27),SUM(DO19:DO27),0))))) -> 855.92 | DR27: =IF(SUM(DO19:DO26)>=0,(IF(DO27<0,(IF(ABS(DO27)>ABS(SUM(DO19:DO26)),SUM(DO19:DO26),ABS(DO27))),DO27)),(IF(DO27>0,(IF(ABS(DO27)>ABS(SUM(DO19:DO26)),SUM(DO19:DO27),0)),0))) -> 30.994 | DS27: =IF(SUM(DO19:DO26)<0,(IF(DO27<0,DO27,(IF(ABS(DO27)>ABS(SUM(DO19:DO26)),SUM(DO19:DO26),0-DO27)))),(IF(DO27<0,(IF(ABS(DO27)>ABS(SUM(DO19:DO26)),SUM(DO19:DO27),0)),0))) -> 0 | DT27: Ostali poslovni rashodi Δ | DU27: 0.030994 | DW27: 0.85592 | DX27: 0.030994 | DY27: 0
BA28: Neto radni kapital | BB28: =Bilanca!C40-Bilanca!C115 -> -108.31 | BC28: =Bilanca!D40-Bilanca!D115 -> 34.071 | BD28: =Bilanca!E40-Bilanca!E115 -> 356.044 | BE28: =Bilanca!F40-Bilanca!F115 -> -257.29 | BF28: =Bilanca!G40-Bilanca!G115 -> 229.385 | BG28: =Bilanca!H40-Bilanca!H115 -> 31.412 | BH28: =Bilanca!I40-Bilanca!I115 -> -73.703 | BL28: Donja granica | BM28: 1.1 | BN28: 1.1 | BO28: 1.1 | BP28: 1.1 | BQ28: 1.1 | BR28: 1.1 | BS28: 1.1 | CH28: Planirana bruto dobit tekuće godine | CI28: =CI10/1000 -> 0.03965 | CJ28: =CJ10/1000 -> 0.03965 | CN28: =CN10 -> Planirana bruto dobit tekuće godine | CO28: =CO10/1000 -> 0.03965 | CU28: 0 | CY28: Financijski rashodi (bez kamata) Δ | CZ28: 0.000429 | DB28: 0.886615 | DC28: 0.000429 | DD28: =DD10/1000 -> 0 | DE28: Financijski rashodi (bez kamata) Δ | DF28: 0 | DG28: 0.886615 | DH28: 0.000429 | DI28: 0 | DJ28: 0 | DK28: 0 | DL28: 0 | DN28: Financijski rashodi (bez kamata) Δ | DO28: =(RDG!D45-RDG!D46-RDG!D48)-(RDG!E45-RDG!E46-RDG!E48) -> 0.13 | DQ28: =IF(SUM(DO19:DO27)>=0,(IF(DO28>=0,SUM(DO19:DO27),(IF(ABS(SUM(DO19:DO27))>ABS(DO28),SUM(DO19:DO28),0)))),(IF(DO28<0,SUM(DO19:DO27),(IF(ABS(SUM(DO19:DO27))>ABS(DO28),SUM(DO19:DO28),0))))) -> 886.914 | DR28: =IF(SUM(DO19:DO27)>=0,(IF(DO28<0,(IF(ABS(DO28)>ABS(SUM(DO19:DO27)),SUM(DO19:DO27),ABS(DO28))),DO28)),(IF(DO28>0,(IF(ABS(DO28)>ABS(SUM(DO19:DO27)),SUM(DO19:DO28),0)),0))) -> 0.13 | DS28: =IF(SUM(DO19:DO27)<0,(IF(DO28<0,DO28,(IF(ABS(DO28)>ABS(SUM(DO19:DO27)),SUM(DO19:DO27),0-DO28)))),(IF(DO28<0,(IF(ABS(DO28)>ABS(SUM(DO19:DO27)),SUM(DO19:DO28),0)),0))) -> 0 | DT28: Financijski rashodi (bez kamata) Δ | DU28: 0.00013 | DW28: 0.886914 | DX28: 0.00013 | DY28: 0
BA29: Koeficijent tekuće likvidnosti | BB29: =Bilanca!C40/Bilanca!C115 -> 0.7407927706 | BC29: =Bilanca!D40/Bilanca!D115 -> 1.050573781 | BD29: =Bilanca!E40/Bilanca!E115 -> 1.528496702 | BE29: =Bilanca!F40/Bilanca!F115 -> 0.664706258 | BF29: =Bilanca!G40/Bilanca!G115 -> 1.396047895 | BG29: =Bilanca!H40/Bilanca!H115 -> 1.03746781 | BH29: =Bilanca!I40/Bilanca!I115 -> 0.925037861 | CH29: Poslovni prihodi Δ | CI29: =CI11/1000 -> 0.020827 | CK29: =CK11/1000 -> 0.03965 | CL29: 0.020827 | CM29: =CM11/1000 -> 0 | CN29: =CN11 -> Poslovni prihodi Δ | CO29: =CO11/1000 -> 0 | CP29: 0.03965 | CQ29: 0.020827 | CR29: 0 | CS29: 0 | CT29: 0 | CU29: 0 | CY29: Procijenjena EBITDA tekuće godine | CZ29: =CZ11/1000 -> 0.887044 | DA29: =DA11/1000 -> 0.887044 | DE29: Procijenjena EBITDA tekuće godine | DF29: 0.887044 | DL29: 0 | DN29: Procijenjena EBITDA tekuće godine | DO29: =BD3 -> 887.044 | DP29: =DO29 -> 887.044 | DT29: Procijenjena EBITDA tekuće godine | DU29: 0.887044 | DV29: =DP29/1000 -> 0.887044
BA30: Koeficijent ubrzane likvidnosti | BB30: =(Bilanca!C40-Bilanca!C41)/Bilanca!C115 -> 0.6791535739 | BC30: =(Bilanca!D40-Bilanca!D41)/Bilanca!D115 -> 1.000872806 | BD30: =(Bilanca!E40-Bilanca!E41)/Bilanca!E115 -> 1.487296866 | BE30: =(Bilanca!F40-Bilanca!F41)/Bilanca!F115 -> 0.60013136 | BF30: =(Bilanca!G40-Bilanca!G41)/Bilanca!G115 -> 1.231506341 | BG30: =(Bilanca!H40-Bilanca!H41)/Bilanca!H115 -> 0.9121655874 | BH30: =(Bilanca!I40-Bilanca!I41)/Bilanca!I115 -> 0.8062424545 | CH30: Materijalni troškovi Δ | CI30: 0.307343 | CK30: 0.060477 | CL30: 0.307343 | CM30: =CM12/1000 -> 0 | CN30: Materijalni troškovi Δ | CO30: 0 | CP30: 0.060477 | CQ30: 0.307343 | CR30: 0 | CS30: 0 | CT30: 0 | CU30: 0 | DQ30: =DT19 -> Ostvarena EBITDA prethodne godine | DR30: =DU19 -> 0.799905 | DS30: =DV19 -> 0.799905 | DY30: 0
BB31: =Podloga!B34 -> 2023. ostvareno | BC31: =Podloga!C34 -> 2024. ostvareno | BD31: =Podloga!D34 -> 2025. procijenjeno | BE31: =Podloga!E34 -> 2025. planirano | BF31: =Podloga!F34 -> 2026. planirano | BG31: =Podloga!G34 -> 2027. planirano | BH31: =Podloga!H34 -> 2028. planirano | CH31: Troškovi osoblja Δ | CI31: 0.108788 | CK31: 0.36782 | CL31: 0.108788 | CM31: =CM13/1000 -> 0 | CN31: Troškovi osoblja Δ | CO31: 0 | CP31: 0.36782 | CQ31: 0.108788 | CR31: 0 | CS31: 0 | CT31: 0 | CU31: 0 | DQ31: =DT20 -> Prihodi od prodaje Δ | DR31: 0.286429 | DT31: =DW20 -> 0.799905 | DU31: =IF(DU20>=0,DX20,0) -> 0.286429 | DV31: =IF(DU20<0,DX20,0) -> 0 | DW31: =IF(DU20>=0,DY20,0) -> 0 | DX31: =IF(DU20<0,DY20,0) -> 0 | DY31: 0
BA32: Kapital/imovina | BB32: =Bilanca!C75/Bilanca!C68 -> 0.05976537259 | BC32: =Bilanca!D75/Bilanca!D68 -> 0.07841861728 | BD32: =Bilanca!E75/Bilanca!E68 -> 0.09092737671 | BE32: =Bilanca!F75/Bilanca!F68 -> 0.03221027817 | BF32: =Bilanca!G75/Bilanca!G68 -> 0.06367138914 | BG32: =Bilanca!H75/Bilanca!H68 -> 0.06255815093 | BH32: =Bilanca!I75/Bilanca!I68 -> 0.06485005272 | CH32: Ostali poslovni rashodi Δ | CI32: -0.056873 | CK32: 0.419735 | CL32: 0.056873 | CM32: =CM14/1000 -> 0 | CN32: Ostali poslovni rashodi Δ | CO32: 0 | CP32: 0.419735 | CQ32: 0 | CR32: 0.056873 | CS32: 0 | CT32: 0 | CU32: 0 | DQ32: Ostali prihodi Δ | DR32: -0.088421 | DT32: 0.997913 | DU32: 0 | DV32: 0.088421 | DW32: 0 | DX32: 0 | DY32: 0
BA33: Kapacitet zaduženja na 5 godina | BB33: =BB3*5 -> -1301.53715 | BC33: =BC3*5 -> 3999.525 | BD33: 4435.22 | BE33: 2506.95 | BF33: 2939.56 | BG33: 2975.825 | BH33: 3069.86 | CH33: Financijski i investicijski prihodi Δ | CI33: -0.000491 | CK33: 0.419244 | CL33: 0.000491 | CM33: =CM15/1000 -> 0 | CN33: Financijski i investicijski prihodi Δ | CO33: 0 | CP33: 0.419244 | CQ33: 0 | CR33: 0.000491 | CS33: 0 | CT33: 0 | CU33: 0 | DQ33: Promjena vrijednosti zaliha Δ | DR33: 0 | DT33: 0.997913 | DU33: 0 | DV33: 0 | DW33: 0 | DX33: 0 | DY33: 0
BA34: Odnos duga i EBITDA | BB34: =BB10/BB3 -> -49.03894599 | BC34: =BC10/BC3 -> 16.87184079 | BD34: 17.33098922 | BE34: 52.21065239 | BF34: 39.71491822 | BG34: 41.3151395 | BH34: 40.30055605 | CH34: Financijski i investicijski rashodi Δ | CI34: -0.029627 | CK34: 0.389617 | CL34: 0.029627 | CM34: =CM16/1000 -> 0 | CN34: Financijski i investicijski rashodi Δ | CO34: 0 | CP34: 0.389617 | CQ34: 0 | CR34: 0.029627 | CS34: 0 | CT34: 0 | CU34: 0 | DQ34: Materijalni troškovi Δ | DR34: 0.121926 | DT34: 0.997913 | DU34: 0.121926 | DV34: 0 | DW34: 0 | DX34: 0 | DY34: 0
BB35: =Podloga!B34 -> 2023. ostvareno | BC35: =Podloga!C34 -> 2024. ostvareno | BD35: =Podloga!D34 -> 2025. procijenjeno | BE35: =Podloga!E34 -> 2025. planirano | BF35: =Podloga!F34 -> 2026. planirano | BG35: =Podloga!G34 -> 2027. planirano | BH35: =Podloga!H34 -> 2028. planirano | CH35: Procijenjena bruto dobit tekuće godine | CI35: 0.389617 | CJ35: =CJ17/1000 -> 0.389617 | CN35: Procijenjena bruto dobit tekuće godine | CO35: 0.389617 | CU35: 0 | DQ35: Troškovi osoblja Δ | DR35: -0.283848 | DT35: 0.835991 | DU35: 0 | DV35: 0.283848 | DW35: 0 | DX35: 0 | DY35: 0
BA36: Dani vezivanja zaliha | BB36: =365/BB37 -> 8.648041506 | BC36: 9.416947013 | BD36: 6.394879017 | BE36: 10.4762313 | BF36: 16.70079532 | BG36: 15.19453218 | BH36: 15.52768902 | DQ36: Vrijednosna usklađenja Δ | DR36: 0 | DT36: 0.835991 | DU36: 0 | DV36: 0 | DW36: 0 | DX36: 0 | DY36: 0
BA37: Koeficijent obrtaja zaliha | BB37: =(RDG!C6+RDG!C7)/Bilanca!C41 -> 42.2060879 | BC37: =(RDG!D6+RDG!D7)/Bilanca!D41 -> 38.75990801 | BD37: =(RDG!E6+RDG!E7)/Bilanca!E41 -> 57.07692031 | BE37: =(RDG!F6+RDG!F7)/Bilanca!F41 -> 34.84077333 | BF37: =(RDG!G6+RDG!G7)/Bilanca!G41 -> 21.85524659 | BG37: =(RDG!H6+RDG!H7)/Bilanca!H41 -> 24.02179914 | BH37: =(RDG!I6+RDG!I7)/Bilanca!I41 -> 23.50639555 | DQ37: Rezerviranja Δ | DR37: 0.019929 | DT37: 0.835991 | DU37: 0.019929 | DV37: 0 | DW37: 0 | DX37: 0 | DY37: 0
BA38: Dugoročne obveze | BB38: =Bilanca!C103 -> 2959.654 | BC38: =Bilanca!D103 -> 2722.38581 | BD38: =Bilanca!E103 -> 2931.57 | BE38: =Bilanca!F103 -> 2743.27 | BF38: =Bilanca!G103 -> 2978.675 | BG38: =Bilanca!H103 -> 3174.341 | BH38: =Bilanca!I103 -> 3819.475 | DQ38: Ostali poslovni rashodi Δ | DR38: 0.030994 | DT38: 0.85592 | DU38: 0.030994 | DV38: 0 | DW38: 0 | DX38: 0 | DY38: 0
BB39: =Podloga!B34 -> 2023. ostvareno | BC39: =Podloga!C34 -> 2024. ostvareno | BD39: =Podloga!D34 -> 2025. procijenjeno | BE39: =Podloga!E34 -> 2025. planirano | BF39: =Podloga!F34 -> 2026. planirano | BG39: =Podloga!G34 -> 2027. planirano | BH39: =Podloga!H34 -> 2028. planirano | DQ39: Financijski rashodi (bez kamata) Δ | DR39: 0.00013 | DT39: 0.886914 | DU39: 0.00013 | DV39: 0 | DW39: 0 | DX39: 0 | DY39: 0
BA40: Trajanje naplate potraživanja | BB40: =365/BB41 -> 12.45430795 | BC40: 72.42580895 | BD40: 82.55351979 | BE40: 37.10719519 | BF40: 19.27688862 | BG40: 18.20884965 | BH40: 17.69465247 | DQ40: Procijenjena EBITDA tekuće godine | DR40: 0.887044 | DS40: =DV29 -> 0.887044 | DY40: 0
BA41: Koeficijent obrtaja potraživanja | BB41: =(RDG!C6+RDG!C7)/(Bilanca!C52) -> 29.30712822 | BC41: =(RDG!D6+RDG!D7)/(Bilanca!D52) -> 5.039639947 | BD41: =(RDG!E6+RDG!E7)/(Bilanca!E52) -> 4.421374169 | BE41: =(RDG!F6+RDG!F7)/(Bilanca!F52) -> 9.836367262 | BF41: =(RDG!G6+RDG!G7)/(Bilanca!G52) -> 18.93459091 | BG41: =(RDG!H6+RDG!H7)/(Bilanca!H52) -> 20.04519819 | BH41: =(RDG!I6+RDG!I7)/(Bilanca!I52) -> 20.62770098
BB52: =Podloga!B34 -> 2023. ostvareno | BC52: =Podloga!C34 -> 2024. ostvareno | BD52: =Podloga!D34 -> 2025. procijenjeno | BE52: =Podloga!E34 -> 2025. planirano | BF52: =Podloga!F34 -> 2026. planirano | BG52: =Podloga!G34 -> 2027. planirano | BH52: =Podloga!H34 -> 2028. planirano
BA53: Poslovne akt. | BB53: =IF(Podloga!$B$17="Direktna",'NT dir.'!C18,'NT indir.'!C26) -> 519.348 | BC53: =IF(Podloga!$B$17="Direktna",'NT dir.'!D18,'NT indir.'!D26) -> 1389.142 | BD53: =IF(Podloga!$B$17="Direktna",'NT dir.'!E18,'NT indir.'!E26) -> 2306.943 | BE53: =IF(Podloga!$B$17="Direktna",'NT dir.'!F18,'NT indir.'!F26) -> -55.85 | BF53: =IF(Podloga!$B$17="Direktna",'NT dir.'!G18,'NT indir.'!G26) -> 12806.438 | BG53: =IF(Podloga!$B$17="Direktna",'NT dir.'!H18,'NT indir.'!H26) -> 2957.441 | BH53: =IF(Podloga!$B$17="Direktna",'NT dir.'!I18,'NT indir.'!I26) -> 3313.017
BA54: Investicijske akt. | BB54: =IF(Podloga!$B$17="Direktna",'NT dir.'!C33,'NT indir.'!C41) -> -1156.853 | BC54: =IF(Podloga!$B$17="Direktna",'NT dir.'!D33,'NT indir.'!D41) -> -1103.927 | BD54: =IF(Podloga!$B$17="Direktna",'NT dir.'!E33,'NT indir.'!E41) -> -2004.667 | BE54: =IF(Podloga!$B$17="Direktna",'NT dir.'!F33,'NT indir.'!F41) -> -12467.053 | BF54: =IF(Podloga!$B$17="Direktna",'NT dir.'!G33,'NT indir.'!G41) -> -12717.421 | BG54: =IF(Podloga!$B$17="Direktna",'NT dir.'!H33,'NT indir.'!H41) -> -2694.6 | BH54: =IF(Podloga!$B$17="Direktna",'NT dir.'!I33,'NT indir.'!I41) -> -2997.895
BA55: Financijske akt. | BB55: =IF(Podloga!$B$17="Direktna",'NT dir.'!C46+'NT dir.'!C47,'NT indir.'!C54+'NT indir.'!C55) -> -82.519 | BC55: =IF(Podloga!$B$17="Direktna",'NT dir.'!D46+'NT dir.'!D47,'NT indir.'!D54+'NT indir.'!D55) -> 23.437 | BD55: =IF(Podloga!$B$17="Direktna",'NT dir.'!E46+'NT dir.'!E47,'NT indir.'!E54+'NT indir.'!E55) -> -38.854 | BE55: =IF(Podloga!$B$17="Direktna",'NT dir.'!F46+'NT dir.'!F47,'NT indir.'!F54+'NT indir.'!F55) -> -217.491 | BF55: =IF(Podloga!$B$17="Direktna",'NT dir.'!G46+'NT dir.'!G47,'NT indir.'!G54+'NT indir.'!G55) -> -136.992 | BG55: =IF(Podloga!$B$17="Direktna",'NT dir.'!H46+'NT dir.'!H47,'NT indir.'!H54+'NT indir.'!H55) -> -207.341 | BH55: =IF(Podloga!$B$17="Direktna",'NT dir.'!I46+'NT dir.'!I47,'NT indir.'!I54+'NT indir.'!I55) -> -315.132
BA56: Ukupno novč. tokovi | BB56: =IF(Podloga!$B$17="Direktna",'NT dir.'!C48,'NT indir.'!C56) -> -720.024 | BC56: =IF(Podloga!$B$17="Direktna",'NT dir.'!D48,'NT indir.'!D56) -> 308.652 | BD56: =IF(Podloga!$B$17="Direktna",'NT dir.'!E48,'NT indir.'!E56) -> 263.422 | BE56: =IF(Podloga!$B$17="Direktna",'NT dir.'!F48,'NT indir.'!F56) -> 179.096 | BF56: =IF(Podloga!$B$17="Direktna",'NT dir.'!G48,'NT indir.'!G56) -> -47.97 | BG56: =IF(Podloga!$B$17="Direktna",'NT dir.'!H48,'NT indir.'!H56) -> 55.5 | BH56: =IF(Podloga!$B$17="Direktna",'NT dir.'!I48,'NT indir.'!I56) -> 20
BB59: =Podloga!B34 -> 2023. ostvareno | BC59: =Podloga!C34 -> 2024. ostvareno | BD59: =Podloga!D34 -> 2025. procijenjeno | BE59: =Podloga!E34 -> 2025. planirano | BF59: =Podloga!F34 -> 2026. planirano | BG59: =Podloga!G34 -> 2027. planirano | BH59: =Podloga!H34 -> 2028. planirano
BA60: Ukupni prihodi | BB60: =RDG!C57 -> 2963.93357 | BC60: =RDG!D57 -> 3814.528 | BD60: =RDG!E57 -> 4012.536 | BE60: =RDG!F57 -> 3992.2 | BF60: =RDG!G57 -> 4802.955 | BG60: =RDG!H57 -> 5003.64 | BH60: =RDG!I57 -> 5215.707
BA61: Prihodi od prodaje | BB61: =RDG!C6+RDG!C7 -> 1087.06 | BC61: =RDG!D6+RDG!D7 -> 1297.798 | BD61: =RDG!E6+RDG!E7 -> 1584.227 | BE61: =RDG!F6+RDG!F7 -> 1726.43 | BF61: =RDG!G6+RDG!G7 -> 2082.805 | BG61: =RDG!H6+RDG!H7 -> 2523.49 | BH61: =RDG!I6+RDG!I7 -> 2745.547
BA62: Ostali prihodi | BB62: =RDG!C57-RDG!C6-RDG!C7 -> 1876.87357 | BC62: =RDG!D57-RDG!D6-RDG!D7 -> 2516.73 | BD62: =RDG!E57-RDG!E6-RDG!E7 -> 2428.309 | BE62: =RDG!F57-RDG!F6-RDG!F7 -> 2265.77 | BF62: =RDG!G57-RDG!G6-RDG!G7 -> 2720.15 | BG62: =RDG!H57-RDG!H6-RDG!H7 -> 2480.15 | BH62: =RDG!I57-RDG!I6-RDG!I7 -> 2470.16
BA63: Ukupni rashodi | BB63: =(0-RDG!C58) -> -3683.272 | BC63: =(0-RDG!D58) -> -3477.119 | BD63: =(0-RDG!E58) -> -3622.919 | BE63: =(0-RDG!F58) -> -3952.55 | BF63: =(0-RDG!G58) -> -4755.043 | BG63: =(0-RDG!H58) -> -4950.475 | BH63: =(0-RDG!I58) -> -5140.735
BA64: Bruto dobit | BB64: =RDG!C59 -> -719.33843 | BC64: =RDG!D59 -> 337.409 | BD64: =RDG!E59 -> 389.617 | BE64: =RDG!F59 -> 39.65 | BF64: =RDG!G59 -> 47.912 | BG64: =RDG!H59 -> 53.165 | BH64: =RDG!I59 -> 74.972
BA65: Marža bruto dobiti | BB65: =BB64/BB60 -> -0.2426972174 | BC65: =BC64/BC60 -> 0.08845366976 | BD65: 0.09709993879 | BE65: 0.009931867141 | BF65: 0.009975525484 | BG65: 0.01062526481 | BH65: 0.01437427371
BB68: =Podloga!B34 -> 2023. ostvareno | BC68: =Podloga!C34 -> 2024. ostvareno | BD68: =Podloga!D34 -> 2025. procijenjeno | BE68: =Podloga!E34 -> 2025. planirano | BF68: =Podloga!F34 -> 2026. planirano | BG68: =Podloga!G34 -> 2027. planirano | BH68: =Podloga!H34 -> 2028. planirano
BA69: Promjene vrijednosti zaliha | BB69: =RDG!C12 -> 0 | BC69: =RDG!D12 -> 0 | BD69: =RDG!E12 -> 0 | BE69: =RDG!F12 -> 0 | BF69: =RDG!G12 -> 0 | BG69: =RDG!H12 -> 0 | BH69: =RDG!I12 -> 0
BA70: Materijalni troškovi | BB70: =RDG!C13 -> 2032.807 | BC70: =RDG!D13 -> 1512.563 | BD70: =RDG!E13 -> 1390.637 | BE70: =RDG!F13 -> 1697.98 | BF70: =RDG!G13 -> 2105.259 | BG70: =RDG!H13 -> 2237.45 | BH70: =RDG!I13 -> 2357
BA71: Troškovi osoblja | BB71: =RDG!C17 -> 838.818 | BC71: =RDG!D17 -> 1117.044 | BD71: =RDG!E17 -> 1400.892 | BE71: =RDG!F17 -> 1509.68 | BF71: =RDG!G17 -> 1649.73 | BG71: =RDG!H17 -> 1698.764 | BH71: =RDG!I17 -> 1768.391
BA72: Amortizacija | BB72: =RDG!C21 -> 366.921 | BC72: =RDG!D21 -> 372.131 | BD72: =RDG!E21 -> 377.631 | BE72: =RDG!F21 -> 372 | BF72: =RDG!G21 -> 420 | BG72: =RDG!H21 -> 425 | BH72: =RDG!I21 -> 430
BA73: Vrijednosna usklađenja | BB73: =RDG!C23 -> 0 | BC73: =RDG!D23 -> 0 | BD73: =RDG!E23 -> 0 | BE73: =RDG!F23 -> 0 | BF73: =RDG!G23 -> 0 | BG73: =RDG!H23 -> 0 | BH73: =RDG!I23 -> 0
BA74: Rezerviranja | BB74: =RDG!C26 -> 65.43 | BC74: =RDG!D26 -> 85.14 | BD74: =RDG!E26 -> 65.211 | BE74: =RDG!F26 -> 0 | BF74: =RDG!G26 -> 73.21 | BG74: =RDG!H26 -> 68.7 | BH74: =RDG!I26 -> 69.1
BA75: Ostali poslovni rashodi | BB75: =RDG!C22+RDG!C33 -> 286.919 | BC75: =RDG!D22+RDG!D33 -> 299.525 | BD75: =RDG!E22+RDG!E33 -> 268.531 | BE75: =RDG!F22+RDG!F33 -> 282.5 | BF75: =RDG!G22+RDG!G33 -> 386.644 | BG75: =RDG!H22+RDG!H33 -> 403.411 | BH75: =RDG!I22+RDG!I33 -> 407.144
BA79: Bilanca (u 000 kn)
BB80: =Podloga!B34 -> 2023. ostvareno | BC80: =Podloga!C34 -> 2024. ostvareno | BD80: =Podloga!D34 -> 2025. procijenjeno | BE80: =Podloga!E34 -> 2025. planirano | BF80: =Podloga!F34 -> 2026. planirano | BG80: =Podloga!G34 -> 2027. planirano | BH80: =Podloga!H34 -> 2028. planirano
BA81: Dugotrajna imovina | BB81: =Bilanca!C5+Bilanca!C4 -> 13185.73 | BC81: =Bilanca!D5+Bilanca!D4 -> 13933.87241 | BD81: =Bilanca!E5+Bilanca!E4 -> 15781.77266 | BE81: =Bilanca!F5+Bilanca!F4 -> 26432.344 | BF81: =Bilanca!G5+Bilanca!G4 -> 24023.217 | BG81: =Bilanca!H5+Bilanca!H4 -> 25221.65 | BH81: =Bilanca!I5+Bilanca!I4 -> 25404.8
BA82: Kratkotrajna imovina | BB82: =Bilanca!C40 -> 309.541 | BC82: =Bilanca!D40 -> 707.76 | BD82: =Bilanca!E40 -> 1029.736 | BE82: =Bilanca!F40 -> 510.067 | BF82: =Bilanca!G40 -> 808.57 | BG82: =Bilanca!H40 -> 869.785 | BH82: =Bilanca!I40 -> 909.5
BA83: Plaćeni troškovi budućeg razdoblja i obračunati prihodi | BB83: =Bilanca!C67 -> 104.845 | BC83: =Bilanca!D67 -> 26.109 | BD83: =Bilanca!E67 -> 123.336 | BE83: =Bilanca!F67 -> 106.75 | BF83: =Bilanca!G67 -> 104.845 | BG83: =Bilanca!H67 -> 138.8 | BH83: =Bilanca!I67 -> 145
BA84: Ukupno aktiva | BB84: =SUM(BB81:BB83) -> 13600.116 | BC84: 14667.74141 | BD84: 16934.84466 | BE84: 27049.161 | BF84: 24936.632 | BG84: 26230.235 | BH84: =SUM(BH81:BH83) -> 26459.3
BA86: Kapital i rezerve | BB86: =Bilanca!C75 -> 812.816 | BC86: =Bilanca!D75 -> 1150.224 | BD86: =Bilanca!E75 -> 1539.841 | BE86: =Bilanca!F75 -> 871.261 | BF86: =Bilanca!G75 -> 1587.75 | BG86: =Bilanca!H75 -> 1640.915 | BH86: =Bilanca!I75 -> 1715.887
BA87: Rezerviranja | BB87: =Bilanca!C96 -> 22.103 | BC87: =Bilanca!D96 -> 21.65 | BD87: =Bilanca!E96 -> 21.65 | BE87: =Bilanca!F96 -> 0 | BF87: =Bilanca!G96 -> 0 | BG87: =Bilanca!H96 -> 0 | BH87: =Bilanca!I96 -> 0
BA88: Dugoročne obveze | BB88: =Bilanca!C103 -> 2959.654 | BC88: =Bilanca!D103 -> 2722.38581 | BD88: =Bilanca!E103 -> 2931.57 | BE88: =Bilanca!F103 -> 2743.27 | BF88: =Bilanca!G103 -> 2978.675 | BG88: =Bilanca!H103 -> 3174.341 | BH88: =Bilanca!I103 -> 3819.475
BA89: Kratkoročne obveze | BB89: =Bilanca!C115 -> 417.851 | BC89: =Bilanca!D115 -> 673.689 | BD89: =Bilanca!E115 -> 673.692 | BE89: =Bilanca!F115 -> 767.357 | BF89: =Bilanca!G115 -> 579.185 | BG89: =Bilanca!H115 -> 838.373 | BH89: =Bilanca!I115 -> 983.203
BA90: Odgođeno plaćanje troškova i prihod budućeg razdoblja | BB90: =Bilanca!C130 -> 9387.697 | BC90: =Bilanca!D130 -> 10099.795 | BD90: =Bilanca!E130 -> 11768.088 | BE90: =Bilanca!F130 -> 22667.272 | BF90: =Bilanca!G130 -> 19791.017 | BG90: =Bilanca!H130 -> 20576.611 | BH90: =Bilanca!I130 -> 19940.735
BA91: Ukupna pasiva | BB91: =SUM(BB86:BB90) -> 13600.121 | BC91: 14667.74381 | BD91: 16934.841 | BE91: 27049.16 | BF91: 24936.627 | BG91: 26230.24 | BH91: =SUM(BH86:BH90) -> 26459.3
BA92: Ukupne obveze | BB92: =SUM(BB87:BB90) -> 12787.305 | BC92: 13517.51981 | BD92: 15395 | BE92: 26177.899 | BF92: 23348.877 | BG92: 24589.325 | BH92: =SUM(BH87:BH90) -> 24743.413
BB93: =IFERROR(((Bilanca!C96+Bilanca!C103+Bilanca!C115+Bilanca!C130)/Bilanca!C68),) -> 0.9402349951 | BC93: =IFERROR(((Bilanca!D96+Bilanca!D103+Bilanca!D115+Bilanca!D130)/Bilanca!D68),) -> 0.9215815463 | BD93: =IFERROR(((Bilanca!E96+Bilanca!E103+Bilanca!E115+Bilanca!E130)/Bilanca!E68),) -> 0.9090724072 | BE93: =IFERROR(((Bilanca!F96+Bilanca!F103+Bilanca!F115+Bilanca!F130)/Bilanca!F68),) -> 0.9677896849 | BF93: =IFERROR(((Bilanca!G96+Bilanca!G103+Bilanca!G115+Bilanca!G130)/Bilanca!G68),) -> 0.9363284103 | BG93: =IFERROR(((Bilanca!H96+Bilanca!H103+Bilanca!H115+Bilanca!H130)/Bilanca!H68),) -> 0.9374420397 | BH93: =IFERROR(((Bilanca!I96+Bilanca!I103+Bilanca!I115+Bilanca!I130)/Bilanca!I68),) -> 0.9351499473
BB94: =IFERROR((Bilanca!C75/Bilanca!C68),) -> 0.05976537259 | BC94: =IFERROR((Bilanca!D75/Bilanca!D68),) -> 0.07841861728 | BD94: =IFERROR((Bilanca!E75/Bilanca!E68),) -> 0.09092737671 | BE94: =IFERROR((Bilanca!F75/Bilanca!F68),) -> 0.03221027817 | BF94: =IFERROR((Bilanca!G75/Bilanca!G68),) -> 0.06367138914 | BG94: =IFERROR((Bilanca!H75/Bilanca!H68),) -> 0.06255815093 | BH94: =IFERROR((Bilanca!I75/Bilanca!I68),) -> 0.06485005272
BB95: =Podloga!D34 -> 2025. procijenjeno | BC95: =Podloga!E34 -> 2025. planirano
BA96: Ukupni prihod | BB96: =RDG!E57 -> 4012.536 | BC96: =RDG!F57 -> 3992.2
BA97: Trošak prodanih proizvoda | BB97: =RDG!E13 -> 1390.637 | BC97: =RDG!F13 -> 1697.98
BA98: Bruto marža | BB98: =BB96-BB97 -> 2621.899 | BC98: =BC96-BC97 -> 2294.22
BA99: Promjene vrijednosti zaliha | BB99: =RDG!E12 -> 0 | BC99: =RDG!F12 -> 0
BA100: Trošak osoblja | BB100: =RDG!E17 -> 1400.892 | BC100: =RDG!F17 -> 1509.68
BA101: Vrijednosna usklađenja | BB101: =RDG!E23 -> 0 | BC101: =RDG!F23 -> 0
BA102: Rezerviranja | BB102: =RDG!E26 -> 65.211 | BC102: =RDG!F26 -> 0
BA103: Financijski rashod (bez kamata) | BB103: =RDG!E45-RDG!E46-RDG!E48 -> 0.221 | BC103: =RDG!F45-RDG!F46-RDG!F48 -> 0.65
BA104: Ostali rashodi | BB104: =RDG!E22+RDG!E33+RDG!E55+RDG!E56 -> 268.531 | BC104: =RDG!F22+RDG!F33+RDG!F55+RDG!F56 -> 282.5
BA105: EBITDA | BB105: =BD3 -> 887.044 | BC105: =BE3 -> 501.39
BA107: Kontrola | BB107: =BB96-BB97-BB99-BB100-BB101-BB102-BB103-BB104 -> 887.044 | BC107: =BC96-BC97-BC99-BC100-BC101-BC102-BC103-BC104 -> 501.39
BN120: Analiza novčanih izdataka
BO121: =Podloga!B34 -> 2023. ostvareno | BP121: =Podloga!C34 -> 2024. ostvareno | BQ121: =Podloga!D34 -> 2025. procijenjeno | BR121: =Podloga!E34 -> 2025. planirano | BS121: =Podloga!F34 -> 2026. planirano | BT121: =Podloga!G34 -> 2027. planirano | BU121: =Podloga!H34 -> 2028. planirano
BN122: Novčani izdaci dobavljačima | BO122: =IF(Podloga!$B$17="Direktna",'NT dir.'!C11,) -> 0 | BP122: =IF(Podloga!$B$17="Direktna",'NT dir.'!D11,) -> 0 | BQ122: =IF(Podloga!$B$17="Direktna",'NT dir.'!E11,) -> 0 | BR122: =IF(Podloga!$B$17="Direktna",'NT dir.'!F11,) -> 0 | BS122: =IF(Podloga!$B$17="Direktna",'NT dir.'!G11,) -> 0 | BT122: =IF(Podloga!$B$17="Direktna",'NT dir.'!H11,) -> 0 | BU122: =IF(Podloga!$B$17="Direktna",'NT dir.'!I11,) -> 0
BN123: Novčani izdaci za zaposlene | BO123: =IF(Podloga!$B$17="Direktna",'NT dir.'!C12,) -> 0 | BP123: =IF(Podloga!$B$17="Direktna",'NT dir.'!D12,) -> 0 | BQ123: =IF(Podloga!$B$17="Direktna",'NT dir.'!E12,) -> 0 | BR123: =IF(Podloga!$B$17="Direktna",'NT dir.'!F12,) -> 0 | BS123: =IF(Podloga!$B$17="Direktna",'NT dir.'!G12,) -> 0 | BT123: =IF(Podloga!$B$17="Direktna",'NT dir.'!H12,) -> 0 | BU123: =IF(Podloga!$B$17="Direktna",'NT dir.'!I12,) -> 0
BN124: Novčani izdaci za osiguranje za naknadu štete | BO124: =IF(Podloga!$B$17="Direktna",'NT dir.'!C13,) -> 0 | BP124: =IF(Podloga!$B$17="Direktna",'NT dir.'!D13,) -> 0 | BQ124: =IF(Podloga!$B$17="Direktna",'NT dir.'!E13,) -> 0 | BR124: =IF(Podloga!$B$17="Direktna",'NT dir.'!F13,) -> 0 | BS124: =IF(Podloga!$B$17="Direktna",'NT dir.'!G13,) -> 0 | BT124: =IF(Podloga!$B$17="Direktna",'NT dir.'!H13,) -> 0 | BU124: =IF(Podloga!$B$17="Direktna",'NT dir.'!I13,) -> 0
BN125: Novčani izdaci za kamate | BO125: =IF(Podloga!$B$17="Direktna",'NT dir.'!C16,) -> 0 | BP125: =IF(Podloga!$B$17="Direktna",'NT dir.'!D16,) -> 0 | BQ125: =IF(Podloga!$B$17="Direktna",'NT dir.'!E16,) -> 0 | BR125: =IF(Podloga!$B$17="Direktna",'NT dir.'!F16,) -> 0 | BS125: =IF(Podloga!$B$17="Direktna",'NT dir.'!G16,) -> 0 | BT125: =IF(Podloga!$B$17="Direktna",'NT dir.'!H16,) -> 0 | BU125: =IF(Podloga!$B$17="Direktna",'NT dir.'!I16,) -> 0
BN126: Plaćeni porez na dobit | BO126: =IF(Podloga!$B$17="Direktna",'NT dir.'!C17,) -> 0 | BP126: =IF(Podloga!$B$17="Direktna",'NT dir.'!D17,) -> 0 | BQ126: =IF(Podloga!$B$17="Direktna",'NT dir.'!E17,) -> 0 | BR126: =IF(Podloga!$B$17="Direktna",'NT dir.'!F17,) -> 0 | BS126: =IF(Podloga!$B$17="Direktna",'NT dir.'!G17,) -> 0 | BT126: =IF(Podloga!$B$17="Direktna",'NT dir.'!H17,) -> 0 | BU126: =IF(Podloga!$B$17="Direktna",'NT dir.'!I17,) -> 0
BN127: Ostali novčani izdaci iz poslovanja | BO127: =IF(Podloga!$B$17="Direktna",'NT dir.'!C14,) -> 0 | BP127: =IF(Podloga!$B$17="Direktna",'NT dir.'!D14,) -> 0 | BQ127: =IF(Podloga!$B$17="Direktna",'NT dir.'!E14,) -> 0 | BR127: =IF(Podloga!$B$17="Direktna",'NT dir.'!F14,) -> 0 | BS127: =IF(Podloga!$B$17="Direktna",'NT dir.'!G14,) -> 0 | BT127: =IF(Podloga!$B$17="Direktna",'NT dir.'!H14,) -> 0 | BU127: =IF(Podloga!$B$17="Direktna",'NT dir.'!I14,) -> 0

Sheet Sazetak (hidden)
N1: Tablica za Interni izvještaj
B2: =Podloga!B2 -> Zračna luka Osijek d.o.o. | N2: =Podloga!L2 -> 0
B6: BILANCA (HRK 000) | C6: =Podloga!B34 -> 2023. ostvareno | D6: =Podloga!C34 -> 2024. ostvareno | E6: =Podloga!D34 -> 2025. procijenjeno | F6: =Podloga!E34 -> 2025. planirano | G6: =Podloga!F34 -> 2026. planirano | H6: =Podloga!G34 -> 2027. planirano | I6: =Podloga!H34 -> 2028. planirano | K6: Pokazatelji | L6: Izračun | N6: BILANCA (HRK 000) | O6: =C6 -> 2023. ostvareno | P6: =D6 -> 2024. ostvareno | Q6: =E6 -> 2025. procijenjeno | R6: =G6 -> 2026. planirano | S6: =H6 -> 2027. planirano | T6: 2028. planirano
B7: Dugotrajna imovina | C7: =Bilanca!C5 -> 13185.73 | D7: =Bilanca!D5 -> 13933.87241 | E7: =Bilanca!E5 -> 15781.77266 | F7: =Bilanca!F5 -> 26432.344 | G7: =Bilanca!G5 -> 24023.217 | H7: =Bilanca!H5 -> 25221.65 | I7: =Bilanca!I5 -> 25404.8 | K7: EBITDA | L7: Poslovni prihod - poslovni rashod + amortizacija | N7: Dugotrajna imovina | O7: 13185.73 | P7: 13933.87241 | Q7: 15781.77266 | R7: 24023.217 | S7: 25221.65 | T7: 25404.8
B8: Kratkotrajna imovina | C8: =Bilanca!C40 -> 309.541 | D8: =Bilanca!D40 -> 707.76 | E8: =Bilanca!E40 -> 1029.736 | F8: =Bilanca!F40 -> 510.067 | G8: =Bilanca!G40 -> 808.57 | H8: =Bilanca!H40 -> 869.785 | I8: =Bilanca!I40 -> 909.5 | K8: EBITDA marža | L8: (Pos. prihod - pos. rashod + amortizacija) / posl. prihod | N8: Kratkotrajna imovina | O8: 309.541 | P8: 707.76 | Q8: 1029.736 | R8: 808.57 | S8: 869.785 | T8: 909.5
B9: Pl. troš. budućeg razd.. | C9: =Bilanca!C67 -> 104.845 | D9: =Bilanca!D67 -> 26.109 | E9: =Bilanca!E67 -> 123.336 | F9: =Bilanca!F67 -> 106.75 | G9: =Bilanca!G67 -> 104.845 | H9: =Bilanca!H67 -> 138.8 | I9: =Bilanca!I67 -> 145 | K9: Neto profitna marža | L9: Neto dobit / uk. prihod | N9: Pl. troš. budućeg razd.. | O9: 104.845 | P9: 26.109 | Q9: 123.336 | R9: 104.845 | S9: 138.8 | T9: 145
B10: Aktiva | C10: =Bilanca!C68 -> 13600.116 | D10: =Bilanca!D68 -> 14667.74141 | E10: =Bilanca!E68 -> 16934.84466 | F10: =Bilanca!F68 -> 27049.161 | G10: =Bilanca!G68 -> 24936.632 | H10: =Bilanca!H68 -> 26230.235 | I10: =Bilanca!I68 -> 26459.3 | K10: RoA | L10: Neto dobit / aktiva | N10: Aktiva | O10: 13600.116 | P10: 14667.74141 | Q10: 16934.84466 | R10: 24936.632 | S10: 26230.235 | T10: 26459.3
B11: Kapital i rezerve | C11: =Bilanca!C75 -> 812.816 | D11: =Bilanca!D75 -> 1150.224 | E11: =Bilanca!E75 -> 1539.841 | F11: =Bilanca!F75 -> 871.261 | G11: =Bilanca!G75 -> 1587.75 | H11: =Bilanca!H75 -> 1640.915 | I11: =Bilanca!I75 -> 1715.887 | K11: RoE | L11: Neto dobit / kapital i rezerve | N11: Kapital i rezerve | O11: 812.816 | P11: 1150.224 | Q11: 1539.841 | R11: 1587.75 | S11: 1640.915 | T11: 1715.887
B12: Rezerviranja | C12: =Bilanca!C96 -> 22.103 | D12: =Bilanca!D96 -> 21.65 | E12: =Bilanca!E96 -> 21.65 | F12: =Bilanca!F96 -> 0 | G12: =Bilanca!G96 -> 0 | H12: =Bilanca!H96 -> 0 | I12: =Bilanca!I96 -> 0 | K12: Koef. tekuće likvidnosti | L12: Kratkotrajna imovina / kratkoročne obveze | N12: Rezerviranja | O12: 22.103 | P12: 21.65 | Q12: 21.65 | R12: 0 | S12: 0 | T12: 0
B13: Dugoročne obveze | C13: =Bilanca!C103 -> 2959.654 | D13: =Bilanca!D103 -> 2722.38581 | E13: =Bilanca!E103 -> 2931.57 | F13: =Bilanca!F103 -> 2743.27 | G13: =Bilanca!G103 -> 2978.675 | H13: =Bilanca!H103 -> 3174.341 | I13: =Bilanca!I103 -> 3819.475 | K13: Koeficijent financijske stabilnosti | L13: Dugotrajna imovina / (Kapital i rezerve + Dugoročne obveze) | N13: Dugoročne obveze | O13: 2959.654 | P13: 2722.38581 | Q13: 2931.57 | R13: 2978.675 | S13: 3174.341 | T13: 3819.475
B14: Kratkoročne obveze | C14: =Bilanca!C115 -> 417.851 | D14: =Bilanca!D115 -> 673.689 | E14: =Bilanca!E115 -> 673.692 | F14: =Bilanca!F115 -> 767.357 | G14: =Bilanca!G115 -> 579.185 | H14: =Bilanca!H115 -> 838.373 | I14: =Bilanca!I115 -> 983.203 | K14: Koef. zaduženosti | L14: (Rezerviranja + Dugoročne obveze + Kratkoročne obveze + Ostalo) / Aktiva | N14: Kratkoročne obveze | O14: 417.851 | P14: 673.689 | Q14: 673.692 | R14: 579.185 | S14: 838.373 | T14: 983.203
B15: Odg. pl. troš. i prihod.. | C15: =Bilanca!C130 -> 9387.697 | D15: =Bilanca!D130 -> 10099.795 | E15: =Bilanca!E130 -> 11768.088 | F15: =Bilanca!F130 -> 22667.272 | G15: =Bilanca!G130 -> 19791.017 | H15: =Bilanca!H130 -> 20576.611 | I15: =Bilanca!I130 -> 19940.735 | N15: Odg. pl. troš. i prihod.. | O15: 9387.697 | P15: 10099.795 | Q15: 11768.088 | R15: 19791.017 | S15: 20576.611 | T15: 19940.735
B16: Pasiva | C16: =Bilanca!C131 -> 13600.121 | D16: =Bilanca!D131 -> 14667.74381 | E16: =Bilanca!E131 -> 16934.841 | F16: =Bilanca!F131 -> 27049.16 | G16: =Bilanca!G131 -> 24936.627 | H16: =Bilanca!H131 -> 26230.24 | I16: =Bilanca!I131 -> 26459.3 | N16: Pasiva | O16: 13600.121 | P16: 14667.74381 | Q16: 16934.841 | R16: 24936.627 | S16: 26230.24 | T16: 26459.3
B18: RAČUN DOBITI I GUBITKA (HRK 000) | N18: RAČUN DOBITI I GUBITKA (HRK 000)
B19: Poslovni prihodi | C19: =RDG!C5 -> 2963.898 | D19: =RDG!D5 -> 3814.391 | E19: =RDG!E5 -> 4012.427 | F19: =RDG!F5 -> 3991.6 | G19: =RDG!G5 -> 4802.805 | H19: =RDG!H5 -> 5003.49 | I19: =RDG!I5 -> 5215.547 | N19: Poslovni prihodi | O19: =C19 -> 2963.898 | P19: =D19 -> 3814.391 | Q19: =E19 -> 4012.427 | R19: =G19 -> 4802.805 | S19: =H19 -> 5003.49 | T19: =I19 -> 5215.547
B20: Poslovni rashodi | C20: =RDG!C11 -> 3590.895 | D20: =RDG!D11 -> 3386.403 | E20: =RDG!E11 -> 3502.902 | F20: =RDG!F11 -> 3862.16 | G20: =RDG!G11 -> 4634.843 | H20: =RDG!H11 -> 4833.325 | I20: =RDG!I11 -> 5031.635 | N20: Poslovni rashodi | O20: 3590.895 | P20: 3386.403 | Q20: 3502.902 | R20: 4634.843 | S20: 4833.325 | T20: 5031.635
B21: Financijski prihodi | C21: =RDG!C34 -> 0.03557 | D21: =RDG!D34 -> 0.137 | E21: =RDG!E34 -> 0.109 | F21: =RDG!F34 -> 0.6 | G21: =RDG!G34 -> 0.15 | H21: =RDG!H34 -> 0.15 | I21: =RDG!I34 -> 0.16 | N21: Financijski prihodi | O21: 0.03557 | P21: 0.137 | Q21: 0.109 | R21: 0.15 | S21: 0.15 | T21: 0.16
B22: Financijski rashodi | C22: =RDG!C45 -> 92.377 | D22: =RDG!D45 -> 90.716 | E22: =RDG!E45 -> 120.017 | F22: =RDG!F45 -> 90.39 | G22: =RDG!G45 -> 120.2 | H22: =RDG!H45 -> 117.15 | I22: =RDG!I45 -> 109.1 | N22: Financijski rashodi | O22: 92.377 | P22: 90.716 | Q22: 120.017 | R22: 120.2 | S22: 117.15 | T22: 109.1
B23: Ukupni prihodi | C23: =RDG!C57 -> 2963.93357 | D23: =RDG!D57 -> 3814.528 | E23: =RDG!E57 -> 4012.536 | F23: =RDG!F57 -> 3992.2 | G23: =RDG!G57 -> 4802.955 | H23: =RDG!H57 -> 5003.64 | I23: =RDG!I57 -> 5215.707 | N23: Ukupni prihodi | O23: 2963.93357 | P23: 3814.528 | Q23: 4012.536 | R23: 4802.955 | S23: 5003.64 | T23: 5215.707
B24: Ukupni rashodi | C24: =RDG!C58 -> 3683.272 | D24: =RDG!D58 -> 3477.119 | E24: =RDG!E58 -> 3622.919 | F24: =RDG!F58 -> 3952.55 | G24: =RDG!G58 -> 4755.043 | H24: =RDG!H58 -> 4950.475 | I24: =RDG!I58 -> 5140.735 | N24: Ukupni rashodi | O24: 3683.272 | P24: 3477.119 | Q24: 3622.919 | R24: 4755.043 | S24: 4950.475 | T24: 5140.735
B25: Dobit/gubitak prije oporezivanja | C25: =RDG!C59 -> -719.33843 | D25: =RDG!D59 -> 337.409 | E25: =RDG!E59 -> 389.617 | F25: =RDG!F59 -> 39.65 | G25: =RDG!G59 -> 47.912 | H25: =RDG!H59 -> 53.165 | I25: =RDG!I59 -> 74.972 | N25: Dobit/gubitak prije oporezivanja | O25: -719.33843 | P25: 337.409 | Q25: 389.617 | R25: 47.912 | S25: 53.165 | T25: 74.972
B26: Porez na dobit | C26: =RDG!C62 -> 0 | D26: =RDG!D62 -> 0 | E26: =RDG!E62 -> 0 | F26: =RDG!F62 -> 0 | G26: =RDG!G62 -> 0 | H26: =RDG!H62 -> 0 | I26: =RDG!I62 -> 0 | N26: Porez na dobit | O26: 0 | P26: 0 | Q26: 0 | R26: 0 | S26: 0 | T26: 0
B27: Neto dobit/gubitak | C27: =RDG!C63 -> -719.33843 | D27: =RDG!D63 -> 337.409 | E27: =RDG!E63 -> 389.617 | F27: =RDG!F63 -> 39.65 | G27: =RDG!G63 -> 47.912 | H27: =RDG!H63 -> 53.165 | I27: =RDG!I63 -> 74.972 | N27: Neto dobit/gubitak | O27: -719.33843 | P27: 337.409 | Q27: 389.617 | R27: 47.912 | S27: 53.165 | T27: 74.972
B29: KLJUČNI POKAZATELJI | N29: KLJUČNI POKAZATELJI
B30: EBITDA (HRK 000) | C30: =C19-C20+C42 -> -260.076 | D30: =D19-D20+D42 -> 800.119 | E30: 887.156 | F30: 501.44 | G30: 587.962 | H30: =H19-H20+H42 -> 595.165 | I30: 613.912 | N30: EBITDA (HRK 000) | O30: =C30 -> -260.076 | P30: =D30 -> 800.119 | Q30: =E30 -> 887.156 | R30: =G30 -> 587.962 | S30: =H30 -> 595.165 | T30: =I30 -> 613.912
B31: EBITDA marža | C31: =IFERROR(C30/C19,0) -> -0.08774795894 | D31: =IFERROR(D30/D19,0) -> 0.2097632361 | E31: 0.2211020911 | F31: 0.12562381 | G31: 0.1224205438 | H31: =IFERROR(H30/H19,0) -> 0.1189499729 | I31: 0.1177080755 | N31: EBITDA marža | O31: -0.08774795894 | P31: 0.2097632361 | Q31: 0.2211020911 | R31: 0.1224205438 | S31: 0.1189499729 | T31: 0.1177080755
B32: Neto profitna marža | C32: =IFERROR(C27/C23,0) -> -0.2426972174 | D32: =IFERROR(D27/D23,0) -> 0.08845366976 | E32: 0.09709993879 | F32: 0.009931867141 | G32: 0.009975525484 | H32: =IFERROR(H27/H23,0) -> 0.01062526481 | I32: 0.01437427371 | N32: Neto profitna marža | O32: -0.2426972174 | P32: 0.08845366976 | Q32: 0.09709993879 | R32: 0.009975525484 | S32: 0.01062526481 | T32: 0.01437427371
B33: ROA | C33: =IFERROR(C27/C10,0) -> -0.05289208048 | D33: =IFERROR(D27/D10,0) -> 0.02300347344 | E33: 0.02300682456 | F33: 0.001465849532 | G33: 0.001921350084 | H33: =IFERROR(H27/H10,0) -> 0.002026859462 | I33: 0.002833483879 | N33: ROA | O33: -0.05289208048 | P33: 0.02300347344 | Q33: 0.02300682456 | R33: 0.001921350084 | S33: 0.002026859462 | T33: 0.002833483879
B34: ROE | C34: =IFERROR(C27/C11,0) -> -0.884995411 | D34: =IFERROR(D27/D11,0) -> 0.2933419925 | E34: 0.2530241759 | F34: 0.04550875111 | G34: 0.03017603527 | H34: =IFERROR(H27/H11,0) -> 0.03239960632 | I34: 0.0436928539 | N34: ROE | O34: -0.884995411 | P34: 0.2933419925 | Q34: 0.2530241759 | R34: 0.03017603527 | S34: 0.03239960632 | T34: 0.0436928539
B35: Koef. tekuće likvidnosti | C35: =IFERROR(C8/C14,0) -> 0.7407927706 | D35: =IFERROR(D8/D14,0) -> 1.050573781 | E35: 1.528496702 | F35: 0.664706258 | G35: 1.396047895 | H35: =IFERROR(H8/H14,0) -> 1.03746781 | I35: 0.925037861 | N35: Koef. tekuće likvidnosti | O35: 0.7407927706 | P35: 1.050573781 | Q35: 1.528496702 | R35: 1.396047895 | S35: 1.03746781 | T35: 0.925037861
B36: Koef. financijske stab. | C36: =IFERROR(C7/(C11+C13),0) -> 3.495251122 | D36: =IFERROR(D7/(D11+D13),0) -> 3.598057407 | E36: 3.529483794 | F36: 7.312800471 | G36: 5.260836869 | H36: =IFERROR(H7/(H11+H13),0) -> 5.237862743 | I36: 4.589546266 | N36: Koef. financijske stab. | O36: 3.495251122 | P36: 3.598057407 | Q36: 3.529483794 | R36: 5.260836869 | S36: 5.237862743 | T36: 4.589546266
B37: Koef. zaduženosti | C37: =IFERROR((C12+C13+C14+C15)/C10,0) -> 0.9402349951 | D37: =IFERROR((D12+D13+D14+D15)/D10,0) -> 0.9215815463 | E37: 0.9090724072 | F37: 0.9677896849 | G37: 0.9363284103 | H37: =IFERROR((H12+H13+H14+H15)/H10,0) -> 0.9374420397 | I37: 0.9351499473 | N37: Koef. zaduženosti | O37: 0.9402349951 | P37: 0.9215815463 | Q37: 0.9090724072 | R37: 0.9363284103 | S37: 0.9374420397 | T37: 0.9351499473
B38: Zaposleni | C38: =Podloga!B35 -> 50 | D38: =Podloga!C35 -> 58 | E38: =Podloga!D35 -> 58 | F38: =Podloga!E35 -> 58 | G38: =Podloga!F35 -> 59 | H38: =Podloga!G35 -> 59 | I38: =Podloga!H35 -> 59 | N38: Zaposleni | O38: 50 | P38: 58 | Q38: 58 | R38: 59 | S38: 59 | T38: 59
B39: Investicije (HRK 000) | C39: =Podloga!B36 -> 0 | D39: =Podloga!C36 -> 0 | E39: =Podloga!D36 -> 0 | F39: =Podloga!E36 -> 0 | G39: =Podloga!F36 -> 0 | H39: =Podloga!G36 -> 0 | I39: =Podloga!H36 -> 0 | N39: Investicije (HRK 000) | O39: 0 | P39: 0 | Q39: 0 | R39: 0 | S39: 0 | T39: 0
B42: Amortizacija | C42: =RDG!C21 -> 366.921 | D42: =RDG!D21 -> 372.131 | E42: =RDG!E21 -> 377.631 | F42: =RDG!F21 -> 372 | G42: =RDG!G21 -> 420 | H42: =RDG!H21 -> 425 | I42: =RDG!I21 -> 430 | N42: Amortizacija | O42: =C42 -> 366.921 | P42: =D42 -> 372.131 | Q42: =E42 -> 377.631 | R42: =G42 -> 420 | S42: =H42 -> 425 | T42: =I42 -> 430

Sheet AI (hidden)
A2: Naziv društva | B2: Ukupni prihodi | I2: Ukupni rashodi | P2: Neto dobit/gubitak | W2: Planirane investicije | AD2: Dugotrajna imovina | AK2: Kratkotrajna imovina | AR2: Pl. troš. budućeg razd.. | AY2: Aktiva | BF2: Kapital i rezerve | BM2: Rezerviranja | BT2: Dugoročne obveze | CA2: Kratkoročne obveze | CH2: Odg. pl. troš. i prihod.. | CO2: Pasiva | CV2: Poslovni prihodi | DC2: Poslovni rashodi | DJ2: Financijski prihodi | DQ2: Financijski rashodi | DX2: Ukupni prihodi | EE2: Ukupni rashodi | EL2: Dobit/gubitak prije oporezivanja | ES2: Porez na dobit | EZ2: Neto dobit/gubitak | FG2: EBITDA (HRK 000) | FN2: EBITDA marža | FU2: Neto profitna marža | GB2: ROA | GI2: ROE | GP2: Tekuća likvidnost | GW2: Koef. financijske stab. | HD2: Koef. zaduženosti | HK2: Zaposleni | HR2: Investicije (HRK 000) | HY2: Amortizacija
B3: =Sazetak!C6 -> 2023. ostvareno | C3: =Sazetak!D6 -> 2024. ostvareno | D3: =Sazetak!E6 -> 2025. procijenjeno | E3: =Sazetak!F6 -> 2025. planirano | F3: =Sazetak!G6 -> 2026. planirano | G3: =Sazetak!H6 -> 2027. planirano | H3: =Sazetak!I6 -> 2028. planirano | I3: =B3 -> 2023. ostvareno | J3: =C3 -> 2024. ostvareno | K3: 2025. procijenjeno | L3: 2025. planirano | M3: 2026. planirano | N3: 2027. planirano | O3: 2028. planirano | P3: =I3 -> 2023. ostvareno | Q3: =J3 -> 2024. ostvareno | R3: =K3 -> 2025. procijenjeno | S3: =L3 -> 2025. planirano | T3: =M3 -> 2026. planirano | U3: =N3 -> 2027. planirano | V3: =O3 -> 2028. planirano | W3: =P3 -> 2023. ostvareno | X3: =Q3 -> 2024. ostvareno | Y3: =R3 -> 2025. procijenjeno | Z3: =S3 -> 2025. planirano | AA3: =T3 -> 2026. planirano | AB3: =U3 -> 2027. planirano | AC3: =V3 -> 2028. planirano | AD3: =W3 -> 2023. ostvareno | AE3: =X3 -> 2024. ostvareno | AF3: =Y3 -> 2025. procijenjeno | AG3: =Z3 -> 2025. planirano | AH3: =AA3 -> 2026. planirano | AI3: =AB3 -> 2027. planirano | AJ3: =AC3 -> 2028. planirano | AK3: =AD3 -> 2023. ostvareno | AL3: =AE3 -> 2024. ostvareno | AM3: =AF3 -> 2025. procijenjeno | AN3: =AG3 -> 2025. planirano | AO3: =AH3 -> 2026. planirano | AP3: =AI3 -> 2027. planirano | AQ3: =AJ3 -> 2028. planirano | AR3: =AK3 -> 2023. ostvareno | AS3: =AL3 -> 2024. ostvareno | AT3: =AM3 -> 2025. procijenjeno | AU3: =AN3 -> 2025. planirano | AV3: =AO3 -> 2026. planirano | AW3: =AP3 -> 2027. planirano | AX3: =AQ3 -> 2028. planirano | AY3: =AR3 -> 2023. ostvareno | AZ3: =AS3 -> 2024. ostvareno | BA3: =AT3 -> 2025. procijenjeno | BB3: =AU3 -> 2025. planirano | BC3: =AV3 -> 2026. planirano | BD3: =AW3 -> 2027. planirano | BE3: =AX3 -> 2028. planirano | BF3: =AY3 -> 2023. ostvareno | BG3: =AZ3 -> 2024. ostvareno | BH3: =BA3 -> 2025. procijenjeno | BI3: =BB3 -> 2025. planirano | BJ3: =BC3 -> 2026. planirano | BK3: =BD3 -> 2027. planirano | BL3: =BE3 -> 2028. planirano | BM3: =BF3 -> 2023. ostvareno | BN3: =BG3 -> 2024. ostvareno | BO3: =BH3 -> 2025. procijenjeno | BP3: =BI3 -> 2025. planirano | BQ3: =BJ3 -> 2026. planirano | BR3: =BK3 -> 2027. planirano | BS3: =BL3 -> 2028. planirano | BT3: =BM3 -> 2023. ostvareno | BU3: =BN3 -> 2024. ostvareno | BV3: =BO3 -> 2025. procijenjeno | BW3: =BP3 -> 2025. planirano | BX3: =BQ3 -> 2026. planirano | BY3: =BR3 -> 2027. planirano | BZ3: =BS3 -> 2028. planirano | CA3: =BT3 -> 2023. ostvareno | CB3: =BU3 -> 2024. ostvareno | CC3: =BV3 -> 2025. procijenjeno | CD3: =BW3 -> 2025. planirano | CE3: =BX3 -> 2026. planirano | CF3: =BY3 -> 2027. planirano | CG3: =BZ3 -> 2028. planirano | CH3: =CA3 -> 2023. ostvareno | CI3: =CB3 -> 2024. ostvareno | CJ3: =CC3 -> 2025. procijenjeno | CK3: =CD3 -> 2025. planirano | CL3: =CE3 -> 2026. planirano | CM3: =CF3 -> 2027. planirano | CN3: =CG3 -> 2028. planirano | CO3: =CH3 -> 2023. ostvareno | CP3: =CI3 -> 2024. ostvareno | CQ3: =CJ3 -> 2025. procijenjeno | CR3: =CK3 -> 2025. planirano | CS3: =CL3 -> 2026. planirano | CT3: =CM3 -> 2027. planirano | CU3: =CN3 -> 2028. planirano | CV3: =CO3 -> 2023. ostvareno | CW3: =CP3 -> 2024. ostvareno | CX3: =CQ3 -> 2025. procijenjeno | CY3: =CR3 -> 2025. planirano | CZ3: =CS3 -> 2026. planirano | DA3: =CT3 -> 2027. planirano | DB3: =CU3 -> 2028. planirano | DC3: =CV3 -> 2023. ostvareno | DD3: =CW3 -> 2024. ostvareno | DE3: =CX3 -> 2025. procijenjeno | DF3: =CY3 -> 2025. planirano | DG3: =CZ3 -> 2026. planirano | DH3: =DA3 -> 2027. planirano | DI3: =DB3 -> 2028. planirano | DJ3: =DC3 -> 2023. ostvareno | DK3: =DD3 -> 2024. ostvareno | DL3: =DE3 -> 2025. procijenjeno | DM3: =DF3 -> 2025. planirano | DN3: =DG3 -> 2026. planirano | DO3: =DH3 -> 2027. planirano | DP3: =DI3 -> 2028. planirano | DQ3: =DJ3 -> 2023. ostvareno | DR3: =DK3 -> 2024. ostvareno | DS3: =DL3 -> 2025. procijenjeno | DT3: =DM3 -> 2025. planirano | DU3: =DN3 -> 2026. planirano | DV3: =DO3 -> 2027. planirano | DW3: =DP3 -> 2028. planirano | DX3: =DQ3 -> 2023. ostvareno | DY3: =DR3 -> 2024. ostvareno | DZ3: =DS3 -> 2025. procijenjeno | EA3: =DT3 -> 2025. planirano | EB3: =DU3 -> 2026. planirano | EC3: =DV3 -> 2027. planirano | ED3: =DW3 -> 2028. planirano | EE3: =DX3 -> 2023. ostvareno | EF3: =DY3 -> 2024. ostvareno | EG3: =DZ3 -> 2025. procijenjeno | EH3: =EA3 -> 2025. planirano | EI3: =EB3 -> 2026. planirano | EJ3: =EC3 -> 2027. planirano | EK3: =ED3 -> 2028. planirano | EL3: =EE3 -> 2023. ostvareno | EM3: =EF3 -> 2024. ostvareno | EN3: =EG3 -> 2025. procijenjeno | EO3: =EH3 -> 2025. planirano | EP3: =EI3 -> 2026. planirano | EQ3: =EJ3 -> 2027. planirano | ER3: =EK3 -> 2028. planirano | ES3: =EL3 -> 2023. ostvareno | ET3: =EM3 -> 2024. ostvareno | EU3: =EN3 -> 2025. procijenjeno | EV3: =EO3 -> 2025. planirano | EW3: =EP3 -> 2026. planirano | EX3: =EQ3 -> 2027. planirano | EY3: =ER3 -> 2028. planirano | EZ3: =ES3 -> 2023. ostvareno | FA3: =ET3 -> 2024. ostvareno | FB3: =EU3 -> 2025. procijenjeno | FC3: =EV3 -> 2025. planirano | FD3: =EW3 -> 2026. planirano | FE3: =EX3 -> 2027. planirano | FF3: =EY3 -> 2028. planirano | FG3: =EZ3 -> 2023. ostvareno | FH3: =FA3 -> 2024. ostvareno | FI3: =FB3 -> 2025. procijenjeno | FJ3: =FC3 -> 2025. planirano | FK3: =FD3 -> 2026. planirano | FL3: =FE3 -> 2027. planirano | FM3: =FF3 -> 2028. planirano | FN3: =FG3 -> 2023. ostvareno | FO3: =FH3 -> 2024. ostvareno | FP3: =FI3 -> 2025. procijenjeno | FQ3: =FJ3 -> 2025. planirano | FR3: =FK3 -> 2026. planirano | FS3: =FL3 -> 2027. planirano | FT3: =FM3 -> 2028. planirano | FU3: =FN3 -> 2023. ostvareno | FV3: =FO3 -> 2024. ostvareno | FW3: =FP3 -> 2025. procijenjeno | FX3: =FQ3 -> 2025. planirano | FY3: =FR3 -> 2026. planirano | FZ3: =FS3 -> 2027. planirano | GA3: =FT3 -> 2028. planirano | GB3: =FU3 -> 2023. ostvareno | GC3: =FV3 -> 2024. ostvareno | GD3: =FW3 -> 2025. procijenjeno | GE3: =FX3 -> 2025. planirano | GF3: =FY3 -> 2026. planirano | GG3: =FZ3 -> 2027. planirano | GH3: =GA3 -> 2028. planirano | GI3: =GB3 -> 2023. ostvareno | GJ3: =GC3 -> 2024. ostvareno | GK3: =GD3 -> 2025. procijenjeno | GL3: =GE3 -> 2025. planirano | GM3: =GF3 -> 2026. planirano | GN3: =GG3 -> 2027. planirano | GO3: =GH3 -> 2028. planirano | GP3: =GI3 -> 2023. ostvareno | GQ3: =GJ3 -> 2024. ostvareno | GR3: =GK3 -> 2025. procijenjeno | GS3: =GL3 -> 2025. planirano | GT3: =GM3 -> 2026. planirano | GU3: =GN3 -> 2027. planirano | GV3: =GO3 -> 2028. planirano | GW3: =GP3 -> 2023. ostvareno | GX3: =GQ3 -> 2024. ostvareno | GY3: =GR3 -> 2025. procijenjeno | GZ3: =GS3 -> 2025. planirano | HA3: =GT3 -> 2026. planirano | HB3: =GU3 -> 2027. planirano | HC3: =GV3 -> 2028. planirano | HD3: =GW3 -> 2023. ostvareno | HE3: =GX3 -> 2024. ostvareno | HF3: =GY3 -> 2025. procijenjeno | HG3: =GZ3 -> 2025. planirano | HH3: =HA3 -> 2026. planirano | HI3: =HB3 -> 2027. planirano | HJ3: =HC3 -> 2028. planirano | HK3: =HD3 -> 2023. ostvareno | HL3: =HE3 -> 2024. ostvareno | HM3: =HF3 -> 2025. procijenjeno | HN3: =HG3 -> 2025. planirano | HO3: =HH3 -> 2026. planirano | HP3: =HI3 -> 2027. planirano | HQ3: =HJ3 -> 2028. planirano | HR3: =HK3 -> 2023. ostvareno | HS3: =HL3 -> 2024. ostvareno | HT3: =HM3 -> 2025. procijenjeno | HU3: =HN3 -> 2025. planirano | HV3: =HO3 -> 2026. planirano | HW3: =HP3 -> 2027. planirano | HX3: =HQ3 -> 2028. planirano | HY3: =HR3 -> 2023. ostvareno | HZ3: =HS3 -> 2024. ostvareno | IA3: =HT3 -> 2025. procijenjeno | IB3: =HU3 -> 2025. planirano | IC3: =HV3 -> 2026. planirano | ID3: =HW3 -> 2027. planirano | IE3: =HX3 -> 2028. planirano
A4: =Podloga!B2 -> Zračna luka Osijek d.o.o. | B4: =Sazetak!C23 -> 2963.93357 | C4: =Sazetak!D23 -> 3814.528 | D4: =Sazetak!E23 -> 4012.536 | E4: =Sazetak!F23 -> 3992.2 | F4: =Sazetak!G23 -> 4802.955 | G4: =Sazetak!H23 -> 5003.64 | H4: =Sazetak!I23 -> 5215.707 | I4: =Sazetak!C24 -> 3683.272 | J4: =Sazetak!D24 -> 3477.119 | K4: =Sazetak!E24 -> 3622.919 | L4: =Sazetak!F24 -> 3952.55 | M4: =Sazetak!G24 -> 4755.043 | N4: =Sazetak!H24 -> 4950.475 | O4: =Sazetak!I24 -> 5140.735 | P4: =Sazetak!C27 -> -719.33843 | Q4: =Sazetak!D27 -> 337.409 | R4: =Sazetak!E27 -> 389.617 | S4: =Sazetak!F27 -> 39.65 | T4: =Sazetak!G27 -> 47.912 | U4: =Sazetak!H27 -> 53.165 | V4: =Sazetak!I27 -> 74.972 | W4: =Sazetak!C39 -> 0 | X4: =Sazetak!D39 -> 0 | Y4: =Sazetak!E39 -> 0 | Z4: =Sazetak!F39 -> 0 | AA4: =Sazetak!G39 -> 0 | AB4: =Sazetak!H39 -> 0 | AC4: =Sazetak!I39 -> 0 | AD4: =Sazetak!C7 -> 13185.73 | AE4: =Sazetak!D7 -> 13933.87241 | AF4: =Sazetak!E7 -> 15781.77266 | AG4: =Sazetak!F7 -> 26432.344 | AH4: =Sazetak!G7 -> 24023.217 | AI4: =Sazetak!H7 -> 25221.65 | AJ4: =Sazetak!I7 -> 25404.8 | AK4: =Sazetak!C8 -> 309.541 | AL4: =Sazetak!D8 -> 707.76 | AM4: =Sazetak!E8 -> 1029.736 | AN4: =Sazetak!F8 -> 510.067 | AO4: =Sazetak!G8 -> 808.57 | AP4: =Sazetak!H8 -> 869.785 | AQ4: =Sazetak!I8 -> 909.5 | AR4: =Sazetak!C9 -> 104.845 | AS4: =Sazetak!D9 -> 26.109 | AT4: =Sazetak!E9 -> 123.336 | AU4: =Sazetak!F9 -> 106.75 | AV4: =Sazetak!G9 -> 104.845 | AW4: =Sazetak!H9 -> 138.8 | AX4: =Sazetak!I9 -> 145 | AY4: =Sazetak!C10 -> 13600.116 | AZ4: =Sazetak!D10 -> 14667.74141 | BA4: =Sazetak!E10 -> 16934.84466 | BB4: =Sazetak!F10 -> 27049.161 | BC4: =Sazetak!G10 -> 24936.632 | BD4: =Sazetak!H10 -> 26230.235 | BE4: =Sazetak!I10 -> 26459.3 | BF4: =Sazetak!C11 -> 812.816 | BG4: =Sazetak!D11 -> 1150.224 | BH4: =Sazetak!E11 -> 1539.841 | BI4: =Sazetak!F11 -> 871.261 | BJ4: =Sazetak!G11 -> 1587.75 | BK4: =Sazetak!H11 -> 1640.915 | BL4: =Sazetak!I11 -> 1715.887 | BM4: =Sazetak!C12 -> 22.103 | BN4: =Sazetak!D12 -> 21.65 | BO4: =Sazetak!E12 -> 21.65 | BP4: =Sazetak!F12 -> 0 | BQ4: =Sazetak!G12 -> 0 | BR4: =Sazetak!H12 -> 0 | BS4: =Sazetak!I12 -> 0 | BT4: =Sazetak!C13 -> 2959.654 | BU4: =Sazetak!D13 -> 2722.38581 | BV4: =Sazetak!E13 -> 2931.57 | BW4: =Sazetak!F13 -> 2743.27 | BX4: =Sazetak!G13 -> 2978.675 | BY4: =Sazetak!H13 -> 3174.341 | BZ4: =Sazetak!I13 -> 3819.475 | CA4: =Sazetak!C14 -> 417.851 | CB4: =Sazetak!D14 -> 673.689 | CC4: =Sazetak!E14 -> 673.692 | CD4: =Sazetak!F14 -> 767.357 | CE4: =Sazetak!G14 -> 579.185 | CF4: =Sazetak!H14 -> 838.373 | CG4: =Sazetak!I14 -> 983.203 | CH4: =Sazetak!C15 -> 9387.697 | CI4: =Sazetak!D15 -> 10099.795 | CJ4: =Sazetak!E15 -> 11768.088 | CK4: =Sazetak!F15 -> 22667.272 | CL4: =Sazetak!G15 -> 19791.017 | CM4: =Sazetak!H15 -> 20576.611 | CN4: =Sazetak!I15 -> 19940.735 | CO4: =Sazetak!C16 -> 13600.121 | CP4: =Sazetak!D16 -> 14667.74381 | CQ4: =Sazetak!E16 -> 16934.841 | CR4: =Sazetak!F16 -> 27049.16 | CS4: =Sazetak!G16 -> 24936.627 | CT4: =Sazetak!H16 -> 26230.24 | CU4: =Sazetak!I16 -> 26459.3 | CV4: =Sazetak!C19 -> 2963.898 | CW4: =Sazetak!D19 -> 3814.391 | CX4: =Sazetak!E19 -> 4012.427 | CY4: =Sazetak!F19 -> 3991.6 | CZ4: =Sazetak!G19 -> 4802.805 | DA4: =Sazetak!H19 -> 5003.49 | DB4: =Sazetak!I19 -> 5215.547 | DC4: =Sazetak!C20 -> 3590.895 | DD4: =Sazetak!D20 -> 3386.403 | DE4: =Sazetak!E20 -> 3502.902 | DF4: =Sazetak!F20 -> 3862.16 | DG4: =Sazetak!G20 -> 4634.843 | DH4: =Sazetak!H20 -> 4833.325 | DI4: =Sazetak!I20 -> 5031.635 | DJ4: =Sazetak!C21 -> 0.03557 | DK4: =Sazetak!D21 -> 0.137 | DL4: =Sazetak!E21 -> 0.109 | DM4: =Sazetak!F21 -> 0.6 | DN4: =Sazetak!G21 -> 0.15 | DO4: =Sazetak!H21 -> 0.15 | DP4: =Sazetak!I21 -> 0.16 | DQ4: =Sazetak!C22 -> 92.377 | DR4: =Sazetak!D22 -> 90.716 | DS4: =Sazetak!E22 -> 120.017 | DT4: =Sazetak!F22 -> 90.39 | DU4: =Sazetak!G22 -> 120.2 | DV4: =Sazetak!H22 -> 117.15 | DW4: =Sazetak!I22 -> 109.1 | DX4: =Sazetak!C23 -> 2963.93357 | DY4: =Sazetak!D23 -> 3814.528 | DZ4: =Sazetak!E23 -> 4012.536 | EA4: =Sazetak!F23 -> 3992.2 | EB4: =Sazetak!G23 -> 4802.955 | EC4: =Sazetak!H23 -> 5003.64 | ED4: =Sazetak!I23 -> 5215.707 | EE4: =Sazetak!C24 -> 3683.272 | EF4: =Sazetak!D24 -> 3477.119 | EG4: =Sazetak!E24 -> 3622.919 | EH4: =Sazetak!F24 -> 3952.55 | EI4: =Sazetak!G24 -> 4755.043 | EJ4: =Sazetak!H24 -> 4950.475 | EK4: =Sazetak!I24 -> 5140.735 | EL4: =Sazetak!C25 -> -719.33843 | EM4: =Sazetak!D25 -> 337.409 | EN4: =Sazetak!E25 -> 389.617 | EO4: =Sazetak!F25 -> 39.65 | EP4: =Sazetak!G25 -> 47.912 | EQ4: =Sazetak!H25 -> 53.165 | ER4: =Sazetak!I25 -> 74.972 | ES4: =Sazetak!C26 -> 0 | ET4: =Sazetak!D26 -> 0 | EU4: =Sazetak!E26 -> 0 | EV4: =Sazetak!F26 -> 0 | EW4: =Sazetak!G26 -> 0 | EX4: =Sazetak!H26 -> 0 | EY4: =Sazetak!I26 -> 0 | EZ4: =Sazetak!C27 -> -719.33843 | FA4: =Sazetak!D27 -> 337.409 | FB4: =Sazetak!E27 -> 389.617 | FC4: =Sazetak!F27 -> 39.65 | FD4: =Sazetak!G27 -> 47.912 | FE4: =Sazetak!H27 -> 53.165 | FF4: =Sazetak!I27 -> 74.972 | FG4: =Sazetak!C30 -> -260.076 | FH4: =Sazetak!D30 -> 800.119 | FI4: =Sazetak!E30 -> 887.156 | FJ4: =Sazetak!F30 -> 501.44 | FK4: =Sazetak!G30 -> 587.962 | FL4: =Sazetak!H30 -> 595.165 | FM4: =Sazetak!I30 -> 613.912 | FN4: =Sazetak!C31 -> -0.08774795894 | FO4: =Sazetak!D31 -> 0.2097632361 | FP4: =Sazetak!E31 -> 0.2211020911 | FQ4: =Sazetak!F31 -> 0.12562381 | FR4: =Sazetak!G31 -> 0.1224205438 | FS4: =Sazetak!H31 -> 0.1189499729 | FT4: =Sazetak!I31 -> 0.1177080755 | FU4: =Sazetak!C32 -> -0.2426972174 | FV4: =Sazetak!D32 -> 0.08845366976 | FW4: =Sazetak!E32 -> 0.09709993879 | FX4: =Sazetak!F32 -> 0.009931867141 | FY4: =Sazetak!G32 -> 0.009975525484 | FZ4: =Sazetak!H32 -> 0.01062526481 | GA4: =Sazetak!I32 -> 0.01437427371 | GB4: =Sazetak!C33 -> -0.05289208048 | GC4: =Sazetak!D33 -> 0.02300347344 | GD4: =Sazetak!E33 -> 0.02300682456 | GE4: =Sazetak!F33 -> 0.001465849532 | GF4: =Sazetak!G33 -> 0.001921350084 | GG4: =Sazetak!H33 -> 0.002026859462 | GH4: =Sazetak!I33 -> 0.002833483879 | GI4: =Sazetak!C34 -> -0.884995411 | GJ4: =Sazetak!D34 -> 0.2933419925 | GK4: =Sazetak!E34 -> 0.2530241759 | GL4: =Sazetak!F34 -> 0.04550875111 | GM4: =Sazetak!G34 -> 0.03017603527 | GN4: =Sazetak!H34 -> 0.03239960632 | GO4: =Sazetak!I34 -> 0.0436928539 | GP4: =Sazetak!C35 -> 0.7407927706 | GQ4: =Sazetak!D35 -> 1.050573781 | GR4: =Sazetak!E35 -> 1.528496702 | GS4: =Sazetak!F35 -> 0.664706258 | GT4: =Sazetak!G35 -> 1.396047895 | GU4: =Sazetak!H35 -> 1.03746781 | GV4: =Sazetak!I35 -> 0.925037861 | GW4: =Sazetak!C36 -> 3.495251122 | GX4: =Sazetak!D36 -> 3.598057407 | GY4: =Sazetak!E36 -> 3.529483794 | GZ4: =Sazetak!F36 -> 7.312800471 | HA4: =Sazetak!G36 -> 5.260836869 | HB4: =Sazetak!H36 -> 5.237862743 | HC4: =Sazetak!I36 -> 4.589546266 | HD4: =Sazetak!C37 -> 0.9402349951 | HE4: =Sazetak!D37 -> 0.9215815463 | HF4: =Sazetak!E37 -> 0.9090724072 | HG4: =Sazetak!F37 -> 0.9677896849 | HH4: =Sazetak!G37 -> 0.9363284103 | HI4: =Sazetak!H37 -> 0.9374420397 | HJ4: =Sazetak!I37 -> 0.9351499473 | HK4: =Sazetak!C38 -> 50 | HL4: =Sazetak!EU39 -> 0 | HM4: =Sazetak!EV39 -> 0 | HN4: =Sazetak!EW39 -> 0 | HO4: =Sazetak!EX39 -> 0 | HP4: =Sazetak!EY39 -> 0 | HQ4: =Sazetak!EZ39 -> 0 | HR4: =Sazetak!C39 -> 0 | HS4: =Sazetak!D39 -> 0 | HT4: =Sazetak!E39 -> 0 | HU4: =Sazetak!F39 -> 0 | HV4: =Sazetak!G39 -> 0 | HW4: =Sazetak!H39 -> 0 | HX4: =Sazetak!I39 -> 0 | HY4: =Sazetak!C42 -> 366.921 | HZ4: =Sazetak!D42 -> 372.131 | IA4: =Sazetak!E42 -> 377.631 | IB4: =Sazetak!F42 -> 372 | IC4: =Sazetak!G42 -> 420 | ID4: =Sazetak!H42 -> 425 | IE4: =Sazetak!I42 -> 430

Sheet Sektorski pokazatelji
A1: Sektorski ključni pokazatelji
A2: Obveznik: | B2: =IF(ISBLANK(Podloga!B2),"",Podloga!B2) -> Zračna luka Osijek d.o.o. | C2: =Podloga!B34 -> 2023. ostvareno | D2: =Podloga!C34 -> 2024. ostvareno | E2: =Podloga!D34 -> 2025. procijenjeno | F2: =Podloga!E34 -> 2025. planirano | G2: =Podloga!F34 -> 2026. planirano | H2: =Podloga!G34 -> 2027. planirano | I2: =Podloga!H34 -> 2028. planirano | J2: ="Indeks "& RIGHT(LEFT(Podloga!C34,7),5) &" / "& RIGHT(LEFT(Podloga!B34,7),5) -> Indeks 24. o / 23. o | K2: ="Indeks "& RIGHT(LEFT(Podloga!D34,8),6) &" / "& RIGHT(LEFT(Podloga!C34,7),5) -> Indeks 25. pr / 24. o | L2: ="Indeks "& RIGHT(LEFT(Podloga!E34,8),6) &" / "& RIGHT(LEFT(Podloga!C34,7),5) -> Indeks 25. pl / 24. o | M2: ="Indeks "& RIGHT(LEFT(Podloga!F34,8),6) &" / "& RIGHT(LEFT(Podloga!E34,8),6) -> Indeks 26. pl / 25. pl | N2: ="Indeks "& RIGHT(LEFT(Podloga!G34,8),6) &" / "& RIGHT(LEFT(Podloga!F34,8),6) -> Indeks 27. pl / 26. pl | O2: ="Indeks "& RIGHT(LEFT(Podloga!H34,8),6) &" / "& RIGHT(LEFT(Podloga!G34,8),6) -> Indeks 28. pl / 27. pl
A3: Operativni pokazatelji | B3: Način izračuna
A4: Ostvareni promet zrakoplova | B4: ukupan broj polijetanja | C4: 1313 | D4: 1526 | E4: 1656 | F4: 1483 | G4: 1767 | H4: 1909 | I4: 2007 | J4: =IFERROR(D4/C4*100,) -> 116.2223915 | K4: 108.5190039 | L4: =IFERROR(F4/D4*100,) -> 97.18217562 | M4: 119.1503709 | N4: 108.0362196 | O4: 105.1335778
A5: Broj putnika | C5: 36791 | D5: 45756 | E5: 42851 | F5: 50015 | G5: 48651 | H5: 66288 | I5: 73976 | J5: 124.3673725 | K5: 93.65110587 | L5: 109.3080689 | M5: 97.27281815 | N5: 136.2520811 | O5: 111.5978759
A6: Promet po redovitim letovima | C6: 35526 | D6: 44014 | E6: 41495 | F6: 47860 | G6: 47226 | H6: 64720 | I6: 72252 | J6: 123.8923605 | K6: 94.27682101 | L6: 108.7381288 | M6: 98.67530297 | N6: 137.0431542 | O6: 111.6378245
A7: Promet po ostalim letovima | C7: 1265 | D7: 1742 | E7: 1356 | F7: 2155 | G7: 1425 | H7: 1568 | I7: 1724 | J7: 137.7075099 | K7: 77.84156142 | L7: 123.7083812 | M7: 66.12529002 | N7: 110.0350877 | O7: 109.9489796
A8: Promet putnika po avio kompanijama | J8: =IFERROR(D8/C8*100,) -> 0 | K8: =IFERROR(E8/D8*100,) -> 0 | L8: =IFERROR(F8/D8*100,) -> 0 | M8: =IFERROR(G8/F8*100,) -> 0 | N8: =IFERROR(H8/G8*100,) -> 0 | O8: =IFERROR(I8/H8*100,) -> 0
A9: 1. Trade Air | C9: 8507 | D9: 10013 | E9: 10396 | F9: 11889 | G9: 11538 | H9: 12272 | I9: 12888 | J9: 117.7030681 | K9: 103.8250275 | L9: 118.7356437 | M9: 97.04769114 | N9: 106.3615878 | O9: 105.0195567
A10: 2. Croatia Airlines | C10: 13759 | D10: 15054 | E10: 15518 | F10: 15962 | G10: 25188 | H10: 32980 | I10: 37949 | J10: 109.4120212 | K10: 103.0822373 | L10: 106.0316195 | M10: 157.7997745 | N10: 130.935366 | O10: 115.0667071
A11: 3. Wizz Air | C11: 0 | D11: 0 | E11: 0 | F11: 0 | G11: 0 | H11: 0 | I11: 0 | J11: 0 | K11: 0 | L11: 0 | M11: 0 | N11: 0 | O11: 0
A12: 4. Eurowings | C12: 0 | D12: 0 | E12: 0 | F12: 0 | G12: 0 | H12: 0 | I12: 0 | J12: 0 | K12: 0 | L12: 0 | M12: 0 | N12: 0 | O12: 0
A13: 5. Ryanair | C13: 13260 | D13: 18947 | E13: 15581 | F13: 20009 | G13: 10500 | H13: 19468 | I13: 21415 | J13: 142.8883861 | K13: 82.23465456 | L13: 105.605109 | M13: 52.47638563 | N13: 185.4095238 | O13: 110.0010273
A14: Promet po zemljama odredišta i dolazišta: | J14: 0 | K14: 0 | L14: 0 | M14: 0 | N14: 0 | O14: 0
A15: 1. RH | C15: 14888 | D15: 16728 | E15: 17151 | F15: 18834 | G15: 22326 | H15: 26726 | I15: 27730 | J15: 112.3589468 | K15: 102.5286944 | L15: 112.58967 | M15: 118.5409366 | N15: 119.7079638 | O15: 103.7566415
A16: 2. Velika Britanija | C16: 13260 | D16: 18947 | E16: 15581 | F16: 20009 | G16: 10500 | H16: 19468 | I16: 21415 | J16: 142.8883861 | K16: 82.23465456 | L16: 105.605109 | M16: 52.47638563 | N16: 185.4095238 | O16: 110.0010273
A17: 3. Njemačka | C17: 7378 | D17: 8339 | E17: 8763 | F17: 9017 | G17: 14400 | H17: 18526 | I17: 20379 | J17: 113.0252101 | K17: 105.0845425 | L17: 108.1304713 | M17: 159.6983476 | N17: 128.6527778 | O17: 110.0021591
A18: 4. Švicarska | C18: 0 | D18: 0 | E18: 0 | F18: 0 | G18: 0 | H18: 0 | I18: 2728 | J18: 0 | K18: 0 | L18: 0 | M18: 0 | N18: 0 | O18: 0
J19: 0 | K19: 0 | L19: 0 | M19: 0 | N19: 0 | O19: 0
J20: 0 | K20: 0 | L20: 0 | M20: 0 | N20: 0 | O20: 0
J21: 0 | K21: 0 | L21: 0 | M21: 0 | N21: 0 | O21: 0
J22: 0 | K22: 0 | L22: 0 | M22: 0 | N22: 0 | O22: 0
J23: 0 | K23: 0 | L23: 0 | M23: 0 | N23: 0 | O23: 0
A24: Financijsko - naturalni pokazatelji
A25: Komercijalni prihod po putniku | B25: komercijalni prihod/broj putnika | C25: 30.39 | D25: 39 | E25: 41 | F25: 35 | G25: 49 | H25: 38 | I25: 37 | J25: =IFERROR(D25/C25*100,) -> 128.3316881 | K25: 105.1282051 | L25: =IFERROR(F25/D25*100,) -> 89.74358974 | M25: 140 | N25: 77.55102041 | O25: 97.36842105
A26: Troškovi po putniku | B26: troškovi/broj putnika | C26: 100 | D26: 91 | E26: 75 | F26: 79 | G26: 98 | H26: 75 | I26: 69 | J26: =IFERROR(D26/C26*100,) -> 91 | K26: =IFERROR(E26/D26*100,) -> 82.41758242 | L26: =IFERROR(F26/D26*100,) -> 86.81318681 | M26: =IFERROR(G26/F26*100,) -> 124.0506329 | N26: =IFERROR(H26/G26*100,) -> 76.53061224 | O26: =IFERROR(I26/H26*100,) -> 92
J27: 0 | K27: 0 | L27: 0 | M27: 0 | N27: 0 | O27: 0
A28: Tržišni pokazatelji
A29: Ukupan broj kupaca | C29: 172 | D29: 209 | E29: 211 | F29: 217 | G29: 218 | H29: 220 | I29: 224 | J29: =IFERROR(D29/C29*100,) -> 121.5116279 | K29: 100.9569378 | L29: =IFERROR(F29/D29*100,) -> 103.8277512 | M29: 100.4608295 | N29: 100.9174312 | O29: 101.8181818
A30: Domaći kupci | C30: 88 | D30: 120 | E30: 105 | F30: 123 | G30: 109 | H30: 115 | I30: 118 | J30: 136.3636364 | K30: 87.5 | L30: 102.5 | M30: 88.61788618 | N30: 105.5045872 | O30: 102.6086957
A31: Kupci iz zemalja EU | C31: 72 | D31: 70 | E31: 81 | F31: 73 | G31: 82 | H31: 83 | I31: 85
A32: Kupci iz trećih zemalja | C32: 12 | D32: 19 | E32: 25 | F32: 21 | G32: 27 | H32: 28 | I32: 30 | J32: 158.3333333 | K32: 131.5789474 | L32: 110.5263158 | M32: 128.5714286 | N32: 103.7037037 | O32: 107.1428571
A34: Razvojni pokazatelji
A35: Broj destinacija | C35: 8 | D35: 8 | E35: 8 | F35: 8 | G35: 8 | H35: 8 | I35: 9 | J35: =IFERROR(D35/C35*100,) -> 100 | K35: 100 | L35: =IFERROR(F35/D35*100,) -> 100 | M35: 100 | N35: 100 | O35: 112.5
A36: Domaće | C36: 6 | D36: 6 | E36: 6 | F36: 6 | G36: 6 | H36: 6 | I36: 6 | J36: 100 | K36: 100 | L36: 100 | M36: 100 | N36: 100 | O36: 100
A37: Inozemne | C37: 2 | D37: 2 | E37: 2 | F37: 2 | G37: 2 | H37: 2 | I37: 3 | J37: 100 | K37: 100 | L37: 100 | M37: 100 | N37: 100 | O37: 150
A40: * Procijenjeni i planirani rezultati za tekuću godinu se uspoređuju s ostvarenim rezultatom poslovanja u prethodnoj godini
A41: ** Plavo osjenčana pozadina označava planirane vrijednosti
